Workbook

Sheet AFFICHAGE
A1: =PARAMÈTRES!C1 -> Calcul du brut / net - Année 2022 - (Paie standard) | W1: NOM : | X1: =_nom1 -> 0
M2: Prénom | N2: Nom | W2: PRENOM : | X2: =prenom1 -> 0 | Z2: Centre de responsabilité : | AB2: =centre1 -> 0
A3: Nom, Prénom : | B3: =IF(_nas1="","",_nom1&", "&prenom1) ->  | D3: Classification : | E3: =IF(_nas1="","",CATEGORIE_EMPLOI!B12) ->  | I3: Ministère : | W3: NAS : | X3: =_nas1 -> 0 | Z3: HEURES/SEM. : | AB3: =HRES_SEM -> 35
A4: Numéro d'assurance sociale : | D4: Corps d'emploi : | I4: Centre de responsabilité :
Z5: SALAIRE ANNUEL : | AB5: =SALAIRE1 -> 0
A6: Informations de l'employé | D6: Déductions à la source | I6: Informations fiscales | W6: =D7 -> Régime des rentes du Québec (RRQ) : | Z6: EXEMPTIONS FÉDÉRALE: | AB6: =EXEMPTIONS_FED -> 0
A7: =IF(_nas1="","",IF(TYPESAL1<>3,"Salaire annuel :","Taux horaire :")) ->  | B7: =IF(_nas1="","",IF(TYPESAL1<>3,'Déduction de base'!I7,TX_HOR_VAR)) ->  | D7: Régime des rentes du Québec (RRQ) : | G7: =Formule_Divers!E5 ->  | I7: Crédit d'impôt fédéral : | K7: =IF(_nas1="","",IF(EXEMPTIONS_FED="",0,EXEMPTIONS_FED)) ->  | W7: =G7 ->  | Z7: EXEMPTIONS PROVINCIALE: | AB7: =EXEMPTIONS_PROV -> 0
A8: Heures / Semaine (temps plein) : | B8: =IF(Heures_sem1=0,"",IF(LEN(Heures_sem1)=4,LEFT(Heures_sem1,1),LEFT(Heures_sem1,2))&"h"&IF(LEN(Heures_sem1)=2,"00",ROUND(RIGHT(Heures_sem1,2)*60/100,0))) ->  | D8: Assurance-emploi (AE) : | G8: =Formule_Divers!E11 ->  | I8: Crédit d'impôt provincial : | K8: =IF(_nas1="","",IF(EXEMPTIONS_PROV="",0,EXEMPTIONS_PROV)) ->  | Z8: MAJOR. OCCASIONNELLE: | AB8: =MAJORATION -> 
A9: Majoration de traitement : | B9: =IF(_nas1="","",IF(OR(Taux_Majoration=0,Taux_Majoration=""),"0.00%",Taux_Majoration/100)) ->  | D9: Régime québécois d'assurance parentale (RQAP) : | G9: =Formule_Divers!E17 ->  | I9: Allègement d'impôt fédéral : | K9: =IF(_nas1="","",IF(ALLEGFED="",0,ALLEGFED)) ->  | W9: =D8 -> Assurance-emploi (AE) :
A10: Rachat de service : | B10: =IF(_nas1="","",RACHAT) ->  | D10: Contribution santé : | G10: =Formule_Divers!E22 ->  | I10: Allègement d'impôt provincial : | K10: =IF(_nas1="","",IF(ALLEGPROV="",0,ALLEGPROV)) ->  | W10: =G8 ->  | Z10: TYPE DE SALAIRE (SAGIP) : | AA10: =K3 -> 0 | AB10: CLASSIFICATION
A11: Régime de retraite : | B11: =IF(_nas1="","",REGIME_RETRAITE!C59) ->  | I11: Impôt additionnel fédéral : | K11: =IF('Calcul impôt'!B30="",0,'Calcul impôt'!B30) -> 0 | AB11: =E3 -> 
A12: Syndicat : | B12: =IF(_nas1="","",SYNDICAT!C42) ->  | I12: Impôt additionnel provincial : | K12: =IF('Calcul impôt'!B36="",0,'Calcul impôt'!B36) -> 0 | W12: RQAP ASSURANCE-PARENTALE | Y12: =A11 -> Régime de retraite :
W13: =Formule_Divers!E17 ->  | Y13: =B11 ->  | AB13: Allègement Fédéral : | AC13: =ALLEGFED -> 0
A14: =IF(AND(A15="",A16="",A18=""),"","Avantages imposables part employeur") -> Avantages imposables part employeur | AB14: Allègement provincial : | AC14: =ALLEGPROV -> 0
A15: =Assurances!H43 -> Total des avantages imposables : | C15: =IF(_nas1="","",IF(ASS_EXEMPT=TRUE,"",ASSUR_TOTAL)) ->  | W15: =A12 -> Syndicat : | AB15: Rachat de service : | AC15: =MAX_RACHAT_PERMIS -> 0
A16: =IF(Assurances!G35=0,"",Assurances!G35) ->  | C16: =IF(A16="","",ASSUR_PROV) ->  | W16: =B12 -> 
A17: =IF(Assurances!H44>0,"",Assurances!H44) ->  | C17: =IF(Assurances!I38>0,Assurances!I38,"") -> 
A18: =IF(Assurances!H35=0,"",Assurances!H35) ->  | C18: =IF(A18="","",Assurances!H38) ->  | AB18: =IF(ACCIDENTPARTIEL=TRUE,"ACCIDENT DU TRAVAIL (Temps-Partiel)","ACCIDENT DU TRAVAIL") -> ACCIDENT DU TRAVAIL
A19: Groupe d'assurés : | B19: =IF(_nas1="","",GR_ASSURANCE) ->  | K19: =PARAMÈTRES!E23 -> Temps partiel | AB19: =LBLDEPENDANT ->  | AC19: =PARAMÈTRES!AB232 -> Situation familiale -1-1
A20: Type de protection : | B20: =IF(_nas1="","",PROTECTION) ->  | K20: =PARAMÈTRES!G23 -> Horaire spécial | W20: =IF(TX_HOR=0,"","TAUX HORAIRE :") ->  | X20: =IF(TX_HOR=0,"",TX_HOR) ->  | AB20: =LBLMINEUR -> 
K21: =PARAMÈTRES!I23 -> Heures / Paie | W21: AVANTAGES IMPOSABLES Assurances.: | Y21: =Assurances!$J$49 -> 0 | Z21: =IF($CM$335>MAXCSSTPAIE,"14 premiers jours (Montants par paie) MAXIMUM CSST ATTEINT *","14 premiers jours (Montants par paie)") -> 
A22: =IF(TYPE_PAIE=1,"Heures / Semaine","Heures / paie") -> Heures / Semaine | B22: =PARAMÈTRES!B25 -> 35h00 | C22: =IF(TYPE_PAIE=2,"",PARAMÈTRES!C25) -> 33h15 | D22: =IF(TYPE_PAIE=2,"",PARAMÈTRES!D25) -> 32h30 | E22: =IF(TYPE_PAIE=2,"",PARAMÈTRES!E25) -> 32h00 | F22: =IF(TYPE_PAIE=2,"",PARAMÈTRES!F25) -> 31h30 | G22: =IF(TYPE_PAIE=2,"",PARAMÈTRES!G25) -> 30h00 | H22: =IF(TYPE_PAIE=2,"",PARAMÈTRES!H25) -> 28h00 | I22: =IF(TYPE_PAIE=2,"",PARAMÈTRES!I25) -> 24h30 | J22: =IF(TYPE_PAIE=2,"",PARAMÈTRES!J25) -> 21h00 | K22: =IF(TYPE_PAIE=2,"",PARAMÈTRES!K25) -> 14h00 | W22: Groupe d'assurés : | X22: =GR_ASSURANCE ->  | AA22: Prestations A-12: | AB22: 0
A23: =IF(A25="","Gains bruts","Gain brut") -> Gain brut | B23: =PARAMÈTRES!B26 -> 0 | C23: =IF(TYPE_PAIE=2,"",PARAMÈTRES!C26) -> 0 | D23: =IF(TYPE_PAIE=2,"",PARAMÈTRES!D26) -> 0 | E23: =IF(TYPE_PAIE=2,"",PARAMÈTRES!E26) -> 0 | F23: =IF(TYPE_PAIE=2,"",PARAMÈTRES!F26) -> 0 | G23: =IF(TYPE_PAIE=2,"",PARAMÈTRES!G26) -> 0 | H23: =IF(TYPE_PAIE=2,"",PARAMÈTRES!H26) -> 0 | I23: =IF(TYPE_PAIE=2,"",PARAMÈTRES!I26) -> 0 | J23: =IF(TYPE_PAIE=2,"",PARAMÈTRES!J26) -> 0 | K23: =IF(TYPE_PAIE=2,"",PARAMÈTRES!K26) -> 0 | W23: Type de Protection : | X23: =PROTECTION ->  | AA23: Compensation A-13: | AB23: 0
A24: =PARAMÈTRES!$A$27 -> Salaire A010 | B24: =PARAMÈTRES!B27 -> 0 | C24: =IF(TYPE_PAIE=2,"",PARAMÈTRES!C27) -> 0 | D24: =IF(TYPE_PAIE=2,"",PARAMÈTRES!D27) -> 0 | E24: =IF(TYPE_PAIE=2,"",PARAMÈTRES!E27) -> 0 | F24: =IF(TYPE_PAIE=2,"",PARAMÈTRES!F27) -> 0 | G24: =IF(TYPE_PAIE=2,"",PARAMÈTRES!G27) -> 0 | H24: =IF(TYPE_PAIE=2,"",PARAMÈTRES!H27) -> 0 | I24: =IF(TYPE_PAIE=2,"",PARAMÈTRES!I27) -> 0 | J24: =IF(TYPE_PAIE=2,"",PARAMÈTRES!J27) -> 0 | K24: =IF(TYPE_PAIE=2,"",PARAMÈTRES!K27) -> 0 | AA24: Durée de l'absence: | AB24: 10 jours ouvrables
A25: =PARAMÈTRES!$A$28 ->  | B25: =PARAMÈTRES!B28 -> 0 | C25: =IF(TYPE_PAIE=2,"",PARAMÈTRES!C28) -> 0 | D25: =IF(TYPE_PAIE=2,"",PARAMÈTRES!D28) -> 0 | E25: =IF(TYPE_PAIE=2,"",PARAMÈTRES!E28) -> 0 | F25: =IF(TYPE_PAIE=2,"",PARAMÈTRES!F28) -> 0 | G25: =IF(TYPE_PAIE=2,"",PARAMÈTRES!G28) -> 0 | H25: =IF(TYPE_PAIE=2,"",PARAMÈTRES!H28) -> 0 | I25: =IF(TYPE_PAIE=2,"",PARAMÈTRES!I28) -> 0 | J25: =IF(TYPE_PAIE=2,"",PARAMÈTRES!J28) -> 0 | K25: =IF(TYPE_PAIE=2,"",PARAMÈTRES!K28) -> 0 | W25: Calcul de paie | X25: régulier | Y25: Compensation Acc.Tr. | AA25: Prestations A-12: | AB25: =ROUND(ROUND(A_12/10,3)*DUREE,2) -> 0
W26: Heures par semaine: | X26: =PARAMÈTRES!AC207 -> 35h00 | Y26: =PARAMÈTRES!AD207 -> 35h00 | AA26: Compensation A-13: | AB26: =ROUND(A_13/IF(JRS_TRV_PAIE="",10,JRS_TRV_PAIE)*DUREE,2) -> 0
A27: Déductions | W27: GAINS BRUTS : | X27: =PARAMÈTRES!AC208 -> 0 | Y27: =PARAMÈTRES!AD208 -> 0 | Z27: =IF(SALAIREBRUTCSST>MAXCSST,"À compter de la 15ième journée MAXIMUM CNESST ATTEINT * *",IF(AND(SALAIREBRUTCSST<MINCSST,SALAIREBRUTCSST>0),"À compter de la 15ième journée MINIMUM CSST CALCULÉ * *",IF(MAXCSST=0,"","À compter de la 15ième journée"))) -> À compter de la 15ième journée
A28: Impôt fédéral | B28: =PARAMÈTRES!B31 -> 0 | C28: =IF(TYPE_PAIE=2,"",PARAMÈTRES!C31) -> 0 | D28: =IF(TYPE_PAIE=2,"",PARAMÈTRES!D31) -> 0 | E28: =IF(TYPE_PAIE=2,"",PARAMÈTRES!E31) -> 0 | F28: =IF(TYPE_PAIE=2,"",PARAMÈTRES!F31) -> 0 | G28: =IF(TYPE_PAIE=2,"",PARAMÈTRES!G31) -> 0 | H28: =IF(TYPE_PAIE=2,"",PARAMÈTRES!H31) -> 0 | I28: =IF(TYPE_PAIE=2,"",PARAMÈTRES!I31) -> 0 | J28: =IF(TYPE_PAIE=2,"",PARAMÈTRES!J31) -> 0 | K28: =IF(TYPE_PAIE=2,"",PARAMÈTRES!K31) -> 0 | W28: Salaire A-10 : | X28: =PARAMÈTRES!AC209 -> 0 | Y28: =PARAMÈTRES!AD209 -> 0 | AA28: Prestations A-12: | AB28: 1880.06
A29: Impôt provincial | B29: =PARAMÈTRES!B32 -> 0 | C29: =IF(TYPE_PAIE=2,"",PARAMÈTRES!C32) -> 0 | D29: =IF(TYPE_PAIE=2,"",PARAMÈTRES!D32) -> 0 | E29: =IF(TYPE_PAIE=2,"",PARAMÈTRES!E32) -> 0 | F29: =IF(TYPE_PAIE=2,"",PARAMÈTRES!F32) -> 0 | G29: =IF(TYPE_PAIE=2,"",PARAMÈTRES!G32) -> 0 | H29: =IF(TYPE_PAIE=2,"",PARAMÈTRES!H32) -> 0 | I29: =IF(TYPE_PAIE=2,"",PARAMÈTRES!I32) -> 0 | J29: =IF(TYPE_PAIE=2,"",PARAMÈTRES!J32) -> 0 | K29: =IF(TYPE_PAIE=2,"",PARAMÈTRES!K32) -> 0 | W29: =IF(ACCIDENT=1,"Primes : " & PARAMÈTRES!A85,"Primes :") -> Primes : | X29: =PARAMÈTRES!AC210 -> 0 | Y29: =PARAMÈTRES!AD210 -> 0 | AA29: Compensation A-13:
A30: Contribution santé | B30: =PARAMÈTRES!B33 -> 0 | C30: =IF(TYPE_PAIE=2,"",PARAMÈTRES!C33) -> 0 | D30: =IF(TYPE_PAIE=2,"",PARAMÈTRES!D33) -> 0 | E30: =IF(TYPE_PAIE=2,"",PARAMÈTRES!E33) -> 0 | F30: =IF(TYPE_PAIE=2,"",PARAMÈTRES!F33) -> 0 | G30: =IF(TYPE_PAIE=2,"",PARAMÈTRES!G33) -> 0 | H30: =IF(TYPE_PAIE=2,"",PARAMÈTRES!H33) -> 0 | I30: =IF(TYPE_PAIE=2,"",PARAMÈTRES!I33) -> 0 | J30: =IF(TYPE_PAIE=2,"",PARAMÈTRES!J33) -> 0 | K30: =IF(TYPE_PAIE=2,"",PARAMÈTRES!K33) -> 0 | W30: ="Primes admissibles A-13 : "&PARAMÈTRES!A86 -> Primes admissibles A-13 : | Y30: =PARAMÈTRES!AD211 -> 0 | Z30: =IF(OR(AB23>0,AB29>0)," La compensation A-13 nette a été ramenée à un montant brut","") -> 
A31: RRQ | B31: =PARAMÈTRES!B34 -> 0 | C31: =IF(TYPE_PAIE=2,"",PARAMÈTRES!C34) -> 0 | D31: =IF(TYPE_PAIE=2,"",PARAMÈTRES!D34) -> 0 | E31: =IF(TYPE_PAIE=2,"",PARAMÈTRES!E34) -> 0 | F31: =IF(TYPE_PAIE=2,"",PARAMÈTRES!F34) -> 0 | G31: =IF(TYPE_PAIE=2,"",PARAMÈTRES!G34) -> 0 | H31: =IF(TYPE_PAIE=2,"",PARAMÈTRES!H34) -> 0 | I31: =IF(TYPE_PAIE=2,"",PARAMÈTRES!I34) -> 0 | J31: =IF(TYPE_PAIE=2,"",PARAMÈTRES!J34) -> 0 | K31: =IF(TYPE_PAIE=2,"",PARAMÈTRES!K34) -> 0 | W31: DÉDUCTIONS | Y31: =PARAMÈTRES!AD212 -> 0 | Z31: =IF(MESSAGE6<>"","Indemnités CNESST : "& PRESTATIONCSST&" $ par année ; "&CSST_JOUR&" $ par jour calendrier","") -> Indemnités CNESST : $ par année ; $ par jour calendrier
A32: Assurance-emploi | B32: =PARAMÈTRES!B35 -> 0 | C32: =IF(TYPE_PAIE=2,"",PARAMÈTRES!C35) -> 0 | D32: =IF(TYPE_PAIE=2,"",PARAMÈTRES!D35) -> 0 | E32: =IF(TYPE_PAIE=2,"",PARAMÈTRES!E35) -> 0 | F32: =IF(TYPE_PAIE=2,"",PARAMÈTRES!F35) -> 0 | G32: =IF(TYPE_PAIE=2,"",PARAMÈTRES!G35) -> 0 | H32: =IF(TYPE_PAIE=2,"",PARAMÈTRES!H35) -> 0 | I32: =IF(TYPE_PAIE=2,"",PARAMÈTRES!I35) -> 0 | J32: =IF(TYPE_PAIE=2,"",PARAMÈTRES!J35) -> 0 | K32: =IF(TYPE_PAIE=2,"",PARAMÈTRES!K35) -> 0 | W32: Impôt fédéral | X32: =PARAMÈTRES!AC213 -> 0 | Y32: =PARAMÈTRES!AD213 -> 0 | Z32: =IF(MESSAGE6<>"","Salaire annuel déclaré à la CNESST : "&SALAIREBRUTCSST&" $ ","") -> Salaire annuel déclaré à la CNESST : $
A33: RQAP | B33: =PARAMÈTRES!B36 -> 0 | C33: =IF(TYPE_PAIE=2,"",PARAMÈTRES!C36) -> 0 | D33: =IF(TYPE_PAIE=2,"",PARAMÈTRES!D36) -> 0 | E33: =IF(TYPE_PAIE=2,"",PARAMÈTRES!E36) -> 0 | F33: =IF(TYPE_PAIE=2,"",PARAMÈTRES!F36) -> 0 | G33: =IF(TYPE_PAIE=2,"",PARAMÈTRES!G36) -> 0 | H33: =IF(TYPE_PAIE=2,"",PARAMÈTRES!H36) -> 0 | I33: =IF(TYPE_PAIE=2,"",PARAMÈTRES!I36) -> 0 | J33: =IF(TYPE_PAIE=2,"",PARAMÈTRES!J36) -> 0 | K33: =IF(TYPE_PAIE=2,"",PARAMÈTRES!K36) -> 0 | W33: Impôt provincial | X33: =PARAMÈTRES!AC214 -> 0 | Y33: =PARAMÈTRES!AD214 -> 0
A34: Régime de retraite | B34: =PARAMÈTRES!B37 -> 0 | C34: =IF(TYPE_PAIE=2,"",PARAMÈTRES!C37) -> 0 | D34: =IF(TYPE_PAIE=2,"",PARAMÈTRES!D37) -> 0 | E34: =IF(TYPE_PAIE=2,"",PARAMÈTRES!E37) -> 0 | F34: =IF(TYPE_PAIE=2,"",PARAMÈTRES!F37) -> 0 | G34: =IF(TYPE_PAIE=2,"",PARAMÈTRES!G37) -> 0 | H34: =IF(TYPE_PAIE=2,"",PARAMÈTRES!H37) -> 0 | I34: =IF(TYPE_PAIE=2,"",PARAMÈTRES!I37) -> 0 | J34: =IF(TYPE_PAIE=2,"",PARAMÈTRES!J37) -> 0 | K34: =IF(TYPE_PAIE=2,"",PARAMÈTRES!K37) -> 0 | W34: Contribution santé | X34: =PARAMÈTRES!AC215 -> 0 | Y34: =PARAMÈTRES!AD215 -> 0
A35: Syndicat | B35: =PARAMÈTRES!B38 -> 0 | C35: =IF(TYPE_PAIE=2,"",PARAMÈTRES!C38) -> 0 | D35: =IF(TYPE_PAIE=2,"",PARAMÈTRES!D38) -> 0 | E35: =IF(TYPE_PAIE=2,"",PARAMÈTRES!E38) -> 0 | F35: =IF(TYPE_PAIE=2,"",PARAMÈTRES!F38) -> 0 | G35: =IF(TYPE_PAIE=2,"",PARAMÈTRES!G38) -> 0 | H35: =IF(TYPE_PAIE=2,"",PARAMÈTRES!H38) -> 0 | I35: =IF(TYPE_PAIE=2,"",PARAMÈTRES!I38) -> 0 | J35: =IF(TYPE_PAIE=2,"",PARAMÈTRES!J38) -> 0 | K35: =IF(TYPE_PAIE=2,"",PARAMÈTRES!K38) -> 0 | W35: RRQ | X35: =PARAMÈTRES!AC216 -> 0 | Y35: =PARAMÈTRES!AD216 -> 0
A36: Rachat | B36: =PARAMÈTRES!B39 -> 0 | C36: =IF(TYPE_PAIE=2,"",PARAMÈTRES!C39) -> 0 | D36: =IF(TYPE_PAIE=2,"",PARAMÈTRES!D39) -> 0 | E36: =IF(TYPE_PAIE=2,"",PARAMÈTRES!E39) -> 0 | F36: =IF(TYPE_PAIE=2,"",PARAMÈTRES!F39) -> 0 | G36: =IF(TYPE_PAIE=2,"",PARAMÈTRES!G39) -> 0 | H36: =IF(TYPE_PAIE=2,"",PARAMÈTRES!H39) -> 0 | I36: =IF(TYPE_PAIE=2,"",PARAMÈTRES!I39) -> 0 | J36: =IF(TYPE_PAIE=2,"",PARAMÈTRES!J39) -> 0 | K36: =IF(TYPE_PAIE=2,"",PARAMÈTRES!K39) -> 0 | W36: Assurance-emploi | X36: =PARAMÈTRES!AC217 -> 0 | Y36: =PARAMÈTRES!AD217 -> 0 | Z36: ="* * Le salaire annuel brut dépasse le maximum de la C.N.E.S.S.T. ("&MAXCSST&"$ en "&Année&")" -> * * Le salaire annuel brut dépasse le maximum de la C.N.E.S.S.T. (88000$ en 2022)
A37: Assurances collectives | B37: =PARAMÈTRES!B40 -> 0 | C37: =IF(TYPE_PAIE=2,"",PARAMÈTRES!C40) -> 0 | D37: =IF(TYPE_PAIE=2,"",PARAMÈTRES!D40) -> 0 | E37: =IF(TYPE_PAIE=2,"",PARAMÈTRES!E40) -> 0 | F37: =IF(TYPE_PAIE=2,"",PARAMÈTRES!F40) -> 0 | G37: =IF(TYPE_PAIE=2,"",PARAMÈTRES!G40) -> 0 | H37: =IF(TYPE_PAIE=2,"",PARAMÈTRES!H40) -> 0 | I37: =IF(TYPE_PAIE=2,"",PARAMÈTRES!I40) -> 0 | J37: =IF(TYPE_PAIE=2,"",PARAMÈTRES!J40) -> 0 | K37: =IF(TYPE_PAIE=2,"",PARAMÈTRES!K40) -> 0 | W37: RQAP | X37: =PARAMÈTRES!AC218 -> 0 | Y37: =PARAMÈTRES!AD218 -> 0
A38: Déductions diverses | B38: =PARAMÈTRES!B41 -> 0 | C38: =IF(TYPE_PAIE=2,"",PARAMÈTRES!C41) -> 0 | D38: =IF(TYPE_PAIE=2,"",PARAMÈTRES!D41) -> 0 | E38: =IF(TYPE_PAIE=2,"",PARAMÈTRES!E41) -> 0 | F38: =IF(TYPE_PAIE=2,"",PARAMÈTRES!F41) -> 0 | G38: =IF(TYPE_PAIE=2,"",PARAMÈTRES!G41) -> 0 | H38: =IF(TYPE_PAIE=2,"",PARAMÈTRES!H41) -> 0 | I38: =IF(TYPE_PAIE=2,"",PARAMÈTRES!I41) -> 0 | J38: =IF(TYPE_PAIE=2,"",PARAMÈTRES!J41) -> 0 | K38: =IF(TYPE_PAIE=2,"",PARAMÈTRES!K41) -> 0 | W38: Régime de retraite | Y38: =PARAMÈTRES!AD219 -> 0
A39: Total des déductions | B39: =SUM(B28:B38) -> 0 | C39: =IF(TYPE_PAIE=2,"",SUM(C28:C38)) -> 0 | D39: 0 | E39: 0 | F39: 0 | G39: 0 | H39: 0 | I39: 0 | J39: 0 | K39: 0 | W39: Syndicat | Y39: =PARAMÈTRES!AD220 -> 0
A40: Salaire net | B40: =PARAMÈTRES!B42 -> 0 | C40: =IF(TYPE_PAIE=2,"",PARAMÈTRES!C42) -> 0 | D40: =IF(TYPE_PAIE=2,"",PARAMÈTRES!D42) -> 0 | E40: =IF(TYPE_PAIE=2,"",PARAMÈTRES!E42) -> 0 | F40: =IF(TYPE_PAIE=2,"",PARAMÈTRES!F42) -> 0 | G40: =IF(TYPE_PAIE=2,"",PARAMÈTRES!G42) -> 0 | H40: =IF(TYPE_PAIE=2,"",PARAMÈTRES!H42) -> 0 | I40: =IF(TYPE_PAIE=2,"",PARAMÈTRES!I42) -> 0 | J40: =IF(TYPE_PAIE=2,"",PARAMÈTRES!J42) -> 0 | K40: =IF(TYPE_PAIE=2,"",PARAMÈTRES!K42) -> 0 | W40: Rachat | Y40: =PARAMÈTRES!AD221 -> 0
W41: Assurances collectives | Y41: =PARAMÈTRES!AD222 -> 0
W42: Ddéductions diverses | Y42: =PARAMÈTRES!AD223 -> 0
A43: ="Nom du technicien: "&[2]!username() -> Nom du technicien: Trudel, Dominic | W43: SALAIRE NET | X43: =PARAMÈTRES!AC224+PARAMÈTRES!AC223+PARAMÈTRES!AC222+PARAMÈTRES!AC220+PARAMÈTRES!AC219 -> 0 | Y43: =PARAMÈTRES!AD224 -> 0
Y45: CLIQUEZ SUR « Retour au brut/net » DANS LE MENU DU HAUT
Y46: POUR REVENIR AU MENU PRINCIPAL
B78: CLIQUEZ SUR « Retour au brut/net dans le menu du haut »
B79: POUR REVENIR AU MENU PRINCIPAL
B97: =IF(Formule_Divers!I20=1,"PAIEMENT","RÉCLAMATION") -> RÉCLAMATION
A99: INSCRIVEZ LES DONNÉES SUIVANTES
A100: A PARTIR DU CHÈQUE RÉGULIER DE L'EMPLOYÉ CONCERNÉ
A102: NOM | B102: PRÉNOM | D102: NAS
A105: BRUT PAR PAIE : | B105: 0 | C105: =IF(Formule_Divers!I20=1," BRUT À PAYER:"," BRUT À RÉCUPÉRER : " ) -> BRUT À RÉCUPÉRER : | E105: 0
A106: IMPÔT FÉDÉRAL.: | B106: 0 | C106: IMPÔT FÉDÉRAL.: | E106: =IF($B$105:$B$113>0,ROUND(($E$105/$B$105*B106),2)," ") -> 
A107: IMPÔT PROVINCIAL: | B107: 0 | C107: IMPÔT PROVINCIAL:
A108: CONTRIBUTION SANTÉ : | C108: CONTRIBUTION SANTÉ : | E108: =IF($B$105:$B$113>0,ROUND(($E$105/$B$105*B108),2)," ") -> 
A109: RÉGIE DES RENTES: | B109: 0 | C109: RÉGIE DES RENTES:
A110: ASSURANCE EMPLOI: | B110: 0 | C110: ASSURANCE EMPLOI:
A111: ASSURANCE PARENTALE: | B111: 0 | C111: ASSURANCE PARENTALE:
A112: RÉGIME DE RETRAITE: | B112: 0 | C112: RÉGIME DE RETRAITE:
A113: =IF(B113>0,"COTISATION SYNDICALE:"," ") ->  | C113: =IF(B113>0," COTISATION SYNDICALE:"," ") ->  | E113: =IF(B113>0,IF($B$105:$B$113>0,ROUND(($E$105/$B$105*B113),2)," ")," ") -> 
E114: -
A115: PAIE NETTE : | B115: =(B105-(SUM(B106:B113))) -> 0 | C115: TOTAL DÉDUCTIONS: | E115: =SUM($E$106:$E$113) -> 0
D117: =IF(Formule_Divers!I20=1,"MONTANT NET À PAYER :","MONTANT NET À RÉCUPÉRER :") -> MONTANT NET À RÉCUPÉRER : | E117: =($E$105-$E$115) -> 0
A118: =IF(Formule_Divers!I20=1,"CLIQUEZ SUR LE MENU « Retour »","") -> 
A119: =IF(Formule_Divers!I20=1,"POUR REVENIR AU MENU RÉCUPÉRATION","") -> 

Sheet Simulateur (hidden)
C2: Paramètres de calcul
C3: =MID('Déduction de base'!H7,1,1)&LOWER(MID('Déduction de base'!H7,2,100)) -> Taux horaire : | D3: =IF(OR(TYPE_PAIE=1,Validation_Simulateur="Oui"),'Déduction de base'!I7,TX_HOR_VAR) -> 0 | F3: Régime des rentes du Québec | I3: Classification
C4: Majoration occasionnelle : | D4: =Formule_Divers!H16 -> 0 | F4: =Formule_Divers!E5 ->  | I4: =CATEGORIE_EMPLOI!B12 -> 
C5: HEURES/SEM. (temps plein) : | D5: =HRES_SEM -> 35
C6: =IF(TYPE_PAIE=2,"Corps d'emploi :","") ->  | D6: =IF(TYPE_PAIE=2,CORPS_EMPLOI,"") ->  | F6: Assurance-emploi | I6: Syndicat
C7: Crédit d'impôt fédéral : | D7: =EXEMPTIONS_FED -> 0 | F7: =Formule_Divers!E11 ->  | I7: =SYNDICAT!C42 -> 0 - Employés ne contribuant ni à un syndicat ni à une association (non syndiqué)
C8: Crédit d'impôt provincial : | D8: =EXEMPTIONS_PROV -> 0
C9: Impôt fédéral additionnel : | D9: =FED_ADD -> 0 | F9: Régime de retraite
C10: Impôt provincial additionnel : | D10: =PROV_ADD -> 0 | F10: =REGIME_RETRAITE!C59 -> 1 - Non assujetti
C11: Allègement d'impôt fédéral : | D11: =ALLEGFED -> 0
C12: Allègement d'impôt provincial : | D12: =ALLEGPROV -> 0 | F12: Régime québécois d'assurance parentale
C13: Rachat de service : | D13: =RACHAT -> 0 | F13: =Formule_Divers!E17 -> 
C15: =Assurances!H42 -> Avantages imposables
C16: Assurances collectives : | D16: =IF(ASS_EXEMPT=TRUE,"",ASSUR_TOTAL) -> 0
C17: =Assurances!G35 -> 0 | D17: =ASSUR_PROV -> 0 | E17: =Assurances!H35 ->  | F17: =Assurances!H38 -> 0
C18: Groupe d'assurés : | D18: =GR_ASSURANCE -> 
C19: Type de protection : | D19: =PROTECTION -> 
M20: =PARAMÈTRES!E23 -> Temps partiel
M21: =PARAMÈTRES!G23 -> Horaire spécial
M22: =PARAMÈTRES!I23 -> Heures / Paie
C23: =IF(TYPE_PAIE=1,"HEURES SEMAINE","HEURES PAIE") -> HEURES SEMAINE | D23: =PARAMÈTRES!B25 -> 35h00 | E23: =PARAMÈTRES!C25 -> 33h15 | F23: =PARAMÈTRES!D25 -> 32h30 | G23: =PARAMÈTRES!E25 -> 32h00 | H23: =PARAMÈTRES!F25 -> 31h30 | I23: =PARAMÈTRES!G25 -> 30h00 | J23: =PARAMÈTRES!H25 -> 28h00 | K23: =PARAMÈTRES!I25 -> 24h30 | L23: =PARAMÈTRES!J25 -> 21h00 | M23: =PARAMÈTRES!K25 -> 14h00
C24: GAINS BRUTS versés par paie : | D24: =PARAMÈTRES!B26 -> 0 | E24: =PARAMÈTRES!C26 -> 0 | F24: =PARAMÈTRES!D26 -> 0 | G24: =PARAMÈTRES!E26 -> 0 | H24: =PARAMÈTRES!F26 -> 0 | I24: =PARAMÈTRES!G26 -> 0 | J24: =PARAMÈTRES!H26 -> 0 | K24: =PARAMÈTRES!I26 -> 0 | L24: =PARAMÈTRES!J26 -> 0 | M24: =PARAMÈTRES!K26 -> 0
C25: =PARAMÈTRES!$A$27 -> Salaire A010 | D25: =PARAMÈTRES!B27 -> 0 | E25: =PARAMÈTRES!C27 -> 0 | F25: =PARAMÈTRES!D27 -> 0 | G25: =PARAMÈTRES!E27 -> 0 | H25: =PARAMÈTRES!F27 -> 0 | I25: =PARAMÈTRES!G27 -> 0 | J25: =PARAMÈTRES!H27 -> 0 | K25: =PARAMÈTRES!I27 -> 0 | L25: =PARAMÈTRES!J27 -> 0 | M25: =PARAMÈTRES!K27 -> 0
C26: =PARAMÈTRES!$A$28 ->  | D26: =PARAMÈTRES!B28 -> 0 | E26: =PARAMÈTRES!C28 -> 0 | F26: =PARAMÈTRES!D28 -> 0 | G26: =PARAMÈTRES!E28 -> 0 | H26: =PARAMÈTRES!F28 -> 0 | I26: =PARAMÈTRES!G28 -> 0 | J26: =PARAMÈTRES!H28 -> 0 | K26: =PARAMÈTRES!I28 -> 0 | L26: =PARAMÈTRES!J28 -> 0 | M26: =PARAMÈTRES!K28 -> 0
C28: DÉDUCTIONS
C29: IMPÔT FÉDÉRAL | D29: =PARAMÈTRES!B31 -> 0 | E29: =PARAMÈTRES!C31 -> 0 | F29: =PARAMÈTRES!D31 -> 0 | G29: =PARAMÈTRES!E31 -> 0 | H29: =PARAMÈTRES!F31 -> 0 | I29: =PARAMÈTRES!G31 -> 0 | J29: =PARAMÈTRES!H31 -> 0 | K29: =PARAMÈTRES!I31 -> 0 | L29: =PARAMÈTRES!J31 -> 0 | M29: =PARAMÈTRES!K31 -> 0
C30: IMPÔT PROVINCIAL | D30: =PARAMÈTRES!B32+PARAMÈTRES!B33 -> 0 | E30: =PARAMÈTRES!C32+PARAMÈTRES!C33 -> 0 | F30: =PARAMÈTRES!D32+PARAMÈTRES!D33 -> 0 | G30: =PARAMÈTRES!E32+PARAMÈTRES!E33 -> 0 | H30: =PARAMÈTRES!F32+PARAMÈTRES!F33 -> 0 | I30: =PARAMÈTRES!G32+PARAMÈTRES!G33 -> 0 | J30: =PARAMÈTRES!H32+PARAMÈTRES!H33 -> 0 | K30: =PARAMÈTRES!I32+PARAMÈTRES!I33 -> 0 | L30: =PARAMÈTRES!J32+PARAMÈTRES!J33 -> 0 | M30: =PARAMÈTRES!K32+PARAMÈTRES!K33 -> 0
C31: RÉGIME DES RENTES DU QUÉBEC | D31: =PARAMÈTRES!B34 -> 0 | E31: =PARAMÈTRES!C34 -> 0 | F31: =PARAMÈTRES!D34 -> 0 | G31: =PARAMÈTRES!E34 -> 0 | H31: =PARAMÈTRES!F34 -> 0 | I31: =PARAMÈTRES!G34 -> 0 | J31: =PARAMÈTRES!H34 -> 0 | K31: =PARAMÈTRES!I34 -> 0 | L31: =PARAMÈTRES!J34 -> 0 | M31: =PARAMÈTRES!K34 -> 0
C32: ASSURANCE-EMPLOI | D32: =PARAMÈTRES!B35 -> 0 | E32: =PARAMÈTRES!C35 -> 0 | F32: =PARAMÈTRES!D35 -> 0 | G32: =PARAMÈTRES!E35 -> 0 | H32: =PARAMÈTRES!F35 -> 0 | I32: =PARAMÈTRES!G35 -> 0 | J32: =PARAMÈTRES!H35 -> 0 | K32: =PARAMÈTRES!I35 -> 0 | L32: =PARAMÈTRES!J35 -> 0 | M32: =PARAMÈTRES!K35 -> 0
C33: RQAP | D33: =PARAMÈTRES!B36 -> 0 | E33: =PARAMÈTRES!C36 -> 0 | F33: =PARAMÈTRES!D36 -> 0 | G33: =PARAMÈTRES!E36 -> 0 | H33: =PARAMÈTRES!F36 -> 0 | I33: =PARAMÈTRES!G36 -> 0 | J33: =PARAMÈTRES!H36 -> 0 | K33: =PARAMÈTRES!I36 -> 0 | L33: =PARAMÈTRES!J36 -> 0 | M33: =PARAMÈTRES!K36 -> 0
C34: RÉGIME DE RETRAITE | D34: =PARAMÈTRES!B37 -> 0 | E34: =PARAMÈTRES!C37 -> 0 | F34: =PARAMÈTRES!D37 -> 0 | G34: =PARAMÈTRES!E37 -> 0 | H34: =PARAMÈTRES!F37 -> 0 | I34: =PARAMÈTRES!G37 -> 0 | J34: =PARAMÈTRES!H37 -> 0 | K34: =PARAMÈTRES!I37 -> 0 | L34: =PARAMÈTRES!J37 -> 0 | M34: =PARAMÈTRES!K37 -> 0
C35: SYNDICAT | D35: =PARAMÈTRES!B38 -> 0 | E35: =PARAMÈTRES!C38 -> 0 | F35: =PARAMÈTRES!D38 -> 0 | G35: =PARAMÈTRES!E38 -> 0 | H35: =PARAMÈTRES!F38 -> 0 | I35: =PARAMÈTRES!G38 -> 0 | J35: =PARAMÈTRES!H38 -> 0 | K35: =PARAMÈTRES!I38 -> 0 | L35: =PARAMÈTRES!J38 -> 0 | M35: =PARAMÈTRES!K38 -> 0 | O35: =TYPE_PAIE -> 1
C36: RACHAT DE SERVICE | D36: =PARAMÈTRES!B39 -> 0 | E36: =PARAMÈTRES!C39 -> 0 | F36: =PARAMÈTRES!D39 -> 0 | G36: =PARAMÈTRES!E39 -> 0 | H36: =PARAMÈTRES!F39 -> 0 | I36: =PARAMÈTRES!G39 -> 0 | J36: =PARAMÈTRES!H39 -> 0 | K36: =PARAMÈTRES!I39 -> 0 | L36: =PARAMÈTRES!J39 -> 0 | M36: =PARAMÈTRES!K39 -> 0
C37: ASSURANCES COLLECTIVES | D37: =PARAMÈTRES!B40 -> 0 | E37: =PARAMÈTRES!C40 -> 0 | F37: =PARAMÈTRES!D40 -> 0 | G37: =PARAMÈTRES!E40 -> 0 | H37: =PARAMÈTRES!F40 -> 0 | I37: =PARAMÈTRES!G40 -> 0 | J37: =PARAMÈTRES!H40 -> 0 | K37: =PARAMÈTRES!I40 -> 0 | L37: =PARAMÈTRES!J40 -> 0 | M37: =PARAMÈTRES!K40 -> 0
C38: DÉDUCTIONS DIVERSES | D38: =PARAMÈTRES!B41 -> 0 | E38: =PARAMÈTRES!C41 -> 0 | F38: =PARAMÈTRES!D41 -> 0 | G38: =PARAMÈTRES!E41 -> 0 | H38: =PARAMÈTRES!F41 -> 0 | I38: =PARAMÈTRES!G41 -> 0 | J38: =PARAMÈTRES!H41 -> 0 | K38: =PARAMÈTRES!I41 -> 0 | L38: =PARAMÈTRES!J41 -> 0 | M38: =PARAMÈTRES!K41 -> 0
C39: SALAIRE NET* | D39: =PARAMÈTRES!B42 -> 0 | E39: =PARAMÈTRES!C42 -> 0 | F39: =PARAMÈTRES!D42 -> 0 | G39: =PARAMÈTRES!E42 -> 0 | H39: =PARAMÈTRES!F42 -> 0 | I39: =PARAMÈTRES!G42 -> 0 | J39: =PARAMÈTRES!H42 -> 0 | K39: =PARAMÈTRES!I42 -> 0 | L39: =PARAMÈTRES!J42 -> 0 | M39: =PARAMÈTRES!K42 -> 0

Sheet CSTTD
A2: Nom, Prénom : | C2: =IF(_nas1="","",_nom1&", "&prenom1) ->  | H2: Classification : | I2: =IF(_nas1="","",CATEGORIE_EMPLOI!B12) ->  | P2: Ministère : | R2: =Min -> 0
A3: Numéro d'assurance sociale : | C3: =IF(_nas1="","",_nas1) ->  | H3: Corps d'emploi : | I3: =CORPS_EMPLOI -> 0 | P3: Centre de responsabilité : | R3: =centre1 -> 0
A5: Informations de l'employé | H5: Déductions à la source
A6: =IF(_nas1="","",IF(TYPE_PAIE=1,"Salaire annuel :","Taux horaire :à")) ->  | C6: =IF(_nas1="","",IF(TYPE_PAIE=1,'Déduction de base'!I7,TX_HOR_VAR)) ->  | H6: Régie des rentes du Québec (RRQ) : | L6: =Formule_Divers!E5 ->  | P6: Crédit d'impôt fédéral : | R6: =IF(_nas1="","",IF(EXEMPTIONS_FED="",0,EXEMPTIONS_FED)) -> 
A7: Heures / Semaine (temps plein) : | C7: =IF(Heures_sem1=0,"",IF(LEN(Heures_sem1)=3,LEFT(Heures_sem1,1),LEFT(Heures_sem1,2))&"h"&IF(LEN(Heures_sem1)=2,"00",ROUND(RIGHT(Heures_sem1,2)*60/100,0))) ->  | H7: Assurance-emploi (AE) : | L7: =Formule_Divers!E11 ->  | P7: Crédit d'impôt provincial : | R7: =IF(_nas1="","",IF(EXEMPTIONS_PROV="",0,EXEMPTIONS_PROV)) -> 
A8: Majoration de traitement : | C8: =IF(_nas1="","",IF(Formule_Divers!H16=0,"0.00%",Formule_Divers!H16/100)) ->  | H8: Régime québécois d'assurance parentale (RQAP) : | L8: =Formule_Divers!E17 ->  | P8: Allègement d'impôt fédéral : | R8: =IF(_nas1="","",IF(ALLEGFED="",0,ALLEGFED)) -> 
A9: Rachat de service : | C9: =IF(_nas1="","",RACHAT) ->  | H9: Contribution santé : | L9: =Formule_Divers!E22 ->  | P9: Allègement d'impôt provincial : | R9: =IF(_nas1="","",IF(ALLEGPROV="",0,ALLEGPROV)) -> 
A10: Régime de retraite : | C10: =IF(_nas1="","",REGIME_RETRAITE!C59) ->  | P10: Impôt additionnel fédéral : | R10: =IF(FED_ADD=0,"",FED_ADD) -> 
A11: Syndicat : | C11: =IF(_nas1="","",SYNDICAT!C42) ->  | P11: Impôt additionnel provincial : | R11: =IF(PROV_ADD=0,"",PROV_ADD) -> 
A13: Assurances de l'employé
A14: Groupe d'assurés : | D14: =IF(_nas1="","",GR_ASSURANCE) -> 
A15: Type de protection : | D15: =IF(_nas1="","",PROTECTION) -> 
A16: =IF(AND(A17="",A18="",A19=""),"","Avantages imposables part employeur") -> Avantages imposables part employeur
A17: =Assurances!H43 -> Total des avantages imposables : | D17: =IF(_nas1="","",IF(ASS_EXEMPT=TRUE,"",ASSUR_TOTAL)) -> 
A18: =IF(Assurances!G35=0,"",Assurances!G35) ->  | D18: =IF(A18="","",ASSUR_PROV) -> 
A19: =IF(Assurances!H35=0,"",Assurances!H35) ->  | D19: =IF(A19="","",Assurances!H38) -> 
D21: Durée de la participation au régime | H21: Durée de la participation au régime | L21: Durée de la participation au régime | P21: Durée de la participation au régime
D22: Durée du congé | H22: Durée du congé | L22: Durée du congé | P22: Durée du congé
D23: Pourcentage option | F23: =IF(CSTTDPourcentage1="","",CSTTDPourcentage1) ->  | H23: Pourcentage option | J23: =IF(CSTTDPourcentage2="","",CSTTDPourcentage2) ->  | L23: Pourcentage option | N23: =IF(CSTTDPourcentage3="","",CSTTDPourcentage3) ->  | P23: Pourcentage option | R23: =IF(CSTTDPourcentage4="","",CSTTDPourcentage4) -> 
A25: Paie normale | D25: Simulation 1 | E25: Prestation au travail | F25: Paie durant le congé | H25: Simulation 2 | I25: Prestation au travail | J25: Paie durant le congé | L25: Simulation 3 | M25: Prestation au travail | N25: Paie durant le congé | P25: Simulation 4 | Q25: Prestation au travail | R25: Paie durant le congé
A27: =IF(A31="","Gains bruts","Gain brut") -> Gain brut | B27: =PARAMÈTRES!B26 -> 0 | D27: =IF(D30="","Gains bruts","Gain brut") -> Gain brut | E27: =E28-E30+IF(E31="",0,E31) -> 0 | F27: =F29+IF(F31="","0",+F31) -> 0 | H27: =IF(H30="","Gains bruts","Gain brut") -> Gain brut | I27: =I28-I30+IF(I31="",0,I31) -> 0 | J27: =J29+IF(J31="","0",+J31) -> 0 | L27: =IF(L30="","Gains bruts","Gain brut") -> Gain brut | M27: =M28-M30+IF(M31="",0,M31) -> 0 | N27: =N29+IF(N31="","0",+N31) -> 0 | P27: =IF(P30="","Gains bruts","Gain brut") -> Gain brut | Q27: =Q28-Q30+IF(Q31="",0,Q31) -> 0 | R27: =R29+IF(R31="","0",+R31) -> 0
A28: =PARAMÈTRES!$A$27 -> Salaire A010 | B28: =PARAMÈTRES!B27 -> 0 | D28: =PARAMÈTRES!$A$27 -> Salaire A010 | E28: =AFFICHAGE!$B$24 -> 0 | H28: =PARAMÈTRES!$A$27 -> Salaire A010 | I28: =IF(J23="",0,AFFICHAGE!$B$24) -> 0 | L28: =PARAMÈTRES!$A$27 -> Salaire A010 | M28: =IF(N23="",0,AFFICHAGE!$B$24) -> 0 | P28: =PARAMÈTRES!$A$27 -> Salaire A010 | Q28: =IF(R23="",0,AFFICHAGE!$B$24) -> 0
D29: Salaire A085 | F29: =IF(F23="",0,ROUND(((Standard_Ext*2*'Déduction de base'!B4)+IF(codprima=106,PRIME1,0)+IF(codprimb=106,PRIME2,0)+IF(codprimc=106,PRIME3,0)+IF(codprimd=106,PRIME4,0))*F23,2)) -> 0 | H29: Salaire A085 | J29: =IF(J23="",0,ROUND(((Standard_Ext*2*'Déduction de base'!B4)+IF(codprima=106,PRIME1,0)+IF(codprimb=106,PRIME2,0)+IF(codprimc=106,PRIME3,0)+IF(codprimd=106,PRIME4,0))*J23,2)) -> 0 | L29: Salaire A085 | N29: =IF(N23="",0,ROUND(((Standard_Ext*2*'Déduction de base'!B4)+IF(codprima=106,PRIME1,0)+IF(codprimb=106,PRIME2,0)+IF(codprimc=106,PRIME3,0)+IF(codprimd=106,PRIME4,0))*N23,2)) -> 0 | P29: Salaire A085 | R29: =IF(R23="",0,ROUND(((Standard_Ext*2*'Déduction de base'!B4)+IF(codprima=106,PRIME1,0)+IF(codprimb=106,PRIME2,0)+IF(codprimc=106,PRIME3,0)+IF(codprimd=106,PRIME4,0))*R23,2)) -> 0
D30: Retenue B085 | E30: =IF(F23="",0,ROUND((Standard_Ext*2*'Déduction de base'!B4)*(1-F23),2)) -> 0 | H30: Retenue B085 | I30: =IF(J23="",0,ROUND((Standard_Ext*2*'Déduction de base'!B4)*(1-J23),2)) -> 0 | L30: Retenue B085 | M30: =IF(N23="",0,ROUND((Standard_Ext*2*'Déduction de base'!B4)*(1-N23),2)) -> 0 | P30: Retenue B085 | Q30: =IF(R23="",0,ROUND((Standard_Ext*2*'Déduction de base'!B4)*(1-R23),2)) -> 0
A31: =PARAMÈTRES!$A$28 ->  | B31: =IF(PARAMÈTRES!$B$28=0,"",PARAMÈTRES!$B$28) ->  | D31: =PARAMÈTRES!$A$28 ->  | E31: =IF(PARAMÈTRES!$B$28=0,"",PARAMÈTRES!$B$28) ->  | F31: =IF(PARAMÈTRES!$B$28=0,"",(PARAMÈTRES!$B$28-+IF(codprima=106,PRIME1,0)+IF(codprimb=106,PRIME2,0)+IF(codprimc=106,PRIME3,0)+IF(codprimd=106,PRIME4,0))) ->  | H31: =PARAMÈTRES!$A$28 ->  | I31: =IF(PARAMÈTRES!$B$28=0,"",PARAMÈTRES!$B$28) ->  | J31: =IF(PARAMÈTRES!$B$28=0,"",PARAMÈTRES!$B$28-+IF(codprima=106,PRIME1,0)+IF(codprimb=106,PRIME2,0)+IF(codprimc=106,PRIME3,0)+IF(codprimd=106,PRIME4,0)) ->  | L31: =PARAMÈTRES!$A$28 ->  | M31: =IF(PARAMÈTRES!$B$28=0,"",PARAMÈTRES!$B$28) ->  | N31: =IF(PARAMÈTRES!$B$28=0,"",PARAMÈTRES!$B$28-+IF(codprima=106,PRIME1,0)+IF(codprimb=106,PRIME2,0)+IF(codprimc=106,PRIME3,0)+IF(codprimd=106,PRIME4,0)) ->  | P31: =PARAMÈTRES!$A$28 ->  | Q31: =IF(PARAMÈTRES!$B$28=0,"",PARAMÈTRES!$B$28) ->  | R31: =IF(PARAMÈTRES!$B$28=0,"",PARAMÈTRES!$B$28-+IF(codprima=106,PRIME1,0)+IF(codprimb=106,PRIME2,0)+IF(codprimc=106,PRIME3,0)+IF(codprimd=106,PRIME4,0)) -> 
A32: Déductions | D32: Déductions | H32: Déductions | L32: Déductions | P32: Déductions
A33: Impôt fédéral | B33: =PARAMÈTRES!B31 -> 0 | D33: Impôt fédéral | E33: =IF(_nas1="",0,MAX(+'Calcul impôt'!N65+'Calcul impôt'!$C$30,0)) -> 0 | F33: =IF(_nas1="",0,ROUND(MAX(+'Calcul impôt'!O65+'Calcul impôt'!$C$30,0),2)) -> 0 | H33: Impôt fédéral | I33: =IF(_nas1="",0,MAX(+'Calcul impôt'!P65+'Calcul impôt'!$C$30,0)) -> 0 | J33: =IF(_nas1="",0,MAX(+'Calcul impôt'!Q65+'Calcul impôt'!$C$30,0)) -> 0 | L33: Impôt fédéral | M33: =IF(_nas1="",0,MAX(+'Calcul impôt'!R65+'Calcul impôt'!$C$30,0)) -> 0 | N33: =IF(_nas1="",0,MAX(+'Calcul impôt'!S65+'Calcul impôt'!$C$30,0)) -> 0 | P33: Impôt fédéral | Q33: =IF(_nas1="",0,MAX(+'Calcul impôt'!T65+'Calcul impôt'!$C$30,0)) -> 0 | R33: =IF(_nas1="",0,MAX(+'Calcul impôt'!U65+'Calcul impôt'!$C$30,0)) -> 0
A34: Impôt provincial | B34: =PARAMÈTRES!B32 -> 0 | D34: Impôt provincial | E34: =IF(_nas1="",0,MAX(('Calcul impôt'!N99+'Calcul impôt'!$C$36),0)) -> 0 | F34: =IF(_nas1="",0,ROUND(MAX(('Calcul impôt'!O99+'Calcul impôt'!$C$36),0),2)) -> 0 | H34: Impôt provincial | I34: =IF(_nas1="",0,MAX(('Calcul impôt'!P99+'Calcul impôt'!$C$36),0)) -> 0 | J34: =IF(_nas1="",0,MAX(('Calcul impôt'!Q99+'Calcul impôt'!$C$36),0)) -> 0 | L34: Impôt provincial | M34: =IF(_nas1="",0,MAX(('Calcul impôt'!R99+'Calcul impôt'!$C$36),0)) -> 0 | N34: =IF(_nas1="",0,MAX(('Calcul impôt'!S99+'Calcul impôt'!$C$36),0)) -> 0 | P34: Impôt provincial | Q34: =IF(_nas1="",0,MAX(('Calcul impôt'!T99+'Calcul impôt'!$C$36),0)) -> 0 | R34: =IF(_nas1="",0,MAX(('Calcul impôt'!U99+'Calcul impôt'!$C$36),0)) -> 0
A35: Contribution santé | B35: =PARAMÈTRES!B33 -> 0 | D35: Contribution santé | E35: =IF(Validation_Simulateur="Oui",'Calcul impôt'!O100,IF(_nas1="",0,'Calcul impôt'!O100)) -> 0 | F35: =IF(Validation_Simulateur="Oui",'Calcul impôt'!O100,IF(_nas1="",0,'Calcul impôt'!O100)) -> 0 | H35: Contribution santé | I35: =IF(Validation_Simulateur="Oui",'Calcul impôt'!P100,IF(_nas1="",0,'Calcul impôt'!P100)) -> 0 | J35: =IF(Validation_Simulateur="Oui",'Calcul impôt'!Q100,IF(_nas1="",0,'Calcul impôt'!Q100)) -> 0 | L35: Contribution santé | M35: =IF(Validation_Simulateur="Oui",'Calcul impôt'!R100,IF(_nas1="",0,'Calcul impôt'!R100)) -> 0 | N35: =IF(Validation_Simulateur="Oui",'Calcul impôt'!S100,IF(_nas1="",0,'Calcul impôt'!S100)) -> 0 | P35: Contribution santé | Q35: =IF(Validation_Simulateur="Oui",'Calcul impôt'!T100,IF(_nas1="",0,'Calcul impôt'!T100)) -> 0 | R35: =IF(Validation_Simulateur="Oui",'Calcul impôt'!U100,IF(_nas1="",0,'Calcul impôt'!U100)) -> 0
A36: RRQ | B36: =PARAMÈTRES!B34 -> 0 | D36: RRQ | E36: =IF(CXRRQ=1,MAX(ROUND(MIN((((E28-E30+ReRQ1+ReRQ2+ReRQ3+ReRQ4-+IF(codprima=106,PRIME1,0)+IF(codprimb=106,PRIME2,0)+IF(codprimc=106,PRIME3,0)+IF(codprimd=106,PRIME4,0)+PARAMÈTRES!L64-PARAMÈTRES!L151)-RRQ_EXEMPT))*RRQ_TAUX,RRQMAX-RRQ_COTISE),2),0),0) -> 0 | F36: =IF(CXRRQ=1,MAX(ROUND(MIN((((F29+ReRQ1+ReRQ2+ReRQ3+ReRQ4-+IF(codprima=106,PRIME1,0)+IF(codprimb=106,PRIME2,0)+IF(codprimc=106,PRIME3,0)+IF(codprimd=106,PRIME4,0)+PARAMÈTRES!M64-PARAMÈTRES!M151)-RRQ_EXEMPT))*RRQ_TAUX,RRQMAX-RRQ_COTISE),2),0),0) -> 0 | H36: RRQ | I36: =IF(CXRRQ=1,MAX(ROUND(MIN((((I28-I30+ReRQ1+ReRQ2+ReRQ3+ReRQ4-+IF(codprima=106,PRIME1,0)+IF(codprimb=106,PRIME2,0)+IF(codprimc=106,PRIME3,0)+IF(codprimd=106,PRIME4,0)+PARAMÈTRES!N64-PARAMÈTRES!N151)-RRQ_EXEMPT))*RRQ_TAUX,RRQMAX-RRQ_COTISE),2),0),0) -> 0 | J36: =IF(CXRRQ=1,MAX(ROUND(MIN((((J27+ReRQ1+ReRQ2+ReRQ3+ReRQ4-+IF(codprima=106,PRIME1,0)+IF(codprimb=106,PRIME2,0)+IF(codprimc=106,PRIME3,0)+IF(codprimd=106,PRIME4,0)+PARAMÈTRES!O64-PARAMÈTRES!O151)-RRQ_EXEMPT))*RRQ_TAUX,RRQMAX-RRQ_COTISE),2),0),0) -> 0 | L36: RRQ | M36: =IF(CXRRQ=1,MAX(ROUND(MIN((((M28-M30+ReRQ1+ReRQ2+ReRQ3+ReRQ4-+IF(codprima=106,PRIME1,0)+IF(codprimb=106,PRIME2,0)+IF(codprimc=106,PRIME3,0)+IF(codprimd=106,PRIME4,0)+PARAMÈTRES!P64-PARAMÈTRES!P151)-RRQ_EXEMPT))*RRQ_TAUX,RRQMAX-RRQ_COTISE),2),0),0) -> 0 | N36: =IF(CXRRQ=1,MAX(ROUND(MIN((((N29+ReRQ1+ReRQ2+ReRQ3+ReRQ4-+IF(codprima=106,PRIME1,0)+IF(codprimb=106,PRIME2,0)+IF(codprimc=106,PRIME3,0)+IF(codprimd=106,PRIME4,0)+PARAMÈTRES!Q64-PARAMÈTRES!Q151)-RRQ_EXEMPT))*RRQ_TAUX,RRQMAX-RRQ_COTISE),2),0),0) -> 0 | P36: RRQ | Q36: =IF(CXRRQ=1,MAX(ROUND(MIN((((Q28-Q30+ReRQ1+ReRQ2+ReRQ3+ReRQ4-+IF(codprima=106,PRIME1,0)+IF(codprimb=106,PRIME2,0)+IF(codprimc=106,PRIME3,0)+IF(codprimd=106,PRIME4,0)+PARAMÈTRES!R64-PARAMÈTRES!R151)-RRQ_EXEMPT))*RRQ_TAUX,RRQMAX-RRQ_COTISE),2),0),0) -> 0 | R36: =IF(CXRRQ=1,MAX(ROUND(MIN((((R29+ReRQ1+ReRQ2+ReRQ3+ReRQ4-+IF(codprima=106,PRIME1,0)+IF(codprimb=106,PRIME2,0)+IF(codprimc=106,PRIME3,0)+IF(codprimd=106,PRIME4,0)+PARAMÈTRES!S64-PARAMÈTRES!S151)-RRQ_EXEMPT))*RRQ_TAUX,RRQMAX-RRQ_COTISE),2),0),0) -> 0
A37: Assurance-emploi | B37: =PARAMÈTRES!B35 -> 0 | D37: Assurance-emploi | E37: =IF(AND(A011CALC=TRUE,CHOIX_PRESTATION=5),0,IF(A011CALC=TRUE,IF(CXCHOMAGE=1,ROUND(((E28+(ASSUR_FED*(CSTTDPourcentage1))+IF(PRORATPRIME=TRUE,(PRIMEA011CALC+CHOMAGE1+CHOMAGE2+CHOMAGE3+CHOMAGE4)*(CSTTDPourcentage1),(PRIMEA011CALC+CHOMAGE1+CHOMAGE2+CHOMAGE3+CHOMAGE4)))*ASSEMPLOI_TAUX),2),0),IF(CXCHOMAGE=1,ROUND(MIN(((E28+IF(PRORATPRIME=TRUE,(CHOMAGE1+CHOMAGE2+CHOMAGE3+CHOMAGE4)*(CSTTDPourcentage1),(CHOMAGE1+CHOMAGE2+CHOMAGE3+CHOMAGE4)))*ASSEMPLOI_TAUX),CHOMANNUEL-AE_COTISE),2),0))) -> 0 | F37: 0 | H37: Assurance-emploi | I37: =IF(AND(A011CALC=TRUE,CHOIX_PRESTATION=5),0,IF(A011CALC=TRUE,IF(CXCHOMAGE=1,ROUND(((I28+(ASSUR_FED*(CSTTDPourcentage3))+IF(PRORATPRIME=TRUE,(PRIMEA011CALC+CHOMAGE1+CHOMAGE2+CHOMAGE3+CHOMAGE4)*(CSTTDPourcentage3),(PRIMEA011CALC+CHOMAGE1+CHOMAGE2+CHOMAGE3+CHOMAGE4)))*ASSEMPLOI_TAUX),2),0),IF(CXCHOMAGE=1,ROUND(MIN(((I28+IF(PRORATPRIME=TRUE,(CHOMAGE1+CHOMAGE2+CHOMAGE3+CHOMAGE4)*(CSTTDPourcentage3),(CHOMAGE1+CHOMAGE2+CHOMAGE3+CHOMAGE4)))*ASSEMPLOI_TAUX),CHOMANNUEL-AE_COTISE),2),0))) -> 0 | J37: 0 | L37: Assurance-emploi | M37: =IF(AND(A011CALC=TRUE,CHOIX_PRESTATION=5),0,IF(A011CALC=TRUE,IF(CXCHOMAGE=1,ROUND(((M28+(ASSUR_FED*(CSTTDPourcentage3))+IF(PRORATPRIME=TRUE,(PRIMEA011CALC+CHOMAGE1+CHOMAGE2+CHOMAGE3+CHOMAGE4)*(CSTTDPourcentage1),(PRIMEA011CALC+CHOMAGE1+CHOMAGE2+CHOMAGE3+CHOMAGE4)))*ASSEMPLOI_TAUX),2),0),IF(CXCHOMAGE=1,ROUND(MIN(((M28+IF(PRORATPRIME=TRUE,(CHOMAGE1+CHOMAGE2+CHOMAGE3+CHOMAGE4)*(CSTTDPourcentage3),(CHOMAGE1+CHOMAGE2+CHOMAGE3+CHOMAGE4)))*ASSEMPLOI_TAUX),CHOMANNUEL-AE_COTISE),2),0))) -> 0 | N37: 0 | P37: Assurance-emploi | Q37: =IF(AND(A011CALC=TRUE,CHOIX_PRESTATION=5),0,IF(A011CALC=TRUE,IF(CXCHOMAGE=1,ROUND(((I28+(ASSUR_FED*(CSTTDPourcentage1))+IF(PRORATPRIME=TRUE,(PRIMEA011CALC+CHOMAGE1+CHOMAGE2+CHOMAGE3+CHOMAGE4)*(CSTTDPourcentage1),(PRIMEA011CALC+CHOMAGE1+CHOMAGE2+CHOMAGE3+CHOMAGE4)))*ASSEMPLOI_TAUX),2),0),IF(CXCHOMAGE=1,ROUND(MIN(((I28+IF(PRORATPRIME=TRUE,(CHOMAGE1+CHOMAGE2+CHOMAGE3+CHOMAGE4)*(CSTTDPourcentage1),(CHOMAGE1+CHOMAGE2+CHOMAGE3+CHOMAGE4)))*ASSEMPLOI_TAUX),CHOMANNUEL-AE_COTISE),2),0))) -> 0 | R37: 0
A38: RQAP | B38: =PARAMÈTRES!B36 -> 0 | D38: RQAP | E38: =IF(AND(A011CALC=TRUE,CHOIX_PRESTATION=5),0,IF(A011CALC=TRUE,IF(CXPARENTALE=1,ROUND(((E28+IF(PRORATPRIME=TRUE,(PRIMEA011CALC+PARENTALE1+PARENTALE2+PARENTALE3+PARENTALE4)*(CSTTDPourcentage1),(PRIMEA011CALC+PARENTALE1+PARENTALE2+PARENTALE3+PARENTALE4)))*RQAP_TAUX),2),0),IF(CXPARENTALE=1,ROUND(MIN(((E28+IF(PRORATPRIME=TRUE,(PARENTALE1+PARENTALE2+PARENTALE3+PARENTALE4)*(CSTTDPourcentage1),(PARENTALE1+PARENTALE2+PARENTALE3+PARENTALE4)))*RQAP_TAUX),RQAPMAX-RQAP_COTISE),2),0))) -> 0 | F38: 0 | H38: RQAP | I38: =IF(AND(A011CALC=TRUE,CHOIX_PRESTATION=5),0,IF(A011CALC=TRUE,IF(CXPARENTALE=1,ROUND(((I28+IF(PRORATPRIME=TRUE,(PRIMEA011CALC+PARENTALE1+PARENTALE2+PARENTALE3+PARENTALE4)*(CSTTDPourcentage2),(PRIMEA011CALC+PARENTALE1+PARENTALE2+PARENTALE3+PARENTALE4)))*RQAP_TAUX),2),0),IF(CXPARENTALE=1,ROUND(MIN(((I28+IF(PRORATPRIME=TRUE,(PARENTALE1+PARENTALE2+PARENTALE3+PARENTALE4)*(CSTTDPourcentage2),(PARENTALE1+PARENTALE2+PARENTALE3+PARENTALE4)))*RQAP_TAUX),RQAPMAX-RQAP_COTISE),2),0))) -> 0 | J38: 0 | L38: RQAP | M38: =IF(AND(A011CALC=TRUE,CHOIX_PRESTATION=5),0,IF(A011CALC=TRUE,IF(CXPARENTALE=1,ROUND(((M28+IF(PRORATPRIME=TRUE,(PRIMEA011CALC+PARENTALE1+PARENTALE2+PARENTALE3+PARENTALE4)*(CSTTDPourcentage3),(PRIMEA011CALC+PARENTALE1+PARENTALE2+PARENTALE3+PARENTALE4)))*RQAP_TAUX),2),0),IF(CXPARENTALE=1,ROUND(MIN(((M28+IF(PRORATPRIME=TRUE,(PARENTALE1+PARENTALE2+PARENTALE3+PARENTALE4)*(CSTTDPourcentage3),(PARENTALE1+PARENTALE2+PARENTALE3+PARENTALE4)))*RQAP_TAUX),RQAPMAX-RQAP_COTISE),2),0))) -> 0 | N38: 0 | P38: RQAP | Q38: =IF(AND(A011CALC=TRUE,CHOIX_PRESTATION=5),0,IF(A011CALC=TRUE,IF(CXPARENTALE=1,ROUND(((Q28+IF(PRORATPRIME=TRUE,(PRIMEA011CALC+PARENTALE4+PARENTALE2+PARENTALE3+PARENTALE4)*(CSTTDPourcentage4),(PRIMEA011CALC+PARENTALE1+PARENTALE2+PARENTALE3+PARENTALE4)))*RQAP_TAUX),2),0),IF(CXPARENTALE=1,ROUND(MIN(((Q28+IF(PRORATPRIME=TRUE,(PARENTALE1+PARENTALE2+PARENTALE3+PARENTALE4)*(CSTTDPourcentage4),(PARENTALE1+PARENTALE2+PARENTALE3+PARENTALE4)))*RQAP_TAUX),RQAPMAX-RQAP_COTISE),2),0))) -> 0 | R38: 0
A39: Régime de retraite | B39: =ROUND(PARAMÈTRES!B37,2) -> 0 | D39: Régime de retraite | E39: =ROUND(REGIME_RETRAITE!AY57,2) -> 0 | F39: =ROUND(REGIME_RETRAITE!AY57,2) -> 0 | H39: Régime de retraite | I39: =ROUND(REGIME_RETRAITE!BB57,2) -> 0 | J39: =ROUND(REGIME_RETRAITE!BA57,2) -> 0 | L39: Régime de retraite | M39: =ROUND(REGIME_RETRAITE!BD57,2) -> 0 | N39: =ROUND(REGIME_RETRAITE!BC57,2) -> 0 | P39: Régime de retraite | Q39: =ROUND(REGIME_RETRAITE!BF57,2) -> 0 | R39: =ROUND(REGIME_RETRAITE!BE57,2) -> 0
A40: Syndicat | B40: =PARAMÈTRES!B38 -> 0 | D40: Syndicat | E40: =SYNDICAT!AC48 -> 0 | F40: =IF(OR(UntSyndicat=16,UntSyndicat=31,UntSyndicat=33),0,SYNDICAT!AB48) -> 0 | H40: Syndicat | I40: =SYNDICAT!AE48 -> 0 | J40: =IF(OR(UntSyndicat=16,UntSyndicat=31,UntSyndicat=33),0,SYNDICAT!AD48) -> 0 | L40: Syndicat | M40: =SYNDICAT!AG48 -> 0 | N40: =IF(OR(UntSyndicat=16,UntSyndicat=31,UntSyndicat=33),0,SYNDICAT!AF48) -> 0 | P40: Syndicat | Q40: =SYNDICAT!AI48 -> 0 | R40: =IF(OR(UntSyndicat=16,UntSyndicat=31,UntSyndicat=33),0,SYNDICAT!AH48) -> 0
A41: Rachat | B41: =PARAMÈTRES!B39 -> 0 | D41: Rachat | E41: =RACHAT -> 0 | F41: =RACHAT -> 0 | H41: Rachat | I41: =RACHAT -> 0 | J41: =RACHAT -> 0 | L41: Rachat | M41: =RACHAT -> 0 | N41: =RACHAT -> 0 | P41: Rachat | Q41: =RACHAT -> 0 | R41: =RACHAT -> 0
A42: Assurances collectives | B42: =PARAMÈTRES!B40 -> 0 | D42: Assurances collectives | E42: =IF(AND(A011CALC=TRUE,CHOIX_PRESTATION=5),ASSURANCE,IF(A011CALC=TRUE,0,ASSURANCE)) -> 0 | F42: =IF(AND(A011CALC=TRUE,CHOIX_PRESTATION=5),ASSURANCE,IF(A011CALC=TRUE,0,ASSURANCE)) -> 0 | H42: Assurances collectives | I42: =IF(AND(A011CALC=TRUE,CHOIX_PRESTATION=5),ASSURANCE,IF(A011CALC=TRUE,0,ASSURANCE)) -> 0 | J42: =IF(AND(A011CALC=TRUE,CHOIX_PRESTATION=5),ASSURANCE,IF(A011CALC=TRUE,0,ASSURANCE)) -> 0 | L42: Assurances collectives | M42: =IF(AND(A011CALC=TRUE,CHOIX_PRESTATION=5),ASSURANCE,IF(A011CALC=TRUE,0,ASSURANCE)) -> 0 | N42: =IF(AND(A011CALC=TRUE,CHOIX_PRESTATION=5),ASSURANCE,IF(A011CALC=TRUE,0,ASSURANCE)) -> 0 | P42: Assurances collectives | Q42: =IF(AND(A011CALC=TRUE,CHOIX_PRESTATION=5),ASSURANCE,IF(A011CALC=TRUE,0,ASSURANCE)) -> 0 | R42: =IF(AND(A011CALC=TRUE,CHOIX_PRESTATION=5),ASSURANCE,IF(A011CALC=TRUE,0,ASSURANCE)) -> 0
A43: Déductions diverses | B43: =PARAMÈTRES!B41 -> 0 | D43: Déductions diverses | E43: =DIVERSDEDUC -> 0 | F43: =DIVERSDEDUC -> 0 | H43: Déductions diverses | I43: =DIVERSDEDUC -> 0 | J43: =DIVERSDEDUC -> 0 | L43: Déductions diverses | M43: =DIVERSDEDUC -> 0 | N43: =DIVERSDEDUC -> 0 | P43: Déductions diverses | Q43: =DIVERSDEDUC -> 0 | R43: =DIVERSDEDUC -> 0
A44: Total des déductions | B44: =SUM(B33:B43) -> 0 | D44: Total des déductions | E44: =SUM(E33:E43) -> 0 | F44: =SUM(F33:F43) -> 0 | H44: Total des déductions | I44: =SUM(I33:I43) -> 0 | J44: =SUM(J33:J43) -> 0 | L44: Total des déductions | M44: =SUM(M33:M43) -> 0 | N44: =SUM(N33:N43) -> 0 | P44: Total des déductions | Q44: =SUM(Q33:Q43) -> 0 | R44: =SUM(R33:R43) -> 0
A45: Salaire net | B45: =B27-B44 -> 0 | D45: Salaire net | E45: =E27-E44 -> 0 | F45: =F27-F44 -> 0 | H45: Salaire net | I45: =I27-I44 -> 0 | J45: =J27-J44 -> 0 | L45: Salaire net | M45: =M27-M44 -> 0 | N45: =N27-N44 -> 0 | P45: Salaire net | Q45: =Q27-Q44 -> 0 | R45: =R27-R44 -> 0
A53: ="Nom du technicien: "&[2]!username() -> Nom du technicien: Trudel, Dominic

Sheet Calcul impôt (hidden)
B1: EXONÉRATION
B2: 1 | D2: Exemption fédérale | H2: CONTRIBUTION SANTÉ
A3: 1 | B3: Aucune exonération
A4: 2 | B4: Exonéré Fédéral | G4: Revenu net annuel estimatif | I4: Contribution maximale | J4: Pourcentage du calcul
A5: 3 | B5: Exonéré Provincial | D5: Exemption provinciale | G5: 0 | H5: 0 | I5: 0 | J5: 0
A6: 4 | B6: Exonéré Fed & Prov | F6: 0 | G6: 0 | H6: 0 | I6: 0 | J6: 0
G7: 0 | H7: 0 | I7: 0 | J7: 0
B8: ="Table d'impôt fédéral "&ANNEE&" (Paie 10 JANVIER "&ANNEE&")" -> Table d'impôt fédéral 2022 (Paie 10 JANVIER 2022) | G8: 0 | H8: 0 | I8: 0 | J8: 0
B9: SALAIRE ANNUEL | D9: R | E9: K
B10: 0 | C10: 50197.01 | D10: 0.15 | E10: 0
B11: 50197 | C11: 100392.01 | D11: 0.205 | E11: 2761 | G11: Abattement du Québec | J11: ="Contribution santé à "&PARAMÈTRES!B25 -> Contribution santé à 35h00
B12: 100392 | C12: 155625.01 | D12: 0.26 | E12: 8282 | G12: 0.165 | J12: ='Calcul impôt'!C100 -> 0
B13: 155625 | C13: 221708.01 | D13: 0.29 | E13: 12951
B14: 221708 | C14: 10000000 | D14: 0.33 | E14: 21819
D15: Taux du crédit d'impôt fédéral | E15: 0.15
B17: ="Table d'impôt provincial "&ANNEE&" (Paie 10 JANVIER "&ANNEE&")" -> Table d'impôt provincial 2022 (Paie 10 JANVIER 2022)
D18: T | E18: K
B19: SALAIRE ANNUEL
B20: 0 | C20: 45105.01 | D20: 0.15 | E20: 0
B21: 45105 | C21: 90200.01 | D21: 0.2 | E21: 2314
B22: 90200 | C22: 109755.01 | D22: 0.24 | E22: 6017
B23: 109755 | C23: 10000000 | D23: 0.2575 | E23: 7989
D24: Taux du crédit d'impôt provincial | E24: 0.15
B27: ="Crédit d'impôt fédéral de base "&ANNEE& " Ne pas recopier de EXEMPTIONS_FED" -> Crédit d'impôt fédéral de base 2022 Ne pas recopier de EXEMPTIONS_FED | G27: =ALLEGFED -> 0
B28: =CREDITFED -> 0
B29: =IF(FED_ADD>0,"Impôt additionnel fédéral :",IF(FED_ADD<0,"Ajustement impôt Fédéral"," ")) ->  | C29: Impôt Fed. additionnel par paie | D29: Crédit Fédéral pour emploi
B30: =IF(FED_ADD <>0,FED_ADD,"") ->  | C30: 0 | D30: 1287
B33: ="Crédit d'impôt provincial de base "&ANNEE&" Ne pas recopier de EXEMPTIONS_PROV" -> Crédit d'impôt provincial de base 2022 Ne pas recopier de EXEMPTIONS_PROV
B34: =CREDITPROV -> 0
B35: =IF(PROV_ADD>0,"Impôt additionnel provincial :",IF(PROV_ADD<0,"Ajustement impôt Provincial"," ")) ->  | C35: Impôt Prov. additionnel par paie | D35: Crédit Provincial pour emploi | E35: Déduction pour emploi
B36: =IF(PROV_ADD<>0,PROV_ADD,"") ->  | C36: 0 | D36: 1235 | E36: 0.06
C39: Portion calcul impôt Fédéral et Provincial
P41: =IF(Q46=0,"",ROUND(((EXEMPTIONS_FED+IF(RRQ_Valide_Max=0,RRQMAX,IF(CXRRQ=2,RRQMAX,IF(CXRRQ=3,0,MIN(CSTTD!I36*'Déduction de base'!$B$25,RRQMAX)))))+IF(AE_Valide_Max=0,CHOMANNUEL,(IF(CXCHOMAGE=1,MIN(CSTTD!I37*NBRE_PAIE,CHOMANNUEL),IF(CXCHOMAGE=2,CHOMANNUEL,0))))+IF(RQAP_Valide_Max=0,RQAPMAX,(IF(CXPARENTALE=1,MIN(CSTTD!I38*NBRE_PAIE,RQAPMAX),IF(CXPARENTALE=2,RQAPMAX,0)))))*'Calcul impôt'!$E$15,2)) -> 
S42: =IF(S46=0,"",ROUND(((EXEMPTIONS_FED+IF(RRQ_Valide_Max=0,RRQMAX,IF(CXRRQ=2,RRQMAX,IF(CXRRQ=3,0,MIN(CSTTD!N36*'Déduction de base'!$B$25,RRQMAX)))))+IF(AE_Valide_Max=0,CHOMANNUEL,(IF(CXCHOMAGE=1,MIN(CSTTD!N37*NBRE_PAIE,CHOMANNUEL),IF(CXCHOMAGE=2,CHOMANNUEL,0))))+IF(RQAP_Valide_Max=0,RQAPMAX,(IF(CXPARENTALE=1,MIN(CSTTD!N38*NBRE_PAIE,RQAPMAX),IF(CXPARENTALE=2,RQAPMAX,0)))))*'Calcul impôt'!$E$15,2)) -> 
C43: Calcul d'impôt fédéral par année avant surtaxes | U43: =IF(U46=0,"",ROUND(((EXEMPTIONS_FED+IF(RRQ_Valide_Max=0,RRQMAX,IF(CXRRQ=2,RRQMAX,IF(CXRRQ=3,0,MIN(CSTTD!R36*'Déduction de base'!$B$25,RRQMAX)))))+IF(AE_Valide_Max=0,CHOMANNUEL,(IF(CXCHOMAGE=1,MIN(CSTTD!R37*NBRE_PAIE,CHOMANNUEL),IF(CXCHOMAGE=2,CHOMANNUEL,0))))+IF(RQAP_Valide_Max=0,RQAPMAX,(IF(CXPARENTALE=1,MIN(CSTTD!R38*NBRE_PAIE,RQAPMAX),IF(CXPARENTALE=2,RQAPMAX,0)))))*'Calcul impôt'!$E$15,2)) -> 
C44: =PARAMÈTRES!B25 -> 35h00 | D44: =PARAMÈTRES!C25 -> 33h15 | E44: =PARAMÈTRES!D25 -> 32h30 | F44: =PARAMÈTRES!E25 -> 32h00 | G44: =PARAMÈTRES!F25 -> 31h30 | H44: =PARAMÈTRES!G25 -> 30h00 | I44: =PARAMÈTRES!H25 -> 28h00 | J44: =PARAMÈTRES!I25 -> 24h30 | K44: =PARAMÈTRES!J25 -> 21h00 | L44: =PARAMÈTRES!K25 -> 14h00 | M44: CSST - A013 | N44: CSTTD 1 - A085 | O44: CSTTD 1 - B085 | P44: CSTTD 2 - A085 | Q44: CSTTD 2 - B085 | R44: CSTTD 3 - A085 | S44: CSTTD 3 - B085 | T44: CSTTD 4 - A085 | U44: CSTTD 4 - B085
C45: Revenu imposable fédéral
C46: =MAX((((PARAMÈTRES!B89+(ASSUR_FED)+ASSUR_FED_GR8-PARAMÈTRES!B37-PARAMÈTRES!B38-(MIN(PARAMÈTRES!B39,((RACHATMAX/NBRE_PAIE)))))*NBRE_PAIE)-ALLEGFED),0) -> 0 | D46: =MAX((((PARAMÈTRES!C89+ASSUR_FED+ASSUR_FED_GR8-PARAMÈTRES!C37-PARAMÈTRES!C38-(MIN(PARAMÈTRES!C39,(RACHATMAX/NBRE_PAIE))))*NBRE_PAIE)-ALLEGFED),0) -> 0 | E46: =MAX((((PARAMÈTRES!D89+ASSUR_FED+ASSUR_FED_GR8-PARAMÈTRES!D37-PARAMÈTRES!D38-(MIN(PARAMÈTRES!D39,(RACHATMAX/NBRE_PAIE))))*NBRE_PAIE)-ALLEGFED),0) -> 0 | F46: =MAX((((PARAMÈTRES!E89+ASSUR_FED+ASSUR_FED_GR8-PARAMÈTRES!E37-PARAMÈTRES!E38-(MIN(PARAMÈTRES!E39,(RACHATMAX/NBRE_PAIE))))*NBRE_PAIE)-ALLEGFED),0) -> 0 | G46: =MAX((((PARAMÈTRES!F89+ASSUR_FED+ASSUR_FED_GR8-PARAMÈTRES!F37-PARAMÈTRES!F38-(MIN(PARAMÈTRES!F39,(RACHATMAX/NBRE_PAIE))))*NBRE_PAIE)-ALLEGFED),0) -> 0 | H46: =MAX((((PARAMÈTRES!G89+ASSUR_FED+ASSUR_FED_GR8-PARAMÈTRES!G37-PARAMÈTRES!G38-(MIN(PARAMÈTRES!G39,(RACHATMAX/NBRE_PAIE))))*NBRE_PAIE)-ALLEGFED),0) -> 0 | I46: =MAX((((PARAMÈTRES!H89+ASSUR_FED+ASSUR_FED_GR8-PARAMÈTRES!H37-PARAMÈTRES!H38-(MIN(PARAMÈTRES!H39,(RACHATMAX/NBRE_PAIE))))*NBRE_PAIE)-ALLEGFED),0) -> 0 | J46: =MAX((((PARAMÈTRES!I89+ASSUR_FED+ASSUR_FED_GR8-PARAMÈTRES!I37-PARAMÈTRES!I38-(MIN(PARAMÈTRES!I39,(RACHATMAX/NBRE_PAIE))))*NBRE_PAIE)-ALLEGFED),0) -> 0 | K46: =MAX((((PARAMÈTRES!J89+ASSUR_FED+ASSUR_FED_GR8-PARAMÈTRES!J37-PARAMÈTRES!J38-(MIN(PARAMÈTRES!J39,(RACHATMAX/NBRE_PAIE))))*NBRE_PAIE)-ALLEGFED),0) -> 0 | L46: =MAX((((PARAMÈTRES!K89+ASSUR_FED+ASSUR_FED_GR8-PARAMÈTRES!K37-PARAMÈTRES!K38-(MIN(PARAMÈTRES!K39,(RACHATMAX/NBRE_PAIE))))*NBRE_PAIE)-ALLEGFED),0) -> 0 | M46: =MAX((((PARAMÈTRES!L89+ASSUR_FED+ASSUR_FED_GR8-PARAMÈTRES!L37-PARAMÈTRES!L38-(MIN(PARAMÈTRES!L39,(RACHATMAX/NBRE_PAIE))))*NBRE_PAIE)),0) -> 0 | N46: =MAX((((PARAMÈTRES!M89+ASSUR_FED+ASSUR_FED_GR8-CSTTD!F39-CSTTD!F40-(MIN(CSTTD!F41,(RACHATMAX/NBRE_PAIE))))*NBRE_PAIE)-ALLEGFED),0) -> 0 | O46: =MAX((((PARAMÈTRES!M89+ASSUR_FED+ASSUR_FED_GR8-CSTTD!E39-CSTTD!E40-(MIN(CSTTD!E41,(RACHATMAX/NBRE_PAIE))))*NBRE_PAIE)-ALLEGFED),0) -> 0 | P46: =MAX((((PARAMÈTRES!O89+ASSUR_FED+ASSUR_FED_GR8-CSTTD!J39-CSTTD!J40-(MIN(CSTTD!J41,(RACHATMAX/NBRE_PAIE))))*NBRE_PAIE)-ALLEGFED),0) -> 0 | Q46: =MAX((((PARAMÈTRES!P89+ASSUR_FED+ASSUR_FED_GR8-CSTTD!I39-CSTTD!I40-(MIN(CSTTD!I41,(RACHATMAX/NBRE_PAIE))))*NBRE_PAIE)-ALLEGFED),0) -> 0 | R46: =MAX((((PARAMÈTRES!Q89+ASSUR_FED+ASSUR_FED_GR8-CSTTD!N39-CSTTD!N40-(MIN(CSTTD!N41,(RACHATMAX/NBRE_PAIE))))*NBRE_PAIE)-ALLEGFED),0) -> 0 | S46: =MAX((((PARAMÈTRES!R89+ASSUR_FED+ASSUR_FED_GR8-CSTTD!M39-CSTTD!M40-(MIN(CSTTD!M41,(RACHATMAX/NBRE_PAIE))))*NBRE_PAIE)-ALLEGFED),0) -> 0 | T46: =MAX((((PARAMÈTRES!S89+ASSUR_FED+ASSUR_FED_GR8-CSTTD!R39-CSTTD!R40-(MIN(CSTTD!R41,(RACHATMAX/NBRE_PAIE))))*NBRE_PAIE)-ALLEGFED),0) -> 0 | U46: =MAX((((PARAMÈTRES!T89+ASSUR_FED+ASSUR_FED_GR8-CSTTD!Q39-CSTTD!Q40-(MIN(CSTTD!Q41,(RACHATMAX/NBRE_PAIE))))*NBRE_PAIE)-ALLEGFED),0) -> 0
C48: =IF(AND(C46>'Calcul impôt'!$B$10,C46<'Calcul impôt'!$C$10),ROUND((C46*'Calcul impôt'!$D$10)-('Calcul impôt'!$E$10+C55+C57),2),0) -> 0 | D48: =IF(AND(D46>'Calcul impôt'!$B$10,D46<'Calcul impôt'!$C$10),ROUND((D46*'Calcul impôt'!$D$10)-('Calcul impôt'!$E$10+D55+D57),2),0) -> 0 | E48: =IF(AND(E46>'Calcul impôt'!$B$10,E46<'Calcul impôt'!$C$10),ROUND((E46*'Calcul impôt'!$D$10)-('Calcul impôt'!$E$10+E55+E57),2),0) -> 0 | F48: =IF(AND(F46>'Calcul impôt'!$B$10,F46<'Calcul impôt'!$C$10),ROUND((F46*'Calcul impôt'!$D$10)-('Calcul impôt'!$E$10+F55+F57),2),0) -> 0 | G48: =IF(AND(G46>'Calcul impôt'!$B$10,G46<'Calcul impôt'!$C$10),ROUND((G46*'Calcul impôt'!$D$10)-('Calcul impôt'!$E$10+G55+G57),2),0) -> 0 | H48: =IF(AND(H46>'Calcul impôt'!$B$10,H46<'Calcul impôt'!$C$10),ROUND((H46*'Calcul impôt'!$D$10)-('Calcul impôt'!$E$10+H55+H57),2),0) -> 0 | I48: =IF(AND(I46>'Calcul impôt'!$B$10,I46<'Calcul impôt'!$C$10),ROUND((I46*'Calcul impôt'!$D$10)-('Calcul impôt'!$E$10+I55+I57),2),0) -> 0 | J48: =IF(AND(J46>'Calcul impôt'!$B$10,J46<'Calcul impôt'!$C$10),ROUND((J46*'Calcul impôt'!$D$10)-('Calcul impôt'!$E$10+J55+J57),2),0) -> 0 | K48: =IF(AND(K46>'Calcul impôt'!$B$10,K46<'Calcul impôt'!$C$10),ROUND((K46*'Calcul impôt'!$D$10)-('Calcul impôt'!$E$10+K55+K57),2),0) -> 0 | L48: =IF(AND(L46>'Calcul impôt'!$B$10,L46<'Calcul impôt'!$C$10),ROUND((L46*'Calcul impôt'!$D$10)-('Calcul impôt'!$E$10+L55+L57),2),0) -> 0 | M48: =IF(AND(M46>'Calcul impôt'!$B$10,M46<'Calcul impôt'!$C$10),ROUND((M46*'Calcul impôt'!$D$10)-('Calcul impôt'!$E$10+M55+M57),2),0) -> 0 | N48: =IF(AND(N46>'Calcul impôt'!$B$10,N46<'Calcul impôt'!$C$10),ROUND((N46*'Calcul impôt'!$D$10)-('Calcul impôt'!$E$10+N55+N57),2),0) -> 0 | O48: =IF(AND(O46>'Calcul impôt'!$B$10,O46<'Calcul impôt'!$C$10),ROUND((O46*'Calcul impôt'!$D$10)-('Calcul impôt'!$E$10+O55+O57),2),0) -> 0 | P48: =IF(AND(P46>'Calcul impôt'!$B$10,P46<'Calcul impôt'!$C$10),ROUND((P46*'Calcul impôt'!$D$10)-('Calcul impôt'!$E$10+P55+P57),2),0) -> 0 | Q48: =IF(AND(Q46>'Calcul impôt'!$B$10,Q46<'Calcul impôt'!$C$10),ROUND((Q46*'Calcul impôt'!$D$10)-('Calcul impôt'!$E$10+Q55+Q57),2),0) -> 0 | R48: =IF(AND(R46>'Calcul impôt'!$B$10,R46<'Calcul impôt'!$C$10),ROUND((R46*'Calcul impôt'!$D$10)-('Calcul impôt'!$E$10+R55+R57),2),0) -> 0 | S48: =IF(AND(S46>'Calcul impôt'!$B$10,S46<'Calcul impôt'!$C$10),ROUND((S46*'Calcul impôt'!$D$10)-('Calcul impôt'!$E$10+S55+S57),2),0) -> 0 | T48: =IF(AND(T46>'Calcul impôt'!$B$10,T46<'Calcul impôt'!$C$10),ROUND((T46*'Calcul impôt'!$D$10)-('Calcul impôt'!$E$10+T55+T57),2),0) -> 0 | U48: =IF(AND(U46>'Calcul impôt'!$B$10,U46<'Calcul impôt'!$C$10),ROUND((U46*'Calcul impôt'!$D$10)-('Calcul impôt'!$E$10+U55+U57),2),0) -> 0
C49: =IF(AND(C46>'Calcul impôt'!$B$11,C46<'Calcul impôt'!$C$11),ROUND(ROUND(C46*'Calcul impôt'!$D$11,2)-('Calcul impôt'!$E$11+C55+C57),2),0) -> 0 | D49: =IF(AND(D46>'Calcul impôt'!$B$11,D46<'Calcul impôt'!$C$11),ROUND((D46*'Calcul impôt'!$D$11)-('Calcul impôt'!$E$11+D55+D57),2),0) -> 0 | E49: =IF(AND(E46>'Calcul impôt'!$B$11,E46<'Calcul impôt'!$C$11),ROUND((E46*'Calcul impôt'!$D$11)-('Calcul impôt'!$E$11+E55+E57),2),0) -> 0 | F49: =IF(AND(F46>'Calcul impôt'!$B$11,F46<'Calcul impôt'!$C$11),ROUND((F46*'Calcul impôt'!$D$11)-('Calcul impôt'!$E$11+F55+F57),2),0) -> 0 | G49: =IF(AND(G46>'Calcul impôt'!$B$11,G46<'Calcul impôt'!$C$11),ROUND((G46*'Calcul impôt'!$D$11)-('Calcul impôt'!$E$11+G55+G57),2),0) -> 0 | H49: =IF(AND(H46>'Calcul impôt'!$B$11,H46<'Calcul impôt'!$C$11),ROUND((H46*'Calcul impôt'!$D$11)-('Calcul impôt'!$E$11+H55+H57),2),0) -> 0 | I49: =IF(AND(I46>'Calcul impôt'!$B$11,I46<'Calcul impôt'!$C$11),ROUND((I46*'Calcul impôt'!$D$11)-('Calcul impôt'!$E$11+I55+I57),2),0) -> 0 | J49: =IF(AND(J46>'Calcul impôt'!$B$11,J46<'Calcul impôt'!$C$11),ROUND((J46*'Calcul impôt'!$D$11)-('Calcul impôt'!$E$11+J55+J57),2),0) -> 0 | K49: =IF(AND(K46>'Calcul impôt'!$B$11,K46<'Calcul impôt'!$C$11),ROUND((K46*'Calcul impôt'!$D$11)-('Calcul impôt'!$E$11+K55+K57),2),0) -> 0 | L49: =IF(AND(L46>'Calcul impôt'!$B$11,L46<'Calcul impôt'!$C$11),ROUND((L46*'Calcul impôt'!$D$11)-('Calcul impôt'!$E$11+L55+L57),2),0) -> 0 | M49: =IF(AND(M46>'Calcul impôt'!$B$11,M46<'Calcul impôt'!$C$11),ROUND((M46*'Calcul impôt'!$D$11)-('Calcul impôt'!$E$11+M55+M57),2),0) -> 0 | N49: =IF(AND(N46>'Calcul impôt'!$B$11,N46<'Calcul impôt'!$C$11),ROUND((N46*'Calcul impôt'!$D$11)-('Calcul impôt'!$E$11+N55+N57),2),0) -> 0 | O49: =IF(AND(O46>'Calcul impôt'!$B$11,O46<'Calcul impôt'!$C$11),ROUND((O46*'Calcul impôt'!$D$11)-('Calcul impôt'!$E$11+O55+O57),2),0) -> 0 | P49: =IF(AND(P46>'Calcul impôt'!$B$11,P46<'Calcul impôt'!$C$11),ROUND((P46*'Calcul impôt'!$D$11)-('Calcul impôt'!$E$11+P55+P57),2),0) -> 0 | Q49: =IF(AND(Q46>'Calcul impôt'!$B$11,Q46<'Calcul impôt'!$C$11),ROUND((Q46*'Calcul impôt'!$D$11)-('Calcul impôt'!$E$11+Q55+Q57),2),0) -> 0 | R49: =IF(AND(R46>'Calcul impôt'!$B$11,R46<'Calcul impôt'!$C$11),ROUND((R46*'Calcul impôt'!$D$11)-('Calcul impôt'!$E$11+R55+R57),2),0) -> 0 | S49: =IF(AND(S46>'Calcul impôt'!$B$11,S46<'Calcul impôt'!$C$11),ROUND((S46*'Calcul impôt'!$D$11)-('Calcul impôt'!$E$11+S55+S57),2),0) -> 0 | T49: =IF(AND(T46>'Calcul impôt'!$B$11,T46<'Calcul impôt'!$C$11),ROUND((T46*'Calcul impôt'!$D$11)-('Calcul impôt'!$E$11+T55+T57),2),0) -> 0 | U49: =IF(AND(U46>'Calcul impôt'!$B$11,U46<'Calcul impôt'!$C$11),ROUND((U46*'Calcul impôt'!$D$11)-('Calcul impôt'!$E$11+U55+U57),2),0) -> 0
C50: =IF(AND(C46>'Calcul impôt'!$B$12,C46<'Calcul impôt'!$C$12),ROUND((C46*'Calcul impôt'!$D$12)-('Calcul impôt'!$E$12+C55+C57),2),0) -> 0 | D50: =IF(AND(D46>'Calcul impôt'!$B$12,D46<'Calcul impôt'!$C$12),ROUND((D46*'Calcul impôt'!$D$12)-('Calcul impôt'!$E$12+D55+D57),2),0) -> 0 | E50: =IF(AND(E46>'Calcul impôt'!$B$12,E46<'Calcul impôt'!$C$12),ROUND((E46*'Calcul impôt'!$D$12)-('Calcul impôt'!$E$12+E55+E57),2),0) -> 0 | F50: =IF(AND(F46>'Calcul impôt'!$B$12,F46<'Calcul impôt'!$C$12),ROUND((F46*'Calcul impôt'!$D$12)-('Calcul impôt'!$E$12+F55+F57),2),0) -> 0 | G50: =IF(AND(G46>'Calcul impôt'!$B$12,G46<'Calcul impôt'!$C$12),ROUND((G46*'Calcul impôt'!$D$12)-('Calcul impôt'!$E$12+G55+G57),2),0) -> 0 | H50: =IF(AND(H46>'Calcul impôt'!$B$12,H46<'Calcul impôt'!$C$12),ROUND((H46*'Calcul impôt'!$D$12)-('Calcul impôt'!$E$12+H55+H57),2),0) -> 0 | I50: =IF(AND(I46>'Calcul impôt'!$B$12,I46<'Calcul impôt'!$C$12),ROUND((I46*'Calcul impôt'!$D$12)-('Calcul impôt'!$E$12+I55+I57),2),0) -> 0 | J50: =IF(AND(J46>'Calcul impôt'!$B$12,J46<'Calcul impôt'!$C$12),ROUND((J46*'Calcul impôt'!$D$12)-('Calcul impôt'!$E$12+J55+J57),2),0) -> 0 | K50: =IF(AND(K46>'Calcul impôt'!$B$12,K46<'Calcul impôt'!$C$12),ROUND((K46*'Calcul impôt'!$D$12)-('Calcul impôt'!$E$12+K55+K57),2),0) -> 0 | L50: =IF(AND(L46>'Calcul impôt'!$B$12,L46<'Calcul impôt'!$C$12),ROUND((L46*'Calcul impôt'!$D$12)-('Calcul impôt'!$E$12+L55+L57),2),0) -> 0 | M50: =IF(AND(M46>'Calcul impôt'!$B$12,M46<'Calcul impôt'!$C$12),ROUND((M46*'Calcul impôt'!$D$12)-('Calcul impôt'!$E$12+M55+M57),2),0) -> 0 | N50: =IF(AND(N46>'Calcul impôt'!$B$12,N46<'Calcul impôt'!$C$12),ROUND((N46*'Calcul impôt'!$D$12)-('Calcul impôt'!$E$12+N55+N57),2),0) -> 0 | O50: =IF(AND(O46>'Calcul impôt'!$B$12,O46<'Calcul impôt'!$C$12),ROUND((O46*'Calcul impôt'!$D$12)-('Calcul impôt'!$E$12+O55+O57),2),0) -> 0 | P50: =IF(AND(P46>'Calcul impôt'!$B$12,P46<'Calcul impôt'!$C$12),ROUND((P46*'Calcul impôt'!$D$12)-('Calcul impôt'!$E$12+P55+P57),2),0) -> 0 | Q50: =IF(AND(Q46>'Calcul impôt'!$B$12,Q46<'Calcul impôt'!$C$12),ROUND((Q46*'Calcul impôt'!$D$12)-('Calcul impôt'!$E$12+Q55+Q57),2),0) -> 0 | R50: =IF(AND(R46>'Calcul impôt'!$B$12,R46<'Calcul impôt'!$C$12),ROUND((R46*'Calcul impôt'!$D$12)-('Calcul impôt'!$E$12+R55+R57),2),0) -> 0 | S50: =IF(AND(S46>'Calcul impôt'!$B$12,S46<'Calcul impôt'!$C$12),ROUND((S46*'Calcul impôt'!$D$12)-('Calcul impôt'!$E$12+S55+S57),2),0) -> 0 | T50: =IF(AND(T46>'Calcul impôt'!$B$12,T46<'Calcul impôt'!$C$12),ROUND((T46*'Calcul impôt'!$D$12)-('Calcul impôt'!$E$12+T55+T57),2),0) -> 0 | U50: =IF(AND(U46>'Calcul impôt'!$B$12,U46<'Calcul impôt'!$C$12),ROUND((U46*'Calcul impôt'!$D$12)-('Calcul impôt'!$E$12+U55+U57),2),0) -> 0
C51: =IF(AND(OR(C46='Calcul impôt'!$B$13,C46>'Calcul impôt'!$B$13),C46<'Calcul impôt'!$C$13),ROUND((C46*'Calcul impôt'!$D$13)-('Calcul impôt'!$E$13+C55+C57),2),0) -> 0 | D51: =IF(AND(OR(D46='Calcul impôt'!$B$13,D46>'Calcul impôt'!$B$13),D46<'Calcul impôt'!$C$13),ROUND((D46*'Calcul impôt'!$D$13)-('Calcul impôt'!$E$13+D55+D57),2),0) -> 0 | E51: =IF(AND(OR(E46='Calcul impôt'!$B$13,E46>'Calcul impôt'!$B$13),E46<'Calcul impôt'!$C$13),ROUND((E46*'Calcul impôt'!$D$13)-('Calcul impôt'!$E$13+E55+E57),2),0) -> 0 | F51: =IF(AND(OR(F46='Calcul impôt'!$B$13,F46>'Calcul impôt'!$B$13),F46<'Calcul impôt'!$C$13),ROUND((F46*'Calcul impôt'!$D$13)-('Calcul impôt'!$E$13+F55+F57),2),0) -> 0 | G51: =IF(AND(OR(G46='Calcul impôt'!$B$13,G46>'Calcul impôt'!$B$13),G46<'Calcul impôt'!$C$13),ROUND((G46*'Calcul impôt'!$D$13)-('Calcul impôt'!$E$13+G55+G57),2),0) -> 0 | H51: =IF(AND(OR(H46='Calcul impôt'!$B$13,H46>'Calcul impôt'!$B$13),H46<'Calcul impôt'!$C$13),ROUND((H46*'Calcul impôt'!$D$13)-('Calcul impôt'!$E$13+H55+H57),2),0) -> 0 | I51: =IF(AND(OR(I46='Calcul impôt'!$B$13,I46>'Calcul impôt'!$B$13),I46<'Calcul impôt'!$C$13),ROUND((I46*'Calcul impôt'!$D$13)-('Calcul impôt'!$E$13+I55+I57),2),0) -> 0 | J51: =IF(AND(OR(J46='Calcul impôt'!$B$13,J46>'Calcul impôt'!$B$13),J46<'Calcul impôt'!$C$13),ROUND((J46*'Calcul impôt'!$D$13)-('Calcul impôt'!$E$13+J55+J57),2),0) -> 0 | K51: =IF(AND(OR(K46='Calcul impôt'!$B$13,K46>'Calcul impôt'!$B$13),K46<'Calcul impôt'!$C$13),ROUND((K46*'Calcul impôt'!$D$13)-('Calcul impôt'!$E$13+K55+K57),2),0) -> 0 | L51: =IF(AND(OR(L46='Calcul impôt'!$B$13,L46>'Calcul impôt'!$B$13),L46<'Calcul impôt'!$C$13),ROUND((L46*'Calcul impôt'!$D$13)-('Calcul impôt'!$E$13+L55+L57),2),0) -> 0 | M51: =IF(AND(OR(M46='Calcul impôt'!$B$13,M46>'Calcul impôt'!$B$13),M46<'Calcul impôt'!$C$13),ROUND((M46*'Calcul impôt'!$D$13)-('Calcul impôt'!$E$13+M55+M57),2),0) -> 0 | N51: =IF(AND(OR(N46='Calcul impôt'!$B$13,N46>'Calcul impôt'!$B$13),N46<'Calcul impôt'!$C$13),ROUND((N46*'Calcul impôt'!$D$13)-('Calcul impôt'!$E$13+N55+N57),2),0) -> 0 | O51: =IF(AND(OR(O46='Calcul impôt'!$B$13,O46>'Calcul impôt'!$B$13),O46<'Calcul impôt'!$C$13),ROUND((O46*'Calcul impôt'!$D$13)-('Calcul impôt'!$E$13+O55+O57),2),0) -> 0 | P51: =IF(AND(OR(P46='Calcul impôt'!$B$13,P46>'Calcul impôt'!$B$13),P46<'Calcul impôt'!$C$13),ROUND((P46*'Calcul impôt'!$D$13)-('Calcul impôt'!$E$13+P55+P57),2),0) -> 0 | Q51: =IF(AND(OR(Q46='Calcul impôt'!$B$13,Q46>'Calcul impôt'!$B$13),Q46<'Calcul impôt'!$C$13),ROUND((Q46*'Calcul impôt'!$D$13)-('Calcul impôt'!$E$13+Q55+Q57),2),0) -> 0 | R51: =IF(AND(OR(R46='Calcul impôt'!$B$13,R46>'Calcul impôt'!$B$13),R46<'Calcul impôt'!$C$13),ROUND((R46*'Calcul impôt'!$D$13)-('Calcul impôt'!$E$13+R55+R57),2),0) -> 0 | S51: =IF(AND(OR(S46='Calcul impôt'!$B$13,S46>'Calcul impôt'!$B$13),S46<'Calcul impôt'!$C$13),ROUND((S46*'Calcul impôt'!$D$13)-('Calcul impôt'!$E$13+S55+S57),2),0) -> 0 | T51: =IF(AND(OR(T46='Calcul impôt'!$B$13,T46>'Calcul impôt'!$B$13),T46<'Calcul impôt'!$C$13),ROUND((T46*'Calcul impôt'!$D$13)-('Calcul impôt'!$E$13+T55+T57),2),0) -> 0 | U51: =IF(AND(OR(U46='Calcul impôt'!$B$13,U46>'Calcul impôt'!$B$13),U46<'Calcul impôt'!$C$13),ROUND((U46*'Calcul impôt'!$D$13)-('Calcul impôt'!$E$13+U55+U57),2),0) -> 0
C52: =IF(AND(OR(C46='Calcul impôt'!$B$14,C46>'Calcul impôt'!$B$14),C46<'Calcul impôt'!$C$14),ROUND((C46*'Calcul impôt'!$D$14)-('Calcul impôt'!$E$14+C55+C57),2),0) -> 0 | D52: =IF(AND(OR(D46='Calcul impôt'!$B$14,D46>'Calcul impôt'!$B$14),D46<'Calcul impôt'!$C$14),ROUND((D46*'Calcul impôt'!$D$14)-('Calcul impôt'!$E$14+D55+D57),2),0) -> 0 | E52: =IF(AND(OR(E46='Calcul impôt'!$B$14,E46>'Calcul impôt'!$B$14),E46<'Calcul impôt'!$C$14),ROUND((E46*'Calcul impôt'!$D$14)-('Calcul impôt'!$E$14+E55+E57),2),0) -> 0 | F52: =IF(AND(OR(F46='Calcul impôt'!$B$14,F46>'Calcul impôt'!$B$14),F46<'Calcul impôt'!$C$14),ROUND((F46*'Calcul impôt'!$D$14)-('Calcul impôt'!$E$14+F55+F57),2),0) -> 0 | G52: =IF(AND(OR(G46='Calcul impôt'!$B$14,G46>'Calcul impôt'!$B$14),G46<'Calcul impôt'!$C$14),ROUND((G46*'Calcul impôt'!$D$14)-('Calcul impôt'!$E$14+G55+G57),2),0) -> 0 | H52: =IF(AND(OR(H46='Calcul impôt'!$B$14,H46>'Calcul impôt'!$B$14),H46<'Calcul impôt'!$C$14),ROUND((H46*'Calcul impôt'!$D$14)-('Calcul impôt'!$E$14+H55+H57),2),0) -> 0 | I52: =IF(AND(OR(I46='Calcul impôt'!$B$14,I46>'Calcul impôt'!$B$14),I46<'Calcul impôt'!$C$14),ROUND((I46*'Calcul impôt'!$D$14)-('Calcul impôt'!$E$14+I55+I57),2),0) -> 0 | J52: =IF(AND(OR(J46='Calcul impôt'!$B$14,J46>'Calcul impôt'!$B$14),J46<'Calcul impôt'!$C$14),ROUND((J46*'Calcul impôt'!$D$14)-('Calcul impôt'!$E$14+J55+J57),2),0) -> 0 | K52: =IF(AND(OR(K46='Calcul impôt'!$B$14,K46>'Calcul impôt'!$B$14),K46<'Calcul impôt'!$C$14),ROUND((K46*'Calcul impôt'!$D$14)-('Calcul impôt'!$E$14+K55+K57),2),0) -> 0 | L52: =IF(AND(OR(L46='Calcul impôt'!$B$14,L46>'Calcul impôt'!$B$14),L46<'Calcul impôt'!$C$14),ROUND((L46*'Calcul impôt'!$D$14)-('Calcul impôt'!$E$14+L55+L57),2),0) -> 0 | M52: =IF(AND(OR(M46='Calcul impôt'!$B$14,M46>'Calcul impôt'!$B$14),M46<'Calcul impôt'!$C$14),ROUND((M46*'Calcul impôt'!$D$14)-('Calcul impôt'!$E$14+M55+M57),2),0) -> 0 | N52: =IF(AND(OR(N46='Calcul impôt'!$B$14,N46>'Calcul impôt'!$B$14),N46<'Calcul impôt'!$C$14),ROUND((N46*'Calcul impôt'!$D$14)-('Calcul impôt'!$E$14+N55+N57),2),0) -> 0 | O52: =IF(AND(OR(O46='Calcul impôt'!$B$14,O46>'Calcul impôt'!$B$14),O46<'Calcul impôt'!$C$14),ROUND((O46*'Calcul impôt'!$D$14)-('Calcul impôt'!$E$14+O55+O57),2),0) -> 0 | P52: =IF(AND(OR(P46='Calcul impôt'!$B$14,P46>'Calcul impôt'!$B$14),P46<'Calcul impôt'!$C$14),ROUND((P46*'Calcul impôt'!$D$14)-('Calcul impôt'!$E$14+P55+P57),2),0) -> 0 | Q52: =IF(AND(OR(Q46='Calcul impôt'!$B$14,Q46>'Calcul impôt'!$B$14),Q46<'Calcul impôt'!$C$14),ROUND((Q46*'Calcul impôt'!$D$14)-('Calcul impôt'!$E$14+Q55+Q57),2),0) -> 0 | R52: =IF(AND(OR(R46='Calcul impôt'!$B$14,R46>'Calcul impôt'!$B$14),R46<'Calcul impôt'!$C$14),ROUND((R46*'Calcul impôt'!$D$14)-('Calcul impôt'!$E$14+R55+R57),2),0) -> 0 | S52: =IF(AND(OR(S46='Calcul impôt'!$B$14,S46>'Calcul impôt'!$B$14),S46<'Calcul impôt'!$C$14),ROUND((S46*'Calcul impôt'!$D$14)-('Calcul impôt'!$E$14+S55+S57),2),0) -> 0 | T52: =IF(AND(OR(T46='Calcul impôt'!$B$14,T46>'Calcul impôt'!$B$14),T46<'Calcul impôt'!$C$14),ROUND((T46*'Calcul impôt'!$D$14)-('Calcul impôt'!$E$14+T55+T57),2),0) -> 0 | U52: =IF(AND(OR(U46='Calcul impôt'!$B$14,U46>'Calcul impôt'!$B$14),U46<'Calcul impôt'!$C$14),ROUND((U46*'Calcul impôt'!$D$14)-('Calcul impôt'!$E$14+U55+U57),2),0) -> 0
C53: =ROUND(SUM(C48:C52),2) -> 0 | D53: =ROUND(SUM(D48:D52),2) -> 0 | E53: 0 | F53: 0 | G53: 0 | H53: 0 | I53: 0 | J53: 0 | K53: 0 | L53: 0 | M53: =ROUND(SUM(M48:M52),2) -> 0 | N53: 0 | O53: 0 | P53: 0 | Q53: 0 | R53: 0 | S53: 0 | T53: 0 | U53: 0
C54: CRÉDIT D'IMPÔT FÉDÉRAL À 15%
C55: =IF(C46=0,"",ROUND(((EXEMPTIONS_FED+IF(RRQ_Valide_Max=0,RRQMAX,IF(CXRRQ=2,RRQMAX,IF(CXRRQ=3,0,MIN(PARAMÈTRES!B34*'Déduction de base'!$B$25,RRQMAX)))))+IF(AE_Valide_Max=0,CHOMANNUEL,(IF(CXCHOMAGE=1,MIN(PARAMÈTRES!B35*NBRE_PAIE,CHOMANNUEL),IF(CXCHOMAGE=2,CHOMANNUEL,0))))+IF(RQAP_Valide_Max=0,RQAPMAX,(IF(CXPARENTALE=1,MIN(PARAMÈTRES!B36*NBRE_PAIE,RQAPMAX),IF(CXPARENTALE=2,RQAPMAX,0)))))*'Calcul impôt'!$E$15,2)) ->  | D55: =IF(D46=0,"",ROUND(((EXEMPTIONS_FED+IF(RRQ_Valide_Max=0,RRQMAX,IF(CXRRQ=2,RRQMAX,IF(CXRRQ=3,0,MIN(PARAMÈTRES!C34*'Déduction de base'!$B$25,RRQMAX)))))+IF(AE_Valide_Max=0,CHOMANNUEL,(IF(CXCHOMAGE=1,MIN(PARAMÈTRES!C35*NBRE_PAIE,CHOMANNUEL),IF(CXCHOMAGE=2,CHOMANNUEL,0))))+IF(RQAP_Valide_Max=0,RQAPMAX,(IF(CXPARENTALE=1,MIN(PARAMÈTRES!C36*NBRE_PAIE,RQAPMAX),IF(CXPARENTALE=2,RQAPMAX,0)))))*'Calcul impôt'!$E$15,2)) ->  | E55: =IF(E46=0,"",ROUND(((EXEMPTIONS_FED+IF(RRQ_Valide_Max=0,RRQMAX,IF(CXRRQ=2,RRQMAX,IF(CXRRQ=3,0,MIN(PARAMÈTRES!D34*'Déduction de base'!$B$25,RRQMAX)))))+IF(AE_Valide_Max=0,CHOMANNUEL,(IF(CXCHOMAGE=1,MIN(PARAMÈTRES!D35*NBRE_PAIE,CHOMANNUEL),IF(CXCHOMAGE=2,CHOMANNUEL,0))))+IF(RQAP_Valide_Max=0,RQAPMAX,(IF(CXPARENTALE=1,MIN(PARAMÈTRES!D36*NBRE_PAIE,RQAPMAX),IF(CXPARENTALE=2,RQAPMAX,0)))))*'Calcul impôt'!$E$15,2)) ->  | F55: =IF(F46=0,"",ROUND(((EXEMPTIONS_FED+IF(RRQ_Valide_Max=0,RRQMAX,IF(CXRRQ=2,RRQMAX,IF(CXRRQ=3,0,MIN(PARAMÈTRES!E34*'Déduction de base'!$B$25,RRQMAX)))))+IF(AE_Valide_Max=0,CHOMANNUEL,(IF(CXCHOMAGE=1,MIN(PARAMÈTRES!E35*NBRE_PAIE,CHOMANNUEL),IF(CXCHOMAGE=2,CHOMANNUEL,0))))+IF(RQAP_Valide_Max=0,RQAPMAX,(IF(CXPARENTALE=1,MIN(PARAMÈTRES!E36*NBRE_PAIE,RQAPMAX),IF(CXPARENTALE=2,RQAPMAX,0)))))*'Calcul impôt'!$E$15,2)) ->  | G55: =IF(G46=0,"",ROUND(((EXEMPTIONS_FED+IF(RRQ_Valide_Max=0,RRQMAX,IF(CXRRQ=2,RRQMAX,IF(CXRRQ=3,0,MIN(PARAMÈTRES!F34*'Déduction de base'!$B$25,RRQMAX)))))+IF(AE_Valide_Max=0,CHOMANNUEL,(IF(CXCHOMAGE=1,MIN(PARAMÈTRES!F35*NBRE_PAIE,CHOMANNUEL),IF(CXCHOMAGE=2,CHOMANNUEL,0))))+IF(RQAP_Valide_Max=0,RQAPMAX,(IF(CXPARENTALE=1,MIN(PARAMÈTRES!F36*NBRE_PAIE,RQAPMAX),IF(CXPARENTALE=2,RQAPMAX,0)))))*'Calcul impôt'!$E$15,2)) ->  | H55: =IF(H46=0,"",ROUND(((EXEMPTIONS_FED+IF(RRQ_Valide_Max=0,RRQMAX,IF(CXRRQ=2,RRQMAX,IF(CXRRQ=3,0,MIN(PARAMÈTRES!G34*'Déduction de base'!$B$25,RRQMAX)))))+IF(AE_Valide_Max=0,CHOMANNUEL,(IF(CXCHOMAGE=1,MIN(PARAMÈTRES!G35*NBRE_PAIE,CHOMANNUEL),IF(CXCHOMAGE=2,CHOMANNUEL,0))))+IF(RQAP_Valide_Max=0,RQAPMAX,(IF(CXPARENTALE=1,MIN(PARAMÈTRES!G36*NBRE_PAIE,RQAPMAX),IF(CXPARENTALE=2,RQAPMAX,0)))))*'Calcul impôt'!$E$15,2)) ->  | I55: =IF(I46=0,"",ROUND(((EXEMPTIONS_FED+IF(RRQ_Valide_Max=0,RRQMAX,IF(CXRRQ=2,RRQMAX,IF(CXRRQ=3,0,MIN(PARAMÈTRES!H34*'Déduction de base'!$B$25,RRQMAX)))))+IF(AE_Valide_Max=0,CHOMANNUEL,(IF(CXCHOMAGE=1,MIN(PARAMÈTRES!H35*NBRE_PAIE,CHOMANNUEL),IF(CXCHOMAGE=2,CHOMANNUEL,0))))+IF(RQAP_Valide_Max=0,RQAPMAX,(IF(CXPARENTALE=1,MIN(PARAMÈTRES!H36*NBRE_PAIE,RQAPMAX),IF(CXPARENTALE=2,RQAPMAX,0)))))*'Calcul impôt'!$E$15,2)) ->  | J55: =IF(J46=0,"",ROUND(((EXEMPTIONS_FED+IF(RRQ_Valide_Max=0,RRQMAX,IF(CXRRQ=2,RRQMAX,IF(CXRRQ=3,0,MIN(PARAMÈTRES!I34*'Déduction de base'!$B$25,RRQMAX)))))+IF(AE_Valide_Max=0,CHOMANNUEL,(IF(CXCHOMAGE=1,MIN(PARAMÈTRES!I35*NBRE_PAIE,CHOMANNUEL),IF(CXCHOMAGE=2,CHOMANNUEL,0))))+IF(RQAP_Valide_Max=0,RQAPMAX,(IF(CXPARENTALE=1,MIN(PARAMÈTRES!I36*NBRE_PAIE,RQAPMAX),IF(CXPARENTALE=2,RQAPMAX,0)))))*'Calcul impôt'!$E$15,2)) ->  | K55: =IF(K46=0,"",ROUND(((EXEMPTIONS_FED+IF(RRQ_Valide_Max=0,RRQMAX,IF(CXRRQ=2,RRQMAX,IF(CXRRQ=3,0,MIN(PARAMÈTRES!J34*'Déduction de base'!$B$25,RRQMAX)))))+IF(AE_Valide_Max=0,CHOMANNUEL,(IF(CXCHOMAGE=1,MIN(PARAMÈTRES!J35*NBRE_PAIE,CHOMANNUEL),IF(CXCHOMAGE=2,CHOMANNUEL,0))))+IF(RQAP_Valide_Max=0,RQAPMAX,(IF(CXPARENTALE=1,MIN(PARAMÈTRES!J36*NBRE_PAIE,RQAPMAX),IF(CXPARENTALE=2,RQAPMAX,0)))))*'Calcul impôt'!$E$15,2)) ->  | L55: =IF(L46=0,"",ROUND(((EXEMPTIONS_FED+IF(RRQ_Valide_Max=0,RRQMAX,IF(CXRRQ=2,RRQMAX,IF(CXRRQ=3,0,MIN(PARAMÈTRES!K34*'Déduction de base'!$B$25,RRQMAX)))))+IF(AE_Valide_Max=0,CHOMANNUEL,(IF(CXCHOMAGE=1,MIN(PARAMÈTRES!K35*NBRE_PAIE,CHOMANNUEL),IF(CXCHOMAGE=2,CHOMANNUEL,0))))+IF(RQAP_Valide_Max=0,RQAPMAX,(IF(CXPARENTALE=1,MIN(PARAMÈTRES!K36*NBRE_PAIE,RQAPMAX),IF(CXPARENTALE=2,RQAPMAX,0)))))*'Calcul impôt'!$E$15,2)) ->  | M55: =IF(M46=0,"",ROUND(((IF(REER_ACTIF=TRUE,B28,EXEMPTIONS_FED)+IF(RRQ_Valide_Max=0,RRQMAX,IF(CXRRQ=2,RRQMAX,IF(CXRRQ=3,0,MIN(PARAMÈTRES!L34*'Déduction de base'!$B$25,RRQMAX)))))+IF(AE_Valide_Max=0,CHOMANNUEL,(IF(CXCHOMAGE=1,MIN(PARAMÈTRES!L35*NBRE_PAIE,CHOMANNUEL),IF(CXCHOMAGE=2,CHOMANNUEL,0))))+IF(RQAP_Valide_Max=0,RQAPMAX,(IF(CXPARENTALE=1,MIN(PARAMÈTRES!L36*NBRE_PAIE,RQAPMAX),IF(CXPARENTALE=2,RQAPMAX,0)))))*'Calcul impôt'!$E$15,2)) ->  | N55: =IF(N46=0,"",ROUND(((EXEMPTIONS_FED+IF(RRQ_Valide_Max=0,RRQMAX,IF(CXRRQ=2,RRQMAX,IF(CXRRQ=3,0,MIN(CSTTD!E36*'Déduction de base'!$B$25,RRQMAX)))))+IF(AE_Valide_Max=0,CHOMANNUEL,(IF(CXCHOMAGE=1,MIN(CSTTD!E37*NBRE_PAIE,CHOMANNUEL),IF(CXCHOMAGE=2,CHOMANNUEL,0))))+IF(RQAP_Valide_Max=0,RQAPMAX,(IF(CXPARENTALE=1,MIN(CSTTD!E38*NBRE_PAIE,RQAPMAX),IF(CXPARENTALE=2,RQAPMAX,0)))))*'Calcul impôt'!$E$15,2)) ->  | O55: =IF(O46=0,"",ROUND(((EXEMPTIONS_FED+IF(RRQ_Valide_Max=0,RRQMAX,IF(CXRRQ=2,RRQMAX,IF(CXRRQ=3,0,MIN(CSTTD!F36*'Déduction de base'!$B$25,RRQMAX)))))+IF(AE_Valide_Max=0,CHOMANNUEL,(IF(CXCHOMAGE=1,MIN(CSTTD!F37*NBRE_PAIE,CHOMANNUEL),IF(CXCHOMAGE=2,CHOMANNUEL,0))))+IF(RQAP_Valide_Max=0,RQAPMAX,(IF(CXPARENTALE=1,MIN(CSTTD!F38*NBRE_PAIE,RQAPMAX),IF(CXPARENTALE=2,RQAPMAX,0)))))*'Calcul impôt'!$E$15,2)) ->  | P55: =IF(P46=0,"",ROUND(((EXEMPTIONS_FED+IF(RRQ_Valide_Max=0,RRQMAX,IF(CXRRQ=2,RRQMAX,IF(CXRRQ=3,0,MIN(CSTTD!I36*'Déduction de base'!$B$25,RRQMAX)))))+IF(AE_Valide_Max=0,CHOMANNUEL,(IF(CXCHOMAGE=1,MIN(CSTTD!I37*NBRE_PAIE,CHOMANNUEL),IF(CXCHOMAGE=2,CHOMANNUEL,0))))+IF(RQAP_Valide_Max=0,RQAPMAX,(IF(CXPARENTALE=1,MIN(CSTTD!I38*NBRE_PAIE,RQAPMAX),IF(CXPARENTALE=2,RQAPMAX,0)))))*'Calcul impôt'!$E$15,2)) ->  | Q55: =IF(Q46=0,"",ROUND(((EXEMPTIONS_FED+IF(RRQ_Valide_Max=0,RRQMAX,IF(CXRRQ=2,RRQMAX,IF(CXRRQ=3,0,MIN(CSTTD!J36*'Déduction de base'!$B$25,RRQMAX)))))+IF(AE_Valide_Max=0,CHOMANNUEL,(IF(CXCHOMAGE=1,MIN(CSTTD!J37*NBRE_PAIE,CHOMANNUEL),IF(CXCHOMAGE=2,CHOMANNUEL,0))))+IF(RQAP_Valide_Max=0,RQAPMAX,(IF(CXPARENTALE=1,MIN(CSTTD!J38*NBRE_PAIE,RQAPMAX),IF(CXPARENTALE=2,RQAPMAX,0)))))*'Calcul impôt'!$E$15,2)) ->  | R55: =IF(R46=0,"",ROUND(((EXEMPTIONS_FED+IF(RRQ_Valide_Max=0,RRQMAX,IF(CXRRQ=2,RRQMAX,IF(CXRRQ=3,0,MIN(CSTTD!M36*'Déduction de base'!$B$25,RRQMAX)))))+IF(AE_Valide_Max=0,CHOMANNUEL,(IF(CXCHOMAGE=1,MIN(CSTTD!M37*NBRE_PAIE,CHOMANNUEL),IF(CXCHOMAGE=2,CHOMANNUEL,0))))+IF(RQAP_Valide_Max=0,RQAPMAX,(IF(CXPARENTALE=1,MIN(CSTTD!M38*NBRE_PAIE,RQAPMAX),IF(CXPARENTALE=2,RQAPMAX,0)))))*'Calcul impôt'!$E$15,2)) ->  | S55: =IF(S46=0,"",ROUND(((EXEMPTIONS_FED+IF(RRQ_Valide_Max=0,RRQMAX,IF(CXRRQ=2,RRQMAX,IF(CXRRQ=3,0,MIN(CSTTD!N36*'Déduction de base'!$B$25,RRQMAX)))))+IF(AE_Valide_Max=0,CHOMANNUEL,(IF(CXCHOMAGE=1,MIN(CSTTD!N37*NBRE_PAIE,CHOMANNUEL),IF(CXCHOMAGE=2,CHOMANNUEL,0))))+IF(RQAP_Valide_Max=0,RQAPMAX,(IF(CXPARENTALE=1,MIN(CSTTD!N38*NBRE_PAIE,RQAPMAX),IF(CXPARENTALE=2,RQAPMAX,0)))))*'Calcul impôt'!$E$15,2)) ->  | T55: =IF(T46=0,"",ROUND(((EXEMPTIONS_FED+IF(RRQ_Valide_Max=0,RRQMAX,IF(CXRRQ=2,RRQMAX,IF(CXRRQ=3,0,MIN(CSTTD!Q36*'Déduction de base'!$B$25,RRQMAX)))))+IF(AE_Valide_Max=0,CHOMANNUEL,(IF(CXCHOMAGE=1,MIN(CSTTD!Q37*NBRE_PAIE,CHOMANNUEL),IF(CXCHOMAGE=2,CHOMANNUEL,0))))+IF(RQAP_Valide_Max=0,RQAPMAX,(IF(CXPARENTALE=1,MIN(CSTTD!Q38*NBRE_PAIE,RQAPMAX),IF(CXPARENTALE=2,RQAPMAX,0)))))*'Calcul impôt'!$E$15,2)) ->  | U55: =IF(U46=0,"",ROUND(((EXEMPTIONS_FED+IF(RRQ_Valide_Max=0,RRQMAX,IF(CXRRQ=2,RRQMAX,IF(CXRRQ=3,0,MIN(CSTTD!R36*'Déduction de base'!$B$25,RRQMAX)))))+IF(AE_Valide_Max=0,CHOMANNUEL,(IF(CXCHOMAGE=1,MIN(CSTTD!R37*NBRE_PAIE,CHOMANNUEL),IF(CXCHOMAGE=2,CHOMANNUEL,0))))+IF(RQAP_Valide_Max=0,RQAPMAX,(IF(CXPARENTALE=1,MIN(CSTTD!R38*NBRE_PAIE,RQAPMAX),IF(CXPARENTALE=2,RQAPMAX,0)))))*'Calcul impôt'!$E$15,2)) -> 
C56: Crédit d'impôt à l'emploi au Canada K4
C57: =MIN(ROUND(C46*'Calcul impôt'!$E$15,2),(ROUND(CRFED_EMPLOI*'Calcul impôt'!$E$15,2))) -> 0 | D57: =MIN(ROUND(D46*'Calcul impôt'!$E$15,2),(ROUND(CRFED_EMPLOI*'Calcul impôt'!$E$15,2))) -> 0 | E57: =MIN(ROUND(E46*'Calcul impôt'!$E$15,2),(ROUND(CRFED_EMPLOI*'Calcul impôt'!$E$15,2))) -> 0 | F57: =MIN(ROUND(F46*'Calcul impôt'!$E$15,2),(ROUND(CRFED_EMPLOI*'Calcul impôt'!$E$15,2))) -> 0 | G57: =MIN(ROUND(G46*'Calcul impôt'!$E$15,2),(ROUND(CRFED_EMPLOI*'Calcul impôt'!$E$15,2))) -> 0 | H57: =MIN(ROUND(H46*'Calcul impôt'!$E$15,2),(ROUND(CRFED_EMPLOI*'Calcul impôt'!$E$15,2))) -> 0 | I57: =MIN(ROUND(I46*'Calcul impôt'!$E$15,2),(ROUND(CRFED_EMPLOI*'Calcul impôt'!$E$15,2))) -> 0 | J57: =MIN(ROUND(J46*'Calcul impôt'!$E$15,2),(ROUND(CRFED_EMPLOI*'Calcul impôt'!$E$15,2))) -> 0 | K57: =MIN(ROUND(K46*'Calcul impôt'!$E$15,2),(ROUND(CRFED_EMPLOI*'Calcul impôt'!$E$15,2))) -> 0 | L57: =MIN(ROUND(L46*'Calcul impôt'!$E$15,2),(ROUND(CRFED_EMPLOI*'Calcul impôt'!$E$15,2))) -> 0 | M57: =MIN(ROUND(M46*'Calcul impôt'!$E$15,2),(ROUND(CRFED_EMPLOI*'Calcul impôt'!$E$15,2))) -> 0 | N57: =MIN(ROUND(N46*'Calcul impôt'!$E$15,2),(ROUND(CRFED_EMPLOI*'Calcul impôt'!$E$15,2))) -> 0 | O57: =MIN(ROUND(O46*'Calcul impôt'!$E$15,2),(ROUND(CRFED_EMPLOI*'Calcul impôt'!$E$15,2))) -> 0 | P57: =MIN(ROUND(P46*'Calcul impôt'!$E$15,2),(ROUND(CRFED_EMPLOI*'Calcul impôt'!$E$15,2))) -> 0 | Q57: =MIN(ROUND(Q46*'Calcul impôt'!$E$15,2),(ROUND(CRFED_EMPLOI*'Calcul impôt'!$E$15,2))) -> 0 | R57: =MIN(ROUND(R46*'Calcul impôt'!$E$15,2),(ROUND(CRFED_EMPLOI*'Calcul impôt'!$E$15,2))) -> 0 | S57: =MIN(ROUND(S46*'Calcul impôt'!$E$15,2),(ROUND(CRFED_EMPLOI*'Calcul impôt'!$E$15,2))) -> 0 | T57: =MIN(ROUND(T46*'Calcul impôt'!$E$15,2),(ROUND(CRFED_EMPLOI*'Calcul impôt'!$E$15,2))) -> 0 | U57: =MIN(ROUND(U46*'Calcul impôt'!$E$15,2),(ROUND(CRFED_EMPLOI*'Calcul impôt'!$E$15,2))) -> 0
C59: Calcul de l'abattement sur l'impôt fédéral
C60: =MAX(ROUND(C53*ABATTEMENT,2),0) -> 0 | D60: =MAX(ROUND(D53*ABATTEMENT,2),0) -> 0 | E60: =MAX(ROUND(E53*ABATTEMENT,2),0) -> 0 | F60: 0 | G60: 0 | H60: 0 | I60: 0 | J60: 0 | K60: 0 | L60: =MAX(ROUND(L53*ABATTEMENT,2),0) -> 0 | M60: =MAX(ROUND(M53*ABATTEMENT,2),0) -> 0 | N60: 0 | O60: 0 | P60: 0 | Q60: 0 | R60: 0 | S60: 0 | T60: 0 | U60: 0
C61: Calcul d'impôt fédéral par année avec surtaxes et abattement
C62: =ROUND((C53)-C60,2) -> 0 | D62: =ROUND((D53)-D60,2) -> 0 | E62: =ROUND((E53)-E60,2) -> 0 | F62: 0 | G62: 0 | H62: 0 | I62: 0 | J62: 0 | K62: 0 | L62: =ROUND((L53)-L60,2) -> 0 | M62: =ROUND((M53)-M60,2) -> 0 | N62: =ROUND((N53)-N60,2) -> 0 | O62: =ROUND((O53)-O60,2) -> 0 | P62: =ROUND((P53)-P60,2) -> 0 | Q62: 0 | R62: 0 | S62: 0 | T62: 0 | U62: 0
C63: Calcul d'impôt fédéral par période de paie
C64: =PARAMÈTRES!B25 -> 35h00 | D64: =PARAMÈTRES!C25 -> 33h15 | E64: =PARAMÈTRES!D25 -> 32h30 | F64: =PARAMÈTRES!E25 -> 32h00 | G64: =PARAMÈTRES!F25 -> 31h30 | H64: =PARAMÈTRES!G25 -> 30h00 | I64: =PARAMÈTRES!H25 -> 28h00 | J64: =PARAMÈTRES!I25 -> 24h30 | K64: =PARAMÈTRES!J25 -> 21h00 | L64: =PARAMÈTRES!K25 -> 14h00 | M64: =PARAMÈTRES!L25 -> 70h00
C65: =IF(OR(EXONÉRATION=2,EXONÉRATION=4),0,MAX(ROUND((C62/NBRE_PAIE),2),0)) -> 0 | D65: =IF(OR(EXONÉRATION=2,EXONÉRATION=4),0,MAX(ROUND((D62/NBRE_PAIE),2),0)) -> 0 | E65: =IF(OR(EXONÉRATION=2,EXONÉRATION=4),0,MAX(ROUND((E62/NBRE_PAIE),2),0)) -> 0 | F65: 0 | G65: 0 | H65: 0 | I65: 0 | J65: 0 | K65: 0 | L65: =IF(OR(EXONÉRATION=2,EXONÉRATION=4),0,MAX(ROUND((L62/NBRE_PAIE),2),0)) -> 0 | M65: =IF(OR(EXONÉRATION=2,EXONÉRATION=4),0,MAX(ROUND((M62/NBRE_PAIE),2),0)) -> 0 | N65: 0 | O65: 0 | P65: 0 | Q65: 0 | R65: 0 | S65: 0 | T65: 0 | U65: 0
C67: = | D67: = | E67: = | F67: = | G67: = | H67: = | I67: = | J67: = | K67: = | L67: = | M67: = | N67: = | O67: = | P67: = | Q67: = | R67: = | S67: = | T67: = | U67: =
C68: Calcul d'impôt provincial par année avant surtaxes et réduction
C69: =PARAMÈTRES!B25 -> 35h00 | D69: =PARAMÈTRES!C25 -> 33h15 | E69: =PARAMÈTRES!D25 -> 32h30 | F69: =PARAMÈTRES!E25 -> 32h00 | G69: =PARAMÈTRES!F25 -> 31h30 | H69: =PARAMÈTRES!G25 -> 30h00 | I69: =PARAMÈTRES!H25 -> 28h00 | J69: =PARAMÈTRES!I25 -> 24h30 | K69: =PARAMÈTRES!J25 -> 21h00 | L69: =PARAMÈTRES!K25 -> 14h00 | M69: =PARAMÈTRES!L25 -> 70h00
C70: G1-Revenu imposable provincial
C71: =MAX((ROUND((PARAMÈTRES!B90+PARAMÈTRES!B65-PARAMÈTRES!B157)*NBRE_PAIE,2))-((MIN(ROUND((ROUND((PARAMÈTRES!B26+PARAMÈTRES!B65-PARAMÈTRES!B157)*NBRE_PAIE,2))*'Calcul impôt'!$E$36,2),CRPROV_EMPLOI))+ROUND((PARAMÈTRES!B37+PARAMÈTRES!B39)*NBRE_PAIE,2)+ALLEGPROV),0) -> 0 | D71: =MAX((ROUND((PARAMÈTRES!C90+PARAMÈTRES!C65-PARAMÈTRES!C157)*NBRE_PAIE,2))-((MIN(ROUND((ROUND((PARAMÈTRES!C26+PARAMÈTRES!C65-PARAMÈTRES!C157)*NBRE_PAIE,2))*'Calcul impôt'!$E$36,2),CRPROV_EMPLOI))+ROUND((PARAMÈTRES!C37+PARAMÈTRES!C39)*NBRE_PAIE,2)+ALLEGPROV),0) ->  | E71: =MAX((ROUND((PARAMÈTRES!D90+PARAMÈTRES!D65-PARAMÈTRES!D157)*NBRE_PAIE,2))-((MIN(ROUND((ROUND((PARAMÈTRES!D26+PARAMÈTRES!D65-PARAMÈTRES!D157)*NBRE_PAIE,2))*'Calcul impôt'!$E$36,2),CRPROV_EMPLOI))+ROUND((PARAMÈTRES!D37+PARAMÈTRES!D39)*NBRE_PAIE,2)+ALLEGPROV),0) ->  | F71: =MAX((ROUND((PARAMÈTRES!E90+PARAMÈTRES!E65-PARAMÈTRES!E157)*NBRE_PAIE,2))-((MIN(ROUND((ROUND((PARAMÈTRES!E26+PARAMÈTRES!E65-PARAMÈTRES!E157)*NBRE_PAIE,2))*'Calcul impôt'!$E$36,2),CRPROV_EMPLOI))+ROUND((PARAMÈTRES!E37+PARAMÈTRES!E39)*NBRE_PAIE,2)+ALLEGPROV),0) ->  | G71: =MAX((ROUND((PARAMÈTRES!F90+PARAMÈTRES!F65-PARAMÈTRES!F157)*NBRE_PAIE,2))-((MIN(ROUND((ROUND((PARAMÈTRES!F26+PARAMÈTRES!F65-PARAMÈTRES!F157)*NBRE_PAIE,2))*'Calcul impôt'!$E$36,2),CRPROV_EMPLOI))+ROUND((PARAMÈTRES!F37+PARAMÈTRES!F39)*NBRE_PAIE,2)+ALLEGPROV),0) ->  | H71: =MAX((ROUND((PARAMÈTRES!G90+PARAMÈTRES!G65-PARAMÈTRES!G157)*NBRE_PAIE,2))-((MIN(ROUND((ROUND((PARAMÈTRES!G26+PARAMÈTRES!G65-PARAMÈTRES!G157)*NBRE_PAIE,2))*'Calcul impôt'!$E$36,2),CRPROV_EMPLOI))+ROUND((PARAMÈTRES!G37+PARAMÈTRES!G39)*NBRE_PAIE,2)+ALLEGPROV),0) ->  | I71: =MAX((ROUND((PARAMÈTRES!H90+PARAMÈTRES!H65-PARAMÈTRES!H157)*NBRE_PAIE,2))-((MIN(ROUND((ROUND((PARAMÈTRES!H26+PARAMÈTRES!H65-PARAMÈTRES!H157)*NBRE_PAIE,2))*'Calcul impôt'!$E$36,2),CRPROV_EMPLOI))+ROUND((PARAMÈTRES!H37+PARAMÈTRES!H39)*NBRE_PAIE,2)+ALLEGPROV),0) ->  | J71: =MAX((ROUND((PARAMÈTRES!I90+PARAMÈTRES!I65-PARAMÈTRES!I157)*NBRE_PAIE,2))-((MIN(ROUND((ROUND((PARAMÈTRES!I26+PARAMÈTRES!I65-PARAMÈTRES!I157)*NBRE_PAIE,2))*'Calcul impôt'!$E$36,2),CRPROV_EMPLOI))+ROUND((PARAMÈTRES!I37+PARAMÈTRES!I39)*NBRE_PAIE,2)+ALLEGPROV),0) ->  | K71: =MAX((ROUND((PARAMÈTRES!J90+PARAMÈTRES!J65-PARAMÈTRES!J157)*NBRE_PAIE,2))-((MIN(ROUND((ROUND((PARAMÈTRES!J26+PARAMÈTRES!J65-PARAMÈTRES!J157)*NBRE_PAIE,2))*'Calcul impôt'!$E$36,2),CRPROV_EMPLOI))+ROUND((PARAMÈTRES!J37+PARAMÈTRES!J39)*NBRE_PAIE,2)+ALLEGPROV),0) ->  | L71: =MAX((ROUND((PARAMÈTRES!K90+PARAMÈTRES!K65-PARAMÈTRES!K157)*NBRE_PAIE,2))-((MIN(ROUND((ROUND((PARAMÈTRES!K26+PARAMÈTRES!K65-PARAMÈTRES!K157)*NBRE_PAIE,2))*'Calcul impôt'!$E$36,2),CRPROV_EMPLOI))+ROUND((PARAMÈTRES!K37+PARAMÈTRES!K39)*NBRE_PAIE,2)+ALLEGPROV),0) ->  | M71: =MAX((ROUND((PARAMÈTRES!L90+PARAMÈTRES!L65-PARAMÈTRES!L157)*NBRE_PAIE,2))-((MIN(ROUND((ROUND((PARAMÈTRES!L26+PARAMÈTRES!L65-PARAMÈTRES!L157)*NBRE_PAIE,2))*'Calcul impôt'!$E$36,2),CRPROV_EMPLOI))+ROUND((PARAMÈTRES!L37+PARAMÈTRES!L39)*NBRE_PAIE,2)+ALLEGPROV),0) -> 0 | N71: =MAX((ROUND((PARAMÈTRES!M90+PARAMÈTRES!L65-PARAMÈTRES!L157)*NBRE_PAIE,2))-((MIN(ROUND((ROUND((CSTTD!F27+PARAMÈTRES!L65-PARAMÈTRES!L157)*NBRE_PAIE,2))*'Calcul impôt'!$E$36,2),CRPROV_EMPLOI))+ROUND((CSTTD!F39+CSTTD!F41)*NBRE_PAIE,2)+ALLEGPROV),0) -> 0 | O71: =MAX((ROUND((PARAMÈTRES!N90+PARAMÈTRES!M65-PARAMÈTRES!M157)*NBRE_PAIE,2))-((MIN(ROUND((ROUND((CSTTD!E27+PARAMÈTRES!M65-PARAMÈTRES!M157)*NBRE_PAIE,2))*'Calcul impôt'!$E$36,2),CRPROV_EMPLOI))+ROUND((CSTTD!E39+CSTTD!E41)*NBRE_PAIE,2)+ALLEGPROV),0) -> 0 | P71: =MAX((ROUND((PARAMÈTRES!O90+PARAMÈTRES!N65-PARAMÈTRES!N157)*NBRE_PAIE,2))-((MIN(ROUND((ROUND((CSTTD!J27+PARAMÈTRES!N65-PARAMÈTRES!N157)*NBRE_PAIE,2))*'Calcul impôt'!$E$36,2),CRPROV_EMPLOI))+ROUND((CSTTD!J39+CSTTD!J41)*NBRE_PAIE,2)+ALLEGPROV),0) -> 0 | Q71: =MAX((ROUND((PARAMÈTRES!P90+PARAMÈTRES!O65-PARAMÈTRES!O157)*NBRE_PAIE,2))-((MIN(ROUND((ROUND((CSTTD!I27+PARAMÈTRES!O65-PARAMÈTRES!O157)*NBRE_PAIE,2))*'Calcul impôt'!$E$36,2),CRPROV_EMPLOI))+ROUND((CSTTD!I39+CSTTD!I41)*NBRE_PAIE,2)+ALLEGPROV),0) -> 0 | R71: =MAX((ROUND((PARAMÈTRES!Q90+PARAMÈTRES!P65-PARAMÈTRES!P157)*NBRE_PAIE,2))-((MIN(ROUND((ROUND((CSTTD!N27+PARAMÈTRES!P65-PARAMÈTRES!P157)*NBRE_PAIE,2))*'Calcul impôt'!$E$36,2),CRPROV_EMPLOI))+ROUND((CSTTD!N39+CSTTD!N41)*NBRE_PAIE,2)+ALLEGPROV),0) -> 0 | S71: =MAX((ROUND((PARAMÈTRES!R90+PARAMÈTRES!Q65-PARAMÈTRES!Q157)*NBRE_PAIE,2))-((MIN(ROUND((ROUND((CSTTD!M27+PARAMÈTRES!Q65-PARAMÈTRES!Q157)*NBRE_PAIE,2))*'Calcul impôt'!$E$36,2),CRPROV_EMPLOI))+ROUND((CSTTD!M39+CSTTD!M41)*NBRE_PAIE,2)+ALLEGPROV),0) -> 0 | T71: =MAX((ROUND((PARAMÈTRES!S90+PARAMÈTRES!R65-PARAMÈTRES!R157)*NBRE_PAIE,2))-((MIN(ROUND((ROUND((CSTTD!R27+PARAMÈTRES!R65-PARAMÈTRES!R157)*NBRE_PAIE,2))*'Calcul impôt'!$E$36,2),CRPROV_EMPLOI))+ROUND((CSTTD!R39+CSTTD!R41)*NBRE_PAIE,2)+ALLEGPROV),0) -> 0 | U71: =MAX((ROUND((PARAMÈTRES!T90+PARAMÈTRES!S65-PARAMÈTRES!S157)*NBRE_PAIE,2))-((MIN(ROUND((ROUND((CSTTD!Q27+PARAMÈTRES!S65-PARAMÈTRES!S157)*NBRE_PAIE,2))*'Calcul impôt'!$E$36,2),CRPROV_EMPLOI))+ROUND((CSTTD!Q39+CSTTD!Q41)*NBRE_PAIE,2)+ALLEGPROV),0) -> 0
C73: =IF(AND(C71>'Calcul impôt'!$B$20,C71<'Calcul impôt'!$C$20),ROUND((C71*'Calcul impôt'!$D$20)-('Calcul impôt'!$E$20+C83),2),0) -> 0 | D73: =IF(AND(D71>'Calcul impôt'!$B$20,D71<'Calcul impôt'!$C$20),ROUND((D71*'Calcul impôt'!$D$20)-('Calcul impôt'!$E$20+D83),2),0) ->  | E73: =IF(AND(E71>'Calcul impôt'!$B$20,E71<'Calcul impôt'!$C$20),ROUND((E71*'Calcul impôt'!$D$20)-('Calcul impôt'!$E$20+E83),2),0) ->  | F73: =IF(AND(F71>'Calcul impôt'!$B$20,F71<'Calcul impôt'!$C$20),ROUND((F71*'Calcul impôt'!$D$20)-('Calcul impôt'!$E$20+F83),2),0) ->  | G73: =IF(AND(G71>'Calcul impôt'!$B$20,G71<'Calcul impôt'!$C$20),ROUND((G71*'Calcul impôt'!$D$20)-('Calcul impôt'!$E$20+G83),2),0) ->  | H73: =IF(AND(H71>'Calcul impôt'!$B$20,H71<'Calcul impôt'!$C$20),ROUND((H71*'Calcul impôt'!$D$20)-('Calcul impôt'!$E$20+H83),2),0) ->  | I73: =IF(AND(I71>'Calcul impôt'!$B$20,I71<'Calcul impôt'!$C$20),ROUND((I71*'Calcul impôt'!$D$20)-('Calcul impôt'!$E$20+I83),2),0) ->  | J73: =IF(AND(J71>'Calcul impôt'!$B$20,J71<'Calcul impôt'!$C$20),ROUND((J71*'Calcul impôt'!$D$20)-('Calcul impôt'!$E$20+J83),2),0) ->  | K73: =IF(AND(K71>'Calcul impôt'!$B$20,K71<'Calcul impôt'!$C$20),ROUND((K71*'Calcul impôt'!$D$20)-('Calcul impôt'!$E$20+K83),2),0) ->  | L73: =IF(AND(L71>'Calcul impôt'!$B$20,L71<'Calcul impôt'!$C$20),ROUND((L71*'Calcul impôt'!$D$20)-('Calcul impôt'!$E$20+L83),2),0) ->  | M73: =IF(AND(M71>'Calcul impôt'!$B$20,M71<'Calcul impôt'!$C$20),ROUND((M71*'Calcul impôt'!$D$20)-('Calcul impôt'!$E$20+M83),2),0) -> 0 | N73: =IF(AND(N71>'Calcul impôt'!$B$20,N71<'Calcul impôt'!$C$20),ROUND((N71*'Calcul impôt'!$D$20)-('Calcul impôt'!$E$20+N83),2),0) -> 0 | O73: =IF(AND(O71>'Calcul impôt'!$B$20,O71<'Calcul impôt'!$C$20),ROUND((O71*'Calcul impôt'!$D$20)-('Calcul impôt'!$E$20+O83),2),0) -> 0 | P73: =IF(AND(P71>'Calcul impôt'!$B$20,P71<'Calcul impôt'!$C$20),ROUND((P71*'Calcul impôt'!$D$20)-('Calcul impôt'!$E$20+P83),2),0) -> 0 | Q73: =IF(AND(Q71>'Calcul impôt'!$B$20,Q71<'Calcul impôt'!$C$20),ROUND((Q71*'Calcul impôt'!$D$20)-('Calcul impôt'!$E$20+Q83),2),0) -> 0 | R73: =IF(AND(R71>'Calcul impôt'!$B$20,R71<'Calcul impôt'!$C$20),ROUND((R71*'Calcul impôt'!$D$20)-('Calcul impôt'!$E$20+R83),2),0) -> 0 | S73: =IF(AND(S71>'Calcul impôt'!$B$20,S71<'Calcul impôt'!$C$20),ROUND((S71*'Calcul impôt'!$D$20)-('Calcul impôt'!$E$20+S83),2),0) -> 0 | T73: =IF(AND(T71>'Calcul impôt'!$B$20,T71<'Calcul impôt'!$C$20),ROUND((T71*'Calcul impôt'!$D$20)-('Calcul impôt'!$E$20+T83),2),0) -> 0 | U73: =IF(AND(U71>'Calcul impôt'!$B$20,U71<'Calcul impôt'!$C$20),ROUND((U71*'Calcul impôt'!$D$20)-('Calcul impôt'!$E$20+U83),2),0) -> 0
C74: =IF(AND(C71>'Calcul impôt'!$B$21,C71<'Calcul impôt'!$C$21),ROUND((C71*'Calcul impôt'!$D$21)-('Calcul impôt'!$E$21+C83),2),0) -> 0 | D74: =IF(AND(D71>'Calcul impôt'!$B$21,D71<'Calcul impôt'!$C$21),ROUND((D71*'Calcul impôt'!$D$21)-('Calcul impôt'!$E$21+D83),2),0) ->  | E74: =IF(AND(E71>'Calcul impôt'!$B$21,E71<'Calcul impôt'!$C$21),ROUND((E71*'Calcul impôt'!$D$21)-('Calcul impôt'!$E$21+E83),2),0) ->  | F74: =IF(AND(F71>'Calcul impôt'!$B$21,F71<'Calcul impôt'!$C$21),ROUND((F71*'Calcul impôt'!$D$21)-('Calcul impôt'!$E$21+F83),2),0) ->  | G74: =IF(AND(G71>'Calcul impôt'!$B$21,G71<'Calcul impôt'!$C$21),ROUND((G71*'Calcul impôt'!$D$21)-('Calcul impôt'!$E$21+G83),2),0) ->  | H74: =IF(AND(H71>'Calcul impôt'!$B$21,H71<'Calcul impôt'!$C$21),ROUND((H71*'Calcul impôt'!$D$21)-('Calcul impôt'!$E$21+H83),2),0) ->  | I74: =IF(AND(I71>'Calcul impôt'!$B$21,I71<'Calcul impôt'!$C$21),ROUND((I71*'Calcul impôt'!$D$21)-('Calcul impôt'!$E$21+I83),2),0) ->  | J74: =IF(AND(J71>'Calcul impôt'!$B$21,J71<'Calcul impôt'!$C$21),ROUND((J71*'Calcul impôt'!$D$21)-('Calcul impôt'!$E$21+J83),2),0) ->  | K74: =IF(AND(K71>'Calcul impôt'!$B$21,K71<'Calcul impôt'!$C$21),ROUND((K71*'Calcul impôt'!$D$21)-('Calcul impôt'!$E$21+K83),2),0) ->  | L74: =IF(AND(L71>'Calcul impôt'!$B$21,L71<'Calcul impôt'!$C$21),ROUND((L71*'Calcul impôt'!$D$21)-('Calcul impôt'!$E$21+L83),2),0) ->  | M74: =IF(AND(M71>'Calcul impôt'!$B$21,M71<'Calcul impôt'!$C$21),ROUND((M71*'Calcul impôt'!$D$21)-('Calcul impôt'!$E$21+M83),2),0) -> 0 | N74: =IF(AND(N71>'Calcul impôt'!$B$21,N71<'Calcul impôt'!$C$21),ROUND((N71*'Calcul impôt'!$D$21)-('Calcul impôt'!$E$21+N83),2),0) -> 0 | O74: =IF(AND(O71>'Calcul impôt'!$B$21,O71<'Calcul impôt'!$C$21),ROUND((O71*'Calcul impôt'!$D$21)-('Calcul impôt'!$E$21+O83),2),0) -> 0 | P74: =IF(AND(P71>'Calcul impôt'!$B$21,P71<'Calcul impôt'!$C$21),ROUND((P71*'Calcul impôt'!$D$21)-('Calcul impôt'!$E$21+P83),2),0) -> 0 | Q74: =IF(AND(Q71>'Calcul impôt'!$B$21,Q71<'Calcul impôt'!$C$21),ROUND((Q71*'Calcul impôt'!$D$21)-('Calcul impôt'!$E$21+Q83),2),0) -> 0 | R74: =IF(AND(R71>'Calcul impôt'!$B$21,R71<'Calcul impôt'!$C$21),ROUND((R71*'Calcul impôt'!$D$21)-('Calcul impôt'!$E$21+R83),2),0) -> 0 | S74: =IF(AND(S71>'Calcul impôt'!$B$21,S71<'Calcul impôt'!$C$21),ROUND((S71*'Calcul impôt'!$D$21)-('Calcul impôt'!$E$21+S83),2),0) -> 0 | T74: =IF(AND(T71>'Calcul impôt'!$B$21,T71<'Calcul impôt'!$C$21),ROUND((T71*'Calcul impôt'!$D$21)-('Calcul impôt'!$E$21+T83),2),0) -> 0 | U74: =IF(AND(U71>'Calcul impôt'!$B$21,U71<'Calcul impôt'!$C$21),ROUND((U71*'Calcul impôt'!$D$21)-('Calcul impôt'!$E$21+U83),2),0) -> 0
C75: =IF(AND(C71>'Calcul impôt'!$B$22,C71<'Calcul impôt'!$C$22),ROUND((C71*'Calcul impôt'!$D$22)-('Calcul impôt'!$E$22+C83),2),0) -> 0 | D75: =IF(AND(D71>'Calcul impôt'!$B$22,D71<'Calcul impôt'!$C$22),ROUND((D71*'Calcul impôt'!$D$22)-('Calcul impôt'!$E$22+D83),2),0) ->  | E75: =IF(AND(E71>'Calcul impôt'!$B$22,E71<'Calcul impôt'!$C$22),ROUND((E71*'Calcul impôt'!$D$22)-('Calcul impôt'!$E$22+E83),2),0) ->  | F75: =IF(AND(F71>'Calcul impôt'!$B$22,F71<'Calcul impôt'!$C$22),ROUND((F71*'Calcul impôt'!$D$22)-('Calcul impôt'!$E$22+F83),2),0) ->  | G75: =IF(AND(G71>'Calcul impôt'!$B$22,G71<'Calcul impôt'!$C$22),ROUND((G71*'Calcul impôt'!$D$22)-('Calcul impôt'!$E$22+G83),2),0) ->  | H75: =IF(AND(H71>'Calcul impôt'!$B$22,H71<'Calcul impôt'!$C$22),ROUND((H71*'Calcul impôt'!$D$22)-('Calcul impôt'!$E$22+H83),2),0) ->  | I75: =IF(AND(I71>'Calcul impôt'!$B$22,I71<'Calcul impôt'!$C$22),ROUND((I71*'Calcul impôt'!$D$22)-('Calcul impôt'!$E$22+I83),2),0) ->  | J75: =IF(AND(J71>'Calcul impôt'!$B$22,J71<'Calcul impôt'!$C$22),ROUND((J71*'Calcul impôt'!$D$22)-('Calcul impôt'!$E$22+J83),2),0) ->  | K75: =IF(AND(K71>'Calcul impôt'!$B$22,K71<'Calcul impôt'!$C$22),ROUND((K71*'Calcul impôt'!$D$22)-('Calcul impôt'!$E$22+K83),2),0) ->  | L75: =IF(AND(L71>'Calcul impôt'!$B$22,L71<'Calcul impôt'!$C$22),ROUND((L71*'Calcul impôt'!$D$22)-('Calcul impôt'!$E$22+L83),2),0) ->  | M75: =IF(AND(M71>'Calcul impôt'!$B$22,M71<'Calcul impôt'!$C$22),ROUND((M71*'Calcul impôt'!$D$22)-('Calcul impôt'!$E$22+M83),2),0) -> 0 | N75: =IF(AND(N71>'Calcul impôt'!$B$22,N71<'Calcul impôt'!$C$22),ROUND((N71*'Calcul impôt'!$D$22)-('Calcul impôt'!$E$22+N83),2),0) -> 0 | O75: =IF(AND(O71>'Calcul impôt'!$B$22,O71<'Calcul impôt'!$C$22),ROUND((O71*'Calcul impôt'!$D$22)-('Calcul impôt'!$E$22+O83),2),0) -> 0 | P75: =IF(AND(P71>'Calcul impôt'!$B$22,P71<'Calcul impôt'!$C$22),ROUND((P71*'Calcul impôt'!$D$22)-('Calcul impôt'!$E$22+P83),2),0) -> 0 | Q75: =IF(AND(Q71>'Calcul impôt'!$B$22,Q71<'Calcul impôt'!$C$22),ROUND((Q71*'Calcul impôt'!$D$22)-('Calcul impôt'!$E$22+Q83),2),0) -> 0 | R75: =IF(AND(R71>'Calcul impôt'!$B$22,R71<'Calcul impôt'!$C$22),ROUND((R71*'Calcul impôt'!$D$22)-('Calcul impôt'!$E$22+R83),2),0) -> 0 | S75: =IF(AND(S71>'Calcul impôt'!$B$22,S71<'Calcul impôt'!$C$22),ROUND((S71*'Calcul impôt'!$D$22)-('Calcul impôt'!$E$22+S83),2),0) -> 0 | T75: =IF(AND(T71>'Calcul impôt'!$B$22,T71<'Calcul impôt'!$C$22),ROUND((T71*'Calcul impôt'!$D$22)-('Calcul impôt'!$E$22+T83),2),0) -> 0 | U75: =IF(AND(U71>'Calcul impôt'!$B$22,U71<'Calcul impôt'!$C$22),ROUND((U71*'Calcul impôt'!$D$22)-('Calcul impôt'!$E$22+U83),2),0) -> 0
C76: =IF(AND(C71>'Calcul impôt'!$B$23,C71<'Calcul impôt'!$C$23),ROUND((C71*'Calcul impôt'!$D$23)-('Calcul impôt'!$E$23+C83),2),0) -> 0 | D76: =IF(AND(D71>'Calcul impôt'!$B$23,D71<'Calcul impôt'!$C$23),ROUND((D71*'Calcul impôt'!$D$23)-('Calcul impôt'!$E$23+D83),2),0) ->  | E76: =IF(AND(E71>'Calcul impôt'!$B$23,E71<'Calcul impôt'!$C$23),ROUND((E71*'Calcul impôt'!$D$23)-('Calcul impôt'!$E$23+E83),2),0) ->  | F76: =IF(AND(F71>'Calcul impôt'!$B$23,F71<'Calcul impôt'!$C$23),ROUND((F71*'Calcul impôt'!$D$23)-('Calcul impôt'!$E$23+F83),2),0) ->  | G76: =IF(AND(G71>'Calcul impôt'!$B$23,G71<'Calcul impôt'!$C$23),ROUND((G71*'Calcul impôt'!$D$23)-('Calcul impôt'!$E$23+G83),2),0) ->  | H76: =IF(AND(H71>'Calcul impôt'!$B$23,H71<'Calcul impôt'!$C$23),ROUND((H71*'Calcul impôt'!$D$23)-('Calcul impôt'!$E$23+H83),2),0) ->  | I76: =IF(AND(I71>'Calcul impôt'!$B$23,I71<'Calcul impôt'!$C$23),ROUND((I71*'Calcul impôt'!$D$23)-('Calcul impôt'!$E$23+I83),2),0) ->  | J76: =IF(AND(J71>'Calcul impôt'!$B$23,J71<'Calcul impôt'!$C$23),ROUND((J71*'Calcul impôt'!$D$23)-('Calcul impôt'!$E$23+J83),2),0) ->  | K76: =IF(AND(K71>'Calcul impôt'!$B$23,K71<'Calcul impôt'!$C$23),ROUND((K71*'Calcul impôt'!$D$23)-('Calcul impôt'!$E$23+K83),2),0) ->  | L76: =IF(AND(L71>'Calcul impôt'!$B$23,L71<'Calcul impôt'!$C$23),ROUND((L71*'Calcul impôt'!$D$23)-('Calcul impôt'!$E$23+L83),2),0) ->  | M76: =IF(AND(M71>'Calcul impôt'!$B$23,M71<'Calcul impôt'!$C$23),ROUND((M71*'Calcul impôt'!$D$23)-('Calcul impôt'!$E$23+M83),2),0) -> 0 | N76: =IF(AND(N71>'Calcul impôt'!$B$23,N71<'Calcul impôt'!$C$23),ROUND((N71*'Calcul impôt'!$D$23)-('Calcul impôt'!$E$23+N83),2),0) -> 0 | O76: =IF(AND(O71>'Calcul impôt'!$B$23,O71<'Calcul impôt'!$C$23),ROUND((O71*'Calcul impôt'!$D$23)-('Calcul impôt'!$E$23+O83),2),0) -> 0 | P76: =IF(AND(P71>'Calcul impôt'!$B$23,P71<'Calcul impôt'!$C$23),ROUND((P71*'Calcul impôt'!$D$23)-('Calcul impôt'!$E$23+P83),2),0) -> 0 | Q76: =IF(AND(Q71>'Calcul impôt'!$B$23,Q71<'Calcul impôt'!$C$23),ROUND((Q71*'Calcul impôt'!$D$23)-('Calcul impôt'!$E$23+Q83),2),0) -> 0 | R76: =IF(AND(R71>'Calcul impôt'!$B$23,R71<'Calcul impôt'!$C$23),ROUND((R71*'Calcul impôt'!$D$23)-('Calcul impôt'!$E$23+R83),2),0) -> 0 | S76: =IF(AND(S71>'Calcul impôt'!$B$23,S71<'Calcul impôt'!$C$23),ROUND((S71*'Calcul impôt'!$D$23)-('Calcul impôt'!$E$23+S83),2),0) -> 0 | T76: =IF(AND(T71>'Calcul impôt'!$B$23,T71<'Calcul impôt'!$C$23),ROUND((T71*'Calcul impôt'!$D$23)-('Calcul impôt'!$E$23+T83),2),0) -> 0 | U76: =IF(AND(U71>'Calcul impôt'!$B$23,U71<'Calcul impôt'!$C$23),ROUND((U71*'Calcul impôt'!$D$23)-('Calcul impôt'!$E$23+U83),2),0) -> 0
C78: = | D78: = | E78: = | F78: = | G78: = | H78: = | I78: = | J78: = | K78: = | L78: = | M78: = | N78: = | O78: = | P78: = | Q78: = | R78: = | S78: = | T78: = | U78: =
C80: =MAX(SUM(C73:C76),0) -> 0 | M80: =MAX(SUM(M73:M76),0) -> 0 | N80: 0 | O80: 0 | P80: =MAX(SUM(P73:P76),0) -> 0 | Q80: 0 | R80: 0 | S80: 0 | T80: 0 | U80: 0
C82: G2-CRÉDIT D'IMPÔT PROVINCIAL À 15,00%
C83: =ROUND(EXEMPTIONS_PROV*'Calcul impôt'!$E$24,2) -> 0 | D83: =ROUND(EXEMPTIONS_PROV*'Calcul impôt'!$E$24,2) -> 0 | E83: =ROUND(EXEMPTIONS_PROV*'Calcul impôt'!$E$24,2) -> 0 | F83: =ROUND(EXEMPTIONS_PROV*'Calcul impôt'!$E$24,2) -> 0 | G83: =ROUND(EXEMPTIONS_PROV*'Calcul impôt'!$E$24,2) -> 0 | H83: =ROUND(EXEMPTIONS_PROV*'Calcul impôt'!$E$24,2) -> 0 | I83: =ROUND(EXEMPTIONS_PROV*'Calcul impôt'!$E$24,2) -> 0 | J83: =ROUND(EXEMPTIONS_PROV*'Calcul impôt'!$E$24,2) -> 0 | K83: =ROUND(EXEMPTIONS_PROV*'Calcul impôt'!$E$24,2) -> 0 | L83: =ROUND(EXEMPTIONS_PROV*'Calcul impôt'!$E$24,2) -> 0 | M83: =ROUND(IF(REER_ACTIF=TRUE,B34,EXEMPTIONS_PROV)*'Calcul impôt'!$E$24,2) -> 0 | N83: =ROUND(EXEMPTIONS_PROV*'Calcul impôt'!$E$24,2) -> 0 | O83: =ROUND(EXEMPTIONS_PROV*'Calcul impôt'!$E$24,2) -> 0 | P83: =ROUND(EXEMPTIONS_PROV*'Calcul impôt'!$E$24,2) -> 0 | Q83: =ROUND(EXEMPTIONS_PROV*'Calcul impôt'!$E$24,2) -> 0 | R83: =ROUND(EXEMPTIONS_PROV*'Calcul impôt'!$E$24,2) -> 0 | S83: =ROUND(EXEMPTIONS_PROV*'Calcul impôt'!$E$24,2) -> 0 | T83: =ROUND(EXEMPTIONS_PROV*'Calcul impôt'!$E$24,2) -> 0 | U83: =ROUND(EXEMPTIONS_PROV*'Calcul impôt'!$E$24,2) -> 0
C84: G3-IMPÔT PROVINCIAL RÉGULIER-BASE ANNUELLE
C85: =MAX(ROUND(SUM(C73:C76),2),0) -> 0 | D85: =MAX(ROUND(SUM(D73:D76),2),0) ->  | M85: =MAX(ROUND(SUM(M73:M76),2),0) -> 0 | N85: 0 | O85: 0 | P85: =MAX(ROUND(SUM(P73:P76),2),0) -> 0 | Q85: 0 | R85: 0 | S85: 0 | T85: 0 | U85: 0
C87: G5?-CONTRIBUTION SANTÉ PROVINCIALE
C88: =ROUND(MAX((ROUND((PARAMÈTRES!B90+PARAMÈTRES!B65-PARAMÈTRES!B157)*NBRE_PAIE,2))-((MIN(ROUND((ROUND((PARAMÈTRES!B90+PARAMÈTRES!B65-PARAMÈTRES!B157)*NBRE_PAIE,2)+ROUND((PARAMÈTRES!B37+PARAMÈTRES!B39),2))*'Calcul impôt'!$E$36,2),ROUND(CRPROV_EMPLOI,2),ROUND(CRPROV_EMPLOI,2)))+ROUND((PARAMÈTRES!B37+PARAMÈTRES!B39)*26,2)),0),2)-ALLEGPROV -> 0 | D88: =ROUND(MAX((ROUND((PARAMÈTRES!C90+PARAMÈTRES!C65-PARAMÈTRES!C157),2))-((MIN(ROUND((ROUND((PARAMÈTRES!C26+PARAMÈTRES!C65-PARAMÈTRES!C157),2))*'Calcul impôt'!$E$36,2),ROUND(CRPROV_EMPLOI/NBRE_PAIE,2)))+ROUND((PARAMÈTRES!C37+PARAMÈTRES!C39),2)),0)*NBRE_PAIE,2)-ALLEGPROV ->  | E88: =ROUND(MAX((ROUND((PARAMÈTRES!D90+PARAMÈTRES!D65-PARAMÈTRES!D157),2))-((MIN(ROUND((ROUND((PARAMÈTRES!D26+PARAMÈTRES!D65-PARAMÈTRES!D157),2))*'Calcul impôt'!$E$36,2),ROUND(CRPROV_EMPLOI/NBRE_PAIE,2)))+ROUND((PARAMÈTRES!D37+PARAMÈTRES!D39),2)),0)*NBRE_PAIE,2)-ALLEGPROV ->  | F88: =ROUND(MAX((ROUND((PARAMÈTRES!E90+PARAMÈTRES!E65-PARAMÈTRES!E157),2))-((MIN(ROUND((ROUND((PARAMÈTRES!E26+PARAMÈTRES!E65-PARAMÈTRES!E157),2))*'Calcul impôt'!$E$36,2),ROUND(CRPROV_EMPLOI/NBRE_PAIE,2)))+ROUND((PARAMÈTRES!E37+PARAMÈTRES!E39),2)),0)*NBRE_PAIE,2)-ALLEGPROV ->  | G88: =ROUND(MAX((ROUND((PARAMÈTRES!F90+PARAMÈTRES!F65-PARAMÈTRES!F157),2))-((MIN(ROUND((ROUND((PARAMÈTRES!F26+PARAMÈTRES!F65-PARAMÈTRES!F157),2))*'Calcul impôt'!$E$36,2),ROUND(CRPROV_EMPLOI/NBRE_PAIE,2)))+ROUND((PARAMÈTRES!F37+PARAMÈTRES!F39),2)),0)*NBRE_PAIE,2)-ALLEGPROV ->  | H88: =ROUND(MAX((ROUND((PARAMÈTRES!G90+PARAMÈTRES!G65-PARAMÈTRES!G157),2))-((MIN(ROUND((ROUND((PARAMÈTRES!G26+PARAMÈTRES!G65-PARAMÈTRES!G157),2))*'Calcul impôt'!$E$36,2),ROUND(CRPROV_EMPLOI/NBRE_PAIE,2)))+ROUND((PARAMÈTRES!G37+PARAMÈTRES!G39),2)),0)*NBRE_PAIE,2)-ALLEGPROV ->  | I88: =ROUND(MAX((ROUND((PARAMÈTRES!H90+PARAMÈTRES!H65-PARAMÈTRES!H157),2))-((MIN(ROUND((ROUND((PARAMÈTRES!H26+PARAMÈTRES!H65-PARAMÈTRES!H157),2))*'Calcul impôt'!$E$36,2),ROUND(CRPROV_EMPLOI/NBRE_PAIE,2)))+ROUND((PARAMÈTRES!H37+PARAMÈTRES!H39),2)),0)*NBRE_PAIE,2)-ALLEGPROV ->  | J88: =ROUND(MAX((ROUND((PARAMÈTRES!I90+PARAMÈTRES!I65-PARAMÈTRES!I157),2))-((MIN(ROUND((ROUND((PARAMÈTRES!I26+PARAMÈTRES!I65-PARAMÈTRES!I157),2))*'Calcul impôt'!$E$36,2),ROUND(CRPROV_EMPLOI/NBRE_PAIE,2)))+ROUND((PARAMÈTRES!I37+PARAMÈTRES!I39),2)),0)*NBRE_PAIE,2)-ALLEGPROV ->  | K88: =ROUND(MAX((ROUND((PARAMÈTRES!J90+PARAMÈTRES!J65-PARAMÈTRES!J157),2))-((MIN(ROUND((ROUND((PARAMÈTRES!J26+PARAMÈTRES!J65-PARAMÈTRES!J157),2))*'Calcul impôt'!$E$36,2),ROUND(CRPROV_EMPLOI/NBRE_PAIE,2)))+ROUND((PARAMÈTRES!J37+PARAMÈTRES!J39),2)),0)*NBRE_PAIE,2)-ALLEGPROV ->  | L88: =ROUND(MAX((ROUND((PARAMÈTRES!K90+PARAMÈTRES!K65-PARAMÈTRES!K157),2))-((MIN(ROUND((ROUND((PARAMÈTRES!K26+PARAMÈTRES!K65-PARAMÈTRES!K157),2))*'Calcul impôt'!$E$36,2),ROUND(CRPROV_EMPLOI/NBRE_PAIE,2)))+ROUND((PARAMÈTRES!K37+PARAMÈTRES!K39),2)),0)*NBRE_PAIE,2)-ALLEGPROV ->  | M88: =ROUND(MAX((ROUND((PARAMÈTRES!L90+PARAMÈTRES!L65-PARAMÈTRES!L157),2))-((MIN(ROUND((ROUND((PARAMÈTRES!L26+PARAMÈTRES!L65-PARAMÈTRES!L157),2))*'Calcul impôt'!$E$36,2),ROUND(CRPROV_EMPLOI/NBRE_PAIE,2)))+ROUND((PARAMÈTRES!L37+PARAMÈTRES!L39),2)),0)*NBRE_PAIE,2)-ALLEGPROV -> 0 | N88: =ROUND(MAX((ROUND((PARAMÈTRES!M90+PARAMÈTRES!L65-PARAMÈTRES!L157),2))-((MIN(ROUND((ROUND((CSTTD!F27+PARAMÈTRES!L65-PARAMÈTRES!L157),2))*'Calcul impôt'!$E$36,2),ROUND(CRPROV_EMPLOI/NBRE_PAIE,2)))+ROUND((CSTTD!F39+CSTTD!F41),2)),0)*NBRE_PAIE,2)-ALLEGPROV -> 0 | O88: =ROUND(MAX((ROUND((PARAMÈTRES!N90+PARAMÈTRES!M65-PARAMÈTRES!M157),2))-((MIN(ROUND((ROUND((CSTTD!E27+PARAMÈTRES!M65-PARAMÈTRES!M157),2))*'Calcul impôt'!$E$36,2),ROUND(CRPROV_EMPLOI/NBRE_PAIE,2)))+ROUND((CSTTD!E39+CSTTD!E41),2)),0)*NBRE_PAIE,2)-ALLEGPROV -> 0 | P88: =ROUND(MAX((ROUND((PARAMÈTRES!O90+PARAMÈTRES!N65-PARAMÈTRES!N157),2))-((MIN(ROUND((ROUND((CSTTD!J27+PARAMÈTRES!N65-PARAMÈTRES!N157),2))*'Calcul impôt'!$E$36,2),ROUND(CRPROV_EMPLOI/NBRE_PAIE,2)))+ROUND((CSTTD!J39+CSTTD!J41),2)),0)*NBRE_PAIE,2)-ALLEGPROV -> 0 | Q88: =ROUND(MAX((ROUND((PARAMÈTRES!P90+PARAMÈTRES!O65-PARAMÈTRES!O157),2))-((MIN(ROUND((ROUND((CSTTD!I27+PARAMÈTRES!O65-PARAMÈTRES!O157),2))*'Calcul impôt'!$E$36,2),ROUND(CRPROV_EMPLOI/NBRE_PAIE,2)))+ROUND((CSTTD!I39+CSTTD!I41),2)),0)*NBRE_PAIE,2)-ALLEGPROV -> 0 | R88: =ROUND(MAX((ROUND((PARAMÈTRES!Q90+PARAMÈTRES!P65-PARAMÈTRES!P157),2))-((MIN(ROUND((ROUND((CSTTD!N27+PARAMÈTRES!P65-PARAMÈTRES!P157),2))*'Calcul impôt'!$E$36,2),ROUND(CRPROV_EMPLOI/NBRE_PAIE,2)))+ROUND((CSTTD!N39+CSTTD!N41),2)),0)*NBRE_PAIE,2)-ALLEGPROV -> 0 | S88: =ROUND(MAX((ROUND((PARAMÈTRES!R90+PARAMÈTRES!Q65-PARAMÈTRES!Q157),2))-((MIN(ROUND((ROUND((CSTTD!M27+PARAMÈTRES!Q65-PARAMÈTRES!Q157),2))*'Calcul impôt'!$E$36,2),ROUND(CRPROV_EMPLOI/NBRE_PAIE,2)))+ROUND((CSTTD!M39+CSTTD!M41),2)),0)*NBRE_PAIE,2)-ALLEGPROV -> 0 | T88: =ROUND(MAX((ROUND((PARAMÈTRES!S90+PARAMÈTRES!R65-PARAMÈTRES!R157),2))-((MIN(ROUND((ROUND((CSTTD!R27+PARAMÈTRES!R65-PARAMÈTRES!R157),2))*'Calcul impôt'!$E$36,2),ROUND(CRPROV_EMPLOI/NBRE_PAIE,2)))+ROUND((CSTTD!R39+CSTTD!R41),2)),0)*NBRE_PAIE,2)-ALLEGPROV -> 0 | U88: =ROUND(MAX((ROUND((PARAMÈTRES!T90+PARAMÈTRES!S65-PARAMÈTRES!S157),2))-((MIN(ROUND((ROUND((CSTTD!Q27+PARAMÈTRES!S65-PARAMÈTRES!S157),2))*'Calcul impôt'!$E$36,2),ROUND(CRPROV_EMPLOI/NBRE_PAIE,2)))+ROUND((CSTTD!Q39+CSTTD!Q41),2)),0)*NBRE_PAIE,2)-ALLEGPROV -> 0
C90: =IF(AND(C88>'Calcul impôt'!$G$5,C88<'Calcul impôt'!$H$5),'Calcul impôt'!$I$5,0) -> 0 | D90: =IF(AND(D88>'Calcul impôt'!$G$5,D88<'Calcul impôt'!$H$5),'Calcul impôt'!$I$5,0) ->  | E90: =IF(AND(E88>'Calcul impôt'!$G$5,E88<'Calcul impôt'!$H$5),'Calcul impôt'!$I$5,0) ->  | F90: =IF(AND(F88>'Calcul impôt'!$G$5,F88<'Calcul impôt'!$H$5),'Calcul impôt'!$I$5,0) ->  | G90: =IF(AND(G88>'Calcul impôt'!$G$5,G88<'Calcul impôt'!$H$5),'Calcul impôt'!$I$5,0) ->  | H90: =IF(AND(H88>'Calcul impôt'!$G$5,H88<'Calcul impôt'!$H$5),'Calcul impôt'!$I$5,0) ->  | I90: =IF(AND(I88>'Calcul impôt'!$G$5,I88<'Calcul impôt'!$H$5),'Calcul impôt'!$I$5,0) ->  | J90: =IF(AND(J88>'Calcul impôt'!$G$5,J88<'Calcul impôt'!$H$5),'Calcul impôt'!$I$5,0) ->  | K90: =IF(AND(K88>'Calcul impôt'!$G$5,K88<'Calcul impôt'!$H$5),'Calcul impôt'!$I$5,0) ->  | L90: =IF(AND(L88>'Calcul impôt'!$G$5,L88<'Calcul impôt'!$H$5),'Calcul impôt'!$I$5,0) ->  | M90: =IF(AND(M88>'Calcul impôt'!$G$5,M88<'Calcul impôt'!$H$5),'Calcul impôt'!$I$5,0) -> 0 | N90: =IF(AND(N88>'Calcul impôt'!$G$5,N88<'Calcul impôt'!$H$5),'Calcul impôt'!$I$5,0) -> 0
C91: =IF(AND(C88>'Calcul impôt'!$G$6,C88<'Calcul impôt'!$H$6),MIN('Calcul impôt'!$I$6,(ROUND((C88-'Calcul impôt'!$G$6)*'Calcul impôt'!$J$6,2))),0) -> 0 | D91: =IF(AND(D88>'Calcul impôt'!$G$6,D88<'Calcul impôt'!$H$6),MIN('Calcul impôt'!$I$6,(ROUND((D88-'Calcul impôt'!$G$6)*'Calcul impôt'!$J$6,2))),0) ->  | E91: =IF(AND(E88>'Calcul impôt'!$G$6,E88<'Calcul impôt'!$H$6),MIN('Calcul impôt'!$I$6,(ROUND((E88-'Calcul impôt'!$G$6)*'Calcul impôt'!$J$6,2))),0) ->  | F91: =IF(AND(F88>'Calcul impôt'!$G$6,F88<'Calcul impôt'!$H$6),MIN('Calcul impôt'!$I$6,(ROUND((F88-'Calcul impôt'!$G$6)*'Calcul impôt'!$J$6,2))),0) ->  | G91: =IF(AND(G88>'Calcul impôt'!$G$6,G88<'Calcul impôt'!$H$6),MIN('Calcul impôt'!$I$6,(ROUND((G88-'Calcul impôt'!$G$6)*'Calcul impôt'!$J$6,2))),0) ->  | H91: =IF(AND(H88>'Calcul impôt'!$G$6,H88<'Calcul impôt'!$H$6),MIN('Calcul impôt'!$I$6,(ROUND((H88-'Calcul impôt'!$G$6)*'Calcul impôt'!$J$6,2))),0) ->  | I91: =IF(AND(I88>'Calcul impôt'!$G$6,I88<'Calcul impôt'!$H$6),MIN('Calcul impôt'!$I$6,(ROUND((I88-'Calcul impôt'!$G$6)*'Calcul impôt'!$J$6,2))),0) ->  | J91: =IF(AND(J88>'Calcul impôt'!$G$6,J88<'Calcul impôt'!$H$6),MIN('Calcul impôt'!$I$6,(ROUND((J88-'Calcul impôt'!$G$6)*'Calcul impôt'!$J$6,2))),0) ->  | K91: =IF(AND(K88>'Calcul impôt'!$G$6,K88<'Calcul impôt'!$H$6),MIN('Calcul impôt'!$I$6,(ROUND((K88-'Calcul impôt'!$G$6)*'Calcul impôt'!$J$6,2))),0) ->  | L91: =IF(AND(L88>'Calcul impôt'!$G$6,L88<'Calcul impôt'!$H$6),MIN('Calcul impôt'!$I$6,(ROUND((L88-'Calcul impôt'!$G$6)*'Calcul impôt'!$J$6,2))),0) ->  | M91: =IF(AND(M88>'Calcul impôt'!$G$6,M88<'Calcul impôt'!$H$6),MIN('Calcul impôt'!$I$6,(ROUND((M88-'Calcul impôt'!$G$6)*'Calcul impôt'!$J$6,2))),0) -> 0 | N91: =IF(AND(N88>'Calcul impôt'!$G$6,N88<'Calcul impôt'!$H$6),MIN('Calcul impôt'!$I$6,(ROUND((N88-'Calcul impôt'!$G$6)*'Calcul impôt'!$J$6,2))),0) -> 0 | O91: =IF(AND(O88>'Calcul impôt'!$G$6,O88<'Calcul impôt'!$H$6),MIN('Calcul impôt'!$I$6,(ROUND((O88-'Calcul impôt'!$G$6)*'Calcul impôt'!$J$6,2))),0) -> 0 | P91: =IF(AND(P88>'Calcul impôt'!$G$6,P88<'Calcul impôt'!$H$6),MIN('Calcul impôt'!$I$6,(ROUND((P88-'Calcul impôt'!$G$6)*'Calcul impôt'!$J$6,2))),0) -> 0 | Q91: =IF(AND(Q88>'Calcul impôt'!$G$6,Q88<'Calcul impôt'!$H$6),MIN('Calcul impôt'!$I$6,(ROUND((Q88-'Calcul impôt'!$G$6)*'Calcul impôt'!$J$6,2))),0) -> 0 | R91: =IF(AND(R88>'Calcul impôt'!$G$6,R88<'Calcul impôt'!$H$6),MIN('Calcul impôt'!$I$6,(ROUND((R88-'Calcul impôt'!$G$6)*'Calcul impôt'!$J$6,2))),0) -> 0 | S91: =IF(AND(S88>'Calcul impôt'!$G$6,S88<'Calcul impôt'!$H$6),MIN('Calcul impôt'!$I$6,(ROUND((S88-'Calcul impôt'!$G$6)*'Calcul impôt'!$J$6,2))),0) -> 0 | T91: =IF(AND(T88>'Calcul impôt'!$G$6,T88<'Calcul impôt'!$H$6),MIN('Calcul impôt'!$I$6,(ROUND((T88-'Calcul impôt'!$G$6)*'Calcul impôt'!$J$6,2))),0) -> 0 | U91: =IF(AND(U88>'Calcul impôt'!$G$6,U88<'Calcul impôt'!$H$6),MIN('Calcul impôt'!$I$6,(ROUND((U88-'Calcul impôt'!$G$6)*'Calcul impôt'!$J$6,2))),0) -> 0
C92: =IF(AND(C88>'Calcul impôt'!$G$7,C88<'Calcul impôt'!$H$7),MIN('Calcul impôt'!$I$7,(ROUND((C88-'Calcul impôt'!$G$7)*'Calcul impôt'!$J$7,2)+100)),0) -> 0 | D92: =IF(AND(D88>'Calcul impôt'!$G$7,D88<'Calcul impôt'!$H$7),MIN('Calcul impôt'!$I$7,(ROUND((D88-'Calcul impôt'!$G$7)*'Calcul impôt'!$J$7,2)+100)),0) ->  | E92: =IF(AND(E88>'Calcul impôt'!$G$7,E88<'Calcul impôt'!$H$7),MIN('Calcul impôt'!$I$7,(ROUND((E88-'Calcul impôt'!$G$7)*'Calcul impôt'!$J$7,2)+100)),0) ->  | F92: =IF(AND(F88>'Calcul impôt'!$G$7,F88<'Calcul impôt'!$H$7),MIN('Calcul impôt'!$I$7,(ROUND((F88-'Calcul impôt'!$G$7)*'Calcul impôt'!$J$7,2)+100)),0) ->  | G92: =IF(AND(G88>'Calcul impôt'!$G$7,G88<'Calcul impôt'!$H$7),MIN('Calcul impôt'!$I$7,(ROUND((G88-'Calcul impôt'!$G$7)*'Calcul impôt'!$J$7,2)+100)),0) ->  | H92: =IF(AND(H88>'Calcul impôt'!$G$7,H88<'Calcul impôt'!$H$7),MIN('Calcul impôt'!$I$7,(ROUND((H88-'Calcul impôt'!$G$7)*'Calcul impôt'!$J$7,2)+100)),0) ->  | I92: =IF(AND(I88>'Calcul impôt'!$G$7,I88<'Calcul impôt'!$H$7),MIN('Calcul impôt'!$I$7,(ROUND((I88-'Calcul impôt'!$G$7)*'Calcul impôt'!$J$7,2)+100)),0) ->  | J92: =IF(AND(J88>'Calcul impôt'!$G$7,J88<'Calcul impôt'!$H$7),MIN('Calcul impôt'!$I$7,(ROUND((J88-'Calcul impôt'!$G$7)*'Calcul impôt'!$J$7,2)+100)),0) ->  | K92: =IF(AND(K88>'Calcul impôt'!$G$7,K88<'Calcul impôt'!$H$7),MIN('Calcul impôt'!$I$7,(ROUND((K88-'Calcul impôt'!$G$7)*'Calcul impôt'!$J$7,2)+100)),0) ->  | L92: =IF(AND(L88>'Calcul impôt'!$G$7,L88<'Calcul impôt'!$H$7),MIN('Calcul impôt'!$I$7,(ROUND((L88-'Calcul impôt'!$G$7)*'Calcul impôt'!$J$7,2)+100)),0) ->  | M92: =IF(AND(M88>'Calcul impôt'!$G$7,M88<'Calcul impôt'!$H$7),MIN('Calcul impôt'!$I$7,(ROUND((M88-'Calcul impôt'!$G$7)*'Calcul impôt'!$J$7,2)+100)),0) -> 0 | N92: =IF(AND(N88>'Calcul impôt'!$G$7,N88<'Calcul impôt'!$H$7),MIN('Calcul impôt'!$I$7,(ROUND((N88-'Calcul impôt'!$G$7)*'Calcul impôt'!$J$7,2)+100)),0) -> 0 | O92: =IF(AND(O88>'Calcul impôt'!$G$7,O88<'Calcul impôt'!$H$7),MIN('Calcul impôt'!$I$7,(ROUND((O88-'Calcul impôt'!$G$7)*'Calcul impôt'!$J$7,2)+100)),0) -> 0 | P92: =IF(AND(P88>'Calcul impôt'!$G$7,P88<'Calcul impôt'!$H$7),MIN('Calcul impôt'!$I$7,(ROUND((P88-'Calcul impôt'!$G$7)*'Calcul impôt'!$J$7,2)+100)),0) -> 0 | Q92: =IF(AND(Q88>'Calcul impôt'!$G$7,Q88<'Calcul impôt'!$H$7),MIN('Calcul impôt'!$I$7,(ROUND((Q88-'Calcul impôt'!$G$7)*'Calcul impôt'!$J$7,2)+100)),0) -> 0 | R92: =IF(AND(R88>'Calcul impôt'!$G$7,R88<'Calcul impôt'!$H$7),MIN('Calcul impôt'!$I$7,(ROUND((R88-'Calcul impôt'!$G$7)*'Calcul impôt'!$J$7,2)+100)),0) -> 0 | S92: =IF(AND(S88>'Calcul impôt'!$G$7,S88<'Calcul impôt'!$H$7),MIN('Calcul impôt'!$I$7,(ROUND((S88-'Calcul impôt'!$G$7)*'Calcul impôt'!$J$7,2)+100)),0) -> 0 | T92: =IF(AND(T88>'Calcul impôt'!$G$7,T88<'Calcul impôt'!$H$7),MIN('Calcul impôt'!$I$7,(ROUND((T88-'Calcul impôt'!$G$7)*'Calcul impôt'!$J$7,2)+100)),0) -> 0 | U92: =IF(AND(U88>'Calcul impôt'!$G$7,U88<'Calcul impôt'!$H$7),MIN('Calcul impôt'!$I$7,(ROUND((U88-'Calcul impôt'!$G$7)*'Calcul impôt'!$J$7,2)+100)),0) -> 0
C93: =IF(AND(C88>'Calcul impôt'!$G$8,C88<'Calcul impôt'!$H$8),MIN('Calcul impôt'!$I$8,(ROUND((C88-'Calcul impôt'!$G$8)*'Calcul impôt'!$J$8,2)+200)),0) -> 0 | D93: =IF(AND(D88>'Calcul impôt'!$G$8,D88<'Calcul impôt'!$H$8),MIN('Calcul impôt'!$I$8,(ROUND((D88-'Calcul impôt'!$G$8)*'Calcul impôt'!$J$8,2)+200)),0) ->  | E93: =IF(AND(E88>'Calcul impôt'!$G$8,E88<'Calcul impôt'!$H$8),MIN('Calcul impôt'!$I$8,(ROUND((E88-'Calcul impôt'!$G$8)*'Calcul impôt'!$J$8,2)+200)),0) ->  | F93: =IF(AND(F88>'Calcul impôt'!$G$8,F88<'Calcul impôt'!$H$8),MIN('Calcul impôt'!$I$8,(ROUND((F88-'Calcul impôt'!$G$8)*'Calcul impôt'!$J$8,2)+200)),0) ->  | G93: =IF(AND(G88>'Calcul impôt'!$G$8,G88<'Calcul impôt'!$H$8),MIN('Calcul impôt'!$I$8,(ROUND((G88-'Calcul impôt'!$G$8)*'Calcul impôt'!$J$8,2)+200)),0) ->  | H93: =IF(AND(H88>'Calcul impôt'!$G$8,H88<'Calcul impôt'!$H$8),MIN('Calcul impôt'!$I$8,(ROUND((H88-'Calcul impôt'!$G$8)*'Calcul impôt'!$J$8,2)+200)),0) ->  | I93: =IF(AND(I88>'Calcul impôt'!$G$8,I88<'Calcul impôt'!$H$8),MIN('Calcul impôt'!$I$8,(ROUND((I88-'Calcul impôt'!$G$8)*'Calcul impôt'!$J$8,2)+200)),0) ->  | J93: =IF(AND(J88>'Calcul impôt'!$G$8,J88<'Calcul impôt'!$H$8),MIN('Calcul impôt'!$I$8,(ROUND((J88-'Calcul impôt'!$G$8)*'Calcul impôt'!$J$8,2)+200)),0) ->  | K93: =IF(AND(K88>'Calcul impôt'!$G$8,K88<'Calcul impôt'!$H$8),MIN('Calcul impôt'!$I$8,(ROUND((K88-'Calcul impôt'!$G$8)*'Calcul impôt'!$J$8,2)+200)),0) ->  | L93: =IF(AND(L88>'Calcul impôt'!$G$8,L88<'Calcul impôt'!$H$8),MIN('Calcul impôt'!$I$8,(ROUND((L88-'Calcul impôt'!$G$8)*'Calcul impôt'!$J$8,2)+200)),0) ->  | M93: =IF(AND(M88>'Calcul impôt'!$G$8,M88<'Calcul impôt'!$H$8),MIN('Calcul impôt'!$I$8,(ROUND((M88-'Calcul impôt'!$G$8)*'Calcul impôt'!$J$8,2)+200)),0) -> 0 | N93: =IF(AND(N88>'Calcul impôt'!$G$8,N88<'Calcul impôt'!$H$8),MIN('Calcul impôt'!$I$8,(ROUND((N88-'Calcul impôt'!$G$8)*'Calcul impôt'!$J$8,2)+200)),0) -> 0 | O93: =IF(AND(O88>'Calcul impôt'!$G$8,O88<'Calcul impôt'!$H$8),MIN('Calcul impôt'!$I$8,(ROUND((O88-'Calcul impôt'!$G$8)*'Calcul impôt'!$J$8,2)+200)),0) -> 0 | P93: =IF(AND(P88>'Calcul impôt'!$G$8,P88<'Calcul impôt'!$H$8),MIN('Calcul impôt'!$I$8,(ROUND((P88-'Calcul impôt'!$G$8)*'Calcul impôt'!$J$8,2)+200)),0) -> 0 | Q93: =IF(AND(Q88>'Calcul impôt'!$G$8,Q88<'Calcul impôt'!$H$8),MIN('Calcul impôt'!$I$8,(ROUND((Q88-'Calcul impôt'!$G$8)*'Calcul impôt'!$J$8,2)+200)),0) -> 0 | R93: =IF(AND(R88>'Calcul impôt'!$G$8,R88<'Calcul impôt'!$H$8),MIN('Calcul impôt'!$I$8,(ROUND((R88-'Calcul impôt'!$G$8)*'Calcul impôt'!$J$8,2)+200)),0) -> 0 | S93: =IF(AND(S88>'Calcul impôt'!$G$8,S88<'Calcul impôt'!$H$8),MIN('Calcul impôt'!$I$8,(ROUND((S88-'Calcul impôt'!$G$8)*'Calcul impôt'!$J$8,2)+200)),0) -> 0 | T93: =IF(AND(T88>'Calcul impôt'!$G$8,T88<'Calcul impôt'!$H$8),MIN('Calcul impôt'!$I$8,(ROUND((T88-'Calcul impôt'!$G$8)*'Calcul impôt'!$J$8,2)+200)),0) -> 0 | U93: =IF(AND(U88>'Calcul impôt'!$G$8,U88<'Calcul impôt'!$H$8),MIN('Calcul impôt'!$I$8,(ROUND((U88-'Calcul impôt'!$G$8)*'Calcul impôt'!$J$8,2)+200)),0) -> 0
C94: = | D94: = | E94: = | F94: = | G94: = | H94: = | I94: = | J94: = | K94: = | L94: = | M94: = | N94: = | O94: = | P94: = | Q94: = | R94: = | S94: = | T94: = | U94: =
C95: =MAX(SUM(C90:C93),0) -> 0 | M95: =MAX(SUM(M90:M93),0) -> 0 | N95: 0 | O95: 0 | P95: =MAX(SUM(P90:P93),0) -> 0 | Q95: 0 | R95: 0 | S95: 0 | T95: 0 | U95: 0
C97: G4-Calcul d'impôt provincial par période de paie
C98: =PARAMÈTRES!B25 -> 35h00 | D98: 9 | E98: 8 | F98: 7 | G98: 6 | H98: 5 | I98: 4 | J98: 3 | K98: 2 | L98: 1 | M98: 9
C99: =IF(OR(EXONÉRATION=3,EXONÉRATION=4),0,MAX(ROUNDUP((C85/NBRE_PAIE),2),0)) -> 0 | D99: =IF(OR(EXONÉRATION=3,EXONÉRATION=4),0,MAX(ROUND((D85/NBRE_PAIE),2),0)) ->  | M99: 0 | N99: 0 | O99: =MAX(ROUND((O85/NBRE_PAIE),2),0) -> 0 | P99: =IF(OR(EXONÉRATION=3,EXONÉRATION=4),0,MAX(ROUND((P85/NBRE_PAIE),2),0)) -> 0 | Q99: =MAX(ROUND((Q85/NBRE_PAIE),2),0) -> 0 | R99: =IF(OR(EXONÉRATION=3,EXONÉRATION=4),0,MAX(ROUND((R85/NBRE_PAIE),2),0)) -> 0 | S99: =IF(OR(EXONÉRATION=3,EXONÉRATION=4),0,MAX(ROUND((S85/NBRE_PAIE),2),0)) -> 0 | T99: =IF(OR(EXONÉRATION=3,EXONÉRATION=4),0,MAX(ROUND((T85/NBRE_PAIE),2),0)) -> 0 | U99: =IF(OR(EXONÉRATION=3,EXONÉRATION=4),0,MAX(ROUND((U85/NBRE_PAIE),2),0)) -> 0
B100: Contribution santé par paie--> | C100: =IF(ISNA(IF(CXCONTRIBSANTÉ=2,0,ROUNDUP(C95/NBRE_PAIE,2)))=TRUE,0,IF(CXCONTRIBSANTÉ=2,0,ROUNDUP(C95/NBRE_PAIE,2))) -> 0 | D100: =IF(CXCONTRIBSANTÉ=2,0,ROUNDUP(D95/NBRE_PAIE,2)) ->  | L100: =IF(CXCONTRIBSANTÉ=2,0,ROUNDUP(L95/NBRE_PAIE,2)) ->  | M100: =IF(CXCONTRIBSANTÉ=2,0,ROUNDUP(M95/NBRE_PAIE,2)) -> 0 | N100: =IF(CXCONTRIBSANTÉ=2,0,ROUNDUP(N95/NBRE_PAIE,2)) -> 0 | O100: =IF(CXCONTRIBSANTÉ=2,0,ROUNDUP(O95/NBRE_PAIE,2)) -> 0 | P100: 0 | Q100: 0 | R100: 0 | S100: 0 | T100: 0 | U100: 0
B101: Total à payer par paie ----> | C101: =IF(OR(EXONÉRATION=3,EXONÉRATION=4),0,(C99+C100)) -> 0 | D101: =IF(OR(EXONÉRATION=3,EXONÉRATION=4),0,(D99+D100)) ->  | L101: =IF(OR(EXONÉRATION=3,EXONÉRATION=4),0,(L99+L100)) ->  | M101: =IF(OR(EXONÉRATION=3,EXONÉRATION=4),0,(M99+M100)) -> 0 | N101: =IF(OR(EXONÉRATION=3,EXONÉRATION=4),0,(N99+N100)) -> 0 | O101: =IF(OR(EXONÉRATION=3,EXONÉRATION=4),0,(O99+O100)) -> 0 | P101: 0 | Q101: 0 | R101: 0 | S101: 0 | T101: 0 | U101: 0
B106: = | C106: = | D106: = | E106: = | F106: = | G106: = | H106: = | I106: = | J106: = | K106: = | L106: = | M106: = | N106: = | O106: = | P106: = | Q106: = | R106: = | S106: = | T106: = | U106: =
C108: =PARAMÈTRES!B25 -> 35h00 | D108: =PARAMÈTRES!C25 -> 33h15 | E108: =PARAMÈTRES!D25 -> 32h30 | F108: =PARAMÈTRES!E25 -> 32h00 | G108: =PARAMÈTRES!F25 -> 31h30 | H108: =PARAMÈTRES!G25 -> 30h00 | I108: =PARAMÈTRES!H25 -> 28h00 | J108: =PARAMÈTRES!I25 -> 24h30 | K108: =PARAMÈTRES!J25 -> 21h00 | L108: =PARAMÈTRES!K25 -> 14h00 | M108: =PARAMÈTRES!L25 -> 70h00
B109: ARRONDI
B110: =ROUND(PARAMÈTRES!AB68,2) ->  | C110: =IF(TYPESAL1=2,ROUND((PARAMÈTRES!$AB$68*(HRES_SEM*2))*(PARAMÈTRES!B60/10),2),ROUND(($B$110*(HRES_SEM*2))*(PARAMÈTRES!B60/10),2)) ->  | D110: =IF(TYPESAL1=2,ROUND((PARAMÈTRES!$AB$68*(HRES_SEM*2))*(PARAMÈTRES!C60/10),2),ROUND(($B$110*(HRES_SEM*2))*(PARAMÈTRES!C60/10),2)) ->  | E110: =IF(TYPESAL1=2,ROUND((PARAMÈTRES!$AB$68*(HRES_SEM*2))*(PARAMÈTRES!D60/10),2),ROUND(($B$110*(HRES_SEM*2))*(PARAMÈTRES!D60/10),2)) ->  | F110: =IF(TYPESAL1=2,ROUND((PARAMÈTRES!$AB$68*(HRES_SEM*2))*(PARAMÈTRES!E60/10),2),ROUND(($B$110*(HRES_SEM*2))*(PARAMÈTRES!E60/10),2)) ->  | G110: =IF(TYPESAL1=2,ROUND((PARAMÈTRES!$AB$68*(HRES_SEM*2))*(PARAMÈTRES!F60/10),2),ROUND(($B$110*(HRES_SEM*2))*(PARAMÈTRES!F60/10),2)) ->  | H110: =IF(TYPESAL1=2,ROUND((PARAMÈTRES!$AB$68*(HRES_SEM*2))*(PARAMÈTRES!G60/10),2),ROUND(($B$110*(HRES_SEM*2))*(PARAMÈTRES!G60/10),2)) ->  | I110: =IF(TYPESAL1=2,ROUND((PARAMÈTRES!$AB$68*(HRES_SEM*2))*(PARAMÈTRES!H60/10),2),ROUND(($B$110*(HRES_SEM*2))*(PARAMÈTRES!H60/10),2)) ->  | J110: =IF(TYPESAL1=2,ROUND((PARAMÈTRES!$AB$68*(HRES_SEM*2))*(PARAMÈTRES!I60/10),2),ROUND(($B$110*(HRES_SEM*2))*(PARAMÈTRES!I60/10),2)) ->  | K110: =IF(TYPESAL1=2,ROUND((PARAMÈTRES!$AB$68*(HRES_SEM*2))*(PARAMÈTRES!J60/10),2),ROUND(($B$110*(HRES_SEM*2))*(PARAMÈTRES!J60/10),2)) ->  | L110: =IF(TYPESAL1=2,ROUND((PARAMÈTRES!$AB$68*(HRES_SEM*2))*(PARAMÈTRES!K60/10),2),ROUND(($B$110*(HRES_SEM*2))*(PARAMÈTRES!K60/10),2)) ->  | M110: =IF(TYPESAL1=2,ROUND((PARAMÈTRES!$AB$68*(HRES_SEM*2))*(PARAMÈTRES!L60/10),2),ROUND(($B$110*(HRES_SEM*2))*(PARAMÈTRES!L60/10),2)) ->  | N110: =CSTTD!F29 -> 0 | O110: =CSTTD!E27 -> 0 | P110: =CSTTD!J27 -> 0 | Q110: =CSTTD!I27 -> 0 | R110: =CSTTD!N27 -> 0 | S110: =CSTTD!M27 -> 0 | T110: =CSTTD!R27 -> 0 | U110: =CSTTD!Q27 -> 0
B111: =ROUND(PARAMÈTRES!AB69,2) ->  | C111: =IF(TYPESAL1=2,ROUND((PARAMÈTRES!$AB$69*(HRES_SEM*2))*(PARAMÈTRES!B60/10),2),ROUND(($B$111*(HRES_SEM*2))*(PARAMÈTRES!B60/10),4)) ->  | D111: =IF(TYPESAL1=2,ROUND((PARAMÈTRES!$AB$69*(HRES_SEM*2))*(PARAMÈTRES!C60/10),2),ROUND(($B$111*(HRES_SEM*2))*(PARAMÈTRES!C60/10),4)) ->  | E111: =IF(TYPESAL1=2,ROUND((PARAMÈTRES!$AB$69*(HRES_SEM*2))*(PARAMÈTRES!D60/10),2),ROUND(($B$111*(HRES_SEM*2))*(PARAMÈTRES!D60/10),4)) ->  | F111: =IF(TYPESAL1=2,ROUND((PARAMÈTRES!$AB$69*(HRES_SEM*2))*(PARAMÈTRES!E60/10),2),ROUND(($B$111*(HRES_SEM*2))*(PARAMÈTRES!E60/10),4)) ->  | G111: =IF(TYPESAL1=2,ROUND((PARAMÈTRES!$AB$69*(HRES_SEM*2))*(PARAMÈTRES!F60/10),2),ROUND(($B$111*(HRES_SEM*2))*(PARAMÈTRES!F60/10),4)) ->  | H111: =IF(TYPESAL1=2,ROUND((PARAMÈTRES!$AB$69*(HRES_SEM*2))*(PARAMÈTRES!G60/10),2),ROUND(($B$111*(HRES_SEM*2))*(PARAMÈTRES!G60/10),4)) ->  | I111: =IF(TYPESAL1=2,ROUND((PARAMÈTRES!$AB$69*(HRES_SEM*2))*(PARAMÈTRES!H60/10),2),ROUND(($B$111*(HRES_SEM*2))*(PARAMÈTRES!H60/10),4)) ->  | J111: =IF(TYPESAL1=2,ROUND((PARAMÈTRES!$AB$69*(HRES_SEM*2))*(PARAMÈTRES!I60/10),2),ROUND(($B$111*(HRES_SEM*2))*(PARAMÈTRES!I60/10),4)) ->  | K111: =IF(TYPESAL1=2,ROUND((PARAMÈTRES!$AB$69*(HRES_SEM*2))*(PARAMÈTRES!J60/10),2),ROUND(($B$111*(HRES_SEM*2))*(PARAMÈTRES!J60/10),4)) ->  | L111: =IF(TYPESAL1=2,ROUND((PARAMÈTRES!$AB$69*(HRES_SEM*2))*(PARAMÈTRES!K60/10),2),ROUND(($B$111*(HRES_SEM*2))*(PARAMÈTRES!K60/10),4)) ->  | M111: =IF(TYPESAL1=2,ROUND((PARAMÈTRES!$AB$69*(HRES_SEM*2))*(PARAMÈTRES!L60/10),2),ROUND(($B$111*(HRES_SEM*2))*(PARAMÈTRES!L60/10),4)) ->  | N111: =CSTTD!F29 -> 0 | O111: =CSTTD!E27 -> 0 | P111: =CSTTD!J27 -> 0 | Q111: =CSTTD!I27 -> 0 | R111: =CSTTD!N27 -> 0 | S111: =CSTTD!M27 -> 0 | T111: =CSTTD!R27 -> 0 | U111: =CSTTD!Q27 -> 0
B112: =ROUND(PARAMÈTRES!AB70,2) ->  | C112: =IF(TYPESAL1=2,ROUND((PARAMÈTRES!$AB$70*(HRES_SEM*2))*(PARAMÈTRES!B60/10),2),ROUND(($B$112*(HRES_SEM*2))*(PARAMÈTRES!B60/10),4)) ->  | D112: =IF(TYPESAL1=2,ROUND((PARAMÈTRES!$AB$70*(HRES_SEM*2))*(PARAMÈTRES!C60/10),2),ROUND(($B$112*(HRES_SEM*2))*(PARAMÈTRES!C60/10),4)) ->  | E112: =IF(TYPESAL1=2,ROUND((PARAMÈTRES!$AB$70*(HRES_SEM*2))*(PARAMÈTRES!D60/10),2),ROUND(($B$112*(HRES_SEM*2))*(PARAMÈTRES!D60/10),4)) ->  | F112: =IF(TYPESAL1=2,ROUND((PARAMÈTRES!$AB$70*(HRES_SEM*2))*(PARAMÈTRES!E60/10),2),ROUND(($B$112*(HRES_SEM*2))*(PARAMÈTRES!E60/10),4)) ->  | G112: =IF(TYPESAL1=2,ROUND((PARAMÈTRES!$AB$70*(HRES_SEM*2))*(PARAMÈTRES!F60/10),2),ROUND(($B$112*(HRES_SEM*2))*(PARAMÈTRES!F60/10),4)) ->  | H112: =IF(TYPESAL1=2,ROUND((PARAMÈTRES!$AB$70*(HRES_SEM*2))*(PARAMÈTRES!G60/10),2),ROUND(($B$112*(HRES_SEM*2))*(PARAMÈTRES!G60/10),4)) ->  | I112: =IF(TYPESAL1=2,ROUND((PARAMÈTRES!$AB$70*(HRES_SEM*2))*(PARAMÈTRES!H60/10),2),ROUND(($B$112*(HRES_SEM*2))*(PARAMÈTRES!H60/10),4)) ->  | J112: =IF(TYPESAL1=2,ROUND((PARAMÈTRES!$AB$70*(HRES_SEM*2))*(PARAMÈTRES!I60/10),2),ROUND(($B$112*(HRES_SEM*2))*(PARAMÈTRES!I60/10),4)) ->  | K112: =IF(TYPESAL1=2,ROUND((PARAMÈTRES!$AB$70*(HRES_SEM*2))*(PARAMÈTRES!J60/10),2),ROUND(($B$112*(HRES_SEM*2))*(PARAMÈTRES!J60/10),4)) ->  | L112: =IF(TYPESAL1=2,ROUND((PARAMÈTRES!$AB$70*(HRES_SEM*2))*(PARAMÈTRES!K60/10),2),ROUND(($B$112*(HRES_SEM*2))*(PARAMÈTRES!K60/10),4)) ->  | M112: =IF(TYPESAL1=2,ROUND((PARAMÈTRES!$AB$70*(HRES_SEM*2))*(PARAMÈTRES!L60/10),2),ROUND(($B$112*(HRES_SEM*2))*(PARAMÈTRES!L60/10),4)) ->  | N112: =CSTTD!F29 -> 0 | O112: =CSTTD!E27 -> 0 | P112: =CSTTD!J27 -> 0 | Q112: =CSTTD!I27 -> 0 | R112: =CSTTD!N27 -> 0 | S112: =CSTTD!M27 -> 0 | T112: =CSTTD!R27 -> 0 | U112: =CSTTD!Q27 -> 0
B113: =ROUND(PARAMÈTRES!AB71,2) ->  | C113: =IF(TYPESAL1=2,ROUND((PARAMÈTRES!$AB$71*(HRES_SEM*2))*(PARAMÈTRES!B60/10),2),ROUND(($B$113*(HRES_SEM*2))*(PARAMÈTRES!B60/10),4)) ->  | D113: =IF(TYPESAL1=2,ROUND((PARAMÈTRES!$AB$71*(HRES_SEM*2))*(PARAMÈTRES!C60/10),2),ROUND(($B$113*(HRES_SEM*2))*(PARAMÈTRES!C60/10),4)) ->  | E113: =IF(TYPESAL1=2,ROUND((PARAMÈTRES!$AB$71*(HRES_SEM*2))*(PARAMÈTRES!D60/10),2),ROUND(($B$113*(HRES_SEM*2))*(PARAMÈTRES!D60/10),4)) ->  | F113: =IF(TYPESAL1=2,ROUND((PARAMÈTRES!$AB$71*(HRES_SEM*2))*(PARAMÈTRES!E60/10),2),ROUND(($B$113*(HRES_SEM*2))*(PARAMÈTRES!E60/10),4)) ->  | G113: =IF(TYPESAL1=2,ROUND((PARAMÈTRES!$AB$71*(HRES_SEM*2))*(PARAMÈTRES!F60/10),2),ROUND(($B$113*(HRES_SEM*2))*(PARAMÈTRES!F60/10),4)) ->  | H113: =IF(TYPESAL1=2,ROUND((PARAMÈTRES!$AB$71*(HRES_SEM*2))*(PARAMÈTRES!G60/10),2),ROUND(($B$113*(HRES_SEM*2))*(PARAMÈTRES!G60/10),4)) ->  | I113: =IF(TYPESAL1=2,ROUND((PARAMÈTRES!$AB$71*(HRES_SEM*2))*(PARAMÈTRES!H60/10),2),ROUND(($B$113*(HRES_SEM*2))*(PARAMÈTRES!H60/10),4)) ->  | J113: =IF(TYPESAL1=2,ROUND((PARAMÈTRES!$AB$71*(HRES_SEM*2))*(PARAMÈTRES!I60/10),2),ROUND(($B$113*(HRES_SEM*2))*(PARAMÈTRES!I60/10),4)) ->  | K113: =IF(TYPESAL1=2,ROUND((PARAMÈTRES!$AB$71*(HRES_SEM*2))*(PARAMÈTRES!J60/10),2),ROUND(($B$113*(HRES_SEM*2))*(PARAMÈTRES!J60/10),4)) ->  | L113: =IF(TYPESAL1=2,ROUND((PARAMÈTRES!$AB$71*(HRES_SEM*2))*(PARAMÈTRES!K60/10),2),ROUND(($B$113*(HRES_SEM*2))*(PARAMÈTRES!K60/10),4)) ->  | M113: =IF(TYPESAL1=2,ROUND((PARAMÈTRES!$AB$71*(HRES_SEM*2))*(PARAMÈTRES!L60/10),2),ROUND(($B$113*(HRES_SEM*2))*(PARAMÈTRES!L60/10),4)) ->  | N113: =CSTTD!F29 -> 0 | O113: =CSTTD!E27 -> 0 | P113: =CSTTD!J27 -> 0 | Q113: =CSTTD!I27 -> 0 | R113: =CSTTD!N27 -> 0 | S113: =CSTTD!M27 -> 0 | T113: =CSTTD!R27 -> 0 | U113: =CSTTD!Q27 -> 0
B115: * | C115: * | D115: * | E115: * | F115: * | G115: * | H115: * | I115: * | J115: * | K115: * | L115: * | M115: * | N115: * | O115: * | P115: * | Q115: * | R115: * | S115: * | T115: * | U115: *
B116: RR CALCULE
B117: SUR SALAIRE | C117: =PARAMÈTRES!B25 -> 35h00 | D117: =PARAMÈTRES!C25 -> 33h15 | E117: =PARAMÈTRES!D25 -> 32h30 | F117: =PARAMÈTRES!E25 -> 32h00 | G117: =PARAMÈTRES!F25 -> 31h30 | H117: =PARAMÈTRES!G25 -> 30h00 | I117: =PARAMÈTRES!H25 -> 28h00 | J117: =PARAMÈTRES!I25 -> 24h30 | K117: =PARAMÈTRES!J25 -> 21h00 | L117: =PARAMÈTRES!K25 -> 14h00 | M117: =PARAMÈTRES!L25 -> 70h00
B118: NON MAJORE
B119: ="DE "&Formule_Divers!$H$16&"%" -> DE 0% | C119: =ROUND(IF(CODMAXCSST=1,MIN(MAXCSSTPAIE,(C113+IF(OR(codprima=86,codprimb=86,codprimc=86,codprimd=86),PRIMEA+PRIMEB+PRIMEC+PRIMED,((PRIMEA+PRIMEB+PRIMEC+PRIMED)*PARAMÈTRES!B60/10)))),(C113+IF(OR(codprima=86,codprimb=86,codprimc=86,codprimd=86),PRIMEA+PRIMEB+PRIMEC+PRIMED,((PRIMEA+PRIMEB+PRIMEC+PRIMED)*PARAMÈTRES!B60/10)))),2) ->  | D119: =ROUND(IF(CODMAXCSST=1,MIN(MAXCSSTPAIE,(D113+IF(OR(codprima=86,codprimb=86,codprimc=86,codprimd=86),PRIMEA+PRIMEB+PRIMEC+PRIMED,((PRIMEA+PRIMEB+PRIMEC+PRIMED)*PARAMÈTRES!C60/10)))),(D113+IF(OR(codprima=86,codprimb=86,codprimc=86,codprimd=86),PRIMEA+PRIMEB+PRIMEC+PRIMED,((PRIMEA+PRIMEB+PRIMEC+PRIMED)*PARAMÈTRES!C60/10)))),2) ->  | E119: =ROUND(IF(CODMAXCSST=1,MIN(MAXCSSTPAIE,(E113+IF(OR(codprima=86,codprimb=86,codprimc=86,codprimd=86),PRIMEA+PRIMEB+PRIMEC+PRIMED,((PRIMEA+PRIMEB+PRIMEC+PRIMED)*PARAMÈTRES!D60/10)))),(E113+IF(OR(codprima=86,codprimb=86,codprimc=86,codprimd=86),PRIMEA+PRIMEB+PRIMEC+PRIMED,((PRIMEA+PRIMEB+PRIMEC+PRIMED)*PARAMÈTRES!D60/10)))),2) ->  | F119: =ROUND(IF(CODMAXCSST=1,MIN(MAXCSSTPAIE,(F113+IF(OR(codprima=86,codprimb=86,codprimc=86,codprimd=86),PRIMEA+PRIMEB+PRIMEC+PRIMED,((PRIMEA+PRIMEB+PRIMEC+PRIMED)*PARAMÈTRES!E60/10)))),(F113+IF(OR(codprima=86,codprimb=86,codprimc=86,codprimd=86),PRIMEA+PRIMEB+PRIMEC+PRIMED,((PRIMEA+PRIMEB+PRIMEC+PRIMED)*PARAMÈTRES!E60/10)))),2) ->  | G119: =ROUND(IF(CODMAXCSST=1,MIN(MAXCSSTPAIE,(G113+IF(OR(codprima=86,codprimb=86,codprimc=86,codprimd=86),PRIMEA+PRIMEB+PRIMEC+PRIMED,((PRIMEA+PRIMEB+PRIMEC+PRIMED)*PARAMÈTRES!F60/10)))),(G113+IF(OR(codprima=86,codprimb=86,codprimc=86,codprimd=86),PRIMEA+PRIMEB+PRIMEC+PRIMED,((PRIMEA+PRIMEB+PRIMEC+PRIMED)*PARAMÈTRES!F60/10)))),2) ->  | H119: =ROUND(IF(CODMAXCSST=1,MIN(MAXCSSTPAIE,(H113+IF(OR(codprima=86,codprimb=86,codprimc=86,codprimd=86),PRIMEA+PRIMEB+PRIMEC+PRIMED,((PRIMEA+PRIMEB+PRIMEC+PRIMED)*PARAMÈTRES!G60/10)))),(H113+IF(OR(codprima=86,codprimb=86,codprimc=86,codprimd=86),PRIMEA+PRIMEB+PRIMEC+PRIMED,((PRIMEA+PRIMEB+PRIMEC+PRIMED)*PARAMÈTRES!G60/10)))),2) ->  | I119: =ROUND(IF(CODMAXCSST=1,MIN(MAXCSSTPAIE,(I113+IF(OR(codprima=86,codprimb=86,codprimc=86,codprimd=86),PRIMEA+PRIMEB+PRIMEC+PRIMED,((PRIMEA+PRIMEB+PRIMEC+PRIMED)*PARAMÈTRES!H60/10)))),(I113+IF(OR(codprima=86,codprimb=86,codprimc=86,codprimd=86),PRIMEA+PRIMEB+PRIMEC+PRIMED,((PRIMEA+PRIMEB+PRIMEC+PRIMED)*PARAMÈTRES!H60/10)))),2) ->  | J119: =ROUND(IF(CODMAXCSST=1,MIN(MAXCSSTPAIE,(J113+IF(OR(codprima=86,codprimb=86,codprimc=86,codprimd=86),PRIMEA+PRIMEB+PRIMEC+PRIMED,((PRIMEA+PRIMEB+PRIMEC+PRIMED)*PARAMÈTRES!I60/10)))),(J113+IF(OR(codprima=86,codprimb=86,codprimc=86,codprimd=86),PRIMEA+PRIMEB+PRIMEC+PRIMED,((PRIMEA+PRIMEB+PRIMEC+PRIMED)*PARAMÈTRES!I60/10)))),2) ->  | K119: =ROUND(IF(CODMAXCSST=1,MIN(MAXCSSTPAIE,(K113+IF(OR(codprima=86,codprimb=86,codprimc=86,codprimd=86),PRIMEA+PRIMEB+PRIMEC+PRIMED,((PRIMEA+PRIMEB+PRIMEC+PRIMED)*PARAMÈTRES!J60/10)))),(K113+IF(OR(codprima=86,codprimb=86,codprimc=86,codprimd=86),PRIMEA+PRIMEB+PRIMEC+PRIMED,((PRIMEA+PRIMEB+PRIMEC+PRIMED)*PARAMÈTRES!J60/10)))),2) ->  | L119: =ROUND(IF(CODMAXCSST=1,MIN(MAXCSSTPAIE,(L113+IF(OR(codprima=86,codprimb=86,codprimc=86,codprimd=86),PRIMEA+PRIMEB+PRIMEC+PRIMED,((PRIMEA+PRIMEB+PRIMEC+PRIMED)*PARAMÈTRES!K60/10)))),(L113+IF(OR(codprima=86,codprimb=86,codprimc=86,codprimd=86),PRIMEA+PRIMEB+PRIMEC+PRIMED,((PRIMEA+PRIMEB+PRIMEC+PRIMED)*PARAMÈTRES!K60/10)))),2) ->  | M119: =ROUND(IF(CODMAXCSST=1,MIN((M113+IF(OR(codprima=86,codprimb=86,codprimc=86,codprimd=86),PRIMEA+PRIMEB+PRIMEC+PRIMED,((PRIMEA+PRIMEB+PRIMEC+PRIMED)*PARAMÈTRES!L60/10)))),(M113+IF(OR(codprima=86,codprimb=86,codprimc=86,codprimd=86),PRIMEA+PRIMEB+PRIMEC+PRIMED,((PRIMEA+PRIMEB+PRIMEC+PRIMED)*PARAMÈTRES!L60/10)))),2) ->  | N119: =CSTTD!F29 -> 0 | O119: =CSTTD!E27 -> 0 | P119: =CSTTD!J27 -> 0 | Q119: =CSTTD!I27 -> 0 | R119: =CSTTD!N27 -> 0 | S119: =CSTTD!M27 -> 0 | T119: =CSTTD!R27 -> 0 | U119: =CSTTD!Q27 -> 0
B121: - | C121: - | D121: - | E121: - | F121: - | G121: - | H121: - | I121: - | J121: - | K121: - | L121: - | M121: -
B122: RREGOP | C122: =PARAMÈTRES!B25 -> 35h00 | D122: =PARAMÈTRES!C25 -> 33h15 | E122: =PARAMÈTRES!D25 -> 32h30 | F122: =PARAMÈTRES!E25 -> 32h00 | G122: =PARAMÈTRES!F25 -> 31h30 | H122: =PARAMÈTRES!G25 -> 30h00 | I122: =PARAMÈTRES!H25 -> 28h00 | J122: =PARAMÈTRES!I25 -> 24h30 | K122: =PARAMÈTRES!J25 -> 21h00 | L122: =PARAMÈTRES!K25 -> 14h00 | M122: =PARAMÈTRES!L25 -> 70h00 | N122: CSTTD 1 - A085 | O122: CSTTD 1 - B085 | P122: CSTTD 2 - A085 | Q122: CSTTD 2 - B085 | R122: CSTTD 3 - A085 | S122: CSTTD 3 - B085 | T122: CSTTD 4 - A085 | U122: CSTTD 4 - B085
B123: Ancienne Formule 2011 | C123: =MAX((C119-IF(OR(codprima=86,codprimb=86,codprimc=86,codprimd=86),'Déduction de base'!$B$21,(ROUND('Déduction de base'!$B$21*(PARAMÈTRES!B60/10),2))))*'Déduction de base'!$B$45,0) ->  | D123: =MAX((D119-IF(OR(codprima=86,codprimb=86,codprimc=86,codprimd=86),'Déduction de base'!$B$21,(ROUND('Déduction de base'!$B$21*(PARAMÈTRES!C60/10),2))))*'Déduction de base'!$B$45,0) ->  | E123: =MAX((E119-IF(OR(codprima=86,codprimb=86,codprimc=86,codprimd=86),'Déduction de base'!$B$21,(ROUND('Déduction de base'!$B$21*(PARAMÈTRES!D60/10),2))))*'Déduction de base'!$B$45,0) ->  | F123: =MAX((F119-IF(OR(codprima=86,codprimb=86,codprimc=86,codprimd=86),'Déduction de base'!$B$21,(ROUND('Déduction de base'!$B$21*(PARAMÈTRES!E60/10),2))))*'Déduction de base'!$B$45,0) ->  | G123: =MAX((G119-IF(OR(codprima=86,codprimb=86,codprimc=86,codprimd=86),'Déduction de base'!$B$21,(ROUND('Déduction de base'!$B$21*(PARAMÈTRES!F60/10),2))))*'Déduction de base'!$B$45,0) ->  | H123: =MAX((H119-IF(OR(codprima=86,codprimb=86,codprimc=86,codprimd=86),'Déduction de base'!$B$21,(ROUND('Déduction de base'!$B$21*(PARAMÈTRES!G60/10),2))))*'Déduction de base'!$B$45,0) ->  | I123: =MAX((I119-IF(OR(codprima=86,codprimb=86,codprimc=86,codprimd=86),'Déduction de base'!$B$21,(ROUND('Déduction de base'!$B$21*(PARAMÈTRES!H60/10),2))))*'Déduction de base'!$B$45,0) ->  | J123: =MAX((J119-IF(OR(codprima=86,codprimb=86,codprimc=86,codprimd=86),'Déduction de base'!$B$21,(ROUND('Déduction de base'!$B$21*(PARAMÈTRES!I60/10),2))))*'Déduction de base'!$B$45,0) ->  | K123: =MAX((K119-IF(OR(codprima=86,codprimb=86,codprimc=86,codprimd=86),'Déduction de base'!$B$21,(ROUND('Déduction de base'!$B$21*(PARAMÈTRES!J60/10),2))))*'Déduction de base'!$B$45,0) ->  | L123: =MAX((L119-IF(OR(codprima=86,codprimb=86,codprimc=86,codprimd=86),'Déduction de base'!$B$21,(ROUND('Déduction de base'!$B$21*(PARAMÈTRES!K60/10),2))))*'Déduction de base'!$B$45,0) ->  | M123: =MAX((M119-IF(OR(codprima=86,codprimb=86,codprimc=86,codprimd=86),'Déduction de base'!$B$21,(ROUND('Déduction de base'!$B$21*(PARAMÈTRES!L60/10),2))))*'Déduction de base'!$B$45,0) ->  | N123: =MAX((N119-IF(OR(codprima=86,codprimb=86,codprimc=86,codprimd=86),'Déduction de base'!$B$21,(ROUND('Déduction de base'!$B$21*(CSTTDPourcentage1),2))))*'Déduction de base'!$B$45,0) -> 0 | O123: =MAX((O119-IF(OR(codprima=86,codprimb=86,codprimc=86,codprimd=86),'Déduction de base'!$B$21,(ROUND('Déduction de base'!$B$21*(CSTTDPourcentage1),2))))*'Déduction de base'!$B$45,0) -> 0 | P123: =MAX((P119-IF(OR(codprima=86,codprimb=86,codprimc=86,codprimd=86),'Déduction de base'!$B$21,(ROUND('Déduction de base'!$B$21*(CSTTDPourcentage2),2))))*'Déduction de base'!$B$45,0) -> 0 | Q123: =MAX((Q119-IF(OR(codprima=86,codprimb=86,codprimc=86,codprimd=86),'Déduction de base'!$B$21,(ROUND('Déduction de base'!$B$21*(CSTTDPourcentage2),2))))*'Déduction de base'!$B$45,0) -> 0 | R123: =MAX((R119-IF(OR(codprima=86,codprimb=86,codprimc=86,codprimd=86),'Déduction de base'!$B$21,(ROUND('Déduction de base'!$B$21*(CSTTDPourcentage3),2))))*'Déduction de base'!$B$45,0) -> 0 | S123: =MAX((S119-IF(OR(codprima=86,codprimb=86,codprimc=86,codprimd=86),'Déduction de base'!$B$21,(ROUND('Déduction de base'!$B$21*(CSTTDPourcentage3),2))))*'Déduction de base'!$B$45,0) -> 0 | T123: =MAX((T119-IF(OR(codprima=86,codprimb=86,codprimc=86,codprimd=86),'Déduction de base'!$B$21,(ROUND('Déduction de base'!$B$21*(CSTTDPourcentage4),2))))*'Déduction de base'!$B$45,0) -> 0 | U123: =MAX((U119-IF(OR(codprima=86,codprimb=86,codprimc=86,codprimd=86),'Déduction de base'!$B$21,(ROUND('Déduction de base'!$B$21*(CSTTDPourcentage4),2))))*'Déduction de base'!$B$45,0) -> 0
B124: Réduction | C124: =MAX(ROUND((ROUND(ROUND(MAXRRQANNEE/26,2)*PARAMÈTRES!B60/10,2)-C119)*REDUCTIONRRQ,2),0) ->  | D124: =MAX(ROUND((ROUND(ROUND(MAXRRQANNEE/26,2)*PARAMÈTRES!C60/10,2)-D119)*REDUCTIONRRQ,2),0) ->  | E124: =MAX(ROUND((ROUND(ROUND(MAXRRQANNEE/26,2)*PARAMÈTRES!D60/10,2)-E119)*REDUCTIONRRQ,2),0) ->  | F124: =MAX(ROUND((ROUND(ROUND(MAXRRQANNEE/26,2)*PARAMÈTRES!E60/10,2)-F119)*REDUCTIONRRQ,2),0) ->  | G124: =MAX(ROUND((ROUND(ROUND(MAXRRQANNEE/26,2)*PARAMÈTRES!F60/10,2)-G119)*REDUCTIONRRQ,2),0) ->  | H124: =MAX(ROUND((ROUND(ROUND(MAXRRQANNEE/26,2)*PARAMÈTRES!G60/10,2)-H119)*REDUCTIONRRQ,2),0) ->  | I124: =MAX(ROUND((ROUND(ROUND(MAXRRQANNEE/26,2)*PARAMÈTRES!H60/10,2)-I119)*REDUCTIONRRQ,2),0) ->  | J124: =MAX(ROUND((ROUND(ROUND(MAXRRQANNEE/26,2)*PARAMÈTRES!I60/10,2)-J119)*REDUCTIONRRQ,2),0) ->  | K124: =MAX(ROUND((ROUND(ROUND(MAXRRQANNEE/26,2)*PARAMÈTRES!J60/10,2)-K119)*REDUCTIONRRQ,2),0) ->  | L124: =MAX(ROUND((ROUND(ROUND(MAXRRQANNEE/26,2)*PARAMÈTRES!K60/10,2)-L119)*REDUCTIONRRQ,2),0) ->  | M124: =MAX(ROUND((ROUND(ROUND(MAXRRQANNEE/26,2)*PARAMÈTRES!L60/10,2)-M119)*REDUCTIONRRQ,2),0) ->  | N124: =MAX(ROUND((ROUND(ROUND(MAXRRQANNEE/26,2)*CSTTDPourcentage1,2)-N119)*REDUCTIONRRQ,2),0) -> 0 | O124: =MAX(ROUND((ROUND(ROUND(MAXRRQANNEE/26,2)*CSTTDPourcentage1,2)-O119)*REDUCTIONRRQ,2),0) -> 0 | P124: =MAX(ROUND((ROUND(ROUND(MAXRRQANNEE/26,2)*CSTTDPourcentage2,2)-P119)*REDUCTIONRRQ,2),0) -> 0 | Q124: =MAX(ROUND((ROUND(ROUND(MAXRRQANNEE/26,2)*CSTTDPourcentage2,2)-Q119)*REDUCTIONRRQ,2),0) -> 0 | R124: =MAX(ROUND((ROUND(ROUND(MAXRRQANNEE/26,2)*CSTTDPourcentage3,2)-R119)*REDUCTIONRRQ,2),0) -> 0 | S124: =MAX(ROUND((ROUND(ROUND(MAXRRQANNEE/26,2)*CSTTDPourcentage3,2)-S119)*REDUCTIONRRQ,2),0) -> 0 | T124: =MAX(ROUND((ROUND(ROUND(MAXRRQANNEE/26,2)*CSTTDPourcentage4,2)-T119)*REDUCTIONRRQ,2),0) -> 0 | U124: =MAX(ROUND((ROUND(ROUND(MAXRRQANNEE/26,2)*CSTTDPourcentage4,2)-U119)*REDUCTIONRRQ,2),0) -> 0
B125: Cotisation & Réduction | C125: =(ROUND((C119-ROUND(IF(OR(codprima=86,codprimb=86,codprimc=86,codprimd=86),EXEMP_RREGOP,(MIN(ROUND(EXEMP_RREGOP*(PARAMÈTRES!B60/10),2),EXEMP_RREGOP))),2))*'Déduction de base'!$B$45,2))-MAX(ROUND((ROUND(ROUND(MAXRRQANNEE/26,2)*(IF(OR(codprima=86,codprimb=86,codprimc=86,codprimd=86),1,(PARAMÈTRES!B60/10))),2)-C119)*REDUCTIONRRQ,2),0) ->  | D125: =(ROUND((D119-ROUND(IF(OR(codprima=86,codprimb=86,codprimc=86,codprimd=86),EXEMP_RREGOP,(MIN(ROUND(EXEMP_RREGOP*(PARAMÈTRES!C60/10),2),EXEMP_RREGOP))),2))*'Déduction de base'!$B$45,2))-MAX(ROUND((ROUND(ROUND(MAXRRQANNEE/26,2)*(IF(OR(codprima=86,codprimb=86,codprimc=86,codprimd=86),1,(PARAMÈTRES!C60/10))),2)-D119)*REDUCTIONRRQ,2),0) ->  | E125: =(ROUND((E119-ROUND(IF(OR(codprima=86,codprimb=86,codprimc=86,codprimd=86),EXEMP_RREGOP,(MIN(ROUND(EXEMP_RREGOP*(PARAMÈTRES!D60/10),2),EXEMP_RREGOP))),2))*'Déduction de base'!$B$45,2))-MAX(ROUND((ROUND(ROUND(MAXRRQANNEE/26,2)*(IF(OR(codprima=86,codprimb=86,codprimc=86,codprimd=86),1,(PARAMÈTRES!D60/10))),2)-E119)*REDUCTIONRRQ,2),0) ->  | F125: =(ROUND((F119-ROUND(IF(OR(codprima=86,codprimb=86,codprimc=86,codprimd=86),EXEMP_RREGOP,(MIN(ROUND(EXEMP_RREGOP*(PARAMÈTRES!E60/10),2),EXEMP_RREGOP))),2))*'Déduction de base'!$B$45,2))-MAX(ROUND((ROUND(ROUND(MAXRRQANNEE/26,2)*(IF(OR(codprima=86,codprimb=86,codprimc=86,codprimd=86),1,(PARAMÈTRES!E60/10))),2)-F119)*REDUCTIONRRQ,2),0) ->  | G125: =(ROUND((G119-ROUND(IF(OR(codprima=86,codprimb=86,codprimc=86,codprimd=86),EXEMP_RREGOP,(MIN(ROUND(EXEMP_RREGOP*(PARAMÈTRES!F60/10),2),EXEMP_RREGOP))),2))*'Déduction de base'!$B$45,2))-MAX(ROUND((ROUND(ROUND(MAXRRQANNEE/26,2)*(IF(OR(codprima=86,codprimb=86,codprimc=86,codprimd=86),1,(PARAMÈTRES!F60/10))),2)-G119)*REDUCTIONRRQ,2),0) ->  | H125: =(ROUND((H119-ROUND(IF(OR(codprima=86,codprimb=86,codprimc=86,codprimd=86),EXEMP_RREGOP,(MIN(ROUND(EXEMP_RREGOP*(PARAMÈTRES!G60/10),2),EXEMP_RREGOP))),2))*'Déduction de base'!$B$45,2))-MAX(ROUND((ROUND(ROUND(MAXRRQANNEE/26,2)*(IF(OR(codprima=86,codprimb=86,codprimc=86,codprimd=86),1,(PARAMÈTRES!G60/10))),2)-H119)*REDUCTIONRRQ,2),0) ->  | I125: =(ROUND((I119-ROUND(IF(OR(codprima=86,codprimb=86,codprimc=86,codprimd=86),EXEMP_RREGOP,(MIN(ROUND(EXEMP_RREGOP*(PARAMÈTRES!H60/10),2),EXEMP_RREGOP))),2))*'Déduction de base'!$B$45,2))-MAX(ROUND((ROUND(ROUND(MAXRRQANNEE/26,2)*(IF(OR(codprima=86,codprimb=86,codprimc=86,codprimd=86),1,(PARAMÈTRES!H60/10))),2)-I119)*REDUCTIONRRQ,2),0) ->  | J125: =(ROUND((J119-ROUND(IF(OR(codprima=86,codprimb=86,codprimc=86,codprimd=86),EXEMP_RREGOP,(MIN(ROUND(EXEMP_RREGOP*(PARAMÈTRES!I60/10),2),EXEMP_RREGOP))),2))*'Déduction de base'!$B$45,2))-MAX(ROUND((ROUND(ROUND(MAXRRQANNEE/26,2)*(IF(OR(codprima=86,codprimb=86,codprimc=86,codprimd=86),1,(PARAMÈTRES!I60/10))),2)-J119)*REDUCTIONRRQ,2),0) ->  | K125: =(ROUND((K119-ROUND(IF(OR(codprima=86,codprimb=86,codprimc=86,codprimd=86),EXEMP_RREGOP,(MIN(ROUND(EXEMP_RREGOP*(PARAMÈTRES!J60/10),2),EXEMP_RREGOP))),2))*'Déduction de base'!$B$45,2))-MAX(ROUND((ROUND(ROUND(MAXRRQANNEE/26,2)*(IF(OR(codprima=86,codprimb=86,codprimc=86,codprimd=86),1,(PARAMÈTRES!J60/10))),2)-K119)*REDUCTIONRRQ,2),0) ->  | L125: =(ROUND((L119-ROUND(IF(OR(codprima=86,codprimb=86,codprimc=86,codprimd=86),EXEMP_RREGOP,(MIN(ROUND(EXEMP_RREGOP*(PARAMÈTRES!K60/10),2),EXEMP_RREGOP))),2))*'Déduction de base'!$B$45,2))-MAX(ROUND((ROUND(ROUND(MAXRRQANNEE/26,2)*(IF(OR(codprima=86,codprimb=86,codprimc=86,codprimd=86),1,(PARAMÈTRES!K60/10))),2)-L119)*REDUCTIONRRQ,2),0) ->  | M125: =(ROUND((M119-ROUND(IF(OR(codprima=86,codprimb=86,codprimc=86,codprimd=86),EXEMP_RREGOP,(MIN(ROUND(EXEMP_RREGOP*(PARAMÈTRES!L60/10),2),EXEMP_RREGOP))),2))*'Déduction de base'!$B$45,2))-MAX(ROUND((ROUND(ROUND(MAXRRQANNEE/26,2)*(IF(OR(codprima=86,codprimb=86,codprimc=86,codprimd=86),1,(PARAMÈTRES!L60/10))),2)-M119)*REDUCTIONRRQ,2),0) ->  | N125: =(ROUND((N119-ROUND(IF(OR(codprima=86,codprimb=86,codprimc=86,codprimd=86),EXEMP_RREGOP,(MIN(ROUND(EXEMP_RREGOP*(CSTTDPourcentage1),2),EXEMP_RREGOP))),2))*'Déduction de base'!$B$45,2))-MAX(ROUND((ROUND(ROUND(MAXRRQANNEE/26,2)*(IF(OR(codprima=86,codprimb=86,codprimc=86,codprimd=86),1,(CSTTDPourcentage1))),2)-N119)*REDUCTIONRRQ,2),0) -> 0 | O125: =(ROUND((O119-ROUND(IF(OR(codprima=86,codprimb=86,codprimc=86,codprimd=86),EXEMP_RREGOP,(MIN(ROUND(EXEMP_RREGOP*(CSTTDPourcentage1),2),EXEMP_RREGOP))),2))*'Déduction de base'!$B$45,2))-MAX(ROUND((ROUND(ROUND(MAXRRQANNEE/26,2)*(IF(OR(codprima=86,codprimb=86,codprimc=86,codprimd=86),1,(CSTTDPourcentage1))),2)-O119)*REDUCTIONRRQ,2),0) -> 0 | P125: =(ROUND((P119-ROUND(IF(OR(codprima=86,codprimb=86,codprimc=86,codprimd=86),EXEMP_RREGOP,(MIN(ROUND(EXEMP_RREGOP*(CSTTDPourcentage2),2),EXEMP_RREGOP))),2))*'Déduction de base'!$B$45,2))-MAX(ROUND((ROUND(ROUND(MAXRRQANNEE/26,2)*(IF(OR(codprima=86,codprimb=86,codprimc=86,codprimd=86),1,(CSTTDPourcentage2))),2)-P119)*REDUCTIONRRQ,2),0) -> 0 | Q125: =(ROUND((Q119-ROUND(IF(OR(codprima=86,codprimb=86,codprimc=86,codprimd=86),EXEMP_RREGOP,(MIN(ROUND(EXEMP_RREGOP*(CSTTDPourcentage2),2),EXEMP_RREGOP))),2))*'Déduction de base'!$B$45,2))-MAX(ROUND((ROUND(ROUND(MAXRRQANNEE/26,2)*(IF(OR(codprima=86,codprimb=86,codprimc=86,codprimd=86),1,(CSTTDPourcentage2))),2)-Q119)*REDUCTIONRRQ,2),0) -> 0 | R125: =(ROUND((R119-ROUND(IF(OR(codprima=86,codprimb=86,codprimc=86,codprimd=86),EXEMP_RREGOP,(MIN(ROUND(EXEMP_RREGOP*(CSTTDPourcentage3),2),EXEMP_RREGOP))),2))*'Déduction de base'!$B$45,2))-MAX(ROUND((ROUND(ROUND(MAXRRQANNEE/26,2)*(IF(OR(codprima=86,codprimb=86,codprimc=86,codprimd=86),1,(CSTTDPourcentage3))),2)-R119)*REDUCTIONRRQ,2),0) -> 0 | S125: =(ROUND((S119-ROUND(IF(OR(codprima=86,codprimb=86,codprimc=86,codprimd=86),EXEMP_RREGOP,(MIN(ROUND(EXEMP_RREGOP*(CSTTDPourcentage3),2),EXEMP_RREGOP))),2))*'Déduction de base'!$B$45,2))-MAX(ROUND((ROUND(ROUND(MAXRRQANNEE/26,2)*(IF(OR(codprima=86,codprimb=86,codprimc=86,codprimd=86),1,(CSTTDPourcentage3))),2)-S119)*REDUCTIONRRQ,2),0) -> 0 | T125: =(ROUND((T119-ROUND(IF(OR(codprima=86,codprimb=86,codprimc=86,codprimd=86),EXEMP_RREGOP,(MIN(ROUND(EXEMP_RREGOP*(CSTTDPourcentage4),2),EXEMP_RREGOP))),2))*'Déduction de base'!$B$45,2))-MAX(ROUND((ROUND(ROUND(MAXRRQANNEE/26,2)*(IF(OR(codprima=86,codprimb=86,codprimc=86,codprimd=86),1,(CSTTDPourcentage4))),2)-T119)*REDUCTIONRRQ,2),0) -> 0 | U125: =(ROUND((U119-ROUND(IF(OR(codprima=86,codprimb=86,codprimc=86,codprimd=86),EXEMP_RREGOP,(MIN(ROUND(EXEMP_RREGOP*(CSTTDPourcentage4),2),EXEMP_RREGOP))),2))*'Déduction de base'!$B$45,2))-MAX(ROUND((ROUND(ROUND(MAXRRQANNEE/26,2)*(IF(OR(codprima=86,codprimb=86,codprimc=86,codprimd=86),1,(CSTTDPourcentage4))),2)-U119)*REDUCTIONRRQ,2),0) -> 0
B129: - | C129: - | D129: - | E129: - | F129: - | G129: - | H129: - | I129: - | J129: - | K129: - | L129: - | M129: - | N129: - | O129: - | P129: - | Q129: - | R129: - | S129: - | T129: - | U129: -
B130: RRF | C130: =IF(C119<PARAMÈTRES!$AA$87,'Déduction de base'!$B$43*C119,0) ->  | D130: =IF(D119<PARAMÈTRES!$AA$87,'Déduction de base'!$B$43*D119,0) ->  | E130: =IF(E119<PARAMÈTRES!$AA$87,'Déduction de base'!$B$43*E119,0) ->  | F130: =IF(F119<PARAMÈTRES!$AA$87,'Déduction de base'!$B$43*F119,0) ->  | G130: =IF(G119<PARAMÈTRES!$AA$87,'Déduction de base'!$B$43*G119,0) ->  | H130: =IF(H119<PARAMÈTRES!$AA$87,'Déduction de base'!$B$43*H119,0) ->  | I130: =IF(I119<PARAMÈTRES!$AA$87,'Déduction de base'!$B$43*I119,0) ->  | J130: =IF(J119<PARAMÈTRES!$AA$87,'Déduction de base'!$B$43*J119,0) ->  | K130: =IF(K119<PARAMÈTRES!$AA$87,'Déduction de base'!$B$43*K119,0) ->  | L130: =IF(L119<PARAMÈTRES!$AA$87,'Déduction de base'!$B$43*L119,0) ->  | M130: =IF(M119<PARAMÈTRES!$AA$87,'Déduction de base'!$B$43*M119,0) ->  | N130: =IF(N119<PARAMÈTRES!$AA$87,'Déduction de base'!$B$43*N119,0) -> 0
C131: =IF(AND(C119>PARAMÈTRES!$Z$88,C119<PARAMÈTRES!$AA$88),('Déduction de base'!$B$43*PARAMÈTRES!$AA$87)+(('Déduction de base'!$B$43-0.018)*(C119-PARAMÈTRES!$AA$87)),0) ->  | D131: =IF(AND(D119>PARAMÈTRES!$Z$88,D119<PARAMÈTRES!$AA$88),('Déduction de base'!$B$43*PARAMÈTRES!$AA$87)+(('Déduction de base'!$B$43-0.018)*(D119-PARAMÈTRES!$AA$87)),0) ->  | E131: =IF(AND(E119>PARAMÈTRES!$Z$88,E119<PARAMÈTRES!$AA$88),('Déduction de base'!$B$43*PARAMÈTRES!$AA$87)+(('Déduction de base'!$B$43-0.018)*(E119-PARAMÈTRES!$AA$87)),0) ->  | F131: =IF(AND(F119>PARAMÈTRES!$Z$88,F119<PARAMÈTRES!$AA$88),('Déduction de base'!$B$43*PARAMÈTRES!$AA$87)+(('Déduction de base'!$B$43-0.018)*(F119-PARAMÈTRES!$AA$87)),0) ->  | G131: =IF(AND(G119>PARAMÈTRES!$Z$88,G119<PARAMÈTRES!$AA$88),('Déduction de base'!$B$43*PARAMÈTRES!$AA$87)+(('Déduction de base'!$B$43-0.018)*(G119-PARAMÈTRES!$AA$87)),0) ->  | H131: =IF(AND(H119>PARAMÈTRES!$Z$88,H119<PARAMÈTRES!$AA$88),('Déduction de base'!$B$43*PARAMÈTRES!$AA$87)+(('Déduction de base'!$B$43-0.018)*(H119-PARAMÈTRES!$AA$87)),0) ->  | I131: =IF(AND(I119>PARAMÈTRES!$Z$88,I119<PARAMÈTRES!$AA$88),('Déduction de base'!$B$43*PARAMÈTRES!$AA$87)+(('Déduction de base'!$B$43-0.018)*(I119-PARAMÈTRES!$AA$87)),0) ->  | J131: =IF(AND(J119>PARAMÈTRES!$Z$88,J119<PARAMÈTRES!$AA$88),('Déduction de base'!$B$43*PARAMÈTRES!$AA$87)+(('Déduction de base'!$B$43-0.018)*(J119-PARAMÈTRES!$AA$87)),0) ->  | K131: =IF(AND(K119>PARAMÈTRES!$Z$88,K119<PARAMÈTRES!$AA$88),('Déduction de base'!$B$43*PARAMÈTRES!$AA$87)+(('Déduction de base'!$B$43-0.018)*(K119-PARAMÈTRES!$AA$87)),0) ->  | L131: =IF(AND(L119>PARAMÈTRES!$Z$88,L119<PARAMÈTRES!$AA$88),('Déduction de base'!$B$43*PARAMÈTRES!$AA$87)+(('Déduction de base'!$B$43-0.018)*(L119-PARAMÈTRES!$AA$87)),0) ->  | M131: =IF(AND(M119>PARAMÈTRES!$Z$88,M119<PARAMÈTRES!$AA$88),('Déduction de base'!$B$43*PARAMÈTRES!$AA$87)+(('Déduction de base'!$B$43-0.018)*(M119-PARAMÈTRES!$AA$87)),0) ->  | N131: =IF(AND(N119>PARAMÈTRES!$Z$88,N119<PARAMÈTRES!$AA$88),('Déduction de base'!$B$43*PARAMÈTRES!$AA$87)+(('Déduction de base'!$B$43-0.018)*(N119-PARAMÈTRES!$AA$87)),0) -> 0 | O131: =IF(AND(O119>PARAMÈTRES!$Z$88,O119<PARAMÈTRES!$AA$88),('Déduction de base'!$B$43*PARAMÈTRES!$AA$87)+(('Déduction de base'!$B$43-0.018)*(O119-PARAMÈTRES!$AA$87)),0) -> 0 | P131: =IF(AND(P119>PARAMÈTRES!$Z$88,P119<PARAMÈTRES!$AA$88),('Déduction de base'!$B$43*PARAMÈTRES!$AA$87)+(('Déduction de base'!$B$43-0.018)*(P119-PARAMÈTRES!$AA$87)),0) -> 0 | Q131: =IF(AND(Q119>PARAMÈTRES!$Z$88,Q119<PARAMÈTRES!$AA$88),('Déduction de base'!$B$43*PARAMÈTRES!$AA$87)+(('Déduction de base'!$B$43-0.018)*(Q119-PARAMÈTRES!$AA$87)),0) -> 0 | R131: =IF(AND(R119>PARAMÈTRES!$Z$88,R119<PARAMÈTRES!$AA$88),('Déduction de base'!$B$43*PARAMÈTRES!$AA$87)+(('Déduction de base'!$B$43-0.018)*(R119-PARAMÈTRES!$AA$87)),0) -> 0 | S131: =IF(AND(S119>PARAMÈTRES!$Z$88,S119<PARAMÈTRES!$AA$88),('Déduction de base'!$B$43*PARAMÈTRES!$AA$87)+(('Déduction de base'!$B$43-0.018)*(S119-PARAMÈTRES!$AA$87)),0) -> 0 | T131: =IF(AND(T119>PARAMÈTRES!$Z$88,T119<PARAMÈTRES!$AA$88),('Déduction de base'!$B$43*PARAMÈTRES!$AA$87)+(('Déduction de base'!$B$43-0.018)*(T119-PARAMÈTRES!$AA$87)),0) -> 0 | U131: =IF(AND(U119>PARAMÈTRES!$Z$88,U119<PARAMÈTRES!$AA$88),('Déduction de base'!$B$43*PARAMÈTRES!$AA$87)+(('Déduction de base'!$B$43-0.018)*(U119-PARAMÈTRES!$AA$87)),0) -> 0
C132: =IF(C119>PARAMÈTRES!$Z$89,('Déduction de base'!$B$43*PARAMÈTRES!$AA$87)+(('Déduction de base'!$B$43-0.018)*(PARAMÈTRES!$Z$89-PARAMÈTRES!$AA$87))+('Déduction de base'!$B$43*(C119-PARAMÈTRES!$Z$89)),0) ->  | D132: =IF(D119>PARAMÈTRES!$Z$89,('Déduction de base'!$B$43*PARAMÈTRES!$AA$87)+(('Déduction de base'!$B$43-0.018)*(PARAMÈTRES!$Z$89-PARAMÈTRES!$AA$87))+('Déduction de base'!$B$43*(D119-PARAMÈTRES!$Z$89)),0) ->  | E132: =IF(E119>PARAMÈTRES!$Z$89,('Déduction de base'!$B$43*PARAMÈTRES!$AA$87)+(('Déduction de base'!$B$43-0.018)*(PARAMÈTRES!$Z$89-PARAMÈTRES!$AA$87))+('Déduction de base'!$B$43*(E119-PARAMÈTRES!$Z$89)),0) ->  | F132: =IF(F119>PARAMÈTRES!$Z$89,('Déduction de base'!$B$43*PARAMÈTRES!$AA$87)+(('Déduction de base'!$B$43-0.018)*(PARAMÈTRES!$Z$89-PARAMÈTRES!$AA$87))+('Déduction de base'!$B$43*(F119-PARAMÈTRES!$Z$89)),0) ->  | G132: =IF(G119>PARAMÈTRES!$Z$89,('Déduction de base'!$B$43*PARAMÈTRES!$AA$87)+(('Déduction de base'!$B$43-0.018)*(PARAMÈTRES!$Z$89-PARAMÈTRES!$AA$87))+('Déduction de base'!$B$43*(G119-PARAMÈTRES!$Z$89)),0) ->  | H132: =IF(H119>PARAMÈTRES!$Z$89,('Déduction de base'!$B$43*PARAMÈTRES!$AA$87)+(('Déduction de base'!$B$43-0.018)*(PARAMÈTRES!$Z$89-PARAMÈTRES!$AA$87))+('Déduction de base'!$B$43*(H119-PARAMÈTRES!$Z$89)),0) ->  | I132: =IF(I119>PARAMÈTRES!$Z$89,('Déduction de base'!$B$43*PARAMÈTRES!$AA$87)+(('Déduction de base'!$B$43-0.018)*(PARAMÈTRES!$Z$89-PARAMÈTRES!$AA$87))+('Déduction de base'!$B$43*(I119-PARAMÈTRES!$Z$89)),0) ->  | J132: =IF(J119>PARAMÈTRES!$Z$89,('Déduction de base'!$B$43*PARAMÈTRES!$AA$87)+(('Déduction de base'!$B$43-0.018)*(PARAMÈTRES!$Z$89-PARAMÈTRES!$AA$87))+('Déduction de base'!$B$43*(J119-PARAMÈTRES!$Z$89)),0) ->  | K132: =IF(K119>PARAMÈTRES!$Z$89,('Déduction de base'!$B$43*PARAMÈTRES!$AA$87)+(('Déduction de base'!$B$43-0.018)*(PARAMÈTRES!$Z$89-PARAMÈTRES!$AA$87))+('Déduction de base'!$B$43*(K119-PARAMÈTRES!$Z$89)),0) ->  | L132: =IF(L119>PARAMÈTRES!$Z$89,('Déduction de base'!$B$43*PARAMÈTRES!$AA$87)+(('Déduction de base'!$B$43-0.018)*(PARAMÈTRES!$Z$89-PARAMÈTRES!$AA$87))+('Déduction de base'!$B$43*(L119-PARAMÈTRES!$Z$89)),0) ->  | M132: =IF(M119>PARAMÈTRES!$Z$89,('Déduction de base'!$B$43*PARAMÈTRES!$AA$87)+(('Déduction de base'!$B$43-0.018)*(PARAMÈTRES!$Z$89-PARAMÈTRES!$AA$87))+('Déduction de base'!$B$43*(M119-PARAMÈTRES!$Z$89)),0) ->  | N132: =IF(N119>PARAMÈTRES!$Z$89,('Déduction de base'!$B$43*PARAMÈTRES!$AA$87)+(('Déduction de base'!$B$43-0.018)*(PARAMÈTRES!$Z$89-PARAMÈTRES!$AA$87))+('Déduction de base'!$B$43*(N119-PARAMÈTRES!$Z$89)),0) -> 0 | O132: =IF(O119>PARAMÈTRES!$Z$89,('Déduction de base'!$B$43*PARAMÈTRES!$AA$87)+(('Déduction de base'!$B$43-0.018)*(PARAMÈTRES!$Z$89-PARAMÈTRES!$AA$87))+('Déduction de base'!$B$43*(O119-PARAMÈTRES!$Z$89)),0) -> 0 | P132: =IF(P119>PARAMÈTRES!$Z$89,('Déduction de base'!$B$43*PARAMÈTRES!$AA$87)+(('Déduction de base'!$B$43-0.018)*(PARAMÈTRES!$Z$89-PARAMÈTRES!$AA$87))+('Déduction de base'!$B$43*(P119-PARAMÈTRES!$Z$89)),0) -> 0 | Q132: =IF(Q119>PARAMÈTRES!$Z$89,('Déduction de base'!$B$43*PARAMÈTRES!$AA$87)+(('Déduction de base'!$B$43-0.018)*(PARAMÈTRES!$Z$89-PARAMÈTRES!$AA$87))+('Déduction de base'!$B$43*(Q119-PARAMÈTRES!$Z$89)),0) -> 0 | R132: =IF(R119>PARAMÈTRES!$Z$89,('Déduction de base'!$B$43*PARAMÈTRES!$AA$87)+(('Déduction de base'!$B$43-0.018)*(PARAMÈTRES!$Z$89-PARAMÈTRES!$AA$87))+('Déduction de base'!$B$43*(R119-PARAMÈTRES!$Z$89)),0) -> 0 | S132: =IF(S119>PARAMÈTRES!$Z$89,('Déduction de base'!$B$43*PARAMÈTRES!$AA$87)+(('Déduction de base'!$B$43-0.018)*(PARAMÈTRES!$Z$89-PARAMÈTRES!$AA$87))+('Déduction de base'!$B$43*(S119-PARAMÈTRES!$Z$89)),0) -> 0 | T132: =IF(T119>PARAMÈTRES!$Z$89,('Déduction de base'!$B$43*PARAMÈTRES!$AA$87)+(('Déduction de base'!$B$43-0.018)*(PARAMÈTRES!$Z$89-PARAMÈTRES!$AA$87))+('Déduction de base'!$B$43*(T119-PARAMÈTRES!$Z$89)),0) -> 0 | U132: =IF(U119>PARAMÈTRES!$Z$89,('Déduction de base'!$B$43*PARAMÈTRES!$AA$87)+(('Déduction de base'!$B$43-0.018)*(PARAMÈTRES!$Z$89-PARAMÈTRES!$AA$87))+('Déduction de base'!$B$43*(U119-PARAMÈTRES!$Z$89)),0) -> 0
C133: =SUM(C130:C132) ->  | M133: =SUM(M130:M132) ->  | N133: =SUM(N130:N132) -> 0 | O133: =SUM(O130:O132) -> 0 | P133: =SUM(P130:P132) -> 0 | Q133: 0 | R133: 0 | S133: 0 | T133: 0 | U133: 0
B134: - | C134: - | D134: - | E134: - | F134: - | G134: - | H134: - | I134: - | J134: - | K134: - | L134: - | M134: - | N134: - | O134: - | P134: - | Q134: - | R134: - | S134: - | T134: - | U134: -
B135: RRF (non syndicable) | C135: =IF(C119<PARAMÈTRES!$AA$87,'Déduction de base'!$B$56*C119,0) ->  | D135: =IF(D119<PARAMÈTRES!$AA$87,'Déduction de base'!$B$56*D119,0) ->  | E135: =IF(E119<PARAMÈTRES!$AA$87,'Déduction de base'!$B$56*E119,0) ->  | F135: =IF(F119<PARAMÈTRES!$AA$87,'Déduction de base'!$B$56*F119,0) ->  | G135: =IF(G119<PARAMÈTRES!$AA$87,'Déduction de base'!$B$56*G119,0) ->  | H135: =IF(H119<PARAMÈTRES!$AA$87,'Déduction de base'!$B$56*H119,0) ->  | I135: =IF(I119<PARAMÈTRES!$AA$87,'Déduction de base'!$B$56*I119,0) ->  | J135: =IF(J119<PARAMÈTRES!$AA$87,'Déduction de base'!$B$56*J119,0) ->  | K135: =IF(K119<PARAMÈTRES!$AA$87,'Déduction de base'!$B$56*K119,0) ->  | L135: =IF(L119<PARAMÈTRES!$AA$87,'Déduction de base'!$B$56*L119,0) ->  | M135: =IF(M119<PARAMÈTRES!$AA$87,'Déduction de base'!$B$56*M119,0) ->  | N135: =IF(N119<PARAMÈTRES!$AA$87,'Déduction de base'!$B$56*N119,0) -> 0
C136: =IF(AND(C119>PARAMÈTRES!$Z$88,C119<PARAMÈTRES!$AA$88),('Déduction de base'!$B$56*PARAMÈTRES!$AA$87)+(('Déduction de base'!$B$56-0.018)*(C119-PARAMÈTRES!$AA$87)),0) ->  | D136: =IF(AND(D119>PARAMÈTRES!$Z$88,D119<PARAMÈTRES!$AA$88),('Déduction de base'!$B$56*PARAMÈTRES!$AA$87)+(('Déduction de base'!$B$56-0.018)*(D119-PARAMÈTRES!$AA$87)),0) ->  | E136: =IF(AND(E119>PARAMÈTRES!$Z$88,E119<PARAMÈTRES!$AA$88),('Déduction de base'!$B$56*PARAMÈTRES!$AA$87)+(('Déduction de base'!$B$56-0.018)*(E119-PARAMÈTRES!$AA$87)),0) ->  | F136: =IF(AND(F119>PARAMÈTRES!$Z$88,F119<PARAMÈTRES!$AA$88),('Déduction de base'!$B$56*PARAMÈTRES!$AA$87)+(('Déduction de base'!$B$56-0.018)*(F119-PARAMÈTRES!$AA$87)),0) ->  | G136: =IF(AND(G119>PARAMÈTRES!$Z$88,G119<PARAMÈTRES!$AA$88),('Déduction de base'!$B$56*PARAMÈTRES!$AA$87)+(('Déduction de base'!$B$56-0.018)*(G119-PARAMÈTRES!$AA$87)),0) ->  | H136: =IF(AND(H119>PARAMÈTRES!$Z$88,H119<PARAMÈTRES!$AA$88),('Déduction de base'!$B$56*PARAMÈTRES!$AA$87)+(('Déduction de base'!$B$56-0.018)*(H119-PARAMÈTRES!$AA$87)),0) ->  | I136: =IF(AND(I119>PARAMÈTRES!$Z$88,I119<PARAMÈTRES!$AA$88),('Déduction de base'!$B$56*PARAMÈTRES!$AA$87)+(('Déduction de base'!$B$56-0.018)*(I119-PARAMÈTRES!$AA$87)),0) ->  | J136: =IF(AND(J119>PARAMÈTRES!$Z$88,J119<PARAMÈTRES!$AA$88),('Déduction de base'!$B$56*PARAMÈTRES!$AA$87)+(('Déduction de base'!$B$56-0.018)*(J119-PARAMÈTRES!$AA$87)),0) ->  | K136: =IF(AND(K119>PARAMÈTRES!$Z$88,K119<PARAMÈTRES!$AA$88),('Déduction de base'!$B$56*PARAMÈTRES!$AA$87)+(('Déduction de base'!$B$56-0.018)*(K119-PARAMÈTRES!$AA$87)),0) ->  | L136: =IF(AND(L119>PARAMÈTRES!$Z$88,L119<PARAMÈTRES!$AA$88),('Déduction de base'!$B$56*PARAMÈTRES!$AA$87)+(('Déduction de base'!$B$56-0.018)*(L119-PARAMÈTRES!$AA$87)),0) ->  | M136: =IF(AND(M119>PARAMÈTRES!$Z$88,M119<PARAMÈTRES!$AA$88),('Déduction de base'!$B$56*PARAMÈTRES!$AA$87)+(('Déduction de base'!$B$56-0.018)*(M119-PARAMÈTRES!$AA$87)),0) ->  | N136: =IF(AND(N119>PARAMÈTRES!$Z$88,N119<PARAMÈTRES!$AA$88),('Déduction de base'!$B$56*PARAMÈTRES!$AA$87)+(('Déduction de base'!$B$56-0.018)*(N119-PARAMÈTRES!$AA$87)),0) -> 0 | O136: =IF(AND(O119>PARAMÈTRES!$Z$88,O119<PARAMÈTRES!$AA$88),('Déduction de base'!$B$56*PARAMÈTRES!$AA$87)+(('Déduction de base'!$B$56-0.018)*(O119-PARAMÈTRES!$AA$87)),0) -> 0 | P136: =IF(AND(P119>PARAMÈTRES!$Z$88,P119<PARAMÈTRES!$AA$88),('Déduction de base'!$B$56*PARAMÈTRES!$AA$87)+(('Déduction de base'!$B$56-0.018)*(P119-PARAMÈTRES!$AA$87)),0) -> 0 | Q136: =IF(AND(Q119>PARAMÈTRES!$Z$88,Q119<PARAMÈTRES!$AA$88),('Déduction de base'!$B$56*PARAMÈTRES!$AA$87)+(('Déduction de base'!$B$56-0.018)*(Q119-PARAMÈTRES!$AA$87)),0) -> 0 | R136: =IF(AND(R119>PARAMÈTRES!$Z$88,R119<PARAMÈTRES!$AA$88),('Déduction de base'!$B$56*PARAMÈTRES!$AA$87)+(('Déduction de base'!$B$56-0.018)*(R119-PARAMÈTRES!$AA$87)),0) -> 0 | S136: =IF(AND(S119>PARAMÈTRES!$Z$88,S119<PARAMÈTRES!$AA$88),('Déduction de base'!$B$56*PARAMÈTRES!$AA$87)+(('Déduction de base'!$B$56-0.018)*(S119-PARAMÈTRES!$AA$87)),0) -> 0 | T136: =IF(AND(T119>PARAMÈTRES!$Z$88,T119<PARAMÈTRES!$AA$88),('Déduction de base'!$B$56*PARAMÈTRES!$AA$87)+(('Déduction de base'!$B$56-0.018)*(T119-PARAMÈTRES!$AA$87)),0) -> 0 | U136: =IF(AND(U119>PARAMÈTRES!$Z$88,U119<PARAMÈTRES!$AA$88),('Déduction de base'!$B$56*PARAMÈTRES!$AA$87)+(('Déduction de base'!$B$56-0.018)*(U119-PARAMÈTRES!$AA$87)),0) -> 0
C137: =IF(C119>PARAMÈTRES!$Z$89,('Déduction de base'!$B$56*PARAMÈTRES!$AA$87)+(('Déduction de base'!$B$56-0.018)*(PARAMÈTRES!$Z$89-PARAMÈTRES!$AA$87))+('Déduction de base'!$B$56*(C119-PARAMÈTRES!$Z$89)),0) ->  | D137: =IF(D119>PARAMÈTRES!$Z$89,('Déduction de base'!$B$56*PARAMÈTRES!$AA$87)+(('Déduction de base'!$B$56-0.018)*(PARAMÈTRES!$Z$89-PARAMÈTRES!$AA$87))+('Déduction de base'!$B$56*(D119-PARAMÈTRES!$Z$89)),0) ->  | E137: =IF(E119>PARAMÈTRES!$Z$89,('Déduction de base'!$B$56*PARAMÈTRES!$AA$87)+(('Déduction de base'!$B$56-0.018)*(PARAMÈTRES!$Z$89-PARAMÈTRES!$AA$87))+('Déduction de base'!$B$56*(E119-PARAMÈTRES!$Z$89)),0) ->  | F137: =IF(F119>PARAMÈTRES!$Z$89,('Déduction de base'!$B$56*PARAMÈTRES!$AA$87)+(('Déduction de base'!$B$56-0.018)*(PARAMÈTRES!$Z$89-PARAMÈTRES!$AA$87))+('Déduction de base'!$B$56*(F119-PARAMÈTRES!$Z$89)),0) ->  | G137: =IF(G119>PARAMÈTRES!$Z$89,('Déduction de base'!$B$56*PARAMÈTRES!$AA$87)+(('Déduction de base'!$B$56-0.018)*(PARAMÈTRES!$Z$89-PARAMÈTRES!$AA$87))+('Déduction de base'!$B$56*(G119-PARAMÈTRES!$Z$89)),0) ->  | H137: =IF(H119>PARAMÈTRES!$Z$89,('Déduction de base'!$B$56*PARAMÈTRES!$AA$87)+(('Déduction de base'!$B$56-0.018)*(PARAMÈTRES!$Z$89-PARAMÈTRES!$AA$87))+('Déduction de base'!$B$56*(H119-PARAMÈTRES!$Z$89)),0) ->  | I137: =IF(I119>PARAMÈTRES!$Z$89,('Déduction de base'!$B$56*PARAMÈTRES!$AA$87)+(('Déduction de base'!$B$56-0.018)*(PARAMÈTRES!$Z$89-PARAMÈTRES!$AA$87))+('Déduction de base'!$B$56*(I119-PARAMÈTRES!$Z$89)),0) ->  | J137: =IF(J119>PARAMÈTRES!$Z$89,('Déduction de base'!$B$56*PARAMÈTRES!$AA$87)+(('Déduction de base'!$B$56-0.018)*(PARAMÈTRES!$Z$89-PARAMÈTRES!$AA$87))+('Déduction de base'!$B$56*(J119-PARAMÈTRES!$Z$89)),0) ->  | K137: =IF(K119>PARAMÈTRES!$Z$89,('Déduction de base'!$B$56*PARAMÈTRES!$AA$87)+(('Déduction de base'!$B$56-0.018)*(PARAMÈTRES!$Z$89-PARAMÈTRES!$AA$87))+('Déduction de base'!$B$56*(K119-PARAMÈTRES!$Z$89)),0) ->  | L137: =IF(L119>PARAMÈTRES!$Z$89,('Déduction de base'!$B$56*PARAMÈTRES!$AA$87)+(('Déduction de base'!$B$56-0.018)*(PARAMÈTRES!$Z$89-PARAMÈTRES!$AA$87))+('Déduction de base'!$B$56*(L119-PARAMÈTRES!$Z$89)),0) ->  | M137: =IF(M119>PARAMÈTRES!$Z$89,('Déduction de base'!$B$56*PARAMÈTRES!$AA$87)+(('Déduction de base'!$B$56-0.018)*(PARAMÈTRES!$Z$89-PARAMÈTRES!$AA$87))+('Déduction de base'!$B$56*(M119-PARAMÈTRES!$Z$89)),0) ->  | N137: =IF(N119>PARAMÈTRES!$Z$89,('Déduction de base'!$B$56*PARAMÈTRES!$AA$87)+(('Déduction de base'!$B$56-0.018)*(PARAMÈTRES!$Z$89-PARAMÈTRES!$AA$87))+('Déduction de base'!$B$56*(N119-PARAMÈTRES!$Z$89)),0) -> 0 | O137: =IF(O119>PARAMÈTRES!$Z$89,('Déduction de base'!$B$56*PARAMÈTRES!$AA$87)+(('Déduction de base'!$B$56-0.018)*(PARAMÈTRES!$Z$89-PARAMÈTRES!$AA$87))+('Déduction de base'!$B$56*(O119-PARAMÈTRES!$Z$89)),0) -> 0 | P137: =IF(P119>PARAMÈTRES!$Z$89,('Déduction de base'!$B$56*PARAMÈTRES!$AA$87)+(('Déduction de base'!$B$56-0.018)*(PARAMÈTRES!$Z$89-PARAMÈTRES!$AA$87))+('Déduction de base'!$B$56*(P119-PARAMÈTRES!$Z$89)),0) -> 0 | Q137: =IF(Q119>PARAMÈTRES!$Z$89,('Déduction de base'!$B$56*PARAMÈTRES!$AA$87)+(('Déduction de base'!$B$56-0.018)*(PARAMÈTRES!$Z$89-PARAMÈTRES!$AA$87))+('Déduction de base'!$B$56*(Q119-PARAMÈTRES!$Z$89)),0) -> 0 | R137: =IF(R119>PARAMÈTRES!$Z$89,('Déduction de base'!$B$56*PARAMÈTRES!$AA$87)+(('Déduction de base'!$B$56-0.018)*(PARAMÈTRES!$Z$89-PARAMÈTRES!$AA$87))+('Déduction de base'!$B$56*(R119-PARAMÈTRES!$Z$89)),0) -> 0 | S137: =IF(S119>PARAMÈTRES!$Z$89,('Déduction de base'!$B$56*PARAMÈTRES!$AA$87)+(('Déduction de base'!$B$56-0.018)*(PARAMÈTRES!$Z$89-PARAMÈTRES!$AA$87))+('Déduction de base'!$B$56*(S119-PARAMÈTRES!$Z$89)),0) -> 0 | T137: =IF(T119>PARAMÈTRES!$Z$89,('Déduction de base'!$B$56*PARAMÈTRES!$AA$87)+(('Déduction de base'!$B$56-0.018)*(PARAMÈTRES!$Z$89-PARAMÈTRES!$AA$87))+('Déduction de base'!$B$56*(T119-PARAMÈTRES!$Z$89)),0) -> 0 | U137: =IF(U119>PARAMÈTRES!$Z$89,('Déduction de base'!$B$56*PARAMÈTRES!$AA$87)+(('Déduction de base'!$B$56-0.018)*(PARAMÈTRES!$Z$89-PARAMÈTRES!$AA$87))+('Déduction de base'!$B$56*(U119-PARAMÈTRES!$Z$89)),0) -> 0
C138: =SUM(C135:C137) ->  | M138: =SUM(M135:M137) ->  | N138: =SUM(N135:N137) -> 0 | O138: =SUM(O135:O137) -> 0 | P138: =SUM(P135:P137) -> 0 | Q138: 0 | R138: 0 | S138: 0 | T138: 0 | U138: 0
B139: - | C139: - | D139: - | E139: - | F139: - | G139: - | H139: - | I139: - | J139: - | K139: - | L139: - | M139: - | N139: - | O139: - | P139: - | Q139: - | R139: - | S139: - | T139: - | U139: -
B140: RRPE | C140: =MAX((C119-IF(OR(codprima=86,codprimb=86,codprimc=86,codprimd=86),'Déduction de base'!$B$23,(ROUND('Déduction de base'!$B$23*(PARAMÈTRES!B60/10),2))))*'Déduction de base'!$B$53,0) ->  | D140: =MAX((D119-IF(OR(codprima=86,codprimb=86,codprimc=86,codprimd=86),'Déduction de base'!$B$23,(ROUND('Déduction de base'!$B$23*(PARAMÈTRES!C60/10),2))))*'Déduction de base'!$B$53,0) ->  | E140: =MAX((E119-IF(OR(codprima=86,codprimb=86,codprimc=86,codprimd=86),'Déduction de base'!$B$23,(ROUND('Déduction de base'!$B$23*(PARAMÈTRES!D60/10),2))))*'Déduction de base'!$B$53,0) ->  | F140: =MAX((F119-IF(OR(codprima=86,codprimb=86,codprimc=86,codprimd=86),'Déduction de base'!$B$23,(ROUND('Déduction de base'!$B$23*(PARAMÈTRES!E60/10),2))))*'Déduction de base'!$B$53,0) ->  | G140: =MAX((G119-IF(OR(codprima=86,codprimb=86,codprimc=86,codprimd=86),'Déduction de base'!$B$23,(ROUND('Déduction de base'!$B$23*(PARAMÈTRES!F60/10),2))))*'Déduction de base'!$B$53,0) ->  | H140: =MAX((H119-IF(OR(codprima=86,codprimb=86,codprimc=86,codprimd=86),'Déduction de base'!$B$23,(ROUND('Déduction de base'!$B$23*(PARAMÈTRES!G60/10),2))))*'Déduction de base'!$B$53,0) ->  | I140: =MAX((I119-IF(OR(codprima=86,codprimb=86,codprimc=86,codprimd=86),'Déduction de base'!$B$23,(ROUND('Déduction de base'!$B$23*(PARAMÈTRES!H60/10),2))))*'Déduction de base'!$B$53,0) ->  | J140: =MAX((J119-IF(OR(codprima=86,codprimb=86,codprimc=86,codprimd=86),'Déduction de base'!$B$23,(ROUND('Déduction de base'!$B$23*(PARAMÈTRES!I60/10),2))))*'Déduction de base'!$B$53,0) ->  | K140: =MAX((K119-IF(OR(codprima=86,codprimb=86,codprimc=86,codprimd=86),'Déduction de base'!$B$23,(ROUND('Déduction de base'!$B$23*(PARAMÈTRES!J60/10),2))))*'Déduction de base'!$B$53,0) ->  | L140: =MAX((L119-IF(OR(codprima=86,codprimb=86,codprimc=86,codprimd=86),'Déduction de base'!$B$23,(ROUND('Déduction de base'!$B$23*(PARAMÈTRES!K60/10),2))))*'Déduction de base'!$B$53,0) ->  | M140: =MAX((M119-IF(OR(codprima=86,codprimb=86,codprimc=86,codprimd=86),'Déduction de base'!$B$23,(ROUND('Déduction de base'!$B$23*(PARAMÈTRES!L60/10),2))))*'Déduction de base'!$B$53,0) ->  | N140: =MAX((N119-IF(OR(codprima=86,codprimb=86,codprimc=86,codprimd=86),'Déduction de base'!$B$23,(ROUND('Déduction de base'!$B$23*(CSTTDPourcentage1),2))))*'Déduction de base'!$B$53,0) -> 0 | O140: =MAX((O119-IF(OR(codprima=86,codprimb=86,codprimc=86,codprimd=86),'Déduction de base'!$B$23,(ROUND('Déduction de base'!$B$23*(CSTTDPourcentage1),2))))*'Déduction de base'!$B$53,0) -> 0 | P140: =MAX((P119-IF(OR(codprima=86,codprimb=86,codprimc=86,codprimd=86),'Déduction de base'!$B$23,(ROUND('Déduction de base'!$B$23*(CSTTDPourcentage2),2))))*'Déduction de base'!$B$53,0) -> 0 | Q140: =MAX((Q119-IF(OR(codprima=86,codprimb=86,codprimc=86,codprimd=86),'Déduction de base'!$B$23,(ROUND('Déduction de base'!$B$23*(CSTTDPourcentage2),2))))*'Déduction de base'!$B$53,0) -> 0 | R140: =MAX((R119-IF(OR(codprima=86,codprimb=86,codprimc=86,codprimd=86),'Déduction de base'!$B$23,(ROUND('Déduction de base'!$B$23*(CSTTDPourcentage3),2))))*'Déduction de base'!$B$53,0) -> 0 | S140: =MAX((S119-IF(OR(codprima=86,codprimb=86,codprimc=86,codprimd=86),'Déduction de base'!$B$23,(ROUND('Déduction de base'!$B$23*(CSTTDPourcentage3),2))))*'Déduction de base'!$B$53,0) -> 0 | T140: =MAX((T119-IF(OR(codprima=86,codprimb=86,codprimc=86,codprimd=86),'Déduction de base'!$B$23,(ROUND('Déduction de base'!$B$23*(CSTTDPourcentage4),2))))*'Déduction de base'!$B$53,0) -> 0 | U140: =MAX((U119-IF(OR(codprima=86,codprimb=86,codprimc=86,codprimd=86),'Déduction de base'!$B$23,(ROUND('Déduction de base'!$B$23*(CSTTDPourcentage4),2))))*'Déduction de base'!$B$53,0) -> 0
B141: RRPE Trans. RRF: | C141: =MAX((C119-IF(OR(codprima=86,codprimb=86,codprimc=86,codprimd=86),'Déduction de base'!$B$23,(ROUND('Déduction de base'!$B$23*(PARAMÈTRES!B60/10),2))))*'Déduction de base'!$B$54,0) ->  | D141: =MAX((D119-IF(OR(codprima=86,codprimb=86,codprimc=86,codprimd=86),'Déduction de base'!$B$23,(ROUND('Déduction de base'!$B$23*(PARAMÈTRES!C60/10),2))))*'Déduction de base'!$B$54,0) ->  | E141: =MAX((E119-IF(OR(codprima=86,codprimb=86,codprimc=86,codprimd=86),'Déduction de base'!$B$23,(ROUND('Déduction de base'!$B$23*(PARAMÈTRES!D60/10),2))))*'Déduction de base'!$B$54,0) ->  | F141: =MAX((F119-IF(OR(codprima=86,codprimb=86,codprimc=86,codprimd=86),'Déduction de base'!$B$23,(ROUND('Déduction de base'!$B$23*(PARAMÈTRES!E60/10),2))))*'Déduction de base'!$B$54,0) ->  | G141: =MAX((G119-IF(OR(codprima=86,codprimb=86,codprimc=86,codprimd=86),'Déduction de base'!$B$23,(ROUND('Déduction de base'!$B$23*(PARAMÈTRES!F60/10),2))))*'Déduction de base'!$B$54,0) ->  | H141: =MAX((H119-IF(OR(codprima=86,codprimb=86,codprimc=86,codprimd=86),'Déduction de base'!$B$23,(ROUND('Déduction de base'!$B$23*(PARAMÈTRES!G60/10),2))))*'Déduction de base'!$B$54,0) ->  | I141: =MAX((I119-IF(OR(codprima=86,codprimb=86,codprimc=86,codprimd=86),'Déduction de base'!$B$23,(ROUND('Déduction de base'!$B$23*(PARAMÈTRES!H60/10),2))))*'Déduction de base'!$B$54,0) ->  | J141: =MAX((J119-IF(OR(codprima=86,codprimb=86,codprimc=86,codprimd=86),'Déduction de base'!$B$23,(ROUND('Déduction de base'!$B$23*(PARAMÈTRES!I60/10),2))))*'Déduction de base'!$B$54,0) ->  | K141: =MAX((K119-IF(OR(codprima=86,codprimb=86,codprimc=86,codprimd=86),'Déduction de base'!$B$23,(ROUND('Déduction de base'!$B$23*(PARAMÈTRES!J60/10),2))))*'Déduction de base'!$B$54,0) ->  | L141: =MAX((L119-IF(OR(codprima=86,codprimb=86,codprimc=86,codprimd=86),'Déduction de base'!$B$23,(ROUND('Déduction de base'!$B$23*(PARAMÈTRES!K60/10),2))))*'Déduction de base'!$B$54,0) ->  | M141: =MAX((M119-IF(OR(codprima=86,codprimb=86,codprimc=86,codprimd=86),'Déduction de base'!$B$23,(ROUND('Déduction de base'!$B$23*(PARAMÈTRES!L60/10),2))))*'Déduction de base'!$B$54,0) ->  | N141: =MAX((N119-IF(OR(codprima=86,codprimb=86,codprimc=86,codprimd=86),'Déduction de base'!$B$23,(ROUND('Déduction de base'!$B$23*(CSTTDPourcentage1),2))))*'Déduction de base'!$B$54,0) -> 0 | O141: =MAX((O119-IF(OR(codprima=86,codprimb=86,codprimc=86,codprimd=86),'Déduction de base'!$B$23,(ROUND('Déduction de base'!$B$23*(CSTTDPourcentage1),2))))*'Déduction de base'!$B$54,0) -> 0 | P141: =MAX((P119-IF(OR(codprima=86,codprimb=86,codprimc=86,codprimd=86),'Déduction de base'!$B$23,(ROUND('Déduction de base'!$B$23*(CSTTDPourcentage2),2))))*'Déduction de base'!$B$54,0) -> 0 | Q141: =MAX((Q119-IF(OR(codprima=86,codprimb=86,codprimc=86,codprimd=86),'Déduction de base'!$B$23,(ROUND('Déduction de base'!$B$23*(CSTTDPourcentage2),2))))*'Déduction de base'!$B$54,0) -> 0 | R141: =MAX((R119-IF(OR(codprima=86,codprimb=86,codprimc=86,codprimd=86),'Déduction de base'!$B$23,(ROUND('Déduction de base'!$B$23*(CSTTDPourcentage3),2))))*'Déduction de base'!$B$54,0) -> 0 | S141: =MAX((S119-IF(OR(codprima=86,codprimb=86,codprimc=86,codprimd=86),'Déduction de base'!$B$23,(ROUND('Déduction de base'!$B$23*(CSTTDPourcentage3),2))))*'Déduction de base'!$B$54,0) -> 0 | T141: =MAX((T119-IF(OR(codprima=86,codprimb=86,codprimc=86,codprimd=86),'Déduction de base'!$B$23,(ROUND('Déduction de base'!$B$23*(CSTTDPourcentage4),2))))*'Déduction de base'!$B$54,0) -> 0 | U141: =MAX((U119-IF(OR(codprima=86,codprimb=86,codprimc=86,codprimd=86),'Déduction de base'!$B$23,(ROUND('Déduction de base'!$B$23*(CSTTDPourcentage4),2))))*'Déduction de base'!$B$54,0) -> 0
B142: - | C142: - | D142: - | E142: - | F142: - | G142: - | H142: - | I142: - | J142: - | K142: - | L142: - | M142: - | N142: - | O142: - | P142: - | Q142: - | R142: - | S142: - | T142: - | U142: -
B143: RRAS | C143: =MAX((C119-IF(OR(codprima=86,codprimb=86,codprimc=86,codprimd=86),'Déduction de base'!$B$22,(ROUND('Déduction de base'!$B$22*(PARAMÈTRES!B60/10),2))))*'Déduction de base'!$B$52,0) ->  | D143: =MAX((D119-IF(OR(codprima=86,codprimb=86,codprimc=86,codprimd=86),'Déduction de base'!$B$22,(ROUND('Déduction de base'!$B$22*(PARAMÈTRES!C60/10),2))))*'Déduction de base'!$B$52,0) ->  | E143: =MAX((E119-IF(OR(codprima=86,codprimb=86,codprimc=86,codprimd=86),'Déduction de base'!$B$22,(ROUND('Déduction de base'!$B$22*(PARAMÈTRES!D60/10),2))))*'Déduction de base'!$B$52,0) ->  | F143: =MAX((F119-IF(OR(codprima=86,codprimb=86,codprimc=86,codprimd=86),'Déduction de base'!$B$22,(ROUND('Déduction de base'!$B$22*(PARAMÈTRES!E60/10),2))))*'Déduction de base'!$B$52,0) ->  | G143: =MAX((G119-IF(OR(codprima=86,codprimb=86,codprimc=86,codprimd=86),'Déduction de base'!$B$22,(ROUND('Déduction de base'!$B$22*(PARAMÈTRES!F60/10),2))))*'Déduction de base'!$B$52,0) ->  | H143: =MAX((H119-IF(OR(codprima=86,codprimb=86,codprimc=86,codprimd=86),'Déduction de base'!$B$22,(ROUND('Déduction de base'!$B$22*(PARAMÈTRES!G60/10),2))))*'Déduction de base'!$B$52,0) ->  | I143: =MAX((I119-IF(OR(codprima=86,codprimb=86,codprimc=86,codprimd=86),'Déduction de base'!$B$22,(ROUND('Déduction de base'!$B$22*(PARAMÈTRES!H60/10),2))))*'Déduction de base'!$B$52,0) ->  | J143: =MAX((J119-IF(OR(codprima=86,codprimb=86,codprimc=86,codprimd=86),'Déduction de base'!$B$22,(ROUND('Déduction de base'!$B$22*(PARAMÈTRES!I60/10),2))))*'Déduction de base'!$B$52,0) ->  | K143: =MAX((K119-IF(OR(codprima=86,codprimb=86,codprimc=86,codprimd=86),'Déduction de base'!$B$22,(ROUND('Déduction de base'!$B$22*(PARAMÈTRES!J60/10),2))))*'Déduction de base'!$B$52,0) ->  | L143: =MAX((L119-IF(OR(codprima=86,codprimb=86,codprimc=86,codprimd=86),'Déduction de base'!$B$22,(ROUND('Déduction de base'!$B$22*(PARAMÈTRES!K60/10),2))))*'Déduction de base'!$B$52,0) ->  | M143: =MAX((M119-IF(OR(codprima=86,codprimb=86,codprimc=86,codprimd=86),'Déduction de base'!$B$22,(ROUND('Déduction de base'!$B$22*(PARAMÈTRES!L60/10),2))))*'Déduction de base'!$B$52,0) ->  | N143: =MAX((N119-IF(OR(codprima=86,codprimb=86,codprimc=86,codprimd=86),'Déduction de base'!$B$22,(ROUND('Déduction de base'!$B$22*(CSTTDPourcentage1),2))))*'Déduction de base'!$B$52,0) -> 0 | O143: =MAX((O119-IF(OR(codprima=86,codprimb=86,codprimc=86,codprimd=86),'Déduction de base'!$B$22,(ROUND('Déduction de base'!$B$22*(CSTTDPourcentage1),2))))*'Déduction de base'!$B$52,0) -> 0 | P143: =MAX((P119-IF(OR(codprima=86,codprimb=86,codprimc=86,codprimd=86),'Déduction de base'!$B$22,(ROUND('Déduction de base'!$B$22*(CSTTDPourcentage2),2))))*'Déduction de base'!$B$52,0) -> 0 | Q143: =MAX((Q119-IF(OR(codprima=86,codprimb=86,codprimc=86,codprimd=86),'Déduction de base'!$B$22,(ROUND('Déduction de base'!$B$22*(CSTTDPourcentage2),2))))*'Déduction de base'!$B$52,0) -> 0 | R143: =MAX((R119-IF(OR(codprima=86,codprimb=86,codprimc=86,codprimd=86),'Déduction de base'!$B$22,(ROUND('Déduction de base'!$B$22*(CSTTDPourcentage3),2))))*'Déduction de base'!$B$52,0) -> 0 | S143: =MAX((S119-IF(OR(codprima=86,codprimb=86,codprimc=86,codprimd=86),'Déduction de base'!$B$22,(ROUND('Déduction de base'!$B$22*(CSTTDPourcentage3),2))))*'Déduction de base'!$B$52,0) -> 0 | T143: =MAX((T119-IF(OR(codprima=86,codprimb=86,codprimc=86,codprimd=86),'Déduction de base'!$B$22,(ROUND('Déduction de base'!$B$22*(CSTTDPourcentage4),2))))*'Déduction de base'!$B$52,0) -> 0 | U143: =MAX((U119-IF(OR(codprima=86,codprimb=86,codprimc=86,codprimd=86),'Déduction de base'!$B$22,(ROUND('Déduction de base'!$B$22*(CSTTDPourcentage4),2))))*'Déduction de base'!$B$52,0) -> 0
B144: - | C144: - | D144: - | E144: - | F144: - | G144: - | H144: - | I144: - | J144: - | K144: - | L144: - | M144: - | N144: - | O144: - | P144: - | Q144: - | R144: - | S144: - | T144: - | U144: -
B145: RRAS,(RPS) | C145: =MAX((C119-IF(OR(codprima=86,codprimb=86,codprimc=86,codprimd=86),'Déduction de base'!$B$22,(ROUND('Déduction de base'!$B$22*(PARAMÈTRES!B60/10),2))))*'Déduction de base'!$B$52,0) ->  | D145: =MAX((D119-IF(OR(codprima=86,codprimb=86,codprimc=86,codprimd=86),'Déduction de base'!$B$22,(ROUND('Déduction de base'!$B$22*(PARAMÈTRES!C60/10),2))))*'Déduction de base'!$B$52,0) ->  | E145: =MAX((E119-IF(OR(codprima=86,codprimb=86,codprimc=86,codprimd=86),'Déduction de base'!$B$22,(ROUND('Déduction de base'!$B$22*(PARAMÈTRES!D60/10),2))))*'Déduction de base'!$B$52,0) ->  | F145: =MAX((F119-IF(OR(codprima=86,codprimb=86,codprimc=86,codprimd=86),'Déduction de base'!$B$22,(ROUND('Déduction de base'!$B$22*(PARAMÈTRES!E60/10),2))))*'Déduction de base'!$B$52,0) ->  | G145: =MAX((G119-IF(OR(codprima=86,codprimb=86,codprimc=86,codprimd=86),'Déduction de base'!$B$22,(ROUND('Déduction de base'!$B$22*(PARAMÈTRES!F60/10),2))))*'Déduction de base'!$B$52,0) ->  | H145: =MAX((H119-IF(OR(codprima=86,codprimb=86,codprimc=86,codprimd=86),'Déduction de base'!$B$22,(ROUND('Déduction de base'!$B$22*(PARAMÈTRES!G60/10),2))))*'Déduction de base'!$B$52,0) ->  | I145: =MAX((I119-IF(OR(codprima=86,codprimb=86,codprimc=86,codprimd=86),'Déduction de base'!$B$22,(ROUND('Déduction de base'!$B$22*(PARAMÈTRES!H60/10),2))))*'Déduction de base'!$B$52,0) ->  | J145: =MAX((J119-IF(OR(codprima=86,codprimb=86,codprimc=86,codprimd=86),'Déduction de base'!$B$22,(ROUND('Déduction de base'!$B$22*(PARAMÈTRES!I60/10),2))))*'Déduction de base'!$B$52,0) ->  | K145: =MAX((K119-IF(OR(codprima=86,codprimb=86,codprimc=86,codprimd=86),'Déduction de base'!$B$22,(ROUND('Déduction de base'!$B$22*(PARAMÈTRES!J60/10),2))))*'Déduction de base'!$B$52,0) ->  | L145: =MAX((L119-IF(OR(codprima=86,codprimb=86,codprimc=86,codprimd=86),'Déduction de base'!$B$22,(ROUND('Déduction de base'!$B$22*(PARAMÈTRES!K60/10),2))))*'Déduction de base'!$B$52,0) ->  | M145: =MAX((M119-IF(OR(codprima=86,codprimb=86,codprimc=86,codprimd=86),'Déduction de base'!$B$22,(ROUND('Déduction de base'!$B$22*(PARAMÈTRES!L60/10),2))))*'Déduction de base'!$B$52,0) ->  | N145: =MAX((N119-IF(OR(codprima=86,codprimb=86,codprimc=86,codprimd=86),'Déduction de base'!$B$22,(ROUND('Déduction de base'!$B$22*(CSTTDPourcentage1),2))))*'Déduction de base'!$B$52,0) -> 0 | O145: =MAX((O119-IF(OR(codprima=86,codprimb=86,codprimc=86,codprimd=86),'Déduction de base'!$B$22,(ROUND('Déduction de base'!$B$22*(CSTTDPourcentage1),2))))*'Déduction de base'!$B$52,0) -> 0 | P145: =MAX((P119-IF(OR(codprima=86,codprimb=86,codprimc=86,codprimd=86),'Déduction de base'!$B$22,(ROUND('Déduction de base'!$B$22*(CSTTDPourcentage2),2))))*'Déduction de base'!$B$52,0) -> 0 | Q145: =MAX((Q119-IF(OR(codprima=86,codprimb=86,codprimc=86,codprimd=86),'Déduction de base'!$B$22,(ROUND('Déduction de base'!$B$22*(CSTTDPourcentage2),2))))*'Déduction de base'!$B$52,0) -> 0 | R145: =MAX((R119-IF(OR(codprima=86,codprimb=86,codprimc=86,codprimd=86),'Déduction de base'!$B$22,(ROUND('Déduction de base'!$B$22*(CSTTDPourcentage3),2))))*'Déduction de base'!$B$52,0) -> 0 | S145: =MAX((S119-IF(OR(codprima=86,codprimb=86,codprimc=86,codprimd=86),'Déduction de base'!$B$22,(ROUND('Déduction de base'!$B$22*(CSTTDPourcentage3),2))))*'Déduction de base'!$B$52,0) -> 0 | T145: =MAX((T119-IF(OR(codprima=86,codprimb=86,codprimc=86,codprimd=86),'Déduction de base'!$B$22,(ROUND('Déduction de base'!$B$22*(CSTTDPourcentage4),2))))*'Déduction de base'!$B$52,0) -> 0 | U145: =MAX((U119-IF(OR(codprima=86,codprimb=86,codprimc=86,codprimd=86),'Déduction de base'!$B$22,(ROUND('Déduction de base'!$B$22*(CSTTDPourcentage4),2))))*'Déduction de base'!$B$52,0) -> 0
B146: - | C146: - | D146: - | E146: - | F146: - | G146: - | H146: - | I146: - | J146: - | K146: - | L146: - | M146: - | N146: - | O146: - | P146: - | Q146: - | R146: - | S146: - | T146: - | U146: -
B147: RRAPSC-1 : | C147: =MAX((C119-MIN('Déduction de base'!$B$19,ROUND(C119*0.25,2)))*'Déduction de base'!$B$49,0) ->  | D147: =MAX((D119-MIN('Déduction de base'!$B$19,ROUND(D119*0.25,2)))*'Déduction de base'!$B$49,0) ->  | E147: =MAX((E119-MIN('Déduction de base'!$B$19,ROUND(E119*0.25,2)))*'Déduction de base'!$B$49,0) ->  | F147: =MAX((F119-MIN('Déduction de base'!$B$19,ROUND(F119*0.25,2)))*'Déduction de base'!$B$49,0) ->  | G147: =MAX((G119-MIN('Déduction de base'!$B$19,ROUND(G119*0.25,2)))*'Déduction de base'!$B$49,0) ->  | H147: =MAX((H119-MIN('Déduction de base'!$B$19,ROUND(H119*0.25,2)))*'Déduction de base'!$B$49,0) ->  | I147: =MAX((I119-MIN('Déduction de base'!$B$19,ROUND(I119*0.25,2)))*'Déduction de base'!$B$49,0) ->  | J147: =MAX((J119-MIN('Déduction de base'!$B$19,ROUND(J119*0.25,2)))*'Déduction de base'!$B$49,0) ->  | K147: =MAX((K119-MIN('Déduction de base'!$B$19,ROUND(K119*0.25,2)))*'Déduction de base'!$B$49,0) ->  | L147: =MAX((L119-MIN('Déduction de base'!$B$19,ROUND(L119*0.25,2)))*'Déduction de base'!$B$49,0) ->  | M147: =MAX((M119-MIN('Déduction de base'!$B$19,ROUND(M119*0.25,2)))*'Déduction de base'!$B$49,0) ->  | N147: =MAX((N119-MIN('Déduction de base'!$B$19,ROUND(N119*0.25*CSTTDPourcentage1,2)))*'Déduction de base'!$B$49,0) -> 0 | O147: =MAX((O119-MIN('Déduction de base'!$B$19,ROUND(O119*0.25*CSTTDPourcentage1,2)))*'Déduction de base'!$B$49,0) -> 0 | P147: =MAX((P119-MIN('Déduction de base'!$B$19,ROUND(P119*0.25*CSTTDPourcentage2,2)))*'Déduction de base'!$B$49,0) -> 0 | Q147: =MAX((Q119-MIN('Déduction de base'!$B$19,ROUND(Q119*0.25*CSTTDPourcentage2,2)))*'Déduction de base'!$B$49,0) -> 0 | R147: =MAX((R119-MIN('Déduction de base'!$B$19,ROUND(R119*0.25*CSTTDPourcentage3,2)))*'Déduction de base'!$B$49,0) -> 0 | S147: =MAX((S119-MIN('Déduction de base'!$B$19,ROUND(S119*0.25*CSTTDPourcentage3,2)))*'Déduction de base'!$B$49,0) -> 0 | T147: =MAX((T119-MIN('Déduction de base'!$B$19,ROUND(T119*0.25*CSTTDPourcentage4,2)))*'Déduction de base'!$B$49,0) -> 0 | U147: =MAX((U119-MIN('Déduction de base'!$B$19,ROUND(U119*0.25*CSTTDPourcentage4,2)))*'Déduction de base'!$B$49,0) -> 0
B148: - | C148: - | D148: - | E148: - | F148: - | G148: - | H148: - | I148: - | J148: - | K148: - | L148: - | M148: - | N148: - | O148: - | P148: - | Q148: - | R148: - | S148: - | T148: - | U148: -
B149: RRAPSC-2 : | C149: =MAX((C119-MIN('Déduction de base'!$B$19,ROUND(C119*0.25,2)))*'Déduction de base'!$B$50,0) ->  | D149: =MAX((D119-MIN('Déduction de base'!$B$19,ROUND(D119*0.25,2)))*'Déduction de base'!$B$50,0) ->  | E149: =MAX((E119-MIN('Déduction de base'!$B$19,ROUND(E119*0.25,2)))*'Déduction de base'!$B$50,0) ->  | F149: =MAX((F119-MIN('Déduction de base'!$B$19,ROUND(F119*0.25,2)))*'Déduction de base'!$B$50,0) ->  | G149: =MAX((G119-MIN('Déduction de base'!$B$19,ROUND(G119*0.25,2)))*'Déduction de base'!$B$50,0) ->  | H149: =MAX((H119-MIN('Déduction de base'!$B$19,ROUND(H119*0.25,2)))*'Déduction de base'!$B$50,0) ->  | I149: =MAX((I119-MIN('Déduction de base'!$B$19,ROUND(I119*0.25,2)))*'Déduction de base'!$B$50,0) ->  | J149: =MAX((J119-MIN('Déduction de base'!$B$19,ROUND(J119*0.25,2)))*'Déduction de base'!$B$50,0) ->  | K149: =MAX((K119-MIN('Déduction de base'!$B$19,ROUND(K119*0.25,2)))*'Déduction de base'!$B$50,0) ->  | L149: =MAX((L119-MIN('Déduction de base'!$B$19,ROUND(L119*0.25,2)))*'Déduction de base'!$B$50,0) ->  | M149: =MAX((M119-MIN('Déduction de base'!$B$19,ROUND(M119*0.25,2)))*'Déduction de base'!$B$50,0) ->  | N149: =MAX((N119-MIN('Déduction de base'!$B$19,ROUND(N119*0.25*CSTTDPourcentage1,2)))*'Déduction de base'!$B$50,0) -> 0 | O149: =MAX((O119-MIN('Déduction de base'!$B$19,ROUND(O119*0.25*CSTTDPourcentage1,2)))*'Déduction de base'!$B$50,0) -> 0 | P149: =MAX((P119-MIN('Déduction de base'!$B$19,ROUND(P119*0.25*CSTTDPourcentage2,2)))*'Déduction de base'!$B$50,0) -> 0 | Q149: =MAX((Q119-MIN('Déduction de base'!$B$19,ROUND(Q119*0.25*CSTTDPourcentage2,2)))*'Déduction de base'!$B$50,0) -> 0 | R149: =MAX((R119-MIN('Déduction de base'!$B$19,ROUND(R119*0.25*CSTTDPourcentage3,2)))*'Déduction de base'!$B$50,0) -> 0 | S149: =MAX((S119-MIN('Déduction de base'!$B$19,ROUND(S119*0.25*CSTTDPourcentage3,2)))*'Déduction de base'!$B$50,0) -> 0 | T149: =MAX((T119-MIN('Déduction de base'!$B$19,ROUND(T119*0.25*CSTTDPourcentage4,2)))*'Déduction de base'!$B$50,0) -> 0 | U149: =MAX((U119-MIN('Déduction de base'!$B$19,ROUND(U119*0.25*CSTTDPourcentage4,2)))*'Déduction de base'!$B$50,0) -> 0
B150: - | C150: - | D150: - | E150: - | F150: - | G150: - | H150: - | I150: - | J150: - | K150: - | L150: - | M150: - | N150: - | O150: - | P150: - | Q150: - | R150: - | S150: - | T150: - | U150: -
B151: RRMAN | C151: =MAX(C119*'Déduction de base'!$B$47,0) ->  | D151: =MAX(D119*'Déduction de base'!$B$47,0) ->  | E151: =MAX(E119*'Déduction de base'!$B$47,0) ->  | F151: =MAX(F119*'Déduction de base'!$B$47,0) ->  | G151: =MAX(G119*'Déduction de base'!$B$47,0) ->  | H151: =MAX(H119*'Déduction de base'!$B$47,0) ->  | I151: =MAX(I119*'Déduction de base'!$B$47,0) ->  | J151: =MAX(J119*'Déduction de base'!$B$47,0) ->  | K151: =MAX(K119*'Déduction de base'!$B$47,0) ->  | L151: =MAX(L119*'Déduction de base'!$B$47,0) ->  | M151: =MAX(M119*'Déduction de base'!$B$47,0) ->  | N151: =MAX(N119*'Déduction de base'!$B$47,0) -> 0 | O151: =MAX(O119*'Déduction de base'!$B$47,0) -> 0 | P151: =MAX(P119*'Déduction de base'!$B$47,0) -> 0 | Q151: =MAX(Q119*'Déduction de base'!$B$47,0) -> 0 | R151: =MAX(R119*'Déduction de base'!$B$47,0) -> 0 | S151: =MAX(S119*'Déduction de base'!$B$47,0) -> 0 | T151: =MAX(T119*'Déduction de base'!$B$47,0) -> 0 | U151: =MAX(U119*'Déduction de base'!$B$47,0) -> 0
B152: - | C152: - | D152: - | E152: - | F152: - | G152: - | H152: - | I152: - | J152: - | K152: - | L152: - | M152: - | N152: - | O152: - | P152: - | Q152: - | R152: - | S152: - | T152: - | U152: -
B153: RREFQ (syndicable) | C153: =IF(C119<PARAMÈTRES!$AA$87,'Déduction de base'!$B$51*C119,0) ->  | D153: =IF(D119<PARAMÈTRES!$AA$87,'Déduction de base'!$B$51*D119,0) ->  | E153: =IF(E119<PARAMÈTRES!$AA$87,'Déduction de base'!$B$51*E119,0) ->  | F153: =IF(F119<PARAMÈTRES!$AA$87,'Déduction de base'!$B$51*F119,0) ->  | G153: =IF(G119<PARAMÈTRES!$AA$87,'Déduction de base'!$B$51*G119,0) ->  | H153: =IF(H119<PARAMÈTRES!$AA$87,'Déduction de base'!$B$51*H119,0) ->  | I153: =IF(I119<PARAMÈTRES!$AA$87,'Déduction de base'!$B$51*I119,0) ->  | J153: =IF(J119<PARAMÈTRES!$AA$87,'Déduction de base'!$B$51*J119,0) ->  | K153: =IF(K119<PARAMÈTRES!$AA$87,'Déduction de base'!$B$51*K119,0) ->  | L153: =IF(L119<PARAMÈTRES!$AA$87,'Déduction de base'!$B$51*L119,0) ->  | M153: =IF(M119<PARAMÈTRES!$AA$87,'Déduction de base'!$B$51*M119,0) ->  | N153: =IF(N119<PARAMÈTRES!$AA$87,'Déduction de base'!$B$51*N119,0) -> 0 | O153: =IF(O119<PARAMÈTRES!$AA$87,'Déduction de base'!$B$51*O119,0) -> 0 | P153: =IF(P119<PARAMÈTRES!$AA$87,'Déduction de base'!$B$51*P119,0) -> 0 | Q153: =IF(Q119<PARAMÈTRES!$AA$87,'Déduction de base'!$B$51*Q119,0) -> 0 | R153: =IF(R119<PARAMÈTRES!$AA$87,'Déduction de base'!$B$51*R119,0) -> 0 | S153: =IF(S119<PARAMÈTRES!$AA$87,'Déduction de base'!$B$51*S119,0) -> 0 | T153: =IF(T119<PARAMÈTRES!$AA$87,'Déduction de base'!$B$51*T119,0) -> 0 | U153: =IF(U119<PARAMÈTRES!$AA$87,'Déduction de base'!$B$51*U119,0) -> 0
C154: =IF(AND(C119>PARAMÈTRES!$Z$88,C119<PARAMÈTRES!$AA$88),('Déduction de base'!$B$51*PARAMÈTRES!$AA$87)+(('Déduction de base'!$B$51-0.023)*(C119-PARAMÈTRES!$AA$87)),0) ->  | D154: =IF(AND(D119>PARAMÈTRES!$Z$88,D119<PARAMÈTRES!$AA$88),('Déduction de base'!$B$51*PARAMÈTRES!$AA$87)+(('Déduction de base'!$B$51-0.023)*(D119-PARAMÈTRES!$AA$87)),0) ->  | E154: =IF(AND(E119>PARAMÈTRES!$Z$88,E119<PARAMÈTRES!$AA$88),('Déduction de base'!$B$51*PARAMÈTRES!$AA$87)+(('Déduction de base'!$B$51-0.023)*(E119-PARAMÈTRES!$AA$87)),0) ->  | F154: =IF(AND(F119>PARAMÈTRES!$Z$88,F119<PARAMÈTRES!$AA$88),('Déduction de base'!$B$51*PARAMÈTRES!$AA$87)+(('Déduction de base'!$B$51-0.023)*(F119-PARAMÈTRES!$AA$87)),0) ->  | G154: =IF(AND(G119>PARAMÈTRES!$Z$88,G119<PARAMÈTRES!$AA$88),('Déduction de base'!$B$51*PARAMÈTRES!$AA$87)+(('Déduction de base'!$B$51-0.023)*(G119-PARAMÈTRES!$AA$87)),0) ->  | H154: =IF(AND(H119>PARAMÈTRES!$Z$88,H119<PARAMÈTRES!$AA$88),('Déduction de base'!$B$51*PARAMÈTRES!$AA$87)+(('Déduction de base'!$B$51-0.023)*(H119-PARAMÈTRES!$AA$87)),0) ->  | I154: =IF(AND(I119>PARAMÈTRES!$Z$88,I119<PARAMÈTRES!$AA$88),('Déduction de base'!$B$51*PARAMÈTRES!$AA$87)+(('Déduction de base'!$B$51-0.023)*(I119-PARAMÈTRES!$AA$87)),0) ->  | J154: =IF(AND(J119>PARAMÈTRES!$Z$88,J119<PARAMÈTRES!$AA$88),('Déduction de base'!$B$51*PARAMÈTRES!$AA$87)+(('Déduction de base'!$B$51-0.023)*(J119-PARAMÈTRES!$AA$87)),0) ->  | K154: =IF(AND(K119>PARAMÈTRES!$Z$88,K119<PARAMÈTRES!$AA$88),('Déduction de base'!$B$51*PARAMÈTRES!$AA$87)+(('Déduction de base'!$B$51-0.023)*(K119-PARAMÈTRES!$AA$87)),0) ->  | L154: =IF(AND(L119>PARAMÈTRES!$Z$88,L119<PARAMÈTRES!$AA$88),('Déduction de base'!$B$51*PARAMÈTRES!$AA$87)+(('Déduction de base'!$B$51-0.023)*(L119-PARAMÈTRES!$AA$87)),0) ->  | M154: =IF(AND(M119>PARAMÈTRES!$Z$88,M119<PARAMÈTRES!$AA$88),('Déduction de base'!$B$51*PARAMÈTRES!$AA$87)+(('Déduction de base'!$B$51-0.023)*(M119-PARAMÈTRES!$AA$87)),0) ->  | N154: =IF(AND(N119>PARAMÈTRES!$Z$88,N119<PARAMÈTRES!$AA$88),('Déduction de base'!$B$51*PARAMÈTRES!$AA$87)+(('Déduction de base'!$B$51-0.023)*(N119-PARAMÈTRES!$AA$87)),0) -> 0 | O154: =IF(AND(O119>PARAMÈTRES!$Z$88,O119<PARAMÈTRES!$AA$88),('Déduction de base'!$B$51*PARAMÈTRES!$AA$87)+(('Déduction de base'!$B$51-0.023)*(O119-PARAMÈTRES!$AA$87)),0) -> 0 | P154: =IF(AND(P119>PARAMÈTRES!$Z$88,P119<PARAMÈTRES!$AA$88),('Déduction de base'!$B$51*PARAMÈTRES!$AA$87)+(('Déduction de base'!$B$51-0.023)*(P119-PARAMÈTRES!$AA$87)),0) -> 0 | Q154: =IF(AND(Q119>PARAMÈTRES!$Z$88,Q119<PARAMÈTRES!$AA$88),('Déduction de base'!$B$51*PARAMÈTRES!$AA$87)+(('Déduction de base'!$B$51-0.023)*(Q119-PARAMÈTRES!$AA$87)),0) -> 0 | R154: =IF(AND(R119>PARAMÈTRES!$Z$88,R119<PARAMÈTRES!$AA$88),('Déduction de base'!$B$51*PARAMÈTRES!$AA$87)+(('Déduction de base'!$B$51-0.023)*(R119-PARAMÈTRES!$AA$87)),0) -> 0 | S154: =IF(AND(S119>PARAMÈTRES!$Z$88,S119<PARAMÈTRES!$AA$88),('Déduction de base'!$B$51*PARAMÈTRES!$AA$87)+(('Déduction de base'!$B$51-0.023)*(S119-PARAMÈTRES!$AA$87)),0) -> 0 | T154: =IF(AND(T119>PARAMÈTRES!$Z$88,T119<PARAMÈTRES!$AA$88),('Déduction de base'!$B$51*PARAMÈTRES!$AA$87)+(('Déduction de base'!$B$51-0.023)*(T119-PARAMÈTRES!$AA$87)),0) -> 0 | U154: =IF(AND(U119>PARAMÈTRES!$Z$88,U119<PARAMÈTRES!$AA$88),('Déduction de base'!$B$51*PARAMÈTRES!$AA$87)+(('Déduction de base'!$B$51-0.023)*(U119-PARAMÈTRES!$AA$87)),0) -> 0
C155: =IF(C119>PARAMÈTRES!$Z$89,('Déduction de base'!$B$51*PARAMÈTRES!$AA$87)+(('Déduction de base'!$B$51-0.023)*(PARAMÈTRES!$Z$89-PARAMÈTRES!$AA$87))+('Déduction de base'!$B$51*(C119-PARAMÈTRES!$Z$89)),0) ->  | D155: =IF(D119>PARAMÈTRES!$Z$89,('Déduction de base'!$B$51*PARAMÈTRES!$AA$87)+(('Déduction de base'!$B$51-0.023)*(PARAMÈTRES!$Z$89-PARAMÈTRES!$AA$87))+('Déduction de base'!$B$51*(D119-PARAMÈTRES!$Z$89)),0) ->  | E155: =IF(E119>PARAMÈTRES!$Z$89,('Déduction de base'!$B$51*PARAMÈTRES!$AA$87)+(('Déduction de base'!$B$51-0.023)*(PARAMÈTRES!$Z$89-PARAMÈTRES!$AA$87))+('Déduction de base'!$B$51*(E119-PARAMÈTRES!$Z$89)),0) ->  | F155: =IF(F119>PARAMÈTRES!$Z$89,('Déduction de base'!$B$51*PARAMÈTRES!$AA$87)+(('Déduction de base'!$B$51-0.023)*(PARAMÈTRES!$Z$89-PARAMÈTRES!$AA$87))+('Déduction de base'!$B$51*(F119-PARAMÈTRES!$Z$89)),0) ->  | G155: =IF(G119>PARAMÈTRES!$Z$89,('Déduction de base'!$B$51*PARAMÈTRES!$AA$87)+(('Déduction de base'!$B$51-0.023)*(PARAMÈTRES!$Z$89-PARAMÈTRES!$AA$87))+('Déduction de base'!$B$51*(G119-PARAMÈTRES!$Z$89)),0) ->  | H155: =IF(H119>PARAMÈTRES!$Z$89,('Déduction de base'!$B$51*PARAMÈTRES!$AA$87)+(('Déduction de base'!$B$51-0.023)*(PARAMÈTRES!$Z$89-PARAMÈTRES!$AA$87))+('Déduction de base'!$B$51*(H119-PARAMÈTRES!$Z$89)),0) ->  | I155: =IF(I119>PARAMÈTRES!$Z$89,('Déduction de base'!$B$51*PARAMÈTRES!$AA$87)+(('Déduction de base'!$B$51-0.023)*(PARAMÈTRES!$Z$89-PARAMÈTRES!$AA$87))+('Déduction de base'!$B$51*(I119-PARAMÈTRES!$Z$89)),0) ->  | J155: =IF(J119>PARAMÈTRES!$Z$89,('Déduction de base'!$B$51*PARAMÈTRES!$AA$87)+(('Déduction de base'!$B$51-0.023)*(PARAMÈTRES!$Z$89-PARAMÈTRES!$AA$87))+('Déduction de base'!$B$51*(J119-PARAMÈTRES!$Z$89)),0) ->  | K155: =IF(K119>PARAMÈTRES!$Z$89,('Déduction de base'!$B$51*PARAMÈTRES!$AA$87)+(('Déduction de base'!$B$51-0.023)*(PARAMÈTRES!$Z$89-PARAMÈTRES!$AA$87))+('Déduction de base'!$B$51*(K119-PARAMÈTRES!$Z$89)),0) ->  | L155: =IF(L119>PARAMÈTRES!$Z$89,('Déduction de base'!$B$51*PARAMÈTRES!$AA$87)+(('Déduction de base'!$B$51-0.023)*(PARAMÈTRES!$Z$89-PARAMÈTRES!$AA$87))+('Déduction de base'!$B$51*(L119-PARAMÈTRES!$Z$89)),0) ->  | M155: =IF(M119>PARAMÈTRES!$Z$89,('Déduction de base'!$B$51*PARAMÈTRES!$AA$87)+(('Déduction de base'!$B$51-0.023)*(PARAMÈTRES!$Z$89-PARAMÈTRES!$AA$87))+('Déduction de base'!$B$51*(M119-PARAMÈTRES!$Z$89)),0) ->  | N155: =IF(N119>PARAMÈTRES!$Z$89,('Déduction de base'!$B$51*PARAMÈTRES!$AA$87)+(('Déduction de base'!$B$51-0.023)*(PARAMÈTRES!$Z$89-PARAMÈTRES!$AA$87))+('Déduction de base'!$B$51*(N119-PARAMÈTRES!$Z$89)),0) -> 0 | O155: =IF(O119>PARAMÈTRES!$Z$89,('Déduction de base'!$B$51*PARAMÈTRES!$AA$87)+(('Déduction de base'!$B$51-0.023)*(PARAMÈTRES!$Z$89-PARAMÈTRES!$AA$87))+('Déduction de base'!$B$51*(O119-PARAMÈTRES!$Z$89)),0) -> 0 | P155: =IF(P119>PARAMÈTRES!$Z$89,('Déduction de base'!$B$51*PARAMÈTRES!$AA$87)+(('Déduction de base'!$B$51-0.023)*(PARAMÈTRES!$Z$89-PARAMÈTRES!$AA$87))+('Déduction de base'!$B$51*(P119-PARAMÈTRES!$Z$89)),0) -> 0 | Q155: =IF(Q119>PARAMÈTRES!$Z$89,('Déduction de base'!$B$51*PARAMÈTRES!$AA$87)+(('Déduction de base'!$B$51-0.023)*(PARAMÈTRES!$Z$89-PARAMÈTRES!$AA$87))+('Déduction de base'!$B$51*(Q119-PARAMÈTRES!$Z$89)),0) -> 0 | R155: =IF(R119>PARAMÈTRES!$Z$89,('Déduction de base'!$B$51*PARAMÈTRES!$AA$87)+(('Déduction de base'!$B$51-0.023)*(PARAMÈTRES!$Z$89-PARAMÈTRES!$AA$87))+('Déduction de base'!$B$51*(R119-PARAMÈTRES!$Z$89)),0) -> 0 | S155: =IF(S119>PARAMÈTRES!$Z$89,('Déduction de base'!$B$51*PARAMÈTRES!$AA$87)+(('Déduction de base'!$B$51-0.023)*(PARAMÈTRES!$Z$89-PARAMÈTRES!$AA$87))+('Déduction de base'!$B$51*(S119-PARAMÈTRES!$Z$89)),0) -> 0 | T155: =IF(T119>PARAMÈTRES!$Z$89,('Déduction de base'!$B$51*PARAMÈTRES!$AA$87)+(('Déduction de base'!$B$51-0.023)*(PARAMÈTRES!$Z$89-PARAMÈTRES!$AA$87))+('Déduction de base'!$B$51*(T119-PARAMÈTRES!$Z$89)),0) -> 0 | U155: =IF(U119>PARAMÈTRES!$Z$89,('Déduction de base'!$B$51*PARAMÈTRES!$AA$87)+(('Déduction de base'!$B$51-0.023)*(PARAMÈTRES!$Z$89-PARAMÈTRES!$AA$87))+('Déduction de base'!$B$51*(U119-PARAMÈTRES!$Z$89)),0) -> 0
C156: =SUM(C153:C155) ->  | M156: =SUM(M153:M155) ->  | N156: =SUM(N153:N155) -> 0 | O156: =SUM(O153:O155) -> 0 | P156: =SUM(P153:P155) -> 0 | Q156: 0 | R156: 0 | S156: 0 | T156: 0 | U156: 0
B157: - | C157: - | D157: - | E157: - | F157: - | G157: - | H157: - | I157: - | J157: - | K157: - | L157: - | M157: - | N157: - | O157: - | P157: - | Q157: - | R157: - | S157: - | T157: - | U157: -
B158: RREFQ (non syndicable) | C158: =IF(C119<PARAMÈTRES!$AA$87,'Déduction de base'!$B$55*C119,0) ->  | D158: =IF(D119<PARAMÈTRES!$AA$87,'Déduction de base'!$B$55*D119,0) ->  | E158: =IF(E119<PARAMÈTRES!$AA$87,'Déduction de base'!$B$55*E119,0) ->  | F158: =IF(F119<PARAMÈTRES!$AA$87,'Déduction de base'!$B$55*F119,0) ->  | G158: =IF(G119<PARAMÈTRES!$AA$87,'Déduction de base'!$B$55*G119,0) ->  | H158: =IF(H119<PARAMÈTRES!$AA$87,'Déduction de base'!$B$55*H119,0) ->  | I158: =IF(I119<PARAMÈTRES!$AA$87,'Déduction de base'!$B$55*I119,0) ->  | J158: =IF(J119<PARAMÈTRES!$AA$87,'Déduction de base'!$B$55*J119,0) ->  | K158: =IF(K119<PARAMÈTRES!$AA$87,'Déduction de base'!$B$55*K119,0) ->  | L158: =IF(L119<PARAMÈTRES!$AA$87,'Déduction de base'!$B$55*L119,0) ->  | M158: =IF(M119<PARAMÈTRES!$AA$87,'Déduction de base'!$B$55*M119,0) ->  | N158: =IF(N119<PARAMÈTRES!$AA$87,'Déduction de base'!$B$55*N119,0) -> 0 | O158: =IF(O119<PARAMÈTRES!$AA$87,'Déduction de base'!$B$55*O119,0) -> 0 | P158: =IF(P119<PARAMÈTRES!$AA$87,'Déduction de base'!$B$55*P119,0) -> 0 | Q158: =IF(Q119<PARAMÈTRES!$AA$87,'Déduction de base'!$B$55*Q119,0) -> 0 | R158: =IF(R119<PARAMÈTRES!$AA$87,'Déduction de base'!$B$55*R119,0) -> 0 | S158: =IF(S119<PARAMÈTRES!$AA$87,'Déduction de base'!$B$55*S119,0) -> 0 | T158: =IF(T119<PARAMÈTRES!$AA$87,'Déduction de base'!$B$55*T119,0) -> 0 | U158: =IF(U119<PARAMÈTRES!$AA$87,'Déduction de base'!$B$55*U119,0) -> 0
C159: =IF(AND(C119>PARAMÈTRES!$Z$88,C119<PARAMÈTRES!$AA$88),('Déduction de base'!$B$55*PARAMÈTRES!$AA$87)+(('Déduction de base'!$B$55-0.023)*(C119-PARAMÈTRES!$AA$87)),0) ->  | D159: =IF(AND(D119>PARAMÈTRES!$Z$88,D119<PARAMÈTRES!$AA$88),('Déduction de base'!$B$55*PARAMÈTRES!$AA$87)+(('Déduction de base'!$B$55-0.023)*(D119-PARAMÈTRES!$AA$87)),0) ->  | E159: =IF(AND(E119>PARAMÈTRES!$Z$88,E119<PARAMÈTRES!$AA$88),('Déduction de base'!$B$55*PARAMÈTRES!$AA$87)+(('Déduction de base'!$B$55-0.023)*(E119-PARAMÈTRES!$AA$87)),0) ->  | F159: =IF(AND(F119>PARAMÈTRES!$Z$88,F119<PARAMÈTRES!$AA$88),('Déduction de base'!$B$55*PARAMÈTRES!$AA$87)+(('Déduction de base'!$B$55-0.023)*(F119-PARAMÈTRES!$AA$87)),0) ->  | G159: =IF(AND(G119>PARAMÈTRES!$Z$88,G119<PARAMÈTRES!$AA$88),('Déduction de base'!$B$55*PARAMÈTRES!$AA$87)+(('Déduction de base'!$B$55-0.023)*(G119-PARAMÈTRES!$AA$87)),0) ->  | H159: =IF(AND(H119>PARAMÈTRES!$Z$88,H119<PARAMÈTRES!$AA$88),('Déduction de base'!$B$55*PARAMÈTRES!$AA$87)+(('Déduction de base'!$B$55-0.023)*(H119-PARAMÈTRES!$AA$87)),0) ->  | I159: =IF(AND(I119>PARAMÈTRES!$Z$88,I119<PARAMÈTRES!$AA$88),('Déduction de base'!$B$55*PARAMÈTRES!$AA$87)+(('Déduction de base'!$B$55-0.023)*(I119-PARAMÈTRES!$AA$87)),0) ->  | J159: =IF(AND(J119>PARAMÈTRES!$Z$88,J119<PARAMÈTRES!$AA$88),('Déduction de base'!$B$55*PARAMÈTRES!$AA$87)+(('Déduction de base'!$B$55-0.023)*(J119-PARAMÈTRES!$AA$87)),0) ->  | K159: =IF(AND(K119>PARAMÈTRES!$Z$88,K119<PARAMÈTRES!$AA$88),('Déduction de base'!$B$55*PARAMÈTRES!$AA$87)+(('Déduction de base'!$B$55-0.023)*(K119-PARAMÈTRES!$AA$87)),0) ->  | L159: =IF(AND(L119>PARAMÈTRES!$Z$88,L119<PARAMÈTRES!$AA$88),('Déduction de base'!$B$55*PARAMÈTRES!$AA$87)+(('Déduction de base'!$B$55-0.023)*(L119-PARAMÈTRES!$AA$87)),0) ->  | M159: =IF(AND(M119>PARAMÈTRES!$Z$88,M119<PARAMÈTRES!$AA$88),('Déduction de base'!$B$55*PARAMÈTRES!$AA$87)+(('Déduction de base'!$B$55-0.023)*(M119-PARAMÈTRES!$AA$87)),0) ->  | N159: =IF(AND(N119>PARAMÈTRES!$Z$88,N119<PARAMÈTRES!$AA$88),('Déduction de base'!$B$55*PARAMÈTRES!$AA$87)+(('Déduction de base'!$B$55-0.023)*(N119-PARAMÈTRES!$AA$87)),0) -> 0 | O159: =IF(AND(O119>PARAMÈTRES!$Z$88,O119<PARAMÈTRES!$AA$88),('Déduction de base'!$B$55*PARAMÈTRES!$AA$87)+(('Déduction de base'!$B$55-0.023)*(O119-PARAMÈTRES!$AA$87)),0) -> 0 | P159: =IF(AND(P119>PARAMÈTRES!$Z$88,P119<PARAMÈTRES!$AA$88),('Déduction de base'!$B$55*PARAMÈTRES!$AA$87)+(('Déduction de base'!$B$55-0.023)*(P119-PARAMÈTRES!$AA$87)),0) -> 0 | Q159: =IF(AND(Q119>PARAMÈTRES!$Z$88,Q119<PARAMÈTRES!$AA$88),('Déduction de base'!$B$55*PARAMÈTRES!$AA$87)+(('Déduction de base'!$B$55-0.023)*(Q119-PARAMÈTRES!$AA$87)),0) -> 0 | R159: =IF(AND(R119>PARAMÈTRES!$Z$88,R119<PARAMÈTRES!$AA$88),('Déduction de base'!$B$55*PARAMÈTRES!$AA$87)+(('Déduction de base'!$B$55-0.023)*(R119-PARAMÈTRES!$AA$87)),0) -> 0 | S159: =IF(AND(S119>PARAMÈTRES!$Z$88,S119<PARAMÈTRES!$AA$88),('Déduction de base'!$B$55*PARAMÈTRES!$AA$87)+(('Déduction de base'!$B$55-0.023)*(S119-PARAMÈTRES!$AA$87)),0) -> 0 | T159: =IF(AND(T119>PARAMÈTRES!$Z$88,T119<PARAMÈTRES!$AA$88),('Déduction de base'!$B$55*PARAMÈTRES!$AA$87)+(('Déduction de base'!$B$55-0.023)*(T119-PARAMÈTRES!$AA$87)),0) -> 0 | U159: =IF(AND(U119>PARAMÈTRES!$Z$88,U119<PARAMÈTRES!$AA$88),('Déduction de base'!$B$55*PARAMÈTRES!$AA$87)+(('Déduction de base'!$B$55-0.023)*(U119-PARAMÈTRES!$AA$87)),0) -> 0
C160: =IF(C119>PARAMÈTRES!$Z$89,('Déduction de base'!$B$55*PARAMÈTRES!$AA$87)+(('Déduction de base'!$B$55-0.023)*(PARAMÈTRES!$Z$89-PARAMÈTRES!$AA$87))+('Déduction de base'!$B$55*(C119-PARAMÈTRES!$Z$89)),0) ->  | D160: =IF(D119>PARAMÈTRES!$Z$89,('Déduction de base'!$B$55*PARAMÈTRES!$AA$87)+(('Déduction de base'!$B$55-0.023)*(PARAMÈTRES!$Z$89-PARAMÈTRES!$AA$87))+('Déduction de base'!$B$55*(D119-PARAMÈTRES!$Z$89)),0) ->  | E160: =IF(E119>PARAMÈTRES!$Z$89,('Déduction de base'!$B$55*PARAMÈTRES!$AA$87)+(('Déduction de base'!$B$55-0.023)*(PARAMÈTRES!$Z$89-PARAMÈTRES!$AA$87))+('Déduction de base'!$B$55*(E119-PARAMÈTRES!$Z$89)),0) ->  | F160: =IF(F119>PARAMÈTRES!$Z$89,('Déduction de base'!$B$55*PARAMÈTRES!$AA$87)+(('Déduction de base'!$B$55-0.023)*(PARAMÈTRES!$Z$89-PARAMÈTRES!$AA$87))+('Déduction de base'!$B$55*(F119-PARAMÈTRES!$Z$89)),0) ->  | G160: =IF(G119>PARAMÈTRES!$Z$89,('Déduction de base'!$B$55*PARAMÈTRES!$AA$87)+(('Déduction de base'!$B$55-0.023)*(PARAMÈTRES!$Z$89-PARAMÈTRES!$AA$87))+('Déduction de base'!$B$55*(G119-PARAMÈTRES!$Z$89)),0) ->  | H160: =IF(H119>PARAMÈTRES!$Z$89,('Déduction de base'!$B$55*PARAMÈTRES!$AA$87)+(('Déduction de base'!$B$55-0.023)*(PARAMÈTRES!$Z$89-PARAMÈTRES!$AA$87))+('Déduction de base'!$B$55*(H119-PARAMÈTRES!$Z$89)),0) ->  | I160: =IF(I119>PARAMÈTRES!$Z$89,('Déduction de base'!$B$55*PARAMÈTRES!$AA$87)+(('Déduction de base'!$B$55-0.023)*(PARAMÈTRES!$Z$89-PARAMÈTRES!$AA$87))+('Déduction de base'!$B$55*(I119-PARAMÈTRES!$Z$89)),0) ->  | J160: =IF(J119>PARAMÈTRES!$Z$89,('Déduction de base'!$B$55*PARAMÈTRES!$AA$87)+(('Déduction de base'!$B$55-0.023)*(PARAMÈTRES!$Z$89-PARAMÈTRES!$AA$87))+('Déduction de base'!$B$55*(J119-PARAMÈTRES!$Z$89)),0) ->  | K160: =IF(K119>PARAMÈTRES!$Z$89,('Déduction de base'!$B$55*PARAMÈTRES!$AA$87)+(('Déduction de base'!$B$55-0.023)*(PARAMÈTRES!$Z$89-PARAMÈTRES!$AA$87))+('Déduction de base'!$B$55*(K119-PARAMÈTRES!$Z$89)),0) ->  | L160: =IF(L119>PARAMÈTRES!$Z$89,('Déduction de base'!$B$55*PARAMÈTRES!$AA$87)+(('Déduction de base'!$B$55-0.023)*(PARAMÈTRES!$Z$89-PARAMÈTRES!$AA$87))+('Déduction de base'!$B$55*(L119-PARAMÈTRES!$Z$89)),0) ->  | M160: =IF(M119>PARAMÈTRES!$Z$89,('Déduction de base'!$B$55*PARAMÈTRES!$AA$87)+(('Déduction de base'!$B$55-0.023)*(PARAMÈTRES!$Z$89-PARAMÈTRES!$AA$87))+('Déduction de base'!$B$55*(M119-PARAMÈTRES!$Z$89)),0) ->  | N160: =IF(N119>PARAMÈTRES!$Z$89,('Déduction de base'!$B$55*PARAMÈTRES!$AA$87)+(('Déduction de base'!$B$55-0.023)*(PARAMÈTRES!$Z$89-PARAMÈTRES!$AA$87))+('Déduction de base'!$B$55*(N119-PARAMÈTRES!$Z$89)),0) -> 0 | O160: =IF(O119>PARAMÈTRES!$Z$89,('Déduction de base'!$B$55*PARAMÈTRES!$AA$87)+(('Déduction de base'!$B$55-0.023)*(PARAMÈTRES!$Z$89-PARAMÈTRES!$AA$87))+('Déduction de base'!$B$55*(O119-PARAMÈTRES!$Z$89)),0) -> 0 | P160: =IF(P119>PARAMÈTRES!$Z$89,('Déduction de base'!$B$55*PARAMÈTRES!$AA$87)+(('Déduction de base'!$B$55-0.023)*(PARAMÈTRES!$Z$89-PARAMÈTRES!$AA$87))+('Déduction de base'!$B$55*(P119-PARAMÈTRES!$Z$89)),0) -> 0 | Q160: =IF(Q119>PARAMÈTRES!$Z$89,('Déduction de base'!$B$55*PARAMÈTRES!$AA$87)+(('Déduction de base'!$B$55-0.023)*(PARAMÈTRES!$Z$89-PARAMÈTRES!$AA$87))+('Déduction de base'!$B$55*(Q119-PARAMÈTRES!$Z$89)),0) -> 0 | R160: =IF(R119>PARAMÈTRES!$Z$89,('Déduction de base'!$B$55*PARAMÈTRES!$AA$87)+(('Déduction de base'!$B$55-0.023)*(PARAMÈTRES!$Z$89-PARAMÈTRES!$AA$87))+('Déduction de base'!$B$55*(R119-PARAMÈTRES!$Z$89)),0) -> 0 | S160: =IF(S119>PARAMÈTRES!$Z$89,('Déduction de base'!$B$55*PARAMÈTRES!$AA$87)+(('Déduction de base'!$B$55-0.023)*(PARAMÈTRES!$Z$89-PARAMÈTRES!$AA$87))+('Déduction de base'!$B$55*(S119-PARAMÈTRES!$Z$89)),0) -> 0 | T160: =IF(T119>PARAMÈTRES!$Z$89,('Déduction de base'!$B$55*PARAMÈTRES!$AA$87)+(('Déduction de base'!$B$55-0.023)*(PARAMÈTRES!$Z$89-PARAMÈTRES!$AA$87))+('Déduction de base'!$B$55*(T119-PARAMÈTRES!$Z$89)),0) -> 0 | U160: =IF(U119>PARAMÈTRES!$Z$89,('Déduction de base'!$B$55*PARAMÈTRES!$AA$87)+(('Déduction de base'!$B$55-0.023)*(PARAMÈTRES!$Z$89-PARAMÈTRES!$AA$87))+('Déduction de base'!$B$55*(U119-PARAMÈTRES!$Z$89)),0) -> 0
C161: =SUM(C158:C160) ->  | M161: =SUM(M158:M160) ->  | N161: =SUM(N158:N160) -> 0 | O161: =SUM(O158:O160) -> 0 | P161: =SUM(P158:P160) -> 0 | Q161: 0 | R161: 0 | S161: 0 | T161: 0 | U161: 0
B162: - | C162: - | D162: - | E162: - | F162: - | G162: - | H162: - | I162: - | J162: - | K162: - | L162: - | M162: - | N162: - | O162: - | P162: - | Q162: - | R162: - | S162: - | T162: - | U162: -
B163: RRMSQ | C163: =IF(C119<PARAMÈTRES!$AA$87,'Déduction de base'!$B$44*C119,0) ->  | D163: =IF(D119<PARAMÈTRES!$AA$87,'Déduction de base'!$B$44*D119,0) ->  | E163: =IF(E119<PARAMÈTRES!$AA$87,'Déduction de base'!$B$44*E119,0) ->  | F163: =IF(F119<PARAMÈTRES!$AA$87,'Déduction de base'!$B$44*F119,0) ->  | G163: =IF(G119<PARAMÈTRES!$AA$87,'Déduction de base'!$B$44*G119,0) ->  | H163: =IF(H119<PARAMÈTRES!$AA$87,'Déduction de base'!$B$44*H119,0) ->  | I163: =IF(I119<PARAMÈTRES!$AA$87,'Déduction de base'!$B$44*I119,0) ->  | J163: =IF(J119<PARAMÈTRES!$AA$87,'Déduction de base'!$B$44*J119,0) ->  | K163: =IF(K119<PARAMÈTRES!$AA$87,'Déduction de base'!$B$44*K119,0) ->  | L163: =IF(L119<PARAMÈTRES!$AA$87,'Déduction de base'!$B$44*L119,0) ->  | M163: =IF(M119<PARAMÈTRES!$AA$87,'Déduction de base'!$B$44*M119,0) ->  | N163: =IF(N119<PARAMÈTRES!$AA$87,'Déduction de base'!$B$44*N119,0) -> 0 | O163: =IF(O119<PARAMÈTRES!$AA$87,'Déduction de base'!$B$44*O119,0) -> 0 | P163: =IF(P119<PARAMÈTRES!$AA$87,'Déduction de base'!$B$44*P119,0) -> 0 | Q163: =IF(Q119<PARAMÈTRES!$AA$87,'Déduction de base'!$B$44*Q119,0) -> 0 | R163: =IF(R119<PARAMÈTRES!$AA$87,'Déduction de base'!$B$44*R119,0) -> 0 | S163: =IF(S119<PARAMÈTRES!$AA$87,'Déduction de base'!$B$44*S119,0) -> 0 | T163: =IF(T119<PARAMÈTRES!$AA$87,'Déduction de base'!$B$44*T119,0) -> 0 | U163: =IF(U119<PARAMÈTRES!$AA$87,'Déduction de base'!$B$44*U119,0) -> 0
C164: =IF(AND(C119>PARAMÈTRES!$Z$88,C119<PARAMÈTRES!$AA$88),('Déduction de base'!$B$44*PARAMÈTRES!$AA$87)+(('Déduction de base'!$B$44-0.018)*(C119-PARAMÈTRES!$AA$87)),0) ->  | D164: =IF(AND(D119>PARAMÈTRES!$Z$88,D119<PARAMÈTRES!$AA$88),('Déduction de base'!$B$44*PARAMÈTRES!$AA$87)+(('Déduction de base'!$B$44-0.018)*(D119-PARAMÈTRES!$AA$87)),0) ->  | E164: =IF(AND(E119>PARAMÈTRES!$Z$88,E119<PARAMÈTRES!$AA$88),('Déduction de base'!$B$44*PARAMÈTRES!$AA$87)+(('Déduction de base'!$B$44-0.018)*(E119-PARAMÈTRES!$AA$87)),0) ->  | F164: =IF(AND(F119>PARAMÈTRES!$Z$88,F119<PARAMÈTRES!$AA$88),('Déduction de base'!$B$44*PARAMÈTRES!$AA$87)+(('Déduction de base'!$B$44-0.018)*(F119-PARAMÈTRES!$AA$87)),0) ->  | G164: =IF(AND(G119>PARAMÈTRES!$Z$88,G119<PARAMÈTRES!$AA$88),('Déduction de base'!$B$44*PARAMÈTRES!$AA$87)+(('Déduction de base'!$B$44-0.018)*(G119-PARAMÈTRES!$AA$87)),0) ->  | H164: =IF(AND(H119>PARAMÈTRES!$Z$88,H119<PARAMÈTRES!$AA$88),('Déduction de base'!$B$44*PARAMÈTRES!$AA$87)+(('Déduction de base'!$B$44-0.018)*(H119-PARAMÈTRES!$AA$87)),0) ->  | I164: =IF(AND(I119>PARAMÈTRES!$Z$88,I119<PARAMÈTRES!$AA$88),('Déduction de base'!$B$44*PARAMÈTRES!$AA$87)+(('Déduction de base'!$B$44-0.018)*(I119-PARAMÈTRES!$AA$87)),0) ->  | J164: =IF(AND(J119>PARAMÈTRES!$Z$88,J119<PARAMÈTRES!$AA$88),('Déduction de base'!$B$44*PARAMÈTRES!$AA$87)+(('Déduction de base'!$B$44-0.018)*(J119-PARAMÈTRES!$AA$87)),0) ->  | K164: =IF(AND(K119>PARAMÈTRES!$Z$88,K119<PARAMÈTRES!$AA$88),('Déduction de base'!$B$44*PARAMÈTRES!$AA$87)+(('Déduction de base'!$B$44-0.018)*(K119-PARAMÈTRES!$AA$87)),0) ->  | L164: =IF(AND(L119>PARAMÈTRES!$Z$88,L119<PARAMÈTRES!$AA$88),('Déduction de base'!$B$44*PARAMÈTRES!$AA$87)+(('Déduction de base'!$B$44-0.018)*(L119-PARAMÈTRES!$AA$87)),0) ->  | M164: =IF(AND(M119>PARAMÈTRES!$Z$88,M119<PARAMÈTRES!$AA$88),('Déduction de base'!$B$44*PARAMÈTRES!$AA$87)+(('Déduction de base'!$B$44-0.018)*(M119-PARAMÈTRES!$AA$87)),0) ->  | N164: =IF(AND(N119>PARAMÈTRES!$Z$88,N119<PARAMÈTRES!$AA$88),('Déduction de base'!$B$44*PARAMÈTRES!$AA$87)+(('Déduction de base'!$B$44-0.018)*(N119-PARAMÈTRES!$AA$87)),0) -> 0 | O164: =IF(AND(O119>PARAMÈTRES!$Z$88,O119<PARAMÈTRES!$AA$88),('Déduction de base'!$B$44*PARAMÈTRES!$AA$87)+(('Déduction de base'!$B$44-0.018)*(O119-PARAMÈTRES!$AA$87)),0) -> 0 | P164: =IF(AND(P119>PARAMÈTRES!$Z$88,P119<PARAMÈTRES!$AA$88),('Déduction de base'!$B$44*PARAMÈTRES!$AA$87)+(('Déduction de base'!$B$44-0.018)*(P119-PARAMÈTRES!$AA$87)),0) -> 0 | Q164: =IF(AND(Q119>PARAMÈTRES!$Z$88,Q119<PARAMÈTRES!$AA$88),('Déduction de base'!$B$44*PARAMÈTRES!$AA$87)+(('Déduction de base'!$B$44-0.018)*(Q119-PARAMÈTRES!$AA$87)),0) -> 0 | R164: =IF(AND(R119>PARAMÈTRES!$Z$88,R119<PARAMÈTRES!$AA$88),('Déduction de base'!$B$44*PARAMÈTRES!$AA$87)+(('Déduction de base'!$B$44-0.018)*(R119-PARAMÈTRES!$AA$87)),0) -> 0 | S164: =IF(AND(S119>PARAMÈTRES!$Z$88,S119<PARAMÈTRES!$AA$88),('Déduction de base'!$B$44*PARAMÈTRES!$AA$87)+(('Déduction de base'!$B$44-0.018)*(S119-PARAMÈTRES!$AA$87)),0) -> 0 | T164: =IF(AND(T119>PARAMÈTRES!$Z$88,T119<PARAMÈTRES!$AA$88),('Déduction de base'!$B$44*PARAMÈTRES!$AA$87)+(('Déduction de base'!$B$44-0.018)*(T119-PARAMÈTRES!$AA$87)),0) -> 0 | U164: =IF(AND(U119>PARAMÈTRES!$Z$88,U119<PARAMÈTRES!$AA$88),('Déduction de base'!$B$44*PARAMÈTRES!$AA$87)+(('Déduction de base'!$B$44-0.018)*(U119-PARAMÈTRES!$AA$87)),0) -> 0
C165: =IF(C119>PARAMÈTRES!$Z$89,('Déduction de base'!$B$44*PARAMÈTRES!$AA$87)+(('Déduction de base'!$B$44-0.018)*(PARAMÈTRES!$Z$89-PARAMÈTRES!$AA$87))+('Déduction de base'!$B$44*(C119-PARAMÈTRES!$Z$89)),0) ->  | D165: =IF(D119>PARAMÈTRES!$Z$89,('Déduction de base'!$B$44*PARAMÈTRES!$AA$87)+(('Déduction de base'!$B$44-0.018)*(PARAMÈTRES!$Z$89-PARAMÈTRES!$AA$87))+('Déduction de base'!$B$44*(D119-PARAMÈTRES!$Z$89)),0) ->  | E165: =IF(E119>PARAMÈTRES!$Z$89,('Déduction de base'!$B$44*PARAMÈTRES!$AA$87)+(('Déduction de base'!$B$44-0.018)*(PARAMÈTRES!$Z$89-PARAMÈTRES!$AA$87))+('Déduction de base'!$B$44*(E119-PARAMÈTRES!$Z$89)),0) ->  | F165: =IF(F119>PARAMÈTRES!$Z$89,('Déduction de base'!$B$44*PARAMÈTRES!$AA$87)+(('Déduction de base'!$B$44-0.018)*(PARAMÈTRES!$Z$89-PARAMÈTRES!$AA$87))+('Déduction de base'!$B$44*(F119-PARAMÈTRES!$Z$89)),0) ->  | G165: =IF(G119>PARAMÈTRES!$Z$89,('Déduction de base'!$B$44*PARAMÈTRES!$AA$87)+(('Déduction de base'!$B$44-0.018)*(PARAMÈTRES!$Z$89-PARAMÈTRES!$AA$87))+('Déduction de base'!$B$44*(G119-PARAMÈTRES!$Z$89)),0) ->  | H165: =IF(H119>PARAMÈTRES!$Z$89,('Déduction de base'!$B$44*PARAMÈTRES!$AA$87)+(('Déduction de base'!$B$44-0.018)*(PARAMÈTRES!$Z$89-PARAMÈTRES!$AA$87))+('Déduction de base'!$B$44*(H119-PARAMÈTRES!$Z$89)),0) ->  | I165: =IF(I119>PARAMÈTRES!$Z$89,('Déduction de base'!$B$44*PARAMÈTRES!$AA$87)+(('Déduction de base'!$B$44-0.018)*(PARAMÈTRES!$Z$89-PARAMÈTRES!$AA$87))+('Déduction de base'!$B$44*(I119-PARAMÈTRES!$Z$89)),0) ->  | J165: =IF(J119>PARAMÈTRES!$Z$89,('Déduction de base'!$B$44*PARAMÈTRES!$AA$87)+(('Déduction de base'!$B$44-0.018)*(PARAMÈTRES!$Z$89-PARAMÈTRES!$AA$87))+('Déduction de base'!$B$44*(J119-PARAMÈTRES!$Z$89)),0) ->  | K165: =IF(K119>PARAMÈTRES!$Z$89,('Déduction de base'!$B$44*PARAMÈTRES!$AA$87)+(('Déduction de base'!$B$44-0.018)*(PARAMÈTRES!$Z$89-PARAMÈTRES!$AA$87))+('Déduction de base'!$B$44*(K119-PARAMÈTRES!$Z$89)),0) ->  | L165: =IF(L119>PARAMÈTRES!$Z$89,('Déduction de base'!$B$44*PARAMÈTRES!$AA$87)+(('Déduction de base'!$B$44-0.018)*(PARAMÈTRES!$Z$89-PARAMÈTRES!$AA$87))+('Déduction de base'!$B$44*(L119-PARAMÈTRES!$Z$89)),0) ->  | M165: =IF(M119>PARAMÈTRES!$Z$89,('Déduction de base'!$B$44*PARAMÈTRES!$AA$87)+(('Déduction de base'!$B$44-0.018)*(PARAMÈTRES!$Z$89-PARAMÈTRES!$AA$87))+('Déduction de base'!$B$44*(M119-PARAMÈTRES!$Z$89)),0) ->  | N165: =IF(N119>PARAMÈTRES!$Z$89,('Déduction de base'!$B$44*PARAMÈTRES!$AA$87)+(('Déduction de base'!$B$44-0.018)*(PARAMÈTRES!$Z$89-PARAMÈTRES!$AA$87))+('Déduction de base'!$B$44*(N119-PARAMÈTRES!$Z$89)),0) -> 0 | O165: =IF(O119>PARAMÈTRES!$Z$89,('Déduction de base'!$B$44*PARAMÈTRES!$AA$87)+(('Déduction de base'!$B$44-0.018)*(PARAMÈTRES!$Z$89-PARAMÈTRES!$AA$87))+('Déduction de base'!$B$44*(O119-PARAMÈTRES!$Z$89)),0) -> 0 | P165: =IF(P119>PARAMÈTRES!$Z$89,('Déduction de base'!$B$44*PARAMÈTRES!$AA$87)+(('Déduction de base'!$B$44-0.018)*(PARAMÈTRES!$Z$89-PARAMÈTRES!$AA$87))+('Déduction de base'!$B$44*(P119-PARAMÈTRES!$Z$89)),0) -> 0 | Q165: =IF(Q119>PARAMÈTRES!$Z$89,('Déduction de base'!$B$44*PARAMÈTRES!$AA$87)+(('Déduction de base'!$B$44-0.018)*(PARAMÈTRES!$Z$89-PARAMÈTRES!$AA$87))+('Déduction de base'!$B$44*(Q119-PARAMÈTRES!$Z$89)),0) -> 0 | R165: =IF(R119>PARAMÈTRES!$Z$89,('Déduction de base'!$B$44*PARAMÈTRES!$AA$87)+(('Déduction de base'!$B$44-0.018)*(PARAMÈTRES!$Z$89-PARAMÈTRES!$AA$87))+('Déduction de base'!$B$44*(R119-PARAMÈTRES!$Z$89)),0) -> 0 | S165: =IF(S119>PARAMÈTRES!$Z$89,('Déduction de base'!$B$44*PARAMÈTRES!$AA$87)+(('Déduction de base'!$B$44-0.018)*(PARAMÈTRES!$Z$89-PARAMÈTRES!$AA$87))+('Déduction de base'!$B$44*(S119-PARAMÈTRES!$Z$89)),0) -> 0 | T165: =IF(T119>PARAMÈTRES!$Z$89,('Déduction de base'!$B$44*PARAMÈTRES!$AA$87)+(('Déduction de base'!$B$44-0.018)*(PARAMÈTRES!$Z$89-PARAMÈTRES!$AA$87))+('Déduction de base'!$B$44*(T119-PARAMÈTRES!$Z$89)),0) -> 0 | U165: =IF(U119>PARAMÈTRES!$Z$89,('Déduction de base'!$B$44*PARAMÈTRES!$AA$87)+(('Déduction de base'!$B$44-0.018)*(PARAMÈTRES!$Z$89-PARAMÈTRES!$AA$87))+('Déduction de base'!$B$44*(U119-PARAMÈTRES!$Z$89)),0) -> 0
C166: =SUM(C163:C165) ->  | M166: =SUM(M163:M165) ->  | N166: =SUM(N163:N165) -> 0 | O166: =SUM(O163:O165) -> 0 | P166: =SUM(P163:P165) -> 0 | Q166: 0 | R166: 0 | S166: 0 | T166: 0 | U166: 0
B167: - | C167: - | D167: - | E167: - | F167: - | G167: - | H167: - | I167: - | J167: - | K167: - | L167: - | M167: - | N167: - | O167: - | P167: - | Q167: - | R167: - | S167: - | T167: - | U167: -
B168: RRMSQ | C168: =IF(C119<PARAMÈTRES!$AA$87,'Déduction de base'!$B$48*C119,0) ->  | D168: =IF(D119<PARAMÈTRES!$AA$87,'Déduction de base'!$B$48*D119,0) ->  | E168: =IF(E119<PARAMÈTRES!$AA$87,'Déduction de base'!$B$48*E119,0) ->  | F168: =IF(F119<PARAMÈTRES!$AA$87,'Déduction de base'!$B$48*F119,0) ->  | G168: =IF(G119<PARAMÈTRES!$AA$87,'Déduction de base'!$B$48*G119,0) ->  | H168: =IF(H119<PARAMÈTRES!$AA$87,'Déduction de base'!$B$48*H119,0) ->  | I168: =IF(I119<PARAMÈTRES!$AA$87,'Déduction de base'!$B$48*I119,0) ->  | J168: =IF(J119<PARAMÈTRES!$AA$87,'Déduction de base'!$B$48*J119,0) ->  | K168: =IF(K119<PARAMÈTRES!$AA$87,'Déduction de base'!$B$48*K119,0) ->  | L168: =IF(L119<PARAMÈTRES!$AA$87,'Déduction de base'!$B$48*L119,0) ->  | M168: =IF(M119<PARAMÈTRES!$AA$87,'Déduction de base'!$B$48*M119,0) ->  | N168: =IF(N119<PARAMÈTRES!$AA$87,'Déduction de base'!$B$48*N119,0) -> 0 | O168: =IF(O119<PARAMÈTRES!$AA$87,'Déduction de base'!$B$48*O119,0) -> 0 | P168: =IF(P119<PARAMÈTRES!$AA$87,'Déduction de base'!$B$48*P119,0) -> 0 | Q168: =IF(Q119<PARAMÈTRES!$AA$87,'Déduction de base'!$B$48*Q119,0) -> 0 | R168: =IF(R119<PARAMÈTRES!$AA$87,'Déduction de base'!$B$48*R119,0) -> 0 | S168: =IF(S119<PARAMÈTRES!$AA$87,'Déduction de base'!$B$48*S119,0) -> 0 | T168: =IF(T119<PARAMÈTRES!$AA$87,'Déduction de base'!$B$48*T119,0) -> 0 | U168: =IF(U119<PARAMÈTRES!$AA$87,'Déduction de base'!$B$48*U119,0) -> 0
B169: (Ex-policiers d' autoroute) | C169: =IF(AND(C119>PARAMÈTRES!$Z$88,C119<PARAMÈTRES!$AA$88),('Déduction de base'!$B$48*PARAMÈTRES!$AA$87)+(('Déduction de base'!$B$48-0.018)*(C119-PARAMÈTRES!$AA$87)),0) ->  | D169: =IF(AND(D119>PARAMÈTRES!$Z$88,D119<PARAMÈTRES!$AA$88),('Déduction de base'!$B$48*PARAMÈTRES!$AA$87)+(('Déduction de base'!$B$48-0.018)*(D119-PARAMÈTRES!$AA$87)),0) ->  | E169: =IF(AND(E119>PARAMÈTRES!$Z$88,E119<PARAMÈTRES!$AA$88),('Déduction de base'!$B$48*PARAMÈTRES!$AA$87)+(('Déduction de base'!$B$48-0.018)*(E119-PARAMÈTRES!$AA$87)),0) ->  | F169: =IF(AND(F119>PARAMÈTRES!$Z$88,F119<PARAMÈTRES!$AA$88),('Déduction de base'!$B$48*PARAMÈTRES!$AA$87)+(('Déduction de base'!$B$48-0.018)*(F119-PARAMÈTRES!$AA$87)),0) ->  | G169: =IF(AND(G119>PARAMÈTRES!$Z$88,G119<PARAMÈTRES!$AA$88),('Déduction de base'!$B$48*PARAMÈTRES!$AA$87)+(('Déduction de base'!$B$48-0.018)*(G119-PARAMÈTRES!$AA$87)),0) ->  | H169: =IF(AND(H119>PARAMÈTRES!$Z$88,H119<PARAMÈTRES!$AA$88),('Déduction de base'!$B$48*PARAMÈTRES!$AA$87)+(('Déduction de base'!$B$48-0.018)*(H119-PARAMÈTRES!$AA$87)),0) ->  | I169: =IF(AND(I119>PARAMÈTRES!$Z$88,I119<PARAMÈTRES!$AA$88),('Déduction de base'!$B$48*PARAMÈTRES!$AA$87)+(('Déduction de base'!$B$48-0.018)*(I119-PARAMÈTRES!$AA$87)),0) ->  | J169: =IF(AND(J119>PARAMÈTRES!$Z$88,J119<PARAMÈTRES!$AA$88),('Déduction de base'!$B$48*PARAMÈTRES!$AA$87)+(('Déduction de base'!$B$48-0.018)*(J119-PARAMÈTRES!$AA$87)),0) ->  | K169: =IF(AND(K119>PARAMÈTRES!$Z$88,K119<PARAMÈTRES!$AA$88),('Déduction de base'!$B$48*PARAMÈTRES!$AA$87)+(('Déduction de base'!$B$48-0.018)*(K119-PARAMÈTRES!$AA$87)),0) ->  | L169: =IF(AND(L119>PARAMÈTRES!$Z$88,L119<PARAMÈTRES!$AA$88),('Déduction de base'!$B$48*PARAMÈTRES!$AA$87)+(('Déduction de base'!$B$48-0.018)*(L119-PARAMÈTRES!$AA$87)),0) ->  | M169: =IF(AND(M119>PARAMÈTRES!$Z$88,M119<PARAMÈTRES!$AA$88),('Déduction de base'!$B$48*PARAMÈTRES!$AA$87)+(('Déduction de base'!$B$48-0.018)*(M119-PARAMÈTRES!$AA$87)),0) ->  | N169: =IF(AND(N119>PARAMÈTRES!$Z$88,N119<PARAMÈTRES!$AA$88),('Déduction de base'!$B$48*PARAMÈTRES!$AA$87)+(('Déduction de base'!$B$48-0.018)*(N119-PARAMÈTRES!$AA$87)),0) -> 0 | O169: =IF(AND(O119>PARAMÈTRES!$Z$88,O119<PARAMÈTRES!$AA$88),('Déduction de base'!$B$48*PARAMÈTRES!$AA$87)+(('Déduction de base'!$B$48-0.018)*(O119-PARAMÈTRES!$AA$87)),0) -> 0 | P169: =IF(AND(P119>PARAMÈTRES!$Z$88,P119<PARAMÈTRES!$AA$88),('Déduction de base'!$B$48*PARAMÈTRES!$AA$87)+(('Déduction de base'!$B$48-0.018)*(P119-PARAMÈTRES!$AA$87)),0) -> 0 | Q169: =IF(AND(Q119>PARAMÈTRES!$Z$88,Q119<PARAMÈTRES!$AA$88),('Déduction de base'!$B$48*PARAMÈTRES!$AA$87)+(('Déduction de base'!$B$48-0.018)*(Q119-PARAMÈTRES!$AA$87)),0) -> 0 | R169: =IF(AND(R119>PARAMÈTRES!$Z$88,R119<PARAMÈTRES!$AA$88),('Déduction de base'!$B$48*PARAMÈTRES!$AA$87)+(('Déduction de base'!$B$48-0.018)*(R119-PARAMÈTRES!$AA$87)),0) -> 0 | S169: =IF(AND(S119>PARAMÈTRES!$Z$88,S119<PARAMÈTRES!$AA$88),('Déduction de base'!$B$48*PARAMÈTRES!$AA$87)+(('Déduction de base'!$B$48-0.018)*(S119-PARAMÈTRES!$AA$87)),0) -> 0 | T169: =IF(AND(T119>PARAMÈTRES!$Z$88,T119<PARAMÈTRES!$AA$88),('Déduction de base'!$B$48*PARAMÈTRES!$AA$87)+(('Déduction de base'!$B$48-0.018)*(T119-PARAMÈTRES!$AA$87)),0) -> 0 | U169: =IF(AND(U119>PARAMÈTRES!$Z$88,U119<PARAMÈTRES!$AA$88),('Déduction de base'!$B$48*PARAMÈTRES!$AA$87)+(('Déduction de base'!$B$48-0.018)*(U119-PARAMÈTRES!$AA$87)),0) -> 0
C170: =IF(C119>PARAMÈTRES!$Z$89,('Déduction de base'!$B$48*PARAMÈTRES!$AA$87)+(('Déduction de base'!$B$48-0.018)*(PARAMÈTRES!$Z$89-PARAMÈTRES!$AA$87))+('Déduction de base'!$B$48*(C119-PARAMÈTRES!$Z$89)),0) ->  | D170: =IF(D119>PARAMÈTRES!$Z$89,('Déduction de base'!$B$48*PARAMÈTRES!$AA$87)+(('Déduction de base'!$B$48-0.018)*(PARAMÈTRES!$Z$89-PARAMÈTRES!$AA$87))+('Déduction de base'!$B$48*(D119-PARAMÈTRES!$Z$89)),0) ->  | E170: =IF(E119>PARAMÈTRES!$Z$89,('Déduction de base'!$B$48*PARAMÈTRES!$AA$87)+(('Déduction de base'!$B$48-0.018)*(PARAMÈTRES!$Z$89-PARAMÈTRES!$AA$87))+('Déduction de base'!$B$48*(E119-PARAMÈTRES!$Z$89)),0) ->  | F170: =IF(F119>PARAMÈTRES!$Z$89,('Déduction de base'!$B$48*PARAMÈTRES!$AA$87)+(('Déduction de base'!$B$48-0.018)*(PARAMÈTRES!$Z$89-PARAMÈTRES!$AA$87))+('Déduction de base'!$B$48*(F119-PARAMÈTRES!$Z$89)),0) ->  | G170: =IF(G119>PARAMÈTRES!$Z$89,('Déduction de base'!$B$48*PARAMÈTRES!$AA$87)+(('Déduction de base'!$B$48-0.018)*(PARAMÈTRES!$Z$89-PARAMÈTRES!$AA$87))+('Déduction de base'!$B$48*(G119-PARAMÈTRES!$Z$89)),0) ->  | H170: =IF(H119>PARAMÈTRES!$Z$89,('Déduction de base'!$B$48*PARAMÈTRES!$AA$87)+(('Déduction de base'!$B$48-0.018)*(PARAMÈTRES!$Z$89-PARAMÈTRES!$AA$87))+('Déduction de base'!$B$48*(H119-PARAMÈTRES!$Z$89)),0) ->  | I170: =IF(I119>PARAMÈTRES!$Z$89,('Déduction de base'!$B$48*PARAMÈTRES!$AA$87)+(('Déduction de base'!$B$48-0.018)*(PARAMÈTRES!$Z$89-PARAMÈTRES!$AA$87))+('Déduction de base'!$B$48*(I119-PARAMÈTRES!$Z$89)),0) ->  | J170: =IF(J119>PARAMÈTRES!$Z$89,('Déduction de base'!$B$48*PARAMÈTRES!$AA$87)+(('Déduction de base'!$B$48-0.018)*(PARAMÈTRES!$Z$89-PARAMÈTRES!$AA$87))+('Déduction de base'!$B$48*(J119-PARAMÈTRES!$Z$89)),0) ->  | K170: =IF(K119>PARAMÈTRES!$Z$89,('Déduction de base'!$B$48*PARAMÈTRES!$AA$87)+(('Déduction de base'!$B$48-0.018)*(PARAMÈTRES!$Z$89-PARAMÈTRES!$AA$87))+('Déduction de base'!$B$48*(K119-PARAMÈTRES!$Z$89)),0) ->  | L170: =IF(L119>PARAMÈTRES!$Z$89,('Déduction de base'!$B$48*PARAMÈTRES!$AA$87)+(('Déduction de base'!$B$48-0.018)*(PARAMÈTRES!$Z$89-PARAMÈTRES!$AA$87))+('Déduction de base'!$B$48*(L119-PARAMÈTRES!$Z$89)),0) ->  | M170: =IF(M119>PARAMÈTRES!$Z$89,('Déduction de base'!$B$48*PARAMÈTRES!$AA$87)+(('Déduction de base'!$B$48-0.018)*(PARAMÈTRES!$Z$89-PARAMÈTRES!$AA$87))+('Déduction de base'!$B$48*(M119-PARAMÈTRES!$Z$89)),0) ->  | N170: =IF(N119>PARAMÈTRES!$Z$89,('Déduction de base'!$B$48*PARAMÈTRES!$AA$87)+(('Déduction de base'!$B$48-0.018)*(PARAMÈTRES!$Z$89-PARAMÈTRES!$AA$87))+('Déduction de base'!$B$48*(N119-PARAMÈTRES!$Z$89)),0) -> 0 | O170: =IF(O119>PARAMÈTRES!$Z$89,('Déduction de base'!$B$48*PARAMÈTRES!$AA$87)+(('Déduction de base'!$B$48-0.018)*(PARAMÈTRES!$Z$89-PARAMÈTRES!$AA$87))+('Déduction de base'!$B$48*(O119-PARAMÈTRES!$Z$89)),0) -> 0 | P170: =IF(P119>PARAMÈTRES!$Z$89,('Déduction de base'!$B$48*PARAMÈTRES!$AA$87)+(('Déduction de base'!$B$48-0.018)*(PARAMÈTRES!$Z$89-PARAMÈTRES!$AA$87))+('Déduction de base'!$B$48*(P119-PARAMÈTRES!$Z$89)),0) -> 0 | Q170: =IF(Q119>PARAMÈTRES!$Z$89,('Déduction de base'!$B$48*PARAMÈTRES!$AA$87)+(('Déduction de base'!$B$48-0.018)*(PARAMÈTRES!$Z$89-PARAMÈTRES!$AA$87))+('Déduction de base'!$B$48*(Q119-PARAMÈTRES!$Z$89)),0) -> 0 | R170: =IF(R119>PARAMÈTRES!$Z$89,('Déduction de base'!$B$48*PARAMÈTRES!$AA$87)+(('Déduction de base'!$B$48-0.018)*(PARAMÈTRES!$Z$89-PARAMÈTRES!$AA$87))+('Déduction de base'!$B$48*(R119-PARAMÈTRES!$Z$89)),0) -> 0 | S170: =IF(S119>PARAMÈTRES!$Z$89,('Déduction de base'!$B$48*PARAMÈTRES!$AA$87)+(('Déduction de base'!$B$48-0.018)*(PARAMÈTRES!$Z$89-PARAMÈTRES!$AA$87))+('Déduction de base'!$B$48*(S119-PARAMÈTRES!$Z$89)),0) -> 0 | T170: =IF(T119>PARAMÈTRES!$Z$89,('Déduction de base'!$B$48*PARAMÈTRES!$AA$87)+(('Déduction de base'!$B$48-0.018)*(PARAMÈTRES!$Z$89-PARAMÈTRES!$AA$87))+('Déduction de base'!$B$48*(T119-PARAMÈTRES!$Z$89)),0) -> 0 | U170: =IF(U119>PARAMÈTRES!$Z$89,('Déduction de base'!$B$48*PARAMÈTRES!$AA$87)+(('Déduction de base'!$B$48-0.018)*(PARAMÈTRES!$Z$89-PARAMÈTRES!$AA$87))+('Déduction de base'!$B$48*(U119-PARAMÈTRES!$Z$89)),0) -> 0
C171: =SUM(C168:C170) ->  | M171: =SUM(M168:M170) ->  | N171: =SUM(N168:N170) -> 0 | O171: =SUM(O168:O170) -> 0 | P171: =SUM(P168:P170) -> 0 | Q171: 0 | R171: 0 | S171: 0 | T171: 0 | U171: 0
B172: - | C172: - | D172: - | E172: - | F172: - | G172: - | H172: - | I172: - | J172: - | K172: - | L172: - | M172: - | N172: - | O172: - | P172: - | Q172: - | R172: - | S172: - | T172: - | U172: -
B173: RRJCQM | C173: =MAX(C119*'Déduction de base'!$B$57,0) ->  | D173: =MAX(D119*'Déduction de base'!$B$57,0) ->  | E173: =MAX(E119*'Déduction de base'!$B$57,0) ->  | F173: =MAX(F119*'Déduction de base'!$B$57,0) ->  | G173: =MAX(G119*'Déduction de base'!$B$57,0) ->  | H173: =MAX(H119*'Déduction de base'!$B$57,0) ->  | I173: =MAX(I119*'Déduction de base'!$B$57,0) ->  | J173: =MAX(J119*'Déduction de base'!$B$57,0) ->  | K173: =MAX(K119*'Déduction de base'!$B$57,0) ->  | L173: =MAX(L119*'Déduction de base'!$B$57,0) ->  | M173: =MAX(M119*'Déduction de base'!$B$57,0) ->  | N173: =MAX(N119*'Déduction de base'!$B$57,0) -> 0 | O173: =MAX(O119*'Déduction de base'!$B$57,0) -> 0 | P173: =MAX(P119*'Déduction de base'!$B$57,0) -> 0 | Q173: =MAX(Q119*'Déduction de base'!$B$57,0) -> 0 | R173: =MAX(R119*'Déduction de base'!$B$57,0) -> 0 | S173: =MAX(S119*'Déduction de base'!$B$57,0) -> 0 | T173: =MAX(T119*'Déduction de base'!$B$57,0) -> 0 | U173: =MAX(U119*'Déduction de base'!$B$57,0) -> 0
B174: - | C174: - | D174: - | E174: - | F174: - | G174: - | H174: - | I174: - | J174: - | K174: - | L174: - | M174: - | N174: - | O174: - | P174: - | Q174: - | R174: - | S174: - | T174: - | U174: -
B175: RRJCQM - RPS | C175: =MAX(C119*'Déduction de base'!$B$58,0) ->  | D175: =MAX(D119*'Déduction de base'!$B$58,0) ->  | E175: =MAX(E119*'Déduction de base'!$B$58,0) ->  | F175: =MAX(F119*'Déduction de base'!$B$58,0) ->  | G175: =MAX(G119*'Déduction de base'!$B$58,0) ->  | H175: =MAX(H119*'Déduction de base'!$B$58,0) ->  | I175: =MAX(I119*'Déduction de base'!$B$58,0) ->  | J175: =MAX(J119*'Déduction de base'!$B$58,0) ->  | K175: =MAX(K119*'Déduction de base'!$B$58,0) ->  | L175: =MAX(L119*'Déduction de base'!$B$58,0) ->  | M175: =MAX(M119*'Déduction de base'!$B$58,0) ->  | N175: =MAX(N119*'Déduction de base'!$B$58,0) -> 0 | O175: =MAX(O119*'Déduction de base'!$B$58,0) -> 0 | P175: =MAX(P119*'Déduction de base'!$B$58,0) -> 0 | Q175: =MAX(Q119*'Déduction de base'!$B$58,0) -> 0 | R175: =MAX(R119*'Déduction de base'!$B$58,0) -> 0 | S175: =MAX(S119*'Déduction de base'!$B$58,0) -> 0 | T175: =MAX(T119*'Déduction de base'!$B$58,0) -> 0 | U175: =MAX(U119*'Déduction de base'!$B$58,0) -> 0
B176: - | C176: - | D176: - | E176: - | F176: - | G176: - | H176: - | I176: - | J176: - | K176: - | L176: - | M176: - | N176: - | O176: - | P176: - | Q176: - | R176: - | S176: - | T176: - | U176: -
B177: RRJCQM 21,7 ans + | C177: =MAX(C119*'Déduction de base'!$B$59,0) ->  | D177: =MAX(D119*'Déduction de base'!$B$59,0) ->  | E177: =MAX(E119*'Déduction de base'!$B$59,0) ->  | F177: =MAX(F119*'Déduction de base'!$B$59,0) ->  | G177: =MAX(G119*'Déduction de base'!$B$59,0) ->  | H177: =MAX(H119*'Déduction de base'!$B$59,0) ->  | I177: =MAX(I119*'Déduction de base'!$B$59,0) ->  | J177: =MAX(J119*'Déduction de base'!$B$59,0) ->  | K177: =MAX(K119*'Déduction de base'!$B$59,0) ->  | L177: =MAX(L119*'Déduction de base'!$B$59,0) ->  | M177: =MAX(M119*'Déduction de base'!$B$59,0) ->  | N177: =MAX(N119*'Déduction de base'!$B$59,0) -> 0 | O177: =MAX(O119*'Déduction de base'!$B$59,0) -> 0 | P177: =MAX(P119*'Déduction de base'!$B$59,0) -> 0 | Q177: =MAX(Q119*'Déduction de base'!$B$59,0) -> 0 | R177: =MAX(R119*'Déduction de base'!$B$59,0) -> 0 | S177: =MAX(S119*'Déduction de base'!$B$59,0) -> 0 | T177: =MAX(T119*'Déduction de base'!$B$59,0) -> 0 | U177: =MAX(U119*'Déduction de base'!$B$59,0) -> 0
B178: - | C178: - | D178: - | E178: - | F178: - | G178: - | H178: - | I178: - | J178: - | K178: - | L178: - | M178: - | N178: - | O178: - | P178: - | Q178: - | R178: - | S178: - | T178: - | U178: -
B179: RRJCQM - RPS 21,7 ans + | C179: =MAX(C119*'Déduction de base'!$B$60,0) ->  | D179: =MAX(D119*'Déduction de base'!$B$60,0) ->  | E179: =MAX(E119*'Déduction de base'!$B$60,0) ->  | F179: =MAX(F119*'Déduction de base'!$B$60,0) ->  | G179: =MAX(G119*'Déduction de base'!$B$60,0) ->  | H179: =MAX(H119*'Déduction de base'!$B$60,0) ->  | I179: =MAX(I119*'Déduction de base'!$B$60,0) ->  | J179: =MAX(J119*'Déduction de base'!$B$60,0) ->  | K179: =MAX(K119*'Déduction de base'!$B$60,0) ->  | L179: =MAX(L119*'Déduction de base'!$B$60,0) ->  | M179: =MAX(M119*'Déduction de base'!$B$60,0) ->  | N179: =MAX(N119*'Déduction de base'!$B$60,0) -> 0 | O179: =MAX(O119*'Déduction de base'!$B$60,0) -> 0 | P179: =MAX(P119*'Déduction de base'!$B$60,0) -> 0 | Q179: =MAX(Q119*'Déduction de base'!$B$60,0) -> 0 | R179: =MAX(R119*'Déduction de base'!$B$60,0) -> 0 | S179: =MAX(S119*'Déduction de base'!$B$60,0) -> 0 | T179: =MAX(T119*'Déduction de base'!$B$60,0) -> 0 | U179: =MAX(U119*'Déduction de base'!$B$60,0) -> 0
B180: - | C180: - | D180: - | E180: - | F180: - | G180: - | H180: - | I180: - | J180: - | K180: - | L180: - | M180: - | N180: - | O180: - | P180: - | Q180: - | R180: - | S180: - | T180: - | U180: -

Sheet PARAMÈTRES (hidden)
A1: TYPE_PAIE (1 = Standard, 2 = Variable) | C1: ="Calcul du brut / net - Année "&ANNEE&" - (Paie "&TYPE_PAIE_TEXTE&")" -> Calcul du brut / net - Année 2022 - (Paie standard) | H1: ="Calcul de la simulation de paie ANNEE "&ANNEE -> Calcul de la simulation de paie ANNEE 2022
A2: 1 | B2: =IF(TYPE_PAIE="","",IF(TYPE_PAIE=1,"standard","variable")) -> standard | D2: SECTION DES PARAMÈTRES | F2: Dernière mise à jour: | H2: 2018-12-11 | J2: 34 | BS2: PARAMÈTRES D'APPLICATION
A3: Le type de paie contraire : | B3: =IF(TYPE_PAIE=2,"standard","variable") -> variable | F3: Date simulateur :
A4: MOT_DE_PASSE | B4: bobo | D4: Ministère | F4: Nom valideur | H4: Statut Emploi | J4: Budget | BT4: TX_OUVRIER
A5: Simulateur | B5: Non | H5: Classe | BT5: 17.28
A6: Voici divers raccourcis pour atteindre certaines section de paramètres
A8: Déductions de base | C8: TABLE_CSST
A9: CSST | C9: Écran des accidents
A10: Assurance collective | C10: Entête pour impression
A11: RRQ | C11: =IF('Calcul impôt'!C30>0,"Impôt additionnel fédéral :"," ") ->  | H11: Légende:
A12: Syndicat | H12: Noms des étiquettes
A13: Primes | H13: Valeurs
A14: Assurance salaire | H14: FORMULE
A15: Impôt fédéral | C15: =IF('Calcul impôt'!C36>0,"Impôt additionnel provincial :"," ") ->  | H15: Texte
A16: Impôt provincial
A17: Infos travail
D20: Pour revenir au début de la feuille tapez CTRL-HOME | L20: =HRES_SEM -> 35
O22: Conversion case AC207 Heure | P22: =IF(ROUNDDOWN(LEFT(AC207,2)&","&ROUND(RIGHT(TRIM(AC207),2)/60*100,0),0)*2<10,"0"&ROUNDDOWN(LEFT(AC207,2)&","&ROUND(RIGHT(TRIM(AC207),2)/60*100,0),0)*2,ROUNDDOWN(LEFT(AC207,2)&","&ROUND(RIGHT(TRIM(AC207),2)/60*100,0),0)*2) -> 70
E23: =IF(Formule_Divers!B10=FALSE," ",IF(K27>B27,"Temps plein","Temps partiel")) -> Temps partiel | G23: =IF(Formule_Divers!B10=FALSE," ",IF(K27>B27,"Horaire majoré","Horaire spécial")) -> Horaire spécial | I23: =IF(Formule_Divers!B10=FALSE," ","Heures / Paie") -> Heures / Paie | O23: Conversion case AC207 Minute | P23: =IF((ROUNDDOWN(LEFT(AC207,2)&","&ROUND(RIGHT(TRIM(AC207),2)/60*100,0),2)*2-ROUNDDOWN(LEFT(AC207,2)&","&ROUND(RIGHT(TRIM(AC207),2)/60*100,0),0)*2)*60<10,"0"&(ROUNDDOWN(LEFT(AC207,2)&","&ROUND(RIGHT(TRIM(AC207),2)/60*100,0),2)*2-ROUNDDOWN(LEFT(AC207,2)&","&ROUND(RIGHT(TRIM(AC207),2)/60*100,0),0)*2)*60,(ROUNDDOWN(LEFT(AC207,2)&","&ROUND(RIGHT(TRIM(AC207),2)/60*100,0),2)*2-ROUNDDOWN(LEFT(AC207,2)&","&ROUND(RIGHT(TRIM(AC207),2)/60*100,0),0)*2)*60) -> 00
A24: * | B24: * | C24: * | D24: * | E24: * | F24: * | G24: * | H24: * | I24: * | J24: * | K24: * | L24: *
A25: HEURES SEMAINES | B25: =IF(OR(Validation_Simulateur="Oui",TYPE_PAIE=1),IF(HRES_SEM-TRUNC(HRES_SEM)>0,ROUND((TRUNC(HRES_SEM)),0)&"h"&ROUND(ROUND(HRES_SEM-(TRUNC(HRES_SEM,0)),2)*60,2),HRES_SEM&"h00"),IF(TYPE_PAIE=2,TRUNC(HEURES_TRAVAIL,0)&"h"&TEXT(ROUND(ROUND(HEURES_TRAVAIL-(TRUNC(HEURES_TRAVAIL,0)),2)*60,2),"00"),)) -> 35h00 | C25: =IF(HRES_SEM=35,"33h15 ",IF(HRES_SEM=38.75,"35h00 ","37h30 ")) -> 33h15 | D25: =IF(HRES_SEM=35,"32h30 ",IF(HRES_SEM=38.75,"34h53 ","34h00 ")) -> 32h30 | E25: =IF(HRES_SEM=35,"32h00 ",IF(HRES_SEM=38.75,"32h00 ","32h00 ")) -> 32h00 | F25: =IF(HRES_SEM=35,"31h30 ",IF(HRES_SEM=38.75,"31h00 ","28h00 ")) -> 31h30 | G25: =IF(HRES_SEM=35,"30h00 ",IF(HRES_SEM=38.75,"27h08 ","24h00 ")) -> 30h00 | H25: =IF(HRES_SEM=35,"28h00 ",IF(HRES_SEM=38.75,"25h00 ","20h00 ")) -> 28h00 | I25: =IF(HRES_SEM=35,"24h30 ",IF(HRES_SEM=38.75,"23h15 ","16h00 ")) -> 24h30 | J25: =IF(HRES_SEM=35,"21h00 ",IF(HRES_SEM=38.75,"20h00 ","12h00 ")) -> 21h00 | K25: =IF(Formule_Divers!B10=TRUE,Formule_Divers!B12,IF(HRES_SEM=35,"14h00",IF(HRES_SEM=38.75,"15h30",IF(HRES_SEM=40,"08h00",Formule_Divers!B22)))) -> 14h00 | L25: =IF(OR(Validation_Simulateur="Oui",TYPE_PAIE=1),IF(ACCIDENTPARTIEL=TRUE,P22&"h"&P23,IF(OR(HEURES_PAIE="",HEURES_PAIE=0),IF((HRES_SEM*2)-TRUNC((HRES_SEM*2))>0,(TRUNC((HRES_SEM*2)))&"h"&ROUND((HRES_SEM*2)-(TRUNC((HRES_SEM*2))),2)*60&" ",(HRES_SEM*2)&"h00 " ),HEURES_PAIE&"h"&TEXT(MINUTES_PAIE,"00"))),IF(TYPE_PAIE=2,BN136&"h"&TEXT(BO136,"00"),)) -> 70h00 | M25: =CODMAXCSST -> 0
A26: GAINS BRUTS versés par paie: | B26: =IF(LEFT($B$25,1)="0",0,IF(Validation_Simulateur="Oui",IF(CODMAXCSST=1,MAXCSSTPAIE,(CHOOSE(TYPESAL1,ROUND((IF(Taux_Majoration>0,TX_HOR,TX_NON_MAJORE)*(HRES_SEM*2))*(B$60/10),2),ROUND((SALAIRE1*14/JRSCADSUP)*(B$60/10),2),ROUND((HRES_SEM*2*IF(Taux_Majoration>0,TX_HOR,TX_NON_MAJORE))*(B$60/10),2))))+((PRIME1+PRIME2+PRIME3+PRIME4)*(IF(PRORATPRIME=TRUE,B$60,10)/10)),IF(_nas1="",0,IF(AND(A011CALC=TRUE,CHOIX_PRESTATION=5),PREST_A019-B_019,IF(A011CALC=TRUE,B81+((PRIME1+PRIME2+PRIME3+PRIME4)),IF(TYPE_PAIE=2,IF(TYPESAL1=3,ROUND(IF(Taux_Majoration>0,TX_HOR,TX_NON_MAJORE)*HRES_SEM_VARIABLE_TR,2),ROUND(HRES_SEM_VARIABLE_TR*IF(Taux_Majoration>0,TX_HOR,TX_NON_MAJORE),2))+((PRIME1+PRIME2+PRIME3+PRIME4)*(IF(PRORATPRIME=TRUE,B$60,10)/10)),IF(AND(A011CALC=TRUE,CHOIX_PRESTATION=5),PREST_A019-B_019,IF(A011CALC=TRUE,B81+((PRIME1+PRIME2+PRIME3+PRIME4)),IF(CODMAXCSST=1,MAXCSSTPAIE,(CHOOSE(TYPESAL1,ROUND((IF(Taux_Majoration>0,TX_HOR,TX_NON_MAJORE)*((LEFT(B25,2)&","&ROUND(RIGHT(TRIM(B25),2)/60*100,0))*2)),2)+((PRIME1+PRIME2+PRIME3+PRIME4)*(IF(PRORATPRIME=TRUE,B$60,10)/10)),ROUND((SALAIRE1*14/JRSCADSUP),2)+((PRIME1+PRIME2+PRIME3+PRIME4)*(IF(PRORATPRIME=TRUE,B$60,10)/10)),ROUND(((LEFT(B25,2)&","&ROUND(RIGHT(TRIM(B25),2)/60*100,0))*2*IF(Taux_Majoration>0,TX_HOR,TX_NON_MAJORE)),2)+((PRIME1+PRIME2+PRIME3+PRIME4)*(IF(PRORATPRIME=TRUE,B$60,10)/10))))))))))))) -> 0 | C26: 0 | D26: 0 | E26: 0 | F26: 0 | G26: 0 | H26: 0 | I26: 0 | J26: 0 | K26: =IF(LEFT($B$25,1)="0",0,IF(Validation_Simulateur="Oui",IF(CODMAXCSST=1,MAXCSSTPAIE,(CHOOSE(TYPESAL1,ROUND((IF(Taux_Majoration>0,TX_HOR,TX_NON_MAJORE)*(HRES_SEM*2))*(K$60/10),2),ROUND((SALAIRE1*14/JRSCADSUP)*(K$60/10),2),ROUND((HRES_SEM*2*IF(Taux_Majoration>0,TX_HOR,TX_NON_MAJORE))*(K$60/10),2))))+((PRIME1+PRIME2+PRIME3+PRIME4)*(IF(PRORATPRIME=TRUE,K$60,10)/10)),IF(_nas1="",0,IF(AND(A011CALC=TRUE,CHOIX_PRESTATION=5),PREST_A019-B_019,IF(A011CALC=TRUE,K81+((PRIME1+PRIME2+PRIME3+PRIME4)),IF(TYPE_PAIE=2,IF(TYPESAL1=3,ROUND(IF(Taux_Majoration>0,TX_HOR,TX_NON_MAJORE)*HRES_SEM_VARIABLE_TR,2),ROUND(HRES_SEM_VARIABLE_TR*IF(Taux_Majoration>0,TX_HOR,TX_NON_MAJORE),2))+((PRIME1+PRIME2+PRIME3+PRIME4)*(IF(PRORATPRIME=TRUE,K$60,10)/10)),IF(AND(A011CALC=TRUE,CHOIX_PRESTATION=5),PREST_A019-B_019,IF(A011CALC=TRUE,K81+((PRIME1+PRIME2+PRIME3+PRIME4)),IF(CODMAXCSST=1,MAXCSSTPAIE,(CHOOSE(TYPESAL1,ROUND((IF(Taux_Majoration>0,TX_HOR,TX_NON_MAJORE)*((LEFT(K25,2)&","&ROUND(RIGHT(TRIM(K25),2)/60*100,0)))),2)+((PRIME1+PRIME2+PRIME3+PRIME4)*(IF(PRORATPRIME=TRUE,K$60,10)/10)),ROUND((SALAIRE1*14/JRSCADSUP),2)+((PRIME1+PRIME2+PRIME3+PRIME4)*(IF(PRORATPRIME=TRUE,K$60,10)/10)),ROUND(((LEFT(K25,2)&","&ROUND(RIGHT(TRIM(K25),2)/60*100,0))*IF(Taux_Majoration>0,TX_HOR,TX_NON_MAJORE)),2)+((PRIME1+PRIME2+PRIME3+PRIME4)*(IF(PRORATPRIME=TRUE,K$60,10)/10))))))))))))) -> 0 | L26: =IF(LEFT($L$25,1)="0",0,IF(Validation_Simulateur="Oui",(CHOOSE(TYPESAL1,ROUND((IF(Taux_Majoration>0,TX_HOR,TX_NON_MAJORE)*(HRES_SEM))*(L$60/10),2),ROUND((SALAIRE1*14/JRSCADSUP)*(L$60/10),2),ROUND((HRES_SEM*IF(Taux_Majoration>0,TX_HOR,TX_NON_MAJORE))*(L$60/10),2)))+((PRIME1+PRIME2+PRIME3+PRIME4)*(IF(PRORATPRIME=TRUE,L$60,10)/10)),IF(_nas1="",0,IF(AND(A011CALC=TRUE,CHOIX_PRESTATION=5),PREST_A019-B_019,IF(A011CALC=TRUE,K81+((PRIME1+PRIME2+PRIME3+PRIME4)),IF(TYPE_PAIE=2,IF(TYPESAL1=3,ROUND(IF(Taux_Majoration>0,TX_HOR,TX_NON_MAJORE)*HRES_SEM_VARIABLE_TR,2),ROUND(HRES_SEM_VARIABLE_TR*IF(Taux_Majoration>0,TX_HOR,TX_NON_MAJORE),2))+((PRIME1+PRIME2+PRIME3+PRIME4)*(IF(PRORATPRIME=TRUE,L$60,10)/10)),IF(AND(A011CALC=TRUE,CHOIX_PRESTATION=5),PREST_A019-B_019,IF(A011CALC=TRUE,K81+((PRIME1+PRIME2+PRIME3+PRIME4)),(CHOOSE(TYPESAL1,ROUND((IF(Taux_Majoration>0,TX_HOR,TX_NON_MAJORE)*((LEFT(L25,2)&","&ROUND(RIGHT(TRIM(L25),2)/60*100,0)))),2)+((PRIME1+PRIME2+PRIME3+PRIME4)*(IF(PRORATPRIME=TRUE,L$60,10)/10)),ROUND((SALAIRE1*14/JRSCADSUP),2)+((PRIME1+PRIME2+PRIME3+PRIME4)*(IF(PRORATPRIME=TRUE,L$60,10)/10)),ROUND(((LEFT(L25,2)&","&ROUND(RIGHT(TRIM(L25),2)/60*100,0))*IF(Taux_Majoration>0,TX_HOR,TX_NON_MAJORE)),2)+((PRIME1+PRIME2+PRIME3+PRIME4)*(IF(PRORATPRIME=TRUE,L$60,10)/10)))))))))))) -> 0 | M26: =TYPESAL1 -> 0 | O26: =(IF(PRORATPRIME=TRUE,I$60,10)/10) -> 1
A27: =IF(AND(A011CALC=TRUE,CHOIX_PRESTATION=5),"Prestations maternité A019",IF(A011CALC=TRUE,"Prestations A011 "&CHOOSE(CHOIX_PRESTATION,"P2 à 66 2/3%","P3 à 50%","P2 à 80%","P3 à 70%"),"Salaire A010")) -> Salaire A010 | B27: =IF(Validation_Simulateur="Oui",B26-((PRIME1+PRIME2+PRIME3+PRIME4)*IF(PRORATPRIME=FALSE,10,B60)/10),IF(_nas1="",0,IF(AND(A011CALC=TRUE,CHOIX_PRESTATION=5),PREST_A019,IF(A011CALC=TRUE,B81,(B26-((PRIME1+PRIME2+PRIME3+PRIME4)*IF(PRORATPRIME=FALSE,10,B60)/10)))))) -> 0 | C27: =IF(Validation_Simulateur="Oui",C26-((PRIME1+PRIME2+PRIME3+PRIME4)*IF(PRORATPRIME=FALSE,10,C60)/10),IF(_nas1="",0,IF(AND(A011CALC=TRUE,CHOIX_PRESTATION=5),PREST_A019,IF(A011CALC=TRUE,C81,(C26-((PRIME1+PRIME2+PRIME3+PRIME4)*IF(PRORATPRIME=FALSE,10,C60)/10)))))) -> 0 | D27: =IF(Validation_Simulateur="Oui",D26-((PRIME1+PRIME2+PRIME3+PRIME4)*IF(PRORATPRIME=FALSE,10,D60)/10),IF(_nas1="",0,IF(AND(A011CALC=TRUE,CHOIX_PRESTATION=5),PREST_A019,IF(A011CALC=TRUE,D81,(D26-((PRIME1+PRIME2+PRIME3+PRIME4)*IF(PRORATPRIME=FALSE,10,D60)/10)))))) -> 0 | E27: 0 | F27: 0 | G27: 0 | H27: =IF(Validation_Simulateur="Oui",H26-((PRIME1+PRIME2+PRIME3+PRIME4)*IF(PRORATPRIME=FALSE,10,H60)/10),IF(_nas1="",0,IF(AND(A011CALC=TRUE,CHOIX_PRESTATION=5),PREST_A019,IF(A011CALC=TRUE,H81,(H26-((PRIME1+PRIME2+PRIME3+PRIME4)*IF(PRORATPRIME=FALSE,10,H60)/10)))))) -> 0 | I27: 0 | J27: 0 | K27: =IF(Validation_Simulateur="Oui",K26-((PRIME1+PRIME2+PRIME3+PRIME4)*IF(PRORATPRIME=FALSE,10,K60)/10),IF(_nas1="",0,IF(AND(A011CALC=TRUE,CHOIX_PRESTATION=5),PREST_A019,IF(A011CALC=TRUE,K81,(K26-((PRIME1+PRIME2+PRIME3+PRIME4)*IF(PRORATPRIME=FALSE,10,K60)/10)))))) -> 0 | L27: =IF(Validation_Simulateur="Oui",L26-((PRIME1+PRIME2+PRIME3+PRIME4)*IF(PRORATPRIME=FALSE,10,B60)/10),IF(_nas1="",0,IF(AND(A011CALC=TRUE,CHOIX_PRESTATION=5),PREST_A019,IF(A011CALC=TRUE,B81,(L26-((PRIME1+PRIME2+PRIME3+PRIME4)*IF(PRORATPRIME=FALSE,10,B60)/10)))))) -> 0 | M27: =ROUND((IF(Taux_Majoration>0,TX_HOR,TX_NON_MAJORE)*(HRES_SEM*2))*(G$60/10),2) ->  | N27: =((PRIME1+PRIME2+PRIME3+PRIME4)*(IF(PRORATPRIME=TRUE,F$60,10)/10)) -> 0 | O27: =IF(_nas1="",0,IF(AND(A011CALC=TRUE,CHOIX_PRESTATION=5),PREST_A019-B_019,IF(A011CALC=TRUE,G81+((PRIME1+PRIME2+PRIME3+PRIME4)),IF(TYPE_PAIE=2,IF(TYPESAL1=3,ROUND(IF(Taux_Majoration>0,TX_HOR,TX_NON_MAJORE)*HRES_SEM_VARIABLE_TR,2),ROUND(HRES_SEM_VARIABLE_TR*IF(Taux_Majoration>0,TX_HOR,TX_NON_MAJORE),2))+((PRIME1+PRIME2+PRIME3+PRIME4)*(IF(PRORATPRIME=TRUE,G$60,10)/10)),IF(AND(A011CALC=TRUE,CHOIX_PRESTATION=5),PREST_A019-B_019,IF(A011CALC=TRUE,G81+((PRIME1+PRIME2+PRIME3+PRIME4)),IF(CODMAXCSST=1,MAXCSSTPAIE,(CHOOSE(TYPESAL1,ROUND((IF(Taux_Majoration>0,TX_HOR,TX_NON_MAJORE)*((LEFT(G25,2)&","&ROUND(RIGHT(TRIM(G25),2)/60*100,0))*2)),2)+((PRIME1+PRIME2+PRIME3+PRIME4)*(IF(PRORATPRIME=TRUE,G$60,10)/10)),ROUND((SALAIRE1*14/JRSCADSUP),2)+((PRIME1+PRIME2+PRIME3+PRIME4)*(IF(PRORATPRIME=TRUE,G$60,10)/10)),ROUND(((LEFT(G25,2)&","&ROUND(RIGHT(TRIM(G25),2)/60*100,0))*2*IF(Taux_Majoration>0,TX_HOR,TX_NON_MAJORE)),2)+((PRIME1+PRIME2+PRIME3+PRIME4)*(IF(PRORATPRIME=TRUE,G$60,10)/10))))))))))) -> 0
A28: =IF(AND(A011CALC=TRUE,CHOIX_PRESTATION=5),Formule_Divers!K42,IF(B28>0,"Primes "&A85,IF(B28<0,"Retenues "&A85," "))) ->  | B28: =IF(AND(A011CALC=TRUE,CHOIX_PRESTATION=5),ROUND(B_019*(B60/10),2),IF(PRORATPRIME=TRUE,(PRIME1+PRIME2+PRIME3+PRIME4)*(B60/10),(PRIME1+PRIME2+PRIME3+PRIME4))) -> 0 | C28: 0 | D28: 0 | E28: 0 | F28: 0 | G28: 0 | H28: =IF(AND(A011CALC=TRUE,CHOIX_PRESTATION=5),ROUND(B_019*(H60/10),2),IF(PRORATPRIME=TRUE,(PRIME1+PRIME2+PRIME3+PRIME4)*(H60/10),(PRIME1+PRIME2+PRIME3+PRIME4))) -> 0 | I28: 0 | J28: 0 | K28: 0 | L28: =IF(AND(A011CALC=TRUE,CHOIX_PRESTATION=5),ROUND(B_019*(L60/10),2),IF(PRORATPRIME=TRUE,(PRIME1+PRIME2+PRIME3+PRIME4)*(L60/10),(PRIME1+PRIME2+PRIME3+PRIME4))) -> 0 | M28: =ROUND((SALAIRE1*14/JRSCADSUP)*(H$60/10),2) -> 
M29: =ROUND((HRES_SEM*2*IF(Taux_Majoration>0,TX_HOR,TX_NON_MAJORE))*(G$60/10),2) -> 
A30: DÉDUCTIONS | M30: =MAXCSSTPAIE -> 
A31: IMPÔT FÉDÉRAL | B31: =IF(Validation_Simulateur="Oui",MAX((+'Calcul impôt'!C65+'Calcul impôt'!$C$30),0),IF(_nas1="",0,MAX((+'Calcul impôt'!C65+'Calcul impôt'!$C$30),0))) -> 0 | C31: =IF(Validation_Simulateur="Oui",+'Calcul impôt'!D65+'Calcul impôt'!$C$30,IF(_nas1="",0,MAX(+'Calcul impôt'!D65+'Calcul impôt'!$C$30,0))) -> 0 | D31: =IF(Validation_Simulateur="Oui",+'Calcul impôt'!E65+'Calcul impôt'!$C$30,IF(_nas1="",0,MAX(+'Calcul impôt'!E65+'Calcul impôt'!$C$30,0))) -> 0 | E31: =IF(Validation_Simulateur="Oui",+'Calcul impôt'!F65+'Calcul impôt'!$C$30,IF(_nas1="",0,MAX(+'Calcul impôt'!F65+'Calcul impôt'!$C$30,0))) -> 0 | F31: =IF(Validation_Simulateur="Oui",+'Calcul impôt'!G65+'Calcul impôt'!$C$30,IF(_nas1="",0,MAX(+'Calcul impôt'!G65+'Calcul impôt'!$C$30,0))) -> 0 | G31: =IF(Validation_Simulateur="Oui",+'Calcul impôt'!H65+'Calcul impôt'!$C$30,IF(_nas1="",0,MAX(+'Calcul impôt'!H65+'Calcul impôt'!$C$30,0))) -> 0 | H31: =IF(Validation_Simulateur="Oui",+'Calcul impôt'!I65+'Calcul impôt'!$C$30,IF(_nas1="",0,MAX(+'Calcul impôt'!I65+'Calcul impôt'!$C$30,0))) -> 0 | I31: =IF(Validation_Simulateur="Oui",+'Calcul impôt'!J65+'Calcul impôt'!$C$30,IF(_nas1="",0,MAX(+'Calcul impôt'!J65+'Calcul impôt'!$C$30,0))) -> 0 | J31: =IF(Validation_Simulateur="Oui",+'Calcul impôt'!K65+'Calcul impôt'!$C$30,IF(_nas1="",0,MAX(+'Calcul impôt'!K65+'Calcul impôt'!$C$30,0))) -> 0 | K31: =IF(Validation_Simulateur="Oui",+'Calcul impôt'!L65+'Calcul impôt'!$C$30,IF(_nas1="",0,MAX(+'Calcul impôt'!L65+'Calcul impôt'!$C$30,0))) -> 0 | L31: =IF(Validation_Simulateur="Oui",MAX((+'Calcul impôt'!M65+'Calcul impôt'!$C$30),0),IF(_nas1="",0,MAX((+'Calcul impôt'!M65+'Calcul impôt'!$C$30),0))) -> 0
A32: IMPÔT PROVINCIAL | B32: =IF(Validation_Simulateur="Oui",MAX(('Calcul impôt'!C99+'Calcul impôt'!$C$36),0),IF(_nas1="",0,MAX(('Calcul impôt'!C99+'Calcul impôt'!$C$36),0))) -> 0 | C32: =IF(Validation_Simulateur="Oui",'Calcul impôt'!D99+'Calcul impôt'!$C$36,IF(_nas1="",0,MAX(('Calcul impôt'!D99+'Calcul impôt'!$C$36),0))) -> 0 | D32: =IF(Validation_Simulateur="Oui",'Calcul impôt'!E99+'Calcul impôt'!$C$36,IF(_nas1="",0,MAX(('Calcul impôt'!E99+'Calcul impôt'!$C$36),0))) -> 0 | E32: =IF(Validation_Simulateur="Oui",'Calcul impôt'!F99+'Calcul impôt'!$C$36,IF(_nas1="",0,MAX(('Calcul impôt'!F99+'Calcul impôt'!$C$36),0))) -> 0 | F32: =IF(Validation_Simulateur="Oui",'Calcul impôt'!G99+'Calcul impôt'!$C$36,IF(_nas1="",0,MAX(('Calcul impôt'!G99+'Calcul impôt'!$C$36),0))) -> 0 | G32: =IF(Validation_Simulateur="Oui",'Calcul impôt'!H99+'Calcul impôt'!$C$36,IF(_nas1="",0,MAX(('Calcul impôt'!H99+'Calcul impôt'!$C$36),0))) -> 0 | H32: =IF(Validation_Simulateur="Oui",'Calcul impôt'!I99+'Calcul impôt'!$C$36,IF(_nas1="",0,MAX(('Calcul impôt'!I99+'Calcul impôt'!$C$36),0))) -> 0 | I32: =IF(Validation_Simulateur="Oui",'Calcul impôt'!J99+'Calcul impôt'!$C$36,IF(_nas1="",0,MAX(('Calcul impôt'!J99+'Calcul impôt'!$C$36),0))) -> 0 | J32: =IF(Validation_Simulateur="Oui",'Calcul impôt'!K99+'Calcul impôt'!$C$36,IF(_nas1="",0,MAX(('Calcul impôt'!K99+'Calcul impôt'!$C$36),0))) -> 0 | K32: =IF(Validation_Simulateur="Oui",'Calcul impôt'!L99+'Calcul impôt'!$C$36,IF(_nas1="",0,MAX(('Calcul impôt'!L99+'Calcul impôt'!$C$36),0))) -> 0 | L32: =IF(Validation_Simulateur="Oui",MAX(('Calcul impôt'!M99+'Calcul impôt'!$C$36),0),IF(_nas1="",0,MAX(('Calcul impôt'!M99+'Calcul impôt'!$C$36),0))) -> 0
A33: Contribution santé | B33: =IF(Validation_Simulateur="Oui",'Calcul impôt'!C100,IF(_nas1="",0,'Calcul impôt'!C100)) -> 0 | C33: =IF(Validation_Simulateur="Oui",'Calcul impôt'!D100,IF(_nas1="",0,'Calcul impôt'!D100)) -> 0 | D33: =IF(Validation_Simulateur="Oui",'Calcul impôt'!E100,IF(_nas1="",0,'Calcul impôt'!E100)) -> 0 | E33: =IF(Validation_Simulateur="Oui",'Calcul impôt'!F100,IF(_nas1="",0,'Calcul impôt'!F100)) -> 0 | F33: =IF(Validation_Simulateur="Oui",'Calcul impôt'!G100,IF(_nas1="",0,'Calcul impôt'!G100)) -> 0 | G33: =IF(Validation_Simulateur="Oui",'Calcul impôt'!H100,IF(_nas1="",0,'Calcul impôt'!H100)) -> 0 | H33: =IF(Validation_Simulateur="Oui",'Calcul impôt'!I100,IF(_nas1="",0,'Calcul impôt'!I100)) -> 0 | I33: =IF(Validation_Simulateur="Oui",'Calcul impôt'!J100,IF(_nas1="",0,'Calcul impôt'!J100)) -> 0 | J33: =IF(Validation_Simulateur="Oui",'Calcul impôt'!K100,IF(_nas1="",0,'Calcul impôt'!K100)) -> 0 | K33: =IF(Validation_Simulateur="Oui",'Calcul impôt'!L100,IF(_nas1="",0,'Calcul impôt'!L100)) -> 0 | L33: =IF(Validation_Simulateur="Oui",'Calcul impôt'!M100,IF(_nas1="",0,'Calcul impôt'!M100)) -> 0
A34: RRQ | B34: =IF(CXRRQ=1,MAX(ROUND(MIN((((B27+(ReRQ1+ReRQ2+ReRQ3+ReRQ4))-RRQ_EXEMPT)+B64-B151-IF(LEFT(Formule_Divers!K42,12)="Retenue B019",PARAMÈTRES!B28,0))*RRQ_TAUX,RRQMAX-RRQ_COTISE),2),0),0) -> 0 | C34: =IF(CXRRQ=1,MAX(ROUND(MIN((((C27+(ReRQ1+ReRQ2+ReRQ3+ReRQ4))-RRQ_EXEMPT)+C64-C151)*RRQ_TAUX,RRQMAX-RRQ_COTISE),2),0),0) -> 0 | D34: 0 | E34: 0 | F34: 0 | G34: =IF(CXRRQ=1,MAX(ROUND(MIN((((G27+(ReRQ1+ReRQ2+ReRQ3+ReRQ4))-RRQ_EXEMPT)+G64-G151)*RRQ_TAUX,RRQMAX-RRQ_COTISE),2),0),0) -> 0 | H34: 0 | I34: 0 | J34: 0 | K34: 0 | L34: =IF(CXRRQ=1,MAX(ROUND(MIN((((L27+(ReRQ1+ReRQ2+ReRQ3+ReRQ4))-RRQ_EXEMPT)+L64-L151-IF(LEFT(Formule_Divers!U42,12)="Retenue B019",PARAMÈTRES!L28,0))*RRQ_TAUX,RRQMAX-RRQ_COTISE),2),0),0) -> 0
A35: ASSURANCE-EMPLOI | B35: =IF(AND(A011CALC=TRUE,CHOIX_PRESTATION=5),0,IF(A011CALC=TRUE,IF(CXCHOMAGE=1,ROUND(((+B27+(ASSUR_FED*(B60/10))+IF(PRORATPRIME=TRUE,(PRIMEA011CALC+CHOMAGE1+CHOMAGE2+CHOMAGE3+CHOMAGE4)*(B60/10),(PRIMEA011CALC+CHOMAGE1+CHOMAGE2+CHOMAGE3+CHOMAGE4)))*ASSEMPLOI_TAUX),2),0),IF(CXCHOMAGE=1,ROUND(MIN(((+B27+IF(PRORATPRIME=TRUE,(CHOMAGE1+CHOMAGE2+CHOMAGE3+CHOMAGE4)*(B60/10),(CHOMAGE1+CHOMAGE2+CHOMAGE3+CHOMAGE4)))*ASSEMPLOI_TAUX),CHOMANNUEL-AE_COTISE),2),0))) -> 0 | C35: =IF(AND(A011CALC=TRUE,CHOIX_PRESTATION=5),0,IF(A011CALC=TRUE,IF(CXCHOMAGE=1,ROUND(((+C27+(ASSUR_FED*(C60/10))+IF(PRORATPRIME=TRUE,(PRIMEA011CALC+CHOMAGE1+CHOMAGE2+CHOMAGE3+CHOMAGE4)*(C60/10),(PRIMEA011CALC+CHOMAGE1+CHOMAGE2+CHOMAGE3+CHOMAGE4)))*ASSEMPLOI_TAUX),2),0),IF(CXCHOMAGE=1,ROUND(MIN(((+C27+IF(PRORATPRIME=TRUE,(CHOMAGE1+CHOMAGE2+CHOMAGE3+CHOMAGE4)*(C60/10),(CHOMAGE1+CHOMAGE2+CHOMAGE3+CHOMAGE4)))*ASSEMPLOI_TAUX),CHOMANNUEL-AE_COTISE),2),0))) -> 0 | D35: 0 | E35: 0 | F35: 0 | G35: 0 | H35: 0 | I35: 0 | J35: 0 | K35: 0 | L35: =IF(AND(A011CALC=TRUE,CHOIX_PRESTATION=5),0,IF(A011CALC=TRUE,IF(CXCHOMAGE=1,ROUND(((+L27+(ASSUR_FED*(L60/10))+IF(PRORATPRIME=TRUE,(PRIMEA011CALC+CHOMAGE1+CHOMAGE2+CHOMAGE3+CHOMAGE4)*(L60/10),(PRIMEA011CALC+CHOMAGE1+CHOMAGE2+CHOMAGE3+CHOMAGE4)))*ASSEMPLOI_TAUX),2),0),IF(CXCHOMAGE=1,ROUND(MIN(((+L27+IF(PRORATPRIME=TRUE,(CHOMAGE1+CHOMAGE2+CHOMAGE3+CHOMAGE4)*(L60/10),(CHOMAGE1+CHOMAGE2+CHOMAGE3+CHOMAGE4)))*ASSEMPLOI_TAUX),CHOMANNUEL-AE_COTISE),2),0))) -> 0
A36: R.Q. Assurance Parentale | B36: =IF(AND(A011CALC=TRUE,CHOIX_PRESTATION=5),0,IF(A011CALC=TRUE,IF(CXPARENTALE=1,ROUND(((B27+IF(PRORATPRIME=TRUE,(PRIMEA011CALC+PARENTALE1+PARENTALE2+PARENTALE3+PARENTALE4)*(B60/10),(PRIMEA011CALC+PARENTALE1+PARENTALE2+PARENTALE3+PARENTALE4)))*RQAP_TAUX),2),0),IF(CXPARENTALE=1,ROUND(MIN(((B27+IF(PRORATPRIME=TRUE,(PARENTALE1+PARENTALE2+PARENTALE3+PARENTALE4)*(B60/10),(PARENTALE1+PARENTALE2+PARENTALE3+PARENTALE4)))*RQAP_TAUX),RQAPMAX-RQAP_COTISE),2),0))) -> 0 | C36: =IF(AND(A011CALC=TRUE,CHOIX_PRESTATION=5),0,IF(A011CALC=TRUE,IF(CXPARENTALE=1,ROUND(((C27+IF(PRORATPRIME=TRUE,(PRIMEA011CALC+PARENTALE1+PARENTALE2+PARENTALE3+PARENTALE4)*(C60/10),(PRIMEA011CALC+PARENTALE1+PARENTALE2+PARENTALE3+PARENTALE4)))*RQAP_TAUX),2),0),IF(CXPARENTALE=1,ROUND(MIN(((C27+IF(PRORATPRIME=TRUE,(PARENTALE1+PARENTALE2+PARENTALE3+PARENTALE4)*(C60/10),(PARENTALE1+PARENTALE2+PARENTALE3+PARENTALE4)))*RQAP_TAUX),RQAPMAX-RQAP_COTISE),2),0))) -> 0 | D36: 0 | E36: 0 | F36: 0 | G36: 0 | H36: 0 | I36: 0 | J36: 0 | K36: 0 | L36: =IF(AND(A011CALC=TRUE,CHOIX_PRESTATION=5),0,IF(A011CALC=TRUE,IF(CXPARENTALE=1,ROUND(((L27+IF(PRORATPRIME=TRUE,(PRIMEA011CALC+PARENTALE1+PARENTALE2+PARENTALE3+PARENTALE4)*(L60/10),(PRIMEA011CALC+PARENTALE1+PARENTALE2+PARENTALE3+PARENTALE4)))*RQAP_TAUX),2),0),IF(CXPARENTALE=1,ROUND(MIN(((L27+IF(PRORATPRIME=TRUE,(PARENTALE1+PARENTALE2+PARENTALE3+PARENTALE4)*(L60/10),(PARENTALE1+PARENTALE2+PARENTALE3+PARENTALE4)))*RQAP_TAUX),RQAPMAX-RQAP_COTISE),2),0))) -> 0
A37: RÉG. RETRAITE | B37: =IF(IF(OR(TYPE_PAIE=1,Validation_Simulateur="Oui"),ROUND(REGIME_RETRAITE!AN$57,2),REGIME_RETRAITE!C129)<=0,0,IF(OR(TYPE_PAIE=1,Validation_Simulateur="Oui"),ROUND(REGIME_RETRAITE!AN$57,2),REGIME_RETRAITE!C129)) -> 0 | C37: =IF(IF(MAINTIEN_RR=TRUE,ROUND(REGIME_RETRAITE!$AN$57,2),ROUND(REGIME_RETRAITE!AO57,2))<=0,0,IF(MAINTIEN_RR=TRUE,ROUND(REGIME_RETRAITE!$AN$57,2),ROUND(REGIME_RETRAITE!AO57,2))) -> 0 | D37: =IF(IF(MAINTIEN_RR=TRUE,ROUND(REGIME_RETRAITE!$AN$57,2),ROUND(REGIME_RETRAITE!AP57,2))<=0,0,IF(MAINTIEN_RR=TRUE,ROUND(REGIME_RETRAITE!$AN$57,2),ROUND(REGIME_RETRAITE!AP57,2))) -> 0 | E37: =IF(IF(MAINTIEN_RR=TRUE,ROUND(REGIME_RETRAITE!$AN$57,2),ROUND(REGIME_RETRAITE!AQ57,2))<=0,0,IF(MAINTIEN_RR=TRUE,ROUND(REGIME_RETRAITE!$AN$57,2),ROUND(REGIME_RETRAITE!AQ57,2))) -> 0 | F37: =IF(IF(MAINTIEN_RR=TRUE,ROUND(REGIME_RETRAITE!$AN$57,2),ROUND(REGIME_RETRAITE!AR57,2))<=0,0,IF(MAINTIEN_RR=TRUE,ROUND(REGIME_RETRAITE!$AN$57,2),ROUND(REGIME_RETRAITE!AR57,2))) -> 0 | G37: =IF(IF(MAINTIEN_RR=TRUE,ROUND(REGIME_RETRAITE!$AN$57,2),ROUND(REGIME_RETRAITE!AS57,2))<=0,0,IF(MAINTIEN_RR=TRUE,ROUND(REGIME_RETRAITE!$AN$57,2),ROUND(REGIME_RETRAITE!AS57,2))) -> 0 | H37: =IF(IF(MAINTIEN_RR=TRUE,ROUND(REGIME_RETRAITE!$AN$57,2),ROUND(REGIME_RETRAITE!AT57,2))<=0,0,IF(MAINTIEN_RR=TRUE,ROUND(REGIME_RETRAITE!$AN$57,2),ROUND(REGIME_RETRAITE!AT57,2))) -> 0 | I37: =IF(IF(MAINTIEN_RR=TRUE,ROUND(REGIME_RETRAITE!$AN$57,2),ROUND(REGIME_RETRAITE!AU57,2))<=0,0,IF(MAINTIEN_RR=TRUE,ROUND(REGIME_RETRAITE!$AN$57,2),ROUND(REGIME_RETRAITE!AU57,2))) -> 0 | J37: =IF(IF(MAINTIEN_RR=TRUE,ROUND(REGIME_RETRAITE!$AN$57,2),ROUND(REGIME_RETRAITE!AV57,2))<=0,0,IF(MAINTIEN_RR=TRUE,ROUND(REGIME_RETRAITE!$AN$57,2),ROUND(REGIME_RETRAITE!AV57,2))) -> 0 | K37: =IF(IF(MAINTIEN_RR=TRUE,ROUND(REGIME_RETRAITE!$AN$57,2),ROUND(REGIME_RETRAITE!AW57,2))<=0,0,IF(MAINTIEN_RR=TRUE,ROUND(REGIME_RETRAITE!$AN$57,2),ROUND(REGIME_RETRAITE!AW57,2))) -> 0 | L37: =ROUND(REGIME_RETRAITE!AX57,2) -> 0
A38: SYNDICAT | B38: =ROUND(+SYNDICAT!R$48,2) -> 0 | C38: =ROUND(+SYNDICAT!S$48,2) -> 0 | D38: =ROUND(+SYNDICAT!T$48,2) -> 0 | E38: =ROUND(+SYNDICAT!U$48,2) -> 0 | F38: =ROUND(+SYNDICAT!V$48,2) -> 0 | G38: =ROUND(+SYNDICAT!W$48,2) -> 0 | H38: =ROUND(+SYNDICAT!X$48,2) -> 0 | I38: =ROUND(+SYNDICAT!Y$48,2) -> 0 | J38: =ROUND(+SYNDICAT!Z$48,2) -> 0 | K38: =ROUND(+SYNDICAT!AA$48,2) -> 0 | L38: =ROUND(+SYNDICAT!R$48,2) -> 0
A39: RACHAT | B39: =RACHAT -> 0 | C39: =RACHAT -> 0 | D39: 0 | E39: 0 | F39: 0 | G39: 0 | H39: 0 | I39: 0 | J39: 0 | K39: 0 | L39: =RACHAT -> 0
A40: ASSURANCES COLLECTIVES | B40: =IF(AND(A011CALC=TRUE,CHOIX_PRESTATION=5),ASSURANCE,IF(A011CALC=TRUE,0,ASSURANCE)) -> 0 | C40: =IF(AND(A011CALC=TRUE,CHOIX_PRESTATION=5),ASSURANCE,IF(A011CALC=TRUE,0,ASSURANCE)) -> 0 | D40: 0 | E40: 0 | F40: 0 | G40: 0 | H40: 0 | I40: 0 | J40: 0 | K40: 0 | L40: =IF(AND(A011CALC=TRUE,CHOIX_PRESTATION=5),ASSURANCE,IF(A011CALC=TRUE,0,ASSURANCE)) -> 0
A41: DÉDUCTIONS DIVERSES | B41: =DIVERSDEDUC -> 0 | C41: =DIVERSDEDUC -> 0 | D41: 0 | E41: 0 | F41: 0 | G41: 0 | H41: 0 | I41: 0 | J41: 0 | K41: 0 | L41: =DIVERSDEDUC -> 0
A42: SALAIRE NET | B42: =ROUND(GAINS_BRUTS-SUM(B31:B41),2) -> 0 | C42: =ROUND(SUM(C26-C31-C33-C32-C34-C35-C36-C37-C38-C39-C40-C41),2) -> 0 | D42: 0 | E42: 0 | F42: 0 | G42: 0 | H42: 0 | I42: 0 | J42: 0 | K42: 0 | L42: =ROUND(SUM(L26-L31-L33-L32-L34-L35-L36-L37-L38-L39-L40-L41),2) -> 0
A43: * | B43: * | C43: * | D43: * | E43: * | F43: * | G43: * | H43: * | I43: * | J43: * | K43: * | L43: *
A45: =MAX((((PARAMÈTRES!B89+(ASSUR_FED)-PARAMÈTRES!B37-PARAMÈTRES!B38-(MIN(PARAMÈTRES!B39,(RACHATMAX/NBRE_PAIE))))*NBRE_PAIE)-ALLEGFED),0) -> 0
A46: =IF($K$2 =51,((+PARAMÈTRES!B31+IF(PARAMÈTRES!$A$134=TRUE,(SYNDIC1+SYNDIC2+SYNDIC3+SYNDIC4)*(PARAMÈTRES!B64/10),(SYNDIC1+SYNDIC2+SYNDIC3+SYNDIC4)))*$K$39),0) -> 0
B48: =MAX((ROUND((PARAMÈTRES!B90+PARAMÈTRES!B65-PARAMÈTRES!B157)*NBRE_PAIE,2))-((MIN(ROUND((ROUND((PARAMÈTRES!B26+PARAMÈTRES!B65-PARAMÈTRES!B157)*NBRE_PAIE,2))*'Calcul impôt'!$E$36,2),CRPROV_EMPLOI))+ROUND((PARAMÈTRES!B39)*NBRE_PAIE,2)+ALLEGPROV),0) -> 0
A56: Numéro de colonne | B56: 1 | C56: 2 | D56: 3 | E56: 4 | F56: 5 | G56: 6 | H56: 7 | I56: 8 | J56: 9 | K56: 10 | L56: CNESST
A60: JOURS PAR PÉRIODE | B60: 10 | C60: =IF(HRES_SEM=0,0,IF(HRES_SEM=35,ROUND(((ROUND(33.25*$B$26/HRES_SEM,2))/$B$26)*10,5),IF(HRES_SEM=38.75,ROUND(((ROUND(35*$B$26/HRES_SEM,2))/$B$26)*10,5),ROUND(((ROUND(37.5*$B$26/HRES_SEM,2))/$B$26)*10,5)))) ->  | D60: =IF(HRES_SEM=0,0,IF(HRES_SEM=35,ROUND(((ROUND(32.5*$B$26/HRES_SEM,2))/$B$26)*10,5),IF(HRES_SEM=38.75,ROUND(((ROUND(34.875*$B$26/HRES_SEM,2))/$B$26)*10,5),ROUND(((ROUND(34*$B$26/HRES_SEM,2))/$B$26)*10,5)))) ->  | E60: =IF(HRES_SEM=0,0,IF(HRES_SEM=35,ROUND(((ROUND(32*$B$26/HRES_SEM,2))/$B$26)*10,5),IF(HRES_SEM=38.75,ROUND(((ROUND(32*$B$26/HRES_SEM,2))/$B$26)*10,5),ROUND(((ROUND(32*$B$26/HRES_SEM,2))/$B$26)*10,5)))) ->  | F60: =IF(HRES_SEM=0,0,IF(HRES_SEM=35,ROUND(((ROUND(31.5*$B$26/HRES_SEM,2))/$B$26)*10,5),IF(HRES_SEM=38.75,ROUND(((ROUND(31*$B$26/HRES_SEM,2))/$B$26)*10,5),ROUND(((ROUND(28*$B$26/HRES_SEM,2))/$B$26)*10,5)))) ->  | G60: =IF(HRES_SEM=0,0,IF(HRES_SEM=35,ROUND(((ROUND(30*$B$26/HRES_SEM,2))/$B$26)*10,5),IF(HRES_SEM=38.75,ROUND(((ROUND(27.125*$B$26/HRES_SEM,2))/$B$26)*10,5),ROUND(((ROUND(24*$B$26/HRES_SEM,2))/$B$26)*10,5)))) ->  | H60: =IF(HRES_SEM=0,0,IF(HRES_SEM=35,ROUND(((ROUND(28*$B$26/HRES_SEM,2))/$B$26)*10,5),IF(HRES_SEM=38.75,ROUND(((ROUND(25*$B$26/HRES_SEM,2))/$B$26)*10,5),ROUND(((ROUND(20*$B$26/HRES_SEM,2))/$B$26)*10,5)))) ->  | I60: =IF(HRES_SEM=0,0,IF(HRES_SEM=35,ROUND(((ROUND(24.5*$B$26/HRES_SEM,2))/$B$26)*10,5),IF(HRES_SEM=38.75,ROUND(((ROUND(23.15*$B$26/HRES_SEM,2))/$B$26)*10,5),ROUND(((ROUND(16*$B$26/HRES_SEM,2))/$B$26)*10,5)))) ->  | J60: =IF(HRES_SEM=0,0,IF(HRES_SEM=35,ROUND(((ROUND(21*$B$26/HRES_SEM,2))/$B$26)*10,5),IF(HRES_SEM=38.75,ROUND(((ROUND(20*$B$26/HRES_SEM,2))/$B$26)*10,5),ROUND(((ROUND(12*$B$26/HRES_SEM,2))/$B$26)*10,5)))) ->  | K60: =IF(HRES_SEM=0,0,ROUND(((ROUND(IF(CALC_HRS=TRUE,HR_SEM_DEC,IF(HRES_SEM="35",14,IF(HRES_SEM="38,75",15.5,IF(HRES_SEM="40",8,ROUND(HRES_SEM/5,2)))))*$B$26/HRES_SEM,2))/$B$26)*10,5)) ->  | L60: 10 | M60: 10 | N60: 10 | O60: 10 | P60: 10 | Q60: 10 | R60: 10 | S60: 10 | AA60: =SALAIRE1 -> 0 | AB60: =TYPESAL1 -> 0
A61: HEURES SEMAINE | B61: =IF(TYPE_PAIE=1,IF(HRES_SEM-TRUNC(HRES_SEM)>0,(TRUNC(HRES_SEM))&"h"&(HRES_SEM-(TRUNC(HRES_SEM)))*60&" ",HRES_SEM&"h00 "),IF(TYPE_PAIE=2,BD136&"h"&TEXT(BE136,"00"),)) -> 35h00 | C61: =IF(HRES_SEM=35,"33h15 ",IF(HRES_SEM=38.75,"35h00 ","37h30 ")) -> 33h15 | D61: =IF(HRES_SEM=35,"32h30 ",IF(HRES_SEM=38.75,"34h53 ","34h00 ")) -> 32h30 | E61: =IF(HRES_SEM=35,"32h00 ",IF(HRES_SEM=38.75,"32h00 ","32h00 ")) -> 32h00 | F61: =IF(HRES_SEM=35,"31h30 ",IF(HRES_SEM=38.75,"31h00 ","28h00 ")) -> 31h30 | G61: =IF(HRES_SEM=35,"30h00 ",IF(HRES_SEM=38.75,"27h08 ","24h00 ")) -> 30h00 | H61: =IF(HRES_SEM=35,"28h00 ",IF(HRES_SEM=38.75,"25h00 ","20h00 ")) -> 28h00 | I61: =IF(HRES_SEM=35,"24h30 ",IF(HRES_SEM=38.75,"23h15 ","16h00 ")) -> 24h30 | J61: =IF(HRES_SEM=35,"21h00 ",IF(HRES_SEM=38.75,"20h00 ","12h00 ")) -> 21h00 | K61: =IF(Formule_Divers!B10=TRUE,Formule_Divers!B12,IF(HRES_SEM=35,"17h30 ",IF(HRES_SEM=38.75,"15h30 ",IF(HRES_SEM=40,"8h00 ",Formule_Divers!B22)))) -> 17h30 | L61: =IF(TYPE_PAIE=1,IF(HRES_SEM-TRUNC(HRES_SEM)>0,(TRUNC(HRES_SEM))&"h"&(HRES_SEM-(TRUNC(HRES_SEM)))*60&" ",HRES_SEM&"h00 "),IF(TYPE_PAIE=2,BD136&"h"&TEXT(BE136,"00"),)) -> 35h00 | M61: CSTTD 1 - B085 | N61: CSTTD 2 - A085 | O61: CSTTD 2 - B085 | P61: CSTTD 3 - A085 | Q61: CSTTD 3 - B085 | R61: CSTTD 4 - A085 | S61: CSTTD 4 - B085
A62: Avantage imposable Ass.Coll.:
A63: Parts employeurs maladies
A64: ( versus RRQ & temps partiel ) | B64: =IF(OR(codprima=86,codprimb=86,codprimc=86,codprimd=86),ASSUR_TOTAL,IF(B60>7.5,ASSUR_TOTAL+Assur_Dim_Tot,ROUND(ASSUR_TOTAL+Assur_Dim_Tot/2,2))) -> 0 | L64: 0 | M64: 0 | N64: 0 | O64: 0 | P64: =IF(OR(codprima=86,codprimb=86,codprimc=86,codprimd=86),ASSUR_TOTAL,IF(P60>7.5,ASSUR_TOTAL,ROUND(ASSUR_TOTAL/2,2))) -> 0 | Q64: =IF(OR(codprima=86,codprimb=86,codprimc=86,codprimd=86),ASSUR_TOTAL,IF(Q60>7.5,ASSUR_TOTAL,ROUND(ASSUR_TOTAL/2,2))) -> 0 | R64: =IF(OR(codprima=86,codprimb=86,codprimc=86,codprimd=86),ASSUR_TOTAL,IF(R60>7.5,ASSUR_TOTAL,ROUND(ASSUR_TOTAL/2,2))) -> 0 | S64: =IF(OR(codprima=86,codprimb=86,codprimc=86,codprimd=86),ASSUR_TOTAL,IF(S60>7.5,ASSUR_TOTAL,ROUND(ASSUR_TOTAL/2,2))) -> 0
A65: ( versus impôt provincial ) | B65: =IF(OR(codprima=86,codprimb=86,codprimc=86,codprimd=86),ASSUR_PROV,IF(B60>7.5,ROUND(ASSUR_PROV+Assur_Dim_Tot,2),ROUND(ASSUR_PROV+Assur_Dim_Tot/2,2))) -> 0 | C65: =IF(OR(codprima=86,codprimb=86,codprimc=86,codprimd=86),ASSUR_PROV,IF(C60>7.5,ASSUR_PROV+Assur_Dim_Tot,ROUND(ASSUR_PROV+Assur_Dim_Tot/2,2))) ->  | L65: 0 | M65: 0 | N65: 0 | O65: 0 | P65: =IF(OR(codprima=86,codprimb=86,codprimc=86,codprimd=86),ASSUR_PROV,IF(P60>7.5,ASSUR_PROV,ROUND(ASSUR_PROV/2,2))) -> 0 | Q65: =IF(OR(codprima=86,codprimb=86,codprimc=86,codprimd=86),ASSUR_PROV,IF(Q60>7.5,ASSUR_PROV,ROUND(ASSUR_PROV/2,2))) -> 0 | R65: =IF(OR(codprima=86,codprimb=86,codprimc=86,codprimd=86),ASSUR_PROV,IF(R60>7.5,ASSUR_PROV,ROUND(ASSUR_PROV/2,2))) -> 0 | S65: =IF(OR(codprima=86,codprimb=86,codprimc=86,codprimd=86),ASSUR_PROV,IF(S60>7.5,ASSUR_PROV,ROUND(ASSUR_PROV/2,2))) -> 0 | AA65: REG.RETRAITE
AA66: SALAIRE | AB66: TAUX HORAIRE
A67: Salaire annuel vs temps partiel | B67: =ROUND(B27*26.09,0) -> 0 | C67: 0 | D67: 0 | E67: 0 | F67: 0 | G67: 0 | H67: 0 | I67: 0 | J67: 0 | K67: =ROUND(K27*26.09,0) -> 0 | L67: =ROUND(L27*26.09,0) -> 0 | M67: =ROUND(CSTTD!E27*26.09,0) -> 0 | N67: =ROUND(CSTTD!F27*26.09,0) -> 0 | O67: =ROUND(CSTTD!G27*26.09,0) -> 0 | P67: =ROUND(CSTTD!#REF!*26.09,0) ->  | Q67: =ROUND(CSTTD!M27*26.09,0) -> 0 | R67: =ROUND(CSTTD!R27*26.09,0) -> 0 | S67: =ROUND(CSTTD!Q27*26.09,0) -> 0 | AA67: ADMISSIBLE | AB67: NON-ARRONDI
AA68: SANS MAJORATION ----------------------> | AB68: =IF(TYPESAL1=1,SALAIRE1/(HRES_SEM*52.18),IF(TYPESAL1=2,ROUND((SALAIRE1*14/'Déduction de base'!$B$24),2)/(HRES_SEM*2),IF(TYPESAL1=3,TX_HOR,#VALUE!))) -> 
AA69: SANS 11.12% -----------------------------> | AB69: =IF(OR(Taux_Majoration="",Taux_Majoration=0),AB68,(AB68)) -> 
C70: ouvrier | D70: 34h53 | E70: 32h00 | F70: 31h00 | G70: 27h08 | H70: 25h00 | I70: 23h15 | J70: 20h00 | K70: 15h30 | AA70: SANS 6.5% --------------------------------> | AB70: =IF(OR(Taux_Majoration="",Taux_Majoration=0),AB68,ROUND((AB68),2)) -> 
C71: fonctionna | D71: 32H00 | E71: 31h30 | F71: 30h00 | G71: 28h00 | H71: 24H30 | I71: 21h00 | J71: 17h30 | K71: 14h00 | L71: 35h00 | M71: 35h00 | N71: 35h00 | O71: 35h00 | P71: 35h00 | Q71: 35h00 | R71: 35h00 | S71: 35h00 | Z71: Pourcentage automatique selon | AA71: ="SANS "&Formule_Divers!$H$16&"%-------------->" -> SANS 0%--------------> | AB71: =IF(OR(Taux_Majoration="",Taux_Majoration=0),AB68,ROUND(AB68,2)) -> 
C72: fonc_new | D72: 32H30 | E72: 32H00 | F72: 31h30 | G72: 30h00 | H72: 28h00 | I72: 21h00 | J72: 17h30 | K72: 14h00 | L72: 35h00 | M72: 35h00 | N72: 35h00 | O72: 35h00 | P72: 35h00 | Q72: 35h00 | R72: 35h00 | S72: 35h00 | Z72: corps d'emploi
B76: 50 | C76: 47.5 | D76: 45 | E76: 42.5 | F76: 40 | G76: 37.5 | H76: 35 | I76: 32 | J76: 28 | K76: 21 | L76: 35 | M76: 35 | N76: 35 | O76: 35 | P76: 35 | Q76: 35 | R76: 35 | S76: 35
A77: Régie des rentes cotisée | B77: 0 | C77: =RRQMAX-RRQ_COTISE -> 3776.1
A78: Assurance-emploi cotisée | B78: 0 | C78: =CHOMANNUEL-AE_COTISE -> 723.6
A79: Assurance-parentale cotisée | B79: 0 | C79: =RQAPMAX-RQAP_COTISE -> 434.72
A80: Ass.-salaire et maternité
A81: ( versus temps partiel ) | B81: =IF(CHOIX_PRESTATION=5,PREST_A019,PREST_A011) -> 0 | C81: =IF(CHOIX_PRESTATION=5,ROUND(PREST_A019*C60/10,2),IF(PRORAT_A011=TRUE,ROUND(PREST_A011*(C60/10),2),IF(C60>7.5,PREST_A011,IF(C60>2.5,ROUND(PREST_A011*C60/10,2),0)))) ->  | D81: =IF(CHOIX_PRESTATION=5,ROUND(PREST_A019*D60/10,2),IF(PRORAT_A011=TRUE,ROUND(PREST_A011*(D60/10),2),IF(D60>7.5,PREST_A011,IF(D60>2.5,ROUND(PREST_A011*D60/10,2),0)))) -> 
B82: =IF((GAINS_BRUTS-B28)<0,GAINS_BRUTS,GAINS_BRUTS-B28) -> 0 | C82: =+IF(PRORATPRIME="vrai",(B60/10),1)*Prim01Fed+IF(PRORATPRIME="vrai",(B60/10),1)*Prim02Fed+IF(PRORATPRIME="vrai",(B60/10),1)*Prim03Fed+IF(PRORATPRIME="vrai",(B60/10),1)*Prim04Fed -> 0
B84: 1ère prime | C84: 2ième prime | D84: 3ième prime | E84: 4ième prime
A85: =IF(codprima<>"",B85,"")&IF(AND(codprima<>"",codprimb<>"")," et ","")&IF(codprimb<>"",C85,"")&IF(AND(OR(codprima<>"",codprimb<>""),codprimc<>"")," et ","")&IF(codprimc<>"",D85,"")&IF(AND(OR(codprima<>"",codprimb<>"",codprimc<>""),codprimd<>"")," et ","")&IF(codprimd<>"",E85,"") ->  | B85: =IF(codprima=0,"",IF(codprima<100,IF(PRIME1>0,"A0"&codprima,"B0"&codprima),IF(PRIME1>0,"A"&codprima,"B"&codprima))) ->  | C85: =IF(codprimb=0,"",IF(codprimb<100,IF(PRIME2>0,"A0"&codprimb,"B0"&codprimb),IF(PRIME2>0,"A"&codprimb,"B"&codprimb))) ->  | D85: =IF(codprimc=0,"",IF(codprimc<100,IF(PRIME3>0,"A0"&codprimc,"B0"&codprimc),IF(PRIME3>0,"A"&codprimc,"B"&codprimc))) ->  | E85: =IF(codprimd=0,"",IF(codprimd<100,IF(PRIME4>0,"A0"&codprimd,"B0"&codprimd),IF(PRIME4>0,"A"&codprimd,"B"&codprimd))) ->  | G85: =IF(COD_CONPENS_1<>"",B86,"")&IF(AND(COD_CONPENS_1<>"",COD_CONPENS_2<>"")," et ","")&IF(COD_CONPENS_2<>"",C86,"")&IF(AND(OR(COD_CONPENS_1<>"",COD_CONPENS_2<>""),COD_CONPENS_3<>"")," et ","")&IF(COD_CONPENS_3<>"",D86,"")&IF(AND(OR(COD_CONPENS_1<>"",COD_CONPENS_2<>"",COD_CONPENS_3<>""),COD_CONPENS_4<>"")," et ","")&IF(COD_CONPENS_4<>"",E86,"") ->  | Z85: TABLE DE RÉDUCTION RRF,RRE,RREFQ,RRMSQ,RRMSQ-EX
A86: =IF(COD_CONPENS_1<>"",B86,"")&IF(AND(COD_CONPENS_1<>"",COD_CONPENS_2<>"")," et ","")&IF(COD_CONPENS_2<>"",C86,"")&IF(AND(OR(COD_CONPENS_1<>"",COD_CONPENS_2<>""),COD_CONPENS_3<>"")," et ","")&IF(COD_CONPENS_3<>"",D86,"")&IF(AND(OR(COD_CONPENS_1<>"",COD_CONPENS_2<>"",COD_CONPENS_3<>""),COD_CONPENS_4<>"")," et ","")&IF(COD_CONPENS_4<>"",E86,"") ->  | B86: =IF(COD_CONPENS_1=0,"",IF(COD_CONPENS_1<100,"A0"&COD_CONPENS_1,"A"&COD_CONPENS_1)) ->  | C86: =IF(COD_CONPENS_2=0,"",IF(COD_CONPENS_2<100,"A0"&COD_CONPENS_2,"A"&COD_CONPENS_2)) ->  | D86: =IF(COD_CONPENS_3=0,"",IF(COD_CONPENS_3<100,"A0"&COD_CONPENS_3,"A"&COD_CONPENS_3)) ->  | E86: =IF(COD_CONPENS_4=0,"",IF(COD_CONPENS_4<100,"A0"&COD_CONPENS_4,"A"&COD_CONPENS_4)) ->  | Z86: (syndiqués et non syndicables)
Z87: 0 | AA87: 134.61
A88: Gains bruts imposables | B88: =B25 -> 35h00 | C88: =C25 -> 33h15 | D88: 32h30 | E88: 32h00 | F88: 31h30 | G88: 30h00 | H88: 28h00 | I88: 24h30 | J88: 21h00 | K88: 14h00 | L88: CNESST | M88: CSTTD 1 - A085 | N88: CSTTD 1 - B085 | O88: CSTTD 2 - A085 | P88: CSTTD 2 - B085 | Q88: CSTTD 3 - A085 | R88: CSTTD 3 - B085 | S88: CSTTD 4 - A085 | T88: CSTTD 4 - B085 | Z88: 134.6 | AA88: 1965.39
A89: Fédéral | B89: =IF((GAINS_BRUTS-B28)<0,GAINS_BRUTS,GAINS_BRUTS-B28)+IF(PRORATPRIME="vrai",(B60/10),1)*Prim01Fed+IF(PRORATPRIME="vrai",(B60/10),1)*Prim02Fed+IF(PRORATPRIME="vrai",(B60/10),1)*Prim03Fed+IF(PRORATPRIME="vrai",(B60/10),1)*Prim04Fed -> 0 | C89: =ROUND(IF((C26-C28)<0,C26,C26-C28)+IF(PRORATPRIME="vrai",(C60/10),1)*Prim01Fed+IF(PRORATPRIME="vrai",(C60/10),1)*Prim02Fed+IF(PRORATPRIME="vrai",(C60/10),1)*Prim03Fed+IF(PRORATPRIME="vrai",(C60/10),1)*Prim04Fed,2) -> 0 | D89: 0 | E89: 0 | F89: 0 | G89: 0 | H89: 0 | I89: 0 | J89: 0 | K89: 0 | L89: =IF(CODMAXCSST=1,L26,IF((GAINS_BRUTS-L28)<0,GAINS_BRUTS,GAINS_BRUTS-L28))+IF(PRORATPRIME="vrai",(L60/10),1)*Prim01Fed+IF(PRORATPRIME="vrai",(L60/10),1)*Prim02Fed+IF(PRORATPRIME="vrai",(L60/10),1)*Prim03Fed+IF(PRORATPRIME="vrai",(L60/10),1)*Prim04Fed -> 0 | M89: =ROUND(CSTTD!F29-IF(CSTTD!F31="",0,CSTTD!F31)+IF(PRORATPRIME="vrai",(CSTTDPourcentage1),1)*IF(codprima=106,0,Prim01Fed)+IF(PRORATPRIME="vrai",(CSTTDPourcentage1),1)*IF(codprimb=106,0,Prim02Fed)+IF(PRORATPRIME="vrai",(CSTTDPourcentage1),1)*IF(codprimc=106,0,Prim03Fed)+IF(PRORATPRIME="vrai",(CSTTDPourcentage1),1)*IF(codprimd=106,0,Prim04Fed),2) -> 0 | N89: =ROUND(CSTTD!E27-IF(CSTTD!E31="",0,CSTTD!E31)+IF(PRORATPRIME="vrai",(CSTTDPourcentage1),1)*IF(codprima=106,0,Prim01Fed)+IF(PRORATPRIME="vrai",(CSTTDPourcentage1),1)*IF(codprimb=106,0,Prim02Fed)+IF(PRORATPRIME="vrai",(CSTTDPourcentage1),1)*IF(codprimc=106,0,Prim03Fed)+IF(PRORATPRIME="vrai",(CSTTDPourcentage1),1)*IF(codprimd=106,0,Prim04Fed),2) -> 0 | O89: =ROUND(CSTTD!J27-IF(CSTTD!J31="",0,CSTTD!J31)+IF(PRORATPRIME="vrai",(CSTTDPourcentage2),1)*IF(codprima=106,0,Prim01Fed)+IF(PRORATPRIME="vrai",(CSTTDPourcentage2),1)*IF(codprimb=106,0,Prim02Fed)+IF(PRORATPRIME="vrai",(CSTTDPourcentage2),1)*IF(codprimc=106,0,Prim03Fed)+IF(PRORATPRIME="vrai",(CSTTDPourcentage2),1)*IF(codprimd=106,0,Prim04Fed),2) -> 0 | P89: =ROUND(CSTTD!I27-IF(CSTTD!I31="",0,CSTTD!I31)+IF(PRORATPRIME="vrai",(CSTTDPourcentage2),1)*IF(codprima=106,0,Prim01Fed)+IF(PRORATPRIME="vrai",(CSTTDPourcentage2),1)*IF(codprimb=106,0,Prim02Fed)+IF(PRORATPRIME="vrai",(CSTTDPourcentage2),1)*IF(codprimc=106,0,Prim03Fed)+IF(PRORATPRIME="vrai",(CSTTDPourcentage2),1)*IF(codprimd=106,0,Prim04Fed),2) -> 0 | Q89: =ROUND(CSTTD!N27-IF(CSTTD!N31="",0,CSTTD!N31)+IF(PRORATPRIME="vrai",(CSTTDPourcentage3),1)*IF(codprima=106,0,Prim01Fed)+IF(PRORATPRIME="vrai",(CSTTDPourcentage3),1)*IF(codprimb=106,0,Prim02Fed)+IF(PRORATPRIME="vrai",(CSTTDPourcentage3),1)*IF(codprimc=106,0,Prim03Fed)+IF(PRORATPRIME="vrai",(CSTTDPourcentage3),1)*IF(codprimd=106,0,Prim04Fed),2) -> 0 | R89: =ROUND(CSTTD!M27-IF(CSTTD!M31="",0,CSTTD!M31)+IF(PRORATPRIME="vrai",(CSTTDPourcentage3),1)*IF(codprima=106,0,Prim01Fed)+IF(PRORATPRIME="vrai",(CSTTDPourcentage3),1)*IF(codprimb=106,0,Prim02Fed)+IF(PRORATPRIME="vrai",(CSTTDPourcentage3),1)*IF(codprimc=106,0,Prim03Fed)+IF(PRORATPRIME="vrai",(CSTTDPourcentage3),1)*IF(codprimd=106,0,Prim04Fed),2) -> 0 | S89: =ROUND(CSTTD!R27-IF(CSTTD!R31="",0,CSTTD!R31)+IF(PRORATPRIME="vrai",(CSTTDPourcentage4),1)*IF(codprima=106,0,Prim01Fed)+IF(PRORATPRIME="vrai",(CSTTDPourcentage4),1)*IF(codprimb=106,0,Prim02Fed)+IF(PRORATPRIME="vrai",(CSTTDPourcentage4),1)*IF(codprimc=106,0,Prim03Fed)+IF(PRORATPRIME="vrai",(CSTTDPourcentage4),1)*IF(codprimd=106,0,Prim04Fed),2) -> 0 | T89: =ROUND(CSTTD!Q27-IF(CSTTD!Q31="",0,CSTTD!Q31)+IF(PRORATPRIME="vrai",(CSTTDPourcentage4),1)*IF(codprima=106,0,Prim01Fed)+IF(PRORATPRIME="vrai",(CSTTDPourcentage4),1)*IF(codprimb=106,0,Prim02Fed)+IF(PRORATPRIME="vrai",(CSTTDPourcentage4),1)*IF(codprimc=106,0,Prim03Fed)+IF(PRORATPRIME="vrai",(CSTTDPourcentage4),1)*IF(codprimd=106,0,Prim04Fed),2) -> 0 | Z89: 1965.38
A90: Provincial | B90: =IF((GAINS_BRUTS-B28)<0,GAINS_BRUTS,GAINS_BRUTS-B28)+IF(PRORATPRIME="vrai",(B60/10),1)*Prim01Prov+IF(PRORATPRIME="vrai",(B60/10),1)*Prim02Prov+IF(PRORATPRIME="vrai",(B60/10),1)*Prim03Prov+IF(PRORATPRIME="vrai",(B60/10),1)*Prim04Prov -> 0 | C90: =ROUND(IF((C26-C28)<0,C26,C26-C28)+IF(PRORATPRIME="vrai",(C60/10),1)*Prim01Prov+IF(PRORATPRIME="vrai",(C60/10),1)*Prim02Prov+IF(PRORATPRIME="vrai",(C60/10),1)*Prim03Prov+IF(PRORATPRIME="vrai",(C60/10),1)*Prim04Prov,2) -> 0 | D90: 0 | E90: 0 | F90: 0 | G90: 0 | H90: 0 | I90: 0 | J90: 0 | K90: 0 | L90: =IF(CODMAXCSST=1,L26,IF((GAINS_BRUTS-L28)<0,GAINS_BRUTS,GAINS_BRUTS-L28))+IF(PRORATPRIME="vrai",(L60/10),1)*Prim01Prov+IF(PRORATPRIME="vrai",(L60/10),1)*Prim02Prov+IF(PRORATPRIME="vrai",(L60/10),1)*Prim03Prov+IF(PRORATPRIME="vrai",(L60/10),1)*Prim04Prov -> 0 | M90: =ROUND(CSTTD!F27-IF(CSTTD!F31="",0,CSTTD!F31)+IF(PRORATPRIME="vrai",(CSTTDPourcentage1),1)*IF(codprima=106,0,Prim01Fed)+IF(PRORATPRIME="vrai",(CSTTDPourcentage1),1)*IF(codprimb=106,0,Prim02Fed)+IF(PRORATPRIME="vrai",(CSTTDPourcentage1),1)*IF(codprimc=106,0,Prim03Fed)+IF(PRORATPRIME="vrai",(CSTTDPourcentage1),1)*IF(codprimd=106,0,Prim04Fed),2) -> 0 | N90: =ROUND(CSTTD!E27-IF(CSTTD!E31="",0,CSTTD!E31)+IF(PRORATPRIME="vrai",(CSTTDPourcentage1),1)*IF(codprima=106,0,Prim01Fed)+IF(PRORATPRIME="vrai",(CSTTDPourcentage1),1)*IF(codprimb=106,0,Prim02Fed)+IF(PRORATPRIME="vrai",(CSTTDPourcentage1),1)*IF(codprimc=106,0,Prim03Fed)+IF(PRORATPRIME="vrai",(CSTTDPourcentage1),1)*IF(codprimd=106,0,Prim04Fed),2) -> 0 | O90: =ROUND(CSTTD!J27-IF(CSTTD!J31="",0,CSTTD!J31)+IF(PRORATPRIME="vrai",(CSTTDPourcentage2),1)*IF(codprima=106,0,Prim01Fed)+IF(PRORATPRIME="vrai",(CSTTDPourcentage2),1)*IF(codprimb=106,0,Prim02Fed)+IF(PRORATPRIME="vrai",(CSTTDPourcentage2),1)*IF(codprimc=106,0,Prim03Fed)+IF(PRORATPRIME="vrai",(CSTTDPourcentage2),1)*IF(codprimd=106,0,Prim04Fed),2) -> 0 | P90: =ROUND(CSTTD!I27-IF(CSTTD!I31="",0,CSTTD!I31)+IF(PRORATPRIME="vrai",(CSTTDPourcentage2),1)*IF(codprima=106,0,Prim01Fed)+IF(PRORATPRIME="vrai",(CSTTDPourcentage2),1)*IF(codprimb=106,0,Prim02Fed)+IF(PRORATPRIME="vrai",(CSTTDPourcentage2),1)*IF(codprimc=106,0,Prim03Fed)+IF(PRORATPRIME="vrai",(CSTTDPourcentage2),1)*IF(codprimd=106,0,Prim04Fed),2) -> 0 | Q90: =ROUND(CSTTD!N27-IF(CSTTD!N31="",0,CSTTD!N31)+IF(PRORATPRIME="vrai",(CSTTDPourcentage3),1)*IF(codprima=106,0,Prim01Fed)+IF(PRORATPRIME="vrai",(CSTTDPourcentage3),1)*IF(codprimb=106,0,Prim02Fed)+IF(PRORATPRIME="vrai",(CSTTDPourcentage3),1)*IF(codprimc=106,0,Prim03Fed)+IF(PRORATPRIME="vrai",(CSTTDPourcentage3),1)*IF(codprimd=106,0,Prim04Fed),2) -> 0 | R90: =ROUND(CSTTD!M27-IF(CSTTD!M31="",0,CSTTD!M31)+IF(PRORATPRIME="vrai",(CSTTDPourcentage3),1)*IF(codprima=106,0,Prim01Fed)+IF(PRORATPRIME="vrai",(CSTTDPourcentage3),1)*IF(codprimb=106,0,Prim02Fed)+IF(PRORATPRIME="vrai",(CSTTDPourcentage3),1)*IF(codprimc=106,0,Prim03Fed)+IF(PRORATPRIME="vrai",(CSTTDPourcentage3),1)*IF(codprimd=106,0,Prim04Fed),2) -> 0 | S90: =ROUND(CSTTD!R27-IF(CSTTD!R31="",0,CSTTD!R31)+IF(PRORATPRIME="vrai",(CSTTDPourcentage3),1)*IF(codprima=106,0,Prim01Fed)+IF(PRORATPRIME="vrai",(CSTTDPourcentage3),1)*IF(codprimb=106,0,Prim02Fed)+IF(PRORATPRIME="vrai",(CSTTDPourcentage3),1)*IF(codprimc=106,0,Prim03Fed)+IF(PRORATPRIME="vrai",(CSTTDPourcentage3),1)*IF(codprimd=106,0,Prim04Fed),2) -> 0 | T90: =ROUND(CSTTD!Q27-IF(CSTTD!Q31="",0,CSTTD!Q31)+IF(PRORATPRIME="vrai",(CSTTDPourcentage4),1)*IF(codprima=106,0,Prim01Fed)+IF(PRORATPRIME="vrai",(CSTTDPourcentage4),1)*IF(codprimb=106,0,Prim02Fed)+IF(PRORATPRIME="vrai",(CSTTDPourcentage4),1)*IF(codprimc=106,0,Prim03Fed)+IF(PRORATPRIME="vrai",(CSTTDPourcentage4),1)*IF(codprimd=106,0,Prim04Fed),2) -> 0
Z91: N.B. Le calcul ne tient pas compte des décimales après 2 chiffres.
A92: PRIME | Z92: Afin d'éviter de dépasser le maximum de 3500
B93: CODE DE PRIME | D93: 1ière Prime | Z93: Si on arrondi on dépasse le maximum annuel de 3500,00
B94: PRIME 1 | D94: MONTANT DE LA PRIME | Y94: Avec 26 paies | Z94: =3500/26 -> 134.6153846 | AA94: =129.63*27 -> 3500.01
B95: PRIME A | D95: MONTANT DE LA PRIME ADMISSIBLE AU RR | Y95: Avec 27 paies | Z95: =3500/27 -> 129.6296296 | AA95: =134.62*26 -> 3500.12
B96: SYNDIC1 | D96: MONTANT DE LA PRIME ADMISSIBLE AU SYNDICAT
B97: CHOMAGE1 | D97: MONTANT DE LA PRIME ADMISSIBLE AU CHÔMAGE
B98: PARENTALE1 | D98: MONTANT DE LA PRIME ADMISSIBLE A l'ass. parentale
B99: ReRQ1 | D99: MONTANT DE LA PRIME ADMISSIBLE À RRQ
B100: PRIM_ASSUR1 | D100: MONTANT DE LA PRIME ADMISSIBLE aux assurances des Juges
B101: Prime_01_ImpotFed | D101: MONTANT DE LA PRIME ADMISSIBLE À Impôt Fédéral
B102: Prime_01_ImpotProv | D102: MONTANT DE LA PRIME ADMISSIBLE À Impôt Provincial
B103: CODE DE PRIME | D103: 2ième Prime
B104: PRIME 2 | D104: MONTANT DE LA PRIME
B105: PRIME B | D105: MONTANT DE LA PRIME ADMISSIBLE AU RR
B106: SYNDIC2 | D106: MONTANT DE LA PRIME ADMISSIBLE AU SYNDICAT
B107: CHOMAGE2 | D107: MONTANT DE LA PRIME ADMISSIBLE AU CHÔMAGE
B108: PARENTALE2 | D108: MONTANT DE LA PRIME ADMISSIBLE A l'ass. parentale
B109: ReRQ2 | D109: MONTANT DE LA PRIME ADMISSIBLE À RRQ
B110: PRIM_ASSUR2 | D110: MONTANT DE LA PRIME ADMISSIBLE aux assurances des Juges
B111: Prime_02_ImpotFed | D111: MONTANT DE LA PRIME ADMISSIBLE À Impôt Fédéral
B112: Prime_02_ImpotProv | D112: MONTANT DE LA PRIME ADMISSIBLE À Impôt Provincial | AR112: 0
B113: CODE DE PRIME | D113: 3ième Prime
B114: PRIME 3 | D114: MONTANT DE LA PRIME
B115: PRIME C | D115: MONTANT DE LA PRIME ADMISSIBLE AU RR
B116: SYNDIC3 | D116: MONTANT DE LA PRIME ADMISSIBLE AU SYNDICAT | AU116: Calcul du B019
B117: CHOMAGE3 | D117: MONTANT DE LA PRIME ADMISSIBLE AU CHÔMAGE
B118: PARENTALE3 | D118: MONTANT DE LA PRIME ADMISSIBLE A l'ass. parentale
B119: ReRQ3 | D119: MONTANT DE LA PRIME ADMISSIBLE À RRQ | AR119: Nombre d'heures/semaine | AS119: =B25 -> 35h00 | AT119: 33h15 | AU119: 32h30 | AV119: 32h00 | AW119: 31h30 | AX119: 30h00 | AY119: 28h00 | AZ119: 24h30 | BA119: 21h00 | BB119: 14h00
B120: PRIM_ASSUR3 | D120: MONTANT DE LA PRIME ADMISSIBLE aux assurances des Juges | AR120: GAINS MATERNITÉ | AS120: =ROUND(GAIN_MATERNITÉ*B60/10,0) -> 0 | AT120: =ROUND(GAIN_MATERNITÉ*C60/10,2) -> 
B121: Prime_03_ImpotFed | D121: MONTANT DE LA PRIME ADMISSIBLE À Impôt Fédéral | AR121: Prestation maternité /smn | AS121: =MIN(ROUND(((AS120)/26)*TAUX_CHOM,0),PRESTMAX_RQAP) -> 
B122: Prime_03_ImpotProv | D122: MONTANT DE LA PRIME ADMISSIBLE À Impôt Provincial | AR122: Montant du B019 par paie | AS122: =CHOOSE(CX_MATERNITÉ,ROUND((ROUND(AS121*15,2))/10,2),ROUND((ROUND(AS121*21,2))/10.5,2),ROUND((ROUND(AS121*21,2))/10.5,2)) -> 
B123: CODE DE PRIME | D123: 4ième Prime | AS123: =(CHOOSE(CX_MATERNITÉ,ROUND((ROUND((MIN(ROUND(((ROUND(GAIN_MATERNITÉ*B60/10,2))/26)*TAUX_CHOM,0),PRESTMAX_RQAP))*21,2))/10.5,2),ROUND((ROUND((MIN(ROUND(((ROUND(GAIN_MATERNITÉ*B60/10,2))/26)*TAUX_CHOM,0),PRESTMAX_RQAP))*21,2))/10.5,2))) -> 
B124: PRIME 4 | D124: MONTANT DE LA PRIME
B125: PRIME D | D125: MONTANT DE LA PRIME ADMISSIBLE AU RR | AS125: =IF(AND(A011CALC=TRUE,CHOIX_PRESTATION=5),(CHOOSE(CX_MATERNITÉ,ROUND((ROUND((MIN(ROUND(((ROUND(GAIN_MATERNITÉ*B60/10,2))/26)*TAUX_CHOM,0),PRESTMAX_RQAP))*21,2))/10.5,2),ROUND((ROUND((MIN(ROUND(((ROUND(GAIN_MATERNITÉ*B60/10,2))/26)*TAUX_CHOM,0),PRESTMAX_RQAP))*21,2))/10.5,2))),IF(A011CALC=TRUE,0,IF(PRORATPRIME=TRUE,(PRIME1+PRIME2)*(B60/10),(PRIME1+PRIME2)))) -> 0 | AT125: 0 | AU125: 0 | AV125: 0 | AW125: 0 | AX125: 0 | AY125: 0 | AZ125: 0 | BA125: 0 | BB125: 0
B126: SYNDIC4 | D126: MONTANT DE LA PRIME ADMISSIBLE AU SYNDICAT
B127: CHOMAGE4 | D127: MONTANT DE LA PRIME ADMISSIBLE AU CHÔMAGE | AW127: Standard | AX127: Variable | AY127: Heures travaillés | AZ127: Standard pour MO externe
B128: PARENTALE4 | D128: MONTANT DE LA PRIME ADMISSIBLE A l'ass. parentale | AU128: HRES_SEM : | AV128: 35 | AY128: 29 | AZ128: 0
B129: ReRQ4 | D129: MONTANT DE LA PRIME ADMISSIBLE À RRQ
B130: PRIM_ASSUR4 | D130: MONTANT DE LA PRIME ADMISSIBLE aux assurances des Juges | AU130: 7.45 | AV130: =ROUND((TRUNC(AU130)+(AU130-TRUNC(AU130))/60*100),2) -> 7.75
B131: Prime_04_ImpotFed | D131: MONTANT DE LA PRIME ADMISSIBLE À Impôt Fédéral | AU131: 9.41 | AV131: =ROUND((TRUNC(AU131)+(AU131-TRUNC(AU131))/60*100),2) -> 9.68
B132: Prime_04_ImpotProv | D132: MONTANT DE LA PRIME ADMISSIBLE À Impôt Provincial | AU132: 38.45 | AV132: =ROUND((TRUNC(AU132)+(AU132-TRUNC(AU132))/60*100),2) -> 38.75
D133: MONTANT TOTAL DES PRIMES | AX133: Paie Variable
A134: faux | D134: PRORATER LES PRIMES À TEMPS PARTIEL | AU134: HEURES_PAIE | AV134: MINUTES_PAIE | AX134: HEURES_PAIE_MOYENNE | AZ134: MINUTES_PAIE_MOYENNE | BC134: Total décimal | BD134: Taux horaire | BE134: Heures travaillées
AX135: =TRUNC(HRES_SEM_VARIABLE,0) * 2 -> 0 | AZ135: =ROUND(MOD(HRES_SEM_VARIABLE,1),2) * 2 -> 0 | BC135: =HEURES_VARIABLE+(MINUTES_VARIABLE * 100)/60 -> 0 | BD135: 0 | BE135: 35
BD136: =INT(HRES_SEM_VARIABLE_TR) -> 29 | BE136: =MOD(HRES_SEM_VARIABLE_TR,1)*60 -> 0
AU137: 94 | AV137: 1 | AY137: Ajustement selon corps d'emploi (pour salaire cotisable)
B138: =B25 -> 35h00 | C138: 33h15 | D138: 32h30 | E138: 32h00 | F138: 31h30 | G138: 30h00 | H138: 28h00 | I138: 24h30 | J138: 21h00 | K138: 14h00 | L138: CSTTD 1 - A085 | M138: CSTTD 1 - B085 | N138: CSTTD 2 - A085 | O138: CSTTD 2 - B085 | P138: CSTTD 3 - A085 | Q138: CSTTD 3 - B085 | R138: CSTTD 4 - A085 | S138: CSTTD 4 - B085 | AU138: HEURES | AV138: MINUTES | AY138: =IF(CORPS_EMPLOI=307,80,82) -> 82
B139: =(PRIME1+PRIME2+PRIME3+PRIME4)*(B60/10) -> 0 | C139: =IF($A$134=TRUE,ROUND((PRIME1+PRIME2+PRIME3+PRIME4)*(C60/10),2),(PRIME1+PRIME2+PRIME3+PRIME4)) -> 0 | D139: 0 | E139: 0 | F139: 0 | G139: 0 | H139: 0 | I139: 0 | J139: 0 | K139: 0 | L139: =IF($A$134=TRUE,ROUND((PRIME1+PRIME2+PRIME3+PRIME4)*(CSTTDPourcentage1),2),(PRIME1+PRIME2+PRIME3+PRIME4)) -> 0 | M139: =IF($A$134=TRUE,ROUND((PRIME1+PRIME2+PRIME3+PRIME4)*(CSTTDPourcentage1),2),(PRIME1+PRIME2+PRIME3+PRIME4)) -> 0 | N139: =IF($A$134=TRUE,ROUND((PRIME1+PRIME2+PRIME3+PRIME4)*(CSTTDPourcentage2),2),(PRIME1+PRIME2+PRIME3+PRIME4)) -> 0 | O139: =IF($A$134=TRUE,ROUND((PRIME1+PRIME2+PRIME3+PRIME4)*(CSTTDPourcentage2),2),(PRIME1+PRIME2+PRIME3+PRIME4)) -> 0 | P139: =IF($A$134=TRUE,ROUND((PRIME1+PRIME2+PRIME3+PRIME4)*(CSTTDPourcentage3),2),(PRIME1+PRIME2+PRIME3+PRIME4)) -> 0 | Q139: =IF($A$134=TRUE,ROUND((PRIME1+PRIME2+PRIME3+PRIME4)*(CSTTDPourcentage3),2),(PRIME1+PRIME2+PRIME3+PRIME4)) -> 0 | R139: =IF($A$134=TRUE,ROUND((PRIME1+PRIME2+PRIME3+PRIME4)*(CSTTDPourcentage4),2),(PRIME1+PRIME2+PRIME3+PRIME4)) -> 0 | S139: =IF($A$134=TRUE,ROUND((PRIME1+PRIME2+PRIME3+PRIME4)*(CSTTDPourcentage4),2),(PRIME1+PRIME2+PRIME3+PRIME4)) -> 0 | AU139: 1 | AV139: 0
B140: =CONPENS_1+CONPENS_2 -> 0 | C140: =IF($A$134=TRUE,ROUND((CONPENS_1+CONPENS_2)*(C60/10),2),(CONPENS_1+CONPENS_2)) -> 0 | D140: =IF($A$134=TRUE,ROUND((CONPENS_1+CONPENS_2)*(D60/10),2),(CONPENS_1+CONPENS_2)) -> 0 | E140: 0 | F140: 0 | G140: 0 | H140: 0 | I140: 0 | J140: 0 | K140: 0 | L140: =IF($A$134=TRUE,ROUND((CONPENS_1+CONPENS_2)*(CSTTDPourcentage1),2),(CONPENS_1+CONPENS_2)) -> 0 | M140: =IF($A$134=TRUE,ROUND((CONPENS_1+CONPENS_2)*(CSTTDPourcentage1),2),(CONPENS_1+CONPENS_2)) -> 0 | N140: =IF($A$134=TRUE,ROUND((CONPENS_1+CONPENS_2)*(CSTTDPourcentage2),2),(CONPENS_1+CONPENS_2)) -> 0 | O140: =IF($A$134=TRUE,ROUND((CONPENS_1+CONPENS_2)*(CSTTDPourcentage2),2),(CONPENS_1+CONPENS_2)) -> 0 | P140: =IF($A$134=TRUE,ROUND((CONPENS_1+CONPENS_2)*(CSTTDPourcentage3),2),(CONPENS_1+CONPENS_2)) -> 0 | Q140: =IF($A$134=TRUE,ROUND((CONPENS_1+CONPENS_2)*(CSTTDPourcentage3),2),(CONPENS_1+CONPENS_2)) -> 0 | R140: =IF($A$134=TRUE,ROUND((CONPENS_1+CONPENS_2)*(CSTTDPourcentage4),2),(CONPENS_1+CONPENS_2)) -> 0 | S140: =IF($A$134=TRUE,ROUND((CONPENS_1+CONPENS_2)*(CSTTDPourcentage4),2),(CONPENS_1+CONPENS_2)) -> 0 | AU140: 2 | AV140: 1 | AY140: Exempt_RRQ_Variable | BA140: MGA 25% Serv. Cot. TPR | BC140: 25% du salaire cotisable
B141: =B28-B140 -> 0 | C141: =C28-C140 -> 0 | D141: =D28-D140 -> 0 | E141: 0 | F141: 0 | G141: 0 | H141: 0 | I141: 0 | J141: 0 | K141: 0 | L141: =L28-L140 -> 0 | N141: 0 | O141: 0 | P141: 0 | Q141: 0 | R141: 0 | S141: 0 | AU141: 3 | AV141: 2 | AX141: RRAPIP 15 TPR | AY141: =ROUNDDOWN(MAXRRQANNEE/NBRE_PAIE,3) -> 2496.153 | BA141: =POURC_TRV_TPR*EXEMPT_RRQ_VARIABLE*25% -> 226.2138656 | BC141: =SAL_COTISABLE*POURC_TRV_TPR*25% -> 
A142: 1ière prime | B142: =(PRIME1)*(B60/10) -> 0 | C142: =IF($A$134=TRUE,ROUND((PRIME1)*(C60/10),2),(PRIME1)) -> 0 | D142: =IF($A$134=TRUE,ROUND((PRIME1)*(D60/10),2),(PRIME1)) -> 0 | E142: 0 | F142: 0 | G142: 0 | H142: 0 | I142: 0 | J142: 0 | K142: 0 | L142: =IF($A$134=TRUE,ROUND((PRIME1)*(CSTTDPourcentage1),2),(PRIME1)) -> 0 | M142: =IF($A$134=TRUE,ROUND((PRIME1)*(CSTTDPourcentage1),2),(PRIME1)) -> 0 | N142: =IF($A$134=TRUE,ROUND((PRIME1)*(CSTTDPourcentage2),2),(PRIME1)) -> 0 | O142: =IF($A$134=TRUE,ROUND((PRIME1)*(CSTTDPourcentage2),2),(PRIME1)) -> 0 | P142: =IF($A$134=TRUE,ROUND((PRIME1)*(CSTTDPourcentage3),2),(PRIME1)) -> 0 | Q142: =IF($A$134=TRUE,ROUND((PRIME1)*(CSTTDPourcentage3),2),(PRIME1)) -> 0 | R142: =IF($A$134=TRUE,ROUND((PRIME1)*(CSTTDPourcentage4),2),(PRIME1)) -> 0 | S142: =IF($A$134=TRUE,ROUND((PRIME1)*(CSTTDPourcentage4),2),(PRIME1)) -> 0 | AU142: 4 | AV142: 3
A143: 2ième prime | B143: =B139-B142 -> 0 | C143: =C139-C142 -> 0 | D143: =D139-D142 -> 0 | E143: 0 | F143: 0 | G143: 0 | H143: 0 | I143: 0 | J143: 0 | K143: 0 | L143: =L139-L142 -> 0 | M143: 0 | N143: 0 | O143: 0 | P143: 0 | Q143: 0 | R143: 0 | S143: 0 | AU143: 5 | AV143: 4 | AX143: Utilisé par | AY143: Salaire cotisable | BA143: Pourc. Travail TPR
A144: 3ième prime | AU144: 6 | AV144: 5 | AX144: les deux | AY144: =IF(AJUS_HEURES<>FALSE,IF(AND(A011CALC=TRUE,CHOIX_PRESTATION=5),PREST_A019-B_019,IF(A011CALC=TRUE,PREST_A011+(($A94+$A104)*(B60/10)),IF(CODMAXCSST=1,MAXCSSTPAIE,(CHOOSE(TYPESAL1,ROUND(('Déduction de base'!$B$4*(HRES_SEM*2))*(B$60/10),2),ROUND((SALAIRE1*14/'Déduction de base'!$B$24)*(B$60/10),2),ROUND((HRES_SEM*2*TX_HOR)*(B$60/10),2))+(($A94+$A104)*($B60/10))))))/AJUS_HEURES*TOTAL_HEURES_VARIABLE,0) ->  | BA144: =HRES_SEM_VARIABLE_TR/80 -> 0.3625
A145: 4ième prime | AU145: 7 | AV145: 6
AU146: 8 | AV146: 7 | AX146: RREGOP 9 RTP | AY146: Exempt
A147: CODE DE PRIME A181 & A195 | B147: =IF(OR(codprima=181,codprima=195),PRIME1,0) -> 0 | C147: =IF(OR(codprima=181,codprima=195),IF(PRORATPRIME=TRUE,ROUND(PRIME1*C60/10,2),PRIME1),0) -> 0 | D147: 0 | E147: 0 | F147: 0 | G147: 0 | H147: 0 | I147: 0 | J147: 0 | K147: 0 | L147: =IF(OR(codprima=181,codprima=195),IF(PRORATPRIME=TRUE,ROUND(PRIME1*CSTTDPourcentage1,2),PRIME1),0) -> 0 | M147: =IF(OR(codprima=181,codprima=195),IF(PRORATPRIME=TRUE,ROUND(PRIME1*CSTTDPourcentage1,2),PRIME1),0) -> 0 | N147: =IF(OR(codprima=181,codprima=195),IF(PRORATPRIME=TRUE,ROUND(PRIME1*CSTTDPourcentage2,2),PRIME1),0) -> 0 | O147: =IF(OR(codprima=181,codprima=195),IF(PRORATPRIME=TRUE,ROUND(PRIME1*CSTTDPourcentage2,2),PRIME1),0) -> 0 | P147: =IF(OR(codprima=181,codprima=195),IF(PRORATPRIME=TRUE,ROUND(PRIME1*CSTTDPourcentage3,2),PRIME1),0) -> 0 | Q147: =IF(OR(codprima=181,codprima=195),IF(PRORATPRIME=TRUE,ROUND(PRIME1*CSTTDPourcentage3,2),PRIME1),0) -> 0 | R147: =IF(OR(codprima=181,codprima=195),IF(PRORATPRIME=TRUE,ROUND(PRIME1*CSTTDPourcentage4,2),PRIME1),0) -> 0 | S147: =IF(OR(codprima=181,codprima=195),IF(PRORATPRIME=TRUE,ROUND(PRIME1*CSTTDPourcentage4,2),PRIME1),0) -> 0 | AU147: 9 | AV147: 8 | AY147: =ROUND(MAXRRQANNEE*29%/NBRE_PAIE,2) -> 723.88
A148: Non adm RRQ | B148: =IF(OR(codprimb=181,codprimb=195),PRIME2,0) -> 0 | C148: =IF(OR(codprimb=181,codprimb=195),IF(PRORATPRIME=TRUE,ROUND(PRIME2*C60/10,2),PRIME2),0) -> 0 | D148: =IF(OR(codprimb=181,codprimb=195),IF(PRORATPRIME=TRUE,ROUND(PRIME2*D60/10,2),PRIME2),0) -> 0 | E148: 0 | F148: 0 | G148: 0 | H148: 0 | I148: 0 | J148: 0 | K148: 0 | L148: =IF(OR(codprimb=181,codprimb=195),IF(PRORATPRIME=TRUE,ROUND(PRIME2*CSTTDPourcentage1,2),PRIME2),0) -> 0 | M148: =IF(OR(codprimb=181,codprimb=195),IF(PRORATPRIME=TRUE,ROUND(PRIME2*CSTTDPourcentage1,2),PRIME2),0) -> 0 | N148: =IF(OR(codprimb=181,codprimb=195),IF(PRORATPRIME=TRUE,ROUND(PRIME2*CSTTDPourcentage2,2),PRIME2),0) -> 0 | O148: =IF(OR(codprimb=181,codprimb=195),IF(PRORATPRIME=TRUE,ROUND(PRIME2*CSTTDPourcentage2,2),PRIME2),0) -> 0 | P148: =IF(OR(codprimb=181,codprimb=195),IF(PRORATPRIME=TRUE,ROUND(PRIME2*CSTTDPourcentage3,2),PRIME2),0) -> 0 | Q148: =IF(OR(codprimb=181,codprimb=195),IF(PRORATPRIME=TRUE,ROUND(PRIME2*CSTTDPourcentage3,2),PRIME2),0) -> 0 | R148: =IF(OR(codprimb=181,codprimb=195),IF(PRORATPRIME=TRUE,ROUND(PRIME2*CSTTDPourcentage4,2),PRIME2),0) -> 0 | S148: =IF(OR(codprimb=181,codprimb=195),IF(PRORATPRIME=TRUE,ROUND(PRIME2*CSTTDPourcentage4,2),PRIME2),0) -> 0 | AU148: 10 | AV148: 9
B149: =IF(OR(codprimc=181,codprimc=195),PRIME3,0) -> 0 | C149: =IF(OR(codprimc=181,codprimc=195),IF(PRORATPRIME=TRUE,ROUND(PRIME3*C60/10,2),PRIME3),0) -> 0 | D149: 0 | E149: 0 | F149: 0 | G149: 0 | H149: 0 | I149: 0 | J149: 0 | K149: 0 | L149: =IF(OR(codprimc=181,codprimc=195),IF(PRORATPRIME=TRUE,ROUND(PRIME3*CSTTDPourcentage1,2),PRIME3),0) -> 0 | M149: =IF(OR(codprimc=181,codprimc=195),IF(PRORATPRIME=TRUE,ROUND(PRIME3*CSTTDPourcentage1,2),PRIME3),0) -> 0 | N149: =IF(OR(codprimc=181,codprimc=195),IF(PRORATPRIME=TRUE,ROUND(PRIME3*CSTTDPourcentage2,2),PRIME3),0) -> 0 | O149: =IF(OR(codprimc=181,codprimc=195),IF(PRORATPRIME=TRUE,ROUND(PRIME3*CSTTDPourcentage2,2),PRIME3),0) -> 0 | P149: =IF(OR(codprimc=181,codprimc=195),IF(PRORATPRIME=TRUE,ROUND(PRIME3*CSTTDPourcentage3,2),PRIME3),0) -> 0 | Q149: =IF(OR(codprimc=181,codprimc=195),IF(PRORATPRIME=TRUE,ROUND(PRIME3*CSTTDPourcentage3,2),PRIME3),0) -> 0 | R149: =IF(OR(codprimc=181,codprimc=195),IF(PRORATPRIME=TRUE,ROUND(PRIME3*CSTTDPourcentage4,2),PRIME3),0) -> 0 | S149: =IF(OR(codprimc=181,codprimc=195),IF(PRORATPRIME=TRUE,ROUND(PRIME3*CSTTDPourcentage4,2),PRIME3),0) -> 0 | AU149: 11 | AV149: 10 | AY149: Résultat final pour le régime de retraite
B150: =IF(OR(codprimd=181,codprimd=195),PRIME4,0) -> 0 | C150: =IF(OR(codprimd=181,codprimd=195),IF(PRORATPRIME=TRUE,ROUND(PRIME4*C60/10,2),PRIME4),0) -> 0 | D150: 0 | E150: 0 | F150: 0 | G150: 0 | H150: 0 | I150: 0 | J150: 0 | K150: 0 | L150: =IF(OR(codprimd=181,codprimd=195),IF(PRORATPRIME=TRUE,ROUND(PRIME4*CSTTDPourcentage1,2),PRIME4),0) -> 0 | M150: =IF(OR(codprimd=181,codprimd=195),IF(PRORATPRIME=TRUE,ROUND(PRIME4*CSTTDPourcentage1,2),PRIME4),0) -> 0 | N150: =IF(OR(codprimd=181,codprimd=195),IF(PRORATPRIME=TRUE,ROUND(PRIME4*CSTTDPourcentage2,2),PRIME4),0) -> 0 | O150: =IF(OR(codprimd=181,codprimd=195),IF(PRORATPRIME=TRUE,ROUND(PRIME4*CSTTDPourcentage2,2),PRIME4),0) -> 0 | P150: =IF(OR(codprimd=181,codprimd=195),IF(PRORATPRIME=TRUE,ROUND(PRIME4*CSTTDPourcentage3,2),PRIME4),0) -> 0 | Q150: =IF(OR(codprimd=181,codprimd=195),IF(PRORATPRIME=TRUE,ROUND(PRIME4*CSTTDPourcentage3,2),PRIME4),0) -> 0 | R150: =IF(OR(codprimd=181,codprimd=195),IF(PRORATPRIME=TRUE,ROUND(PRIME4*CSTTDPourcentage4,2),PRIME4),0) -> 0 | S150: =IF(OR(codprimd=181,codprimd=195),IF(PRORATPRIME=TRUE,ROUND(PRIME4*CSTTDPourcentage4,2),PRIME4),0) -> 0 | AU150: 12 | AV150: 11 | AY150: =IF(CXRETRAITE=15,'Déduction de base'!B49*(SAL_COTISABLE-MIN(MGA_SERV_COT_TPR,POURC_SAL_COTISABLE)),IF(CXRETRAITE=20,(SAL_COTISABLE-(EXEMPT_REGGOP_RTP*POURC_TRV_TPR))*RREGOP_TAUX,0)) -> 0
A151: Total des primes | B151: =B147+B148+B149+B150 -> 0 | C151: =C147+C148+C149+C150 -> 0 | D151: 0 | E151: 0 | F151: 0 | G151: 0 | H151: 0 | I151: 0 | J151: 0 | K151: 0 | L151: 0 | M151: 0 | N151: =N147+N148+N149+N150 -> 0 | O151: 0 | P151: 0 | Q151: 0 | R151: 0 | S151: 0 | AU151: 13 | AV151: 12
AU152: 14 | AV152: 13 | AX152: !!! IMPORTANT À REFAIRE !!!
A153: CODE DE PRIME A181 | B153: =IF(codprima=181,PRIME1,0) -> 0 | C153: =IF(codprima=181,IF(PRORATPRIME=TRUE,ROUND(PRIME1*C60/10,2),PRIME1),0) -> 0 | D153: 0 | E153: 0 | F153: 0 | G153: 0 | H153: 0 | I153: 0 | J153: 0 | K153: 0 | L153: =IF(codprima=181,IF(PRORATPRIME=TRUE,ROUND(PRIME1*CSTTDPourcentage1,2),PRIME1),0) -> 0 | M153: =IF(codprima=181,IF(PRORATPRIME=TRUE,ROUND(PRIME1*CSTTDPourcentage1,2),PRIME1),0) -> 0 | N153: =IF(codprima=181,IF(PRORATPRIME=TRUE,ROUND(PRIME1*CSTTDPourcentage2,2),PRIME1),0) -> 0 | O153: =IF(codprima=181,IF(PRORATPRIME=TRUE,ROUND(PRIME1*CSTTDPourcentage2,2),PRIME1),0) -> 0 | P153: =IF(codprima=181,IF(PRORATPRIME=TRUE,ROUND(PRIME1*CSTTDPourcentage3,2),PRIME1),0) -> 0 | Q153: =IF(codprima=181,IF(PRORATPRIME=TRUE,ROUND(PRIME1*CSTTDPourcentage3,2),PRIME1),0) -> 0 | R153: =IF(codprima=181,IF(PRORATPRIME=TRUE,ROUND(PRIME1*CSTTDPourcentage4,2),PRIME1),0) -> 0 | S153: =IF(codprima=181,IF(PRORATPRIME=TRUE,ROUND(PRIME1*CSTTDPourcentage4,2),PRIME1),0) -> 0 | AU153: 15 | AV153: 14
A154: Non adm Impot PROV. | B154: =IF(codprimb=181,PRIME2,0) -> 0 | C154: =IF(codprimb=181,IF(PRORATPRIME=TRUE,ROUND(PRIME2*C60/10,2),PRIME2),0) -> 0 | D154: 0 | E154: 0 | F154: 0 | G154: 0 | H154: 0 | I154: 0 | J154: 0 | K154: 0 | L154: =IF(codprimb=181,IF(PRORATPRIME=TRUE,ROUND(PRIME2*CSTTDPourcentage1,2),PRIME2),0) -> 0 | M154: =IF(codprimb=181,IF(PRORATPRIME=TRUE,ROUND(PRIME2*CSTTDPourcentage1,2),PRIME2),0) -> 0 | N154: =IF(codprimb=181,IF(PRORATPRIME=TRUE,ROUND(PRIME2*CSTTDPourcentage2,2),PRIME2),0) -> 0 | O154: =IF(codprimb=181,IF(PRORATPRIME=TRUE,ROUND(PRIME2*CSTTDPourcentage2,2),PRIME2),0) -> 0 | P154: =IF(codprimb=181,IF(PRORATPRIME=TRUE,ROUND(PRIME2*CSTTDPourcentage3,2),PRIME2),0) -> 0 | Q154: =IF(codprimb=181,IF(PRORATPRIME=TRUE,ROUND(PRIME2*CSTTDPourcentage3,2),PRIME2),0) -> 0 | R154: =IF(codprimb=181,IF(PRORATPRIME=TRUE,ROUND(PRIME2*CSTTDPourcentage4,2),PRIME2),0) -> 0 | S154: =IF(codprimb=181,IF(PRORATPRIME=TRUE,ROUND(PRIME2*CSTTDPourcentage4,2),PRIME2),0) -> 0 | AU154: 16 | AV154: 15
B155: =IF(codprimc=181,PRIME3,0) -> 0 | C155: =IF(codprimc=181,IF(PRORATPRIME=TRUE,ROUND(PRIME3*C60/10,2),PRIME3),0) -> 0 | D155: 0 | E155: 0 | F155: 0 | G155: 0 | H155: 0 | I155: 0 | J155: 0 | K155: 0 | L155: =IF(codprimc=181,IF(PRORATPRIME=TRUE,ROUND(PRIME3*CSTTDPourcentage1,2),PRIME3),0) -> 0 | M155: =IF(codprimc=181,IF(PRORATPRIME=TRUE,ROUND(PRIME3*CSTTDPourcentage1,2),PRIME3),0) -> 0 | N155: =IF(codprimc=181,IF(PRORATPRIME=TRUE,ROUND(PRIME3*CSTTDPourcentage2,2),PRIME3),0) -> 0 | O155: =IF(codprimc=181,IF(PRORATPRIME=TRUE,ROUND(PRIME3*CSTTDPourcentage2,2),PRIME3),0) -> 0 | P155: =IF(codprimc=181,IF(PRORATPRIME=TRUE,ROUND(PRIME3*CSTTDPourcentage3,2),PRIME3),0) -> 0 | Q155: =IF(codprimc=181,IF(PRORATPRIME=TRUE,ROUND(PRIME3*CSTTDPourcentage3,2),PRIME3),0) -> 0 | R155: =IF(codprimc=181,IF(PRORATPRIME=TRUE,ROUND(PRIME3*CSTTDPourcentage4,2),PRIME3),0) -> 0 | S155: =IF(codprimc=181,IF(PRORATPRIME=TRUE,ROUND(PRIME3*CSTTDPourcentage4,2),PRIME3),0) -> 0 | AU155: 17 | AV155: 16
B156: =IF(codprimd=181,PRIME4,0) -> 0 | C156: =IF(codprimd=181,IF(PRORATPRIME=TRUE,ROUND(PRIME4*C60/10,2),PRIME4),0) -> 0 | D156: 0 | E156: 0 | F156: 0 | G156: 0 | H156: 0 | I156: 0 | J156: 0 | K156: 0 | L156: =IF(codprimd=181,IF(PRORATPRIME=TRUE,ROUND(PRIME4*CSTTDPourcentage1,2),PRIME4),0) -> 0 | M156: =IF(codprimd=181,IF(PRORATPRIME=TRUE,ROUND(PRIME4*CSTTDPourcentage1,2),PRIME4),0) -> 0 | N156: =IF(codprimd=181,IF(PRORATPRIME=TRUE,ROUND(PRIME4*CSTTDPourcentage2,2),PRIME4),0) -> 0 | O156: =IF(codprimd=181,IF(PRORATPRIME=TRUE,ROUND(PRIME4*CSTTDPourcentage2,2),PRIME4),0) -> 0 | P156: =IF(codprimd=181,IF(PRORATPRIME=TRUE,ROUND(PRIME4*CSTTDPourcentage3,2),PRIME4),0) -> 0 | Q156: =IF(codprimd=181,IF(PRORATPRIME=TRUE,ROUND(PRIME4*CSTTDPourcentage3,2),PRIME4),0) -> 0 | R156: =IF(codprimd=181,IF(PRORATPRIME=TRUE,ROUND(PRIME4*CSTTDPourcentage4,2),PRIME4),0) -> 0 | S156: =IF(codprimd=181,IF(PRORATPRIME=TRUE,ROUND(PRIME4*CSTTDPourcentage4,2),PRIME4),0) -> 0 | AU156: 18 | AV156: 17
A157: Total des primes | B157: =B153+B154+B155+B156 -> 0 | C157: =C153+C154+C155+C156 -> 0 | D157: 0 | E157: 0 | F157: 0 | G157: 0 | H157: 0 | I157: 0 | J157: 0 | K157: 0 | L157: 0 | M157: 0 | N157: =N153+N154+N155+N156 -> 0 | O157: 0 | P157: 0 | Q157: 0 | R157: 0 | S157: 0 | AU157: 19 | AV157: 18
AU158: 20 | AV158: 19
AU159: 21 | AV159: 20
AU160: 22 | AV160: 21
AU161: 23 | AV161: 22
AU162: 24 | AV162: 23
AU163: 25 | AV163: 24
AU164: 26 | AV164: 25
AU165: 27 | AV165: 26
AU166: 28 | AV166: 27
AU167: 29 | AV167: 28
AU168: 30 | AV168: 29
AU169: 31 | AV169: 30
AU170: 32 | AV170: 31
AU171: 33 | AV171: 32
A172: CLIQUEZ SUR LE MENU « Retour » | AU172: 34 | AV172: 33
A173: POUR REVENIR AU MENU RÉCUPÉRATION | AU173: 35 | AV173: 34
AU174: 36 | AV174: 35
AU175: 37 | AV175: 36
AU176: 38 | AV176: 37
AU177: 39 | AV177: 38
AU178: 40 | AV178: 39
AU179: 41 | AV179: 40
AU180: 42 | AV180: 41
AU181: 43 | AV181: 42
AU182: 44 | AV182: 43
AU183: 45 | AV183: 44
AU184: 46 | AV184: 45
AU185: 47 | AV185: 46
AU186: 48 | AV186: 47
AU187: 49 | AV187: 48
AU188: 50 | AV188: 49
AU189: 51 | AV189: 50
AU190: 52 | AV190: 51
AU191: 53 | AV191: 52
AU192: 54 | AV192: 53
AU193: 55 | AV193: 54
AU194: 56 | AV194: 55
AU195: 57 | AV195: 56
AU196: 58 | AV196: 57
AU197: 59 | AV197: 58
AU198: 60 | AV198: 59
AU199: 61
AU200: 62
AU201: 63
AU202: 64
V203: ACCIDENT | W203: SALNET | AU203: 65
W204: A_12 | AU204: 66
V205: DUREE | W205: A_13 | AU205: 67
W206: A13BRUT14JRS | AU206: 68
W207: A12CSST | Z207: ACCIDENTPARTIEL | AA207: ACCIDPARTIEL | AB207: HEURES SEMAINES | AC207: =IF(ACCIDENTPARTIEL=TRUE,CHOOSE(ACCIDPARTIEL,B25,C25,D25,E25,F25,G25,H25,I25,J25,K25),B25) -> 35h00 | AD207: =AC207 -> 35h00 | AU207: 69
V208: DUREE1 | W208: A13CSST | AB208: GAINS BRUTS PAR PAIE : | AC208: =IF(ACCIDENTPARTIEL=TRUE,CHOOSE(ACCIDPARTIEL,B26,C26,D26,E26,F26,G26,H26,I26,J26,K26),B26) -> 0 | AD208: =A_10+PRIMES_A13 -> 0 | AU208: 70
V209: =IF(AND(V204=2,V206>0),CHOOSE(V206,V210,V211,V212,V213,V214,V215,V216,V217,V218,V219),"") ->  | W209: A13BRUTCSST | Z209: Temps partiel | AA209: =B25&Z210 -> 35h00 Temps plein | AB209: Salaire A-10 : | AC209: =IF(ACCIDENTPARTIEL=TRUE,CHOOSE(ACCIDPARTIEL,B27,C27,D27,E27,F27,G27,H27,I27,J27,K27),B27) -> 0 | AD209: =L27 -> 0 | AU209: 71
V210: 1 jour ouvrable | W210: BRUT_DED | Z210: Temps plein | AA210: =C25&Z209 -> 33h15 Temps partiel | AB210: Primes totales: | AC210: =IF(ACCIDENTPARTIEL=TRUE,CHOOSE(ACCIDPARTIEL,B28,C28,D28,E28,F28,G28,H28,I28,J28,K28),B28) -> 0 | AU210: 72
V211: 2 jours ouvrables | W211: EXPERTISE | Z211: JRS_TRV_PAIE | AA211: =D25&Z209 -> 32h30 Temps partiel | AB211: Primes admissibles A-13: | AD211: =IF(ACCIDENTPARTIEL=TRUE,CHOOSE(ACCIDPARTIEL,B140,C140,D140,E140,F140,G140,H140,I140,J140,K140),B140) -> 0 | AU211: 73
V212: 3 jours ouvrables | W212: SALAIREBRUTCSST | AA212: =E25&Z209 -> 32h00 Temps partiel | AB212: DÉDUCTIONS | AU212: 74
V213: 4 jours ouvrables | W213: PRESTATIONCSST | Z213: 1 jour ouvrable | AA213: =F25&Z209 -> 31h30 Temps partiel | AB213: FÉDÉRAL | AC213: =IF(ACCIDENTPARTIEL=TRUE,CHOOSE(ACCIDPARTIEL,B31,C31,D31,E31,F31,G31,H31,I31,J31,K31),B31) -> 0 | AD213: =L31-FED_ADD -> 0 | AU213: 75
V214: 5 jours ouvrables | W214: CSST_JOUR | Z214: 2 jours ouvrables | AA214: =G25&Z209 -> 30h00 Temps partiel | AB214: PROVINCIAL | AC214: 0 | AD214: =L32-PROV_ADD -> 0 | AU214: 76
V215: 6 jours ouvrables | W215: CONPENS_1 | Z215: 3 jours ouvrables | AA215: =H25&Z209 -> 28h00 Temps partiel | AB215: Contribution santé | AC215: 0 | AD215: 0 | AU215: 77
V216: 7 jours ouvrables | W216: CONPENS_2 | Z216: 4 jours ouvrables | AA216: =I25&Z209 -> 24h30 Temps partiel | AB216: RRQ | AC216: 0 | AD216: =L34 -> 0 | AU216: 78
V217: 8 jours ouvrables | W217: CONPENS_3 | Z217: 5 jours ouvrables | AA217: =J25&Z209 -> 21h00 Temps partiel | AB217: ASSURANCE-EMPLOI | AC217: 0 | AD217: 0 | AU217: 79
V218: 9 jours ouvrables | W218: CONPENS_4 | Z218: 6 jours ouvrables | AA218: =K25&Z209 -> 14h00 Temps partiel | AB218: RQAP | AC218: 0 | AD218: 0 | AU218: 80
V219: 10 jours ouvrables | W219: COD_CONPENS_1 | Z219: 7 jours ouvrables | AB219: RÉG. RETRAITE | AC219: 0 | AD219: 0 | AU219: 81
V220: 11 jours ouvrables | W220: COD_CONPENS_2 | Z220: 8 jours ouvrables | AB220: SYNDICAT | AC220: 0 | AD220: 0 | AU220: 82
... 89 more rows

Sheet Impression (hidden)
J17: Voir Calcul d' un accident du travail
K18: Voir Calcul de la paie nette
L19: Voir Calcul d' une réclamation
G55: dfvchhg
G56: ffgfg
G57: fdfft
G58: fgftggfhg
Z101: =Titre_imp_Accident -> CALCUL D' UN ACCIDENT DU TRAVAIL ANNÉE 2022
Z103: NOM : | AA103: =AFFICHAGE!N3 -> 0 | AC103: CENTRE : | AD103: =AFFICHAGE!K4 -> 0 | AF103: EXEMPTION FÉDÉRALE: | AG103: =AFFICHAGE!K7 -> 
Z104: PRÉNOM : | AA104: =AFFICHAGE!M3 -> 0 | AC104: HEURES/SEM. : | AD104: =AFFICHAGE!C8 -> 0 | AF104: EXEMPTION PROVINCIALE: | AG104: =AFFICHAGE!K8 -> 
Z105: NAS : | AA105: =AFFICHAGE!B4 -> 0 | AC105: SALAIRE ANNUEL : | AD105: ='Déduction de base'!$I$4 -> 0 | AF105: ALLÈGEMENT FÉDÉRAL : | AG105: =AFFICHAGE!K9 -> 
AC106: MAJOR. OCCASIONNELLE: | AD106: =AFFICHAGE!$B$9 ->  | AF106: ALLÈGEMENT PROVINCIAL : | AG106: =AFFICHAGE!K10 -> 
Z107: RÉGIE DES RENTES | AF107: RACHAT DE SERVICE : | AG107: =AFFICHAGE!B10 -> 
Z108: =AFFICHAGE!$G$7 ->  | AB108: SYNDICATS | AF108: =IF(FED_ADD>0,"Impôts fédéral additionnel :","") ->  | AG108: =IF(FED_ADD>0,FED_ADD,"") -> 
Z109: ASSURANCE-EMPLOI | AB109: =AFFICHAGE!$B$12 ->  | AF109: =IF(PROV_ADD>0,"Impôts provincial additionnel :","") ->  | AG109: =IF(PROV_ADD>0,PROV_ADD,"") -> 
Z110: =AFFICHAGE!$G$8 -> 
Z111: ASSURANCE PARENTALE | AB111: RÉGIME DE RETRAITE | AF111: =IF(ACCIDENTPARTIEL=TRUE,"ACCIDENT DU TRAVAIL (Temps-Partiel)","ACCIDENT DU TRAVAIL") -> ACCIDENT DU TRAVAIL
Z112: =AFFICHAGE!$G$9 ->  | AB112: =AFFICHAGE!$B$11 ->  | AD112: =AFFICHAGE!#REF! -> 
Z113: CONTRIBUTION SANTÉ | AF113: =AFFICHAGE!AB19 ->  | AG113: =AFFICHAGE!AC19 -> Situation familiale -1-1
Z114: =AFFICHAGE!$G$10 ->  | AF114: =AFFICHAGE!AB20 -> 
AD115: =AFFICHAGE!Z21 -> 
AA116: TYPE DE SALAIRE (SAGIP) : | AB116: =AFFICHAGE!$K$3 -> 0 | AE116: Prestations A-12: | AF116: =AFFICHAGE!AB22 -> 0 | AG116: =IF(A_12>0,A_12&" $ Net","") ->  | AH116: =IF(A_12>0,"A012"," ") -> 
Z117: CLASSIFICATION | AA117: =AFFICHAGE!$E$3 ->  | AE117: Compensation A-13: | AF117: =AFFICHAGE!AB23 -> 0 | AG117: =IF(A_13>0,A13BRUT14JRS&" $ Brut","") ->  | AH117: =IF(A_13>0,"A013","") -> 
Z118: =AFFICHAGE!W20 ->  | AA118: =AFFICHAGE!X20 ->  | AE118: Durée de l'absence: | AF118: =AFFICHAGE!AB24 -> 10 jours ouvrables
AE119: Prestations A-12: | AF119: =AFFICHAGE!AB25 -> 0
Z120: AVANTAGES IMPOSABLES Assurances.: | AB120: =AFFICHAGE!$C$15 ->  | AE120: Compensation A-13: | AF120: =AFFICHAGE!AB26 -> 0
Z121: Groupe d'assurés : | AA121: =GR_ASSURANCE -> 
Z122: Type de Protection : | AA122: =PROTECTION ->  | AD122: =AFFICHAGE!$Z$27 -> À compter de la 15ième journée
Z123: Calcul de paie | AA123: régulier | AB123: Compensation Acc.Tr. | AE123: Prestations A-12: | AF123: =AFFICHAGE!AB28 -> 1880.06 | AG123: =IF(A12CSST>0,A12CSST&" $ Net","") ->  | AH123: =IF(A12CSST>0,"A012","") -> 
Z124: =AFFICHAGE!$W$26 -> Heures par semaine: | AA124: =AFFICHAGE!X26 -> 35h00 | AB124: =AFFICHAGE!Y26 -> 35h00 | AE124: Compensation A-13: | AF124: =AFFICHAGE!AB29 -> 0 | AG124: =IF(A13CSST>0,A13BRUTCSST&" $ Brut","") ->  | AH124: =IF(A13CSST>0,"A013","") -> 
Z125: GAINS BRUTS : | AA125: =AFFICHAGE!X27 -> 0 | AB125: =AFFICHAGE!Y27 -> 0 | AD125: =AFFICHAGE!Z30 -> 
Z126: Salaire A-10 : | AA126: =AFFICHAGE!X28 -> 0 | AB126: =AFFICHAGE!Y28 -> 0 | AD126: =AFFICHAGE!Z31 -> Indemnités CNESST : $ par année ; $ par jour calendrier
Z127: =IF(ACCIDENT=1,"Primes : "&PARAMÈTRES!$A$85,"Primes :") -> Primes : | AA127: =AFFICHAGE!$X$29 -> 0 | AD127: =AFFICHAGE!Z32 -> Salaire annuel déclaré à la CNESST : $
Z128: =AFFICHAGE!$W$30 -> Primes admissibles A-13 : | AB128: =AFFICHAGE!$Y$30 -> 0 | AD128: MESSAGES
Z129: DÉDUCTIONS | AD129: =AFFICHAGE!Z33 -> 0
Z130: Impôt fédéral | AA130: =AFFICHAGE!X32 -> 0 | AB130: =AFFICHAGE!Y32 -> 0 | AD130: =AFFICHAGE!Z34 -> 0
Z131: Impôt provincial | AA131: =AFFICHAGE!X33 -> 0 | AB131: =AFFICHAGE!Y33 -> 0 | AD131: =AFFICHAGE!Z36 -> * * Le salaire annuel brut dépasse le maximum de la C.N.E.S.S.T. (88000$ en 2022)
Z132: Contribution santé
Z133: Régie des rentes | AA133: =AFFICHAGE!X35 -> 0 | AB133: =AFFICHAGE!Y35 -> 0 | AD133: =AFFICHAGE!Z37 -> 0
Z134: Assurance-emploi | AA134: =AFFICHAGE!X36 -> 0 | AB134: =AFFICHAGE!Y36 -> 0 | AD134: =AFFICHAGE!Z38 -> 0
Z135: RQAP Assurance-parentale | AA135: =AFFICHAGE!X37 -> 0 | AB135: =AFFICHAGE!Y37 -> 0 | AD135: =AFFICHAGE!Z40 -> 0
Z136: Rég. retraite | AA136: =AFFICHAGE!X38 -> 0 | AB136: =AFFICHAGE!Y38 -> 0 | AD136: =AFFICHAGE!Z41 -> 0
Z137: Syndicat | AA137: =AFFICHAGE!X39 -> 0 | AB137: =AFFICHAGE!Y39 -> 0 | AD137: =AFFICHAGE!Z42 -> 0
Z138: Rachat service | AA138: =AFFICHAGE!X40 -> 0 | AB138: =AFFICHAGE!Y40 -> 0 | AD138: =AFFICHAGE!Z43 -> 0
Z139: Assurance-coll. | AA139: =AFFICHAGE!X41 -> 0 | AB139: =AFFICHAGE!Y41 -> 0
Z140: Déductions diverses | AA140: =AFFICHAGE!X42 -> 0 | AB140: =AFFICHAGE!Y42 -> 0
Z141: SALAIRE NET | AA141: =AFFICHAGE!X43 -> 0 | AB141: =AFFICHAGE!Y43 -> 0
AH145: =TODAY() -> 2021-12-30
Z146: =VERSIONBNET&" "&VERSION -> BrutNet version 2019-1
AK150: =Titre_imp_Brutnet -> CALCUL DE LA PAIE NETTE ANNÉE 2022
AK152: NOM : | AL152: =_nom1 -> 0 | AP152: CENTRE : | AQ152: =centre1 -> 0
AK153: PRÉNOM : | AL153: =prenom1 -> 0 | AP153: HEURES/SEM. (temps plein) : | AQ153: =HRES_SEM -> 35
AK154: NAS : | AL154: =_nas1 -> 0 | AO154: : | AP154: Corps d'emploi : | AQ154: =CORPS_EMPLOI -> 0
AK155: TYPE DE PAIE : | AL155: =UPPER(LEFT(TYPE_PAIE_TEXTE,1))&MID(TYPE_PAIE_TEXTE,2,100) -> Standard | AP155: CLASSIFICATION: | AQ155: =AFFICHAGE!E3 -> 
AK156: =AFFICHAGE!A7 ->  | AM156: =AFFICHAGE!B7 ->  | AP156: ALLÈGEMENTS FÉDÉRAUX : | AQ156: =AFFICHAGE!K9 ->  | AT156: =IF(FED_ADD>0,"Impôts fédéral additionnel :","") ->  | AU156: =IF(FED_ADD>0,FED_ADD,"") -> 
AK157: TYPE DE SALAIRE (SAGIP): | AM157: =AFFICHAGE!K3 -> 0 | AP157: ALLÈGEMENTS PROVINCIAUX: | AQ157: =AFFICHAGE!K10 ->  | AT157: =IF(PROV_ADD>0,"Impôts provincial additionnel :","") ->  | AU157: =IF(PROV_ADD>0,PROV_ADD,"") -> 
AK158: EXEMPTION FÉDÉRALE | AM158: =AFFICHAGE!K7 ->  | AP158: RACHAT DE SERVICE : | AQ158: =AFFICHAGE!B10 ->  | AS158: PROTECTION: | AT158: =AFFICHAGE!B20 -> 
AK159: EXEMPTION PROVINCIALE | AM159: =AFFICHAGE!K8 ->  | AP159: GROUPE D'ASSURÉS: | AQ159: =AFFICHAGE!B19 -> 
AK160: MAJORATION OCCASIONNELLE: | AM160: =MAJORATION ->  | AP160: AVANTAGES IMPOSABLES : | AQ160: =AFFICHAGE!C15 ->  | AR160: Ass.Maladie : | AS160: =AFFICHAGE!C16 -> 
AP161: ( Temps partiel ) : | AQ161: =AFFICHAGE!C18 ->  | AR161: 0 | AS161: 0
AK162: RÉGIE DES RENTES DU QUÉBEC | AN162: ACCIDENT DU TRAVAIL
AK163: =AFFICHAGE!G7 ->  | AP163: SITUATION FAMILIALE
AK164: ASSURANCE-EMPLOI | AO164: 0 | AR164: 0
AK165: =AFFICHAGE!G8 ->  | AN165: MONTANT À DÉCLARER A LA C.S.S.T.
AK166: ASSURANCE-PARENTALE | AN166: POUR LES 14 PREMIERS JOURS CALENDRIERS
AK167: =AFFICHAGE!G9 ->  | AN167: Si l'absence est égale à une période de paie
AK168: CONTRIBUTION SANTÉ | AP168: soit 10 jours ouvrables le montant est : | AQ168: =PRESTATION -> 0
AK169: =AFFICHAGE!G10 ->  | AP169: Pour une absence ayant une durée de :
AK170: RÉGIME DE RETRAITE | AP170: vous devrez déclarer à la C.S.S.T. : | AQ170: =A_12CALCUL -> 0 | AV170: =AFFICHAGE!K19 -> Temps partiel
AK171: =AFFICHAGE!B11 ->  | AN171: =IF(BRUT_PAIE>MAXCSSTPAIE,"N.B. Le salaire par paie dépasse le maximum de la csst:"&MAXCSSTPAIE&" $ brut par paie"," ") ->  | AV171: =AFFICHAGE!K20 -> Horaire spécial
AK172: SYNDICATS | AN172: =IF(BRUT_PAIE>MAXCSSTPAIE," Les prestations sont calculées en respectant le maximum CSST"," ") ->  | AV172: =AFFICHAGE!K21 -> Heures / Paie
AK173: =AFFICHAGE!B12 -> 
AK176: HEURES SEMAINE | AM176: =PARAMÈTRES!B25 -> 35h00 | AN176: =PARAMÈTRES!C25 -> 33h15 | AO176: =PARAMÈTRES!D25 -> 32h30 | AP176: =PARAMÈTRES!E25 -> 32h00 | AQ176: =PARAMÈTRES!F25 -> 31h30 | AR176: =PARAMÈTRES!G25 -> 30h00 | AS176: =PARAMÈTRES!H25 -> 28h00 | AT176: =PARAMÈTRES!I25 -> 24h30 | AU176: =PARAMÈTRES!J25 -> 21h00 | AV176: =PARAMÈTRES!K25 -> 14h00
AK177: GAINS BRUTS
AK178: Versés par paie (2 semaines) : | AM178: =PARAMÈTRES!B26 -> 0 | AN178: =PARAMÈTRES!C26 -> 0 | AO178: =PARAMÈTRES!D26 -> 0 | AP178: =PARAMÈTRES!E26 -> 0 | AQ178: =PARAMÈTRES!F26 -> 0 | AR178: =PARAMÈTRES!G26 -> 0 | AS178: =PARAMÈTRES!H26 -> 0 | AT178: =PARAMÈTRES!I26 -> 0 | AU178: =PARAMÈTRES!J26 -> 0 | AV178: =PARAMÈTRES!K26 -> 0
AK179: Salaire: A010 | AM179: =PARAMÈTRES!B27 -> 0 | AN179: =PARAMÈTRES!C27 -> 0 | AO179: =PARAMÈTRES!D27 -> 0 | AP179: =PARAMÈTRES!E27 -> 0 | AQ179: =PARAMÈTRES!F27 -> 0 | AR179: =PARAMÈTRES!G27 -> 0 | AS179: =PARAMÈTRES!H27 -> 0 | AT179: =PARAMÈTRES!I27 -> 0 | AU179: =PARAMÈTRES!J27 -> 0 | AV179: =PARAMÈTRES!K27 -> 0
AK180: Avantages imposables Ass. Coll. | AM180: =PARAMÈTRES!B28 -> 0 | AN180: =PARAMÈTRES!C28 -> 0 | AO180: =PARAMÈTRES!D28 -> 0 | AP180: =PARAMÈTRES!E28 -> 0 | AQ180: =PARAMÈTRES!F28 -> 0 | AR180: =PARAMÈTRES!G28 -> 0 | AS180: =PARAMÈTRES!H28 -> 0 | AT180: =PARAMÈTRES!I28 -> 0 | AU180: =PARAMÈTRES!J28 -> 0 | AV180: =PARAMÈTRES!K28 -> 0
AK182: DÉDUCTIONS
AK183: Impôt fédéral | AM183: =AFFICHAGE!B28 -> 0 | AN183: =AFFICHAGE!C28 -> 0 | AO183: =AFFICHAGE!D28 -> 0 | AP183: =AFFICHAGE!E28 -> 0 | AQ183: =AFFICHAGE!F28 -> 0 | AR183: =AFFICHAGE!G28 -> 0 | AS183: =AFFICHAGE!H28 -> 0 | AT183: =AFFICHAGE!I28 -> 0 | AU183: =AFFICHAGE!J28 -> 0 | AV183: =AFFICHAGE!K28 -> 0
AK184: Impôt provincial | AM184: =AFFICHAGE!B29 -> 0 | AN184: =AFFICHAGE!C29 -> 0 | AO184: =AFFICHAGE!D29 -> 0 | AP184: =AFFICHAGE!E29 -> 0 | AQ184: =AFFICHAGE!F29 -> 0 | AR184: =AFFICHAGE!G29 -> 0 | AS184: =AFFICHAGE!H29 -> 0 | AT184: =AFFICHAGE!I29 -> 0 | AU184: =AFFICHAGE!J29 -> 0 | AV184: =AFFICHAGE!K29 -> 0
AK185: Régie des rentes | AM185: =AFFICHAGE!B31 -> 0 | AN185: =AFFICHAGE!C31 -> 0 | AO185: =AFFICHAGE!D31 -> 0 | AP185: =AFFICHAGE!E31 -> 0 | AQ185: =AFFICHAGE!F31 -> 0 | AR185: =AFFICHAGE!G31 -> 0 | AS185: =AFFICHAGE!H31 -> 0 | AT185: =AFFICHAGE!I31 -> 0 | AU185: =AFFICHAGE!J31 -> 0 | AV185: =AFFICHAGE!K31 -> 0
AK186: Assurance-emploi | AM186: =AFFICHAGE!B32 -> 0 | AN186: =AFFICHAGE!C32 -> 0 | AO186: =AFFICHAGE!D32 -> 0 | AP186: =AFFICHAGE!E32 -> 0 | AQ186: =AFFICHAGE!F32 -> 0 | AR186: =AFFICHAGE!G32 -> 0 | AS186: =AFFICHAGE!H32 -> 0 | AT186: =AFFICHAGE!I32 -> 0 | AU186: =AFFICHAGE!J32 -> 0 | AV186: =AFFICHAGE!K32 -> 0
AK187: Assurance-Parentale | AM187: =AFFICHAGE!B33 -> 0 | AN187: =AFFICHAGE!C33 -> 0 | AO187: =AFFICHAGE!D33 -> 0 | AP187: =AFFICHAGE!E33 -> 0 | AQ187: =AFFICHAGE!F33 -> 0 | AR187: =AFFICHAGE!G33 -> 0 | AS187: =AFFICHAGE!H33 -> 0 | AT187: =AFFICHAGE!I33 -> 0 | AU187: =AFFICHAGE!J33 -> 0 | AV187: =AFFICHAGE!K33 -> 0
AK188: Rég. retraite | AM188: =AFFICHAGE!B34 -> 0 | AN188: =AFFICHAGE!C34 -> 0 | AO188: =AFFICHAGE!D34 -> 0 | AP188: =AFFICHAGE!E34 -> 0 | AQ188: =AFFICHAGE!F34 -> 0 | AR188: =AFFICHAGE!G34 -> 0 | AS188: =AFFICHAGE!H34 -> 0 | AT188: =AFFICHAGE!I34 -> 0 | AU188: =AFFICHAGE!J34 -> 0 | AV188: =AFFICHAGE!K34 -> 0
AK189: Syndicat | AM189: =AFFICHAGE!B35 -> 0 | AN189: =AFFICHAGE!C35 -> 0 | AO189: =AFFICHAGE!D35 -> 0 | AP189: =AFFICHAGE!E35 -> 0 | AQ189: =AFFICHAGE!F35 -> 0 | AR189: =AFFICHAGE!G35 -> 0 | AS189: =AFFICHAGE!H35 -> 0 | AT189: =AFFICHAGE!I35 -> 0 | AU189: =AFFICHAGE!J35 -> 0 | AV189: =AFFICHAGE!K35 -> 0
AK190: Rachat service | AM190: =AFFICHAGE!B36 -> 0 | AN190: =AFFICHAGE!C36 -> 0 | AO190: =AFFICHAGE!D36 -> 0 | AP190: =AFFICHAGE!E36 -> 0 | AQ190: =AFFICHAGE!F36 -> 0 | AR190: =AFFICHAGE!G36 -> 0 | AS190: =AFFICHAGE!H36 -> 0 | AT190: =AFFICHAGE!I36 -> 0 | AU190: =AFFICHAGE!J36 -> 0 | AV190: =AFFICHAGE!K36 -> 0
AK191: Assurance-collectives | AM191: =AFFICHAGE!B37 -> 0 | AN191: =AFFICHAGE!C37 -> 0 | AO191: =AFFICHAGE!D37 -> 0 | AP191: =AFFICHAGE!E37 -> 0 | AQ191: =AFFICHAGE!F37 -> 0 | AR191: =AFFICHAGE!G37 -> 0 | AS191: =AFFICHAGE!H37 -> 0 | AT191: =AFFICHAGE!I37 -> 0 | AU191: =AFFICHAGE!J37 -> 0 | AV191: =AFFICHAGE!K37 -> 0
AK192: Déductions diverses | AM192: =AFFICHAGE!B38 -> 0 | AN192: =AFFICHAGE!C38 -> 0 | AO192: =AFFICHAGE!D38 -> 0 | AP192: =AFFICHAGE!E38 -> 0 | AQ192: =AFFICHAGE!F38 -> 0 | AR192: =AFFICHAGE!G38 -> 0 | AS192: =AFFICHAGE!H38 -> 0 | AT192: =AFFICHAGE!I38 -> 0 | AU192: =AFFICHAGE!J38 -> 0 | AV192: =AFFICHAGE!K38 -> 0
AK193: SALAIRE NET | AM193: =AFFICHAGE!B40 -> 0 | AN193: =AFFICHAGE!C40 -> 0 | AO193: =AFFICHAGE!D40 -> 0 | AP193: =AFFICHAGE!E40 -> 0 | AQ193: =AFFICHAGE!F40 -> 0 | AR193: =AFFICHAGE!G40 -> 0 | AS193: =AFFICHAGE!H40 -> 0 | AT193: =AFFICHAGE!I40 -> 0 | AU193: =AFFICHAGE!J40 -> 0 | AV193: =AFFICHAGE!K40 -> 0
AK195: =VERSIONBNET&" "&VERSION -> BrutNet version 2019-1 | AV195: =TODAY() -> 2021-12-30 | AY195: =AFFICHAGE!$B$97 -> RÉCLAMATION
AY197: Ne pas utiliser - Outil en révision
AY202: NOM | AZ202: PRÉNOM | BC202: N.A.S.
AY203: =NOM_FACT -> 0 | AZ203: =PRENOM_FACT -> 0 | BC203: =NAS_FACT -> 
AY206: BRUT PAR PAIE : | AZ206: =AFFICHAGE!B105 -> 0 | BB206: =IF(Formule_Divers!I20=1,"BRUT À PAYER:","BRUT À RÉCUPÉRER : ") -> BRUT À RÉCUPÉRER : | BD206: =AFFICHAGE!E105 -> 0
AY207: IMPÔT FÉDÉRAL.: | AZ207: =AFFICHAGE!B106 -> 0 | BB207: IMPÔT FÉDÉRAL.: | BD207: =AFFICHAGE!E106 -> 
AY208: IMPÔT PROVINCIAL: | AZ208: =AFFICHAGE!B107 -> 0 | BB208: IMPÔT PROVINCIAL: | BD208: =AFFICHAGE!E107 -> 
AY209: CONTRIBUTION SANTÉ : | AZ209: =AFFICHAGE!B108 -> 0 | BB209: CONTRIBUTION SANTÉ : | BD209: =AFFICHAGE!E108 -> 
AY210: RÉGIE DES RENTES: | AZ210: =AFFICHAGE!B109 -> 0 | BB210: RÉGIE DES RENTES: | BD210: =AFFICHAGE!E109 -> 
AY211: ASSURANCE EMPLOI: | AZ211: =AFFICHAGE!B110 -> 0 | BB211: ASSURANCE EMPLOI: | BD211: =AFFICHAGE!E110 -> 
AY212: ASSURANCE PARENTALE: | AZ212: =AFFICHAGE!B111 -> 0 | BB212: ASSURANCE PARENTALE: | BD212: =AFFICHAGE!E111 -> 
AY213: RÉGIME DE RETRAITE: | AZ213: =AFFICHAGE!B112 -> 0 | BB213: RÉGIME DE RETRAITE: | BD213: =AFFICHAGE!E112 -> 
AY214: =AFFICHAGE!A113 ->  | AZ214: =AFFICHAGE!B113 -> 0 | BB214: =AFFICHAGE!A113 ->  | BD214: =AFFICHAGE!E113 -> 
AY216: PAIE NETTE : | AZ216: =AFFICHAGE!$B$115 -> 0 | BB216: TOTAL DÉDUCTIONS: | BD216: =AFFICHAGE!$E$115 -> 0
BC219: =AFFICHAGE!$D$117 -> MONTANT NET À RÉCUPÉRER : | BD219: =AFFICHAGE!$E$117 -> 0
AX252: =VERSIONBNET&" "&VERSION -> BrutNet version 2019-1 | BE252: =TODAY() -> 2021-12-30

Sheet Imprime_Simul (hidden)
J18: Voir Calcul de la paie nette
AK153: Paramètres de calcul
AK154: =Simulateur!C3 -> Taux horaire : | AL154: =Simulateur!D3 -> 0 | AN154: RÉGIE DES RENTES | AP154: CLASSIFICATION
AK155: Majoration occasionnelle : | AL155: =Formule_Divers!H16 -> 0 | AN155: =Formule_Divers!E5 ->  | AP155: =CHOOSE(TYPESAL1,Formule_Divers!B4,Formule_Divers!B5,Formule_Divers!B6) -> 
AK156: HEURES/SEM. (temps plein) : | AL156: =HRES_SEM -> 35
AK157: =Simulateur!C6 ->  | AL157: =Simulateur!D6 ->  | AN157: ASSURANCE-EMPLOI | AP157: RQAP ASSURANCE-PARENTALE
AK158: Crédit d'impôt fédéral : | AL158: =EXEMPTIONS_FED -> 0 | AN158: =Formule_Divers!E11 ->  | AP158: =Formule_Divers!E17 -> 
AK159: Crédit d'impôt provincial : | AL159: =EXEMPTIONS_PROV -> 0
AK160: Impôts fédéral additionnel: | AL160: =FED_ADD -> 0 | AN160: RÉGIME DE RETRAITE
AK161: Impôts provincial additionnel: | AL161: =PROV_ADD -> 0 | AN161: =PARAMÈTRES!Y102 -> 0
AK162: Allègement d'impôt fédéral : | AL162: =ALLEGFED -> 0
AK163: Allègement d'impôt provincial : | AL163: =ALLEGPROV -> 0 | AN163: SYNDICATS
AK164: Rachat de service : | AL164: =RACHAT -> 0 | AN164: =PARAMÈTRES!Y118 -> 0
AK166: =Assurances!H42 -> Avantages imposables
AK167: Assurances collectives : | AL167: =IF(ASS_EXEMPT=TRUE,"",ASSUR_TOTAL) -> 0
AK168: =Assurances!G35 -> 0 | AL168: =Assurances!G38 -> 0 | AM168: =Assurances!H35 ->  | AN168: =Assurances!H38 -> 0
AK169: Groupe d'assurés : | AL169: =GR_ASSURANCE -> 
AK170: Type de Protection : | AL170: =PROTECTION -> 
AU171: =PARAMÈTRES!E23 -> Temps partiel
AU172: =PARAMÈTRES!G23 -> Horaire spécial
AU173: =PARAMÈTRES!I23 -> Heures / Paie
AK174: HEURES SEMAINE | AL174: =PARAMÈTRES!$B$25:$E$25 -> 35h00 | AM174: 33h15 | AN174: 32h30 | AO174: 32h00 | AP174: =PARAMÈTRES!$F$25:$K$25 -> 31h30 | AQ174: 30h00 | AR174: 28h00 | AS174: 24h30 | AT174: 21h00 | AU174: 14h00
AK175: GAINS BRUTS
AK176: Versés par paie (2 semaines) : | AL176: =PARAMÈTRES!$B$26:$K$28 -> 0 | AM176: 0 | AN176: 0 | AO176: 0 | AP176: 0 | AQ176: 0 | AR176: 0 | AS176: 0 | AT176: 0 | AU176: 0
AK177: =PARAMÈTRES!$A$27 -> Salaire A010 | AL177: 0 | AM177: 0 | AN177: 0 | AO177: 0 | AP177: 0 | AQ177: 0 | AR177: 0 | AS177: 0 | AT177: 0 | AU177: 0
AK178: =PARAMÈTRES!$A$28 ->  | AL178: 0 | AM178: 0 | AN178: 0 | AO178: 0 | AP178: 0 | AQ178: 0 | AR178: 0 | AS178: 0 | AT178: 0 | AU178: 0
AK179: Avantages imposables Ass. Coll. | AL179: =PARAMÈTRES!$B$64:$K$64 -> 0
AK180: DÉDUCTIONS
AK181: IMPÔT FÉDÉRAL | AL181: =PARAMÈTRES!B31 -> 0 | AM181: =PARAMÈTRES!C31 -> 0 | AN181: =PARAMÈTRES!D31 -> 0 | AO181: =PARAMÈTRES!E31 -> 0 | AP181: =PARAMÈTRES!F31 -> 0 | AQ181: =PARAMÈTRES!G31 -> 0 | AR181: =PARAMÈTRES!H31 -> 0 | AS181: =PARAMÈTRES!I31 -> 0 | AT181: =PARAMÈTRES!J31 -> 0 | AU181: =PARAMÈTRES!K31 -> 0
AK182: IMPÔT PROVINCIAL | AL182: =PARAMÈTRES!B32 -> 0 | AM182: =PARAMÈTRES!C32 -> 0 | AN182: =PARAMÈTRES!D32 -> 0 | AO182: =PARAMÈTRES!E32 -> 0 | AP182: =PARAMÈTRES!F32 -> 0 | AQ182: =PARAMÈTRES!G32 -> 0 | AR182: =PARAMÈTRES!H32 -> 0 | AS182: =PARAMÈTRES!I32 -> 0 | AT182: =PARAMÈTRES!J32 -> 0 | AU182: =PARAMÈTRES!K32 -> 0
